Workbook

Sheet INFO Blatt
A1: INFO
A3: Mannschaften | B3: 5
A5: Wertungsvorschrift | B5: P und AK
A7: Liga | B7: Einsteigerliga
A9: Wettkampftag | B9: 1.
A11: Ort | B11: Hehlen
A13: Datum | B13: 2019-02-16
A16: Kleine Einführung in die Auswertung:
A18: 1. Es wird MS Ecxel ab 2007 benötigt. Auf Wunsch kann ich es auch in die 97 Version runterspeichern.
A19: 2. Bitte die Datei für den 1 Wettkampftag öffnen. Bzw. den aktuellen. Die Ergebnisse werden von dem letzten Wettkampftag eingelesen. Dort müsste eventuell der Datenpfad geändert werden.
B20: a. Im Datenblatt Formeln / Daten à Verknüpfung bearbeiten à Quelle ändern à die Datei des letzten Wettkampfes angeben.
B21: b. Wenn ich die Ergebnisse bekomme, kann ich auch die aktuelle Datei an den Ausrichter senden.
A22: 3. Für den Wettkampf müssen die Wettkampfzettel ausgedruckt werden. Es gibt immer 2stk. pro Mannschaft. Dort sind immer 3 Geräte aufgeführt. Die Zettel können abwechseln eingegeben werden bzw. am Kari Tisch liegen.
A23: 4. Es wird empfohlen das vor Wettkampfbeginn alle anwesenden Turner in die Auswertungstabellen eingelesen werden. Dazu in der Tabelle der Mannschaft / Spalte Namen und dem ersten Namensfeld auf den Pfeil klicken. Es werden alle gemeldeten Turner der Mannschaft aufgelistet.
B24: a. Wenn die Reihenfolge der Wertungszettel übernommen wird ist es einfacher für die Eingabe.
B25: b. Falls ein Turner fehlt oder ein Rechtschreibfehler vorliegt. Kann dies unter dem Datenblatt „Wertungszettel M?“ (Nummer der Mannschaft) geändert werden. Danach im muss der Turner neu angewählt werden. Um die Änderung anzuzeigen!
A26: 5. Die Wertungen müssen dann unter den Mannschaften eingetragen werden.
A27: Bitte den
B28: a. Ausgang : 1,4 bzw. bei P-Stufen für P7 = 7
B29: b. E-Abzug: die Abzüge eintragen ( z.B.1,8) bitte immer 2 Werte eintragen
A30: 6. Platzierungen kann man und dem Datenblatt „Ergebnisse“ finden. Zum Sortieren auf den Button klicken.
B31: a. Achtung dafür müssen die Makro aktiviert sein. Die Dateien sind mit Norton Antivir geprüft.
B32: b. Die Seite ist so ein gestellt das Seite 1 die Mannschaftergebnisse sind und die folgenden die Einzelergebnisse
B33: c. Die Arbeitsmappe wird nach dem sortieren automatisch gespeichert.
A34: 7. AK Turner werden in dem Programm wie folgt behandelt
B35: a. Ausgang: Ausgangswerte für Ak Turner müssen negativ eingegeben werden z.B. P7 = -7
B36: b. Die Endwerte der Ak Turner werden vom Programm automatisch farblich markiert
B37: c. Für die Einzelergebnisse der Turner werden alle Endwerte korrekt berücksichtigt
A38: 8. Falls Fragen und Hilfen benötigt wird bitte einfach mailen carsten.jeschke@t-online.de
B40: © Alexander Gläsener

Sheet Ergebnisse
A7: ='INFO Blatt'!B7 -> Einsteigerliga | C7: ='INFO Blatt'!B11 -> Hehlen | D7: ='INFO Blatt'!B13 -> 2019-02-16 | I7: =A7 -> Einsteigerliga | K7: =C7 -> Hehlen | M7: =D7 -> 2019-02-16
A9: Einzelergebnisse | I9: Mannschaftsergebnisse
A11: Platz | B11: Name | C11: Verein | D11: Punkte
A12: =IF(D12=0,F12*10+1,RANK(D12,D$12:D$101,0)) -> 1 | B12: ='TG Oker_Salzg_Wenzen'!A13 -> Emmanuel König | C12: ='TG Oker_Salzg_Wenzen'!B13 -> TG Oker/Salzgitter/Wenzen | D12: ='TG Oker_Salzg_Wenzen'!AB13 -> 95.05 | F12: =200 -> 200
A13: 2 | B13: ='TG Oker_Salzg_Wenzen'!A17 -> Erik Pohler | C13: ='TG Oker_Salzg_Wenzen'!B17 -> TG Oker/Salzgitter/Wenzen | D13: ='TG Oker_Salzg_Wenzen'!AB17 -> 82.9 | F13: =F12 -> 200 | I13: Platz | J13: Verein | K13: WK Punkte | L13: Gerät Punkt | M13: Punkte | N13: Nach Geräten
A14: 3 | B14: =Dielmissen!A9 -> Sebastian Bocian | C14: =Dielmissen!B9 -> TSV Dielmissen | D14: =Dielmissen!AB9 -> 79.3 | F14: =F13 -> 200 | I14: =Formeln!C6 -> 1 | J14: =Formeln!A6 -> TG Oker/Salzgitter/Wenzen | K14: =Formeln!D6 -> 12 | L14: =Formeln!E6 -> 70 | M14: =Formeln!B6 -> 251.55 | N14: ='TG Oker_Salzg_Wenzen'!AG18 -> 6
A15: 4 | B15: =Dielmissen!A11 -> Yannick Schröder | C15: =Dielmissen!B11 -> TSV Dielmissen | D15: =Dielmissen!AB11 -> 77.95 | F15: =F14 -> 200 | I15: =Formeln!C8 -> 2 | J15: =Formeln!A8 -> TSV Dielmissen | K15: =Formeln!D8 -> 10 | L15: =Formeln!E8 -> 56 | M15: =Formeln!B8 -> 231.15 | N15: =Dielmissen!AG18 -> 6
A16: 5 | B16: =Boffzen!A15 -> Nick Bernhardt | C16: =Boffzen!B15 -> MTV Boffzen e.V. von 1892 | D16: =Boffzen!AB15 -> 74.25 | F16: =F15 -> 200 | I16: =Formeln!C5 -> 3 | J16: =Formeln!A5 -> MTV Boffzen e.V. von 1892 | K16: =Formeln!D5 -> 8 | L16: =Formeln!E5 -> 52 | M16: =Formeln!B5 -> 227.95 | N16: =Boffzen!AG18 -> 6
A17: 6 | B17: ='TG Oker_Salzg_Wenzen'!A15 -> Linus Ankert | C17: ='TG Oker_Salzg_Wenzen'!B15 -> TG Oker/Salzgitter/Wenzen | D17: ='TG Oker_Salzg_Wenzen'!AB15 -> 73.6 | F17: 200 | I17: =Formeln!C7 -> 4 | J17: =Formeln!A7 -> TG LaPeKa | K17: =Formeln!D7 -> 6 | L17: =Formeln!E7 -> 38 | M17: =Formeln!B7 -> 197.6 | N17: =LaPeKa!AG18 -> 6
A18: 7 | B18: =Dielmissen!A13 -> Tristan Warmuth | C18: =Dielmissen!B13 -> TSV Dielmissen | D18: =Dielmissen!AB13 -> 73.4 | F18: 200 | I18: =Formeln!C9 -> 6 | J18: =Formeln!A9 -> M5 | K18: =Formeln!D9 -> 2 | L18: =Formeln!E9 -> 0 | M18: =Formeln!B9 -> 0 | N18: ='M5'!AG18 -> 0
A19: 8 | B19: =Boffzen!A11 -> Thorge Haak | C19: =Boffzen!B11 -> MTV Boffzen e.V. von 1892 | D19: =Boffzen!AB11 -> 72.9 | F19: 200 | I19: =Formeln!C10 -> 6 | J19: =Formeln!A10 -> M6 | K19: =Formeln!D10 -> 2 | L19: =Formeln!E10 -> 0 | M19: =Formeln!B10 -> 0 | N19: ='M6'!AG18 -> 0
A20: 9 | B20: =Boffzen!A21 -> David Janzen | C20: =Boffzen!B21 -> MTV Boffzen e.V. von 1892 | D20: =Boffzen!AB21 -> 72.55 | F20: 200 | I20: =Formeln!C11 -> 6 | J20: =Formeln!A11 -> M7 | K20: =Formeln!D11 -> 2 | L20: =Formeln!E11 -> 0 | M20: =Formeln!B11 -> 0 | N20: ='M7'!AG18 -> 0
A21: 10 | B21: =Dielmissen!A15 -> Leon Nolte-Furchner | C21: =Dielmissen!B15 -> TSV Dielmissen | D21: =Dielmissen!AB15 -> 67.95 | F21: 200
A22: 11 | B22: =LaPeKa!A19 -> Jaroslaw Schwentner | C22: =LaPeKa!B19 -> TG LaPeKa | D22: =LaPeKa!AB19 -> 66.75 | F22: 200
A23: 12 | B23: =LaPeKa!A9 -> Lukas Sitzenstock | C23: =LaPeKa!B9 -> TG LaPeKa | D23: =LaPeKa!AB9 -> 64.7 | F23: 200
A24: 13 | B24: =LaPeKa!A17 -> Bennett Hasenfuß | C24: =LaPeKa!B17 -> TG LaPeKa | D24: =LaPeKa!AB17 -> 62.65 | F24: 200
A25: 14 | B25: =Boffzen!A19 -> Benedikt Sievers | C25: =Boffzen!B19 -> MTV Boffzen e.V. von 1892 | D25: =Boffzen!AB19 -> 61.75 | F25: 200
A26: 15 | B26: =LaPeKa!A13 -> Maxim Borgardt | C26: =LaPeKa!B13 -> TG LaPeKa | D26: =LaPeKa!AB13 -> 60.95 | F26: 200
A27: 16 | B27: =Boffzen!A17 -> Nico Schilcher | C27: =Boffzen!B17 -> MTV Boffzen e.V. von 1892 | D27: =Boffzen!AB17 -> 60.45 | F27: 200
A28: 17 | B28: =LaPeKa!A15 -> Maxim Nuss | C28: =LaPeKa!B15 -> TG LaPeKa | D28: =LaPeKa!AB15 -> 52.4 | F28: 200
A29: 18 | B29: =Dielmissen!A17 -> Joel Holzkamp | C29: =Dielmissen!B17 -> TSV Dielmissen | D29: =Dielmissen!AB17 -> 51.7 | F29: 200
A30: 19 | B30: =Boffzen!A13 -> Robin Meisner | C30: =Boffzen!B13 -> MTV Boffzen e.V. von 1892 | D30: =Boffzen!AB13 -> 35.4 | F30: 200
A31: 20 | B31: =Boffzen!A23 -> Simon Janzen | C31: =Boffzen!B23 -> MTV Boffzen e.V. von 1892 | D31: =Boffzen!AB23 -> 22.9 | F31: 200
A32: 2001 | B32: ='TG Oker_Salzg_Wenzen'!A9 -> Ian Sureshkumar | C32: ='TG Oker_Salzg_Wenzen'!B9 -> TG Oker/Salzgitter/Wenzen | D32: ='TG Oker_Salzg_Wenzen'!AB9 -> 0 | F32: 200
A33: 2001 | B33: ='M5'!A19 -> frei 6 | C33: ='M5'!B19 -> M5 | D33: ='M5'!AB19 -> 0 | F33: 200
A34: 2001 | B34: =LaPeKa!A11 -> Til Mittag | C34: =LaPeKa!B11 -> TG LaPeKa | D34: =LaPeKa!AB11 -> 0 | F34: 200
A35: 2001 | B35: =Boffzen!A9 -> Tom Esau | C35: =Boffzen!B9 -> MTV Boffzen e.V. von 1892 | D35: =Boffzen!AB9 -> 0 | F35: 200
A36: 2001 | B36: =LaPeKa!A21 -> frei 7 | C36: =LaPeKa!B21 -> TG LaPeKa | D36: =LaPeKa!AB21 -> 0 | F36: 200 | I36: =I7 -> Einsteigerliga | K36: =K7 -> Hehlen | M36: =M7 -> 2019-02-16
A37: 2001 | B37: ='M5'!A17 -> frei 5 | C37: ='M5'!B17 -> M5 | D37: ='M5'!AB17 -> 0 | F37: 200
A38: 2001 | B38: ='M5'!A9 -> frei 1 | C38: ='M5'!B9 -> M5 | D38: ='M5'!AB9 -> 0 | F38: 200 | I38: Ergebnis nach dem | K38: ='INFO Blatt'!B9 -> 1. | L38: Wettkampftag
A39: 2001 | B39: =Dielmissen!A21 -> frei 7 | C39: =Dielmissen!B21 ->  | D39: =Dielmissen!AB21 -> 0 | F39: 200 | I39: Platz | J39: Verein | K39: WK Punkte | L39: Gerät Punkt | M39: Punkte
A40: 2001 | B40: ='TG Oker_Salzg_Wenzen'!A19 -> Mattis Westermann | C40: ='TG Oker_Salzg_Wenzen'!B19 -> TG Oker/Salzgitter/Wenzen | D40: ='TG Oker_Salzg_Wenzen'!AB19 -> 0 | F40: 200 | I40: =Formeln!H6 -> 1 | J40: =Formeln!G6 -> TG Oker/Salzgitter/Wenzen | K40: =Formeln!I6 -> 12 | L40: =Formeln!J6 -> 70 | M40: =Formeln!K6 -> 251.55
A41: 2001 | B41: =Dielmissen!A19 -> 0 | C41: =Dielmissen!B19 ->  | D41: =Dielmissen!AB19 -> 0 | F41: 200 | I41: =Formeln!H8 -> 2 | J41: =Formeln!G8 -> TSV Dielmissen | K41: =Formeln!I8 -> 10 | L41: =Formeln!J8 -> 56 | M41: =Formeln!K8 -> 231.15
A42: 2001 | B42: ='TG Oker_Salzg_Wenzen'!A21 -> Felix Neuhoff | C42: ='TG Oker_Salzg_Wenzen'!B21 -> TG Oker/Salzgitter/Wenzen | D42: ='TG Oker_Salzg_Wenzen'!AB21 -> 0 | F42: 200 | I42: =Formeln!H5 -> 3 | J42: =Formeln!G5 -> MTV Boffzen e.V. von 1892 | K42: =Formeln!I5 -> 8 | L42: =Formeln!J5 -> 52 | M42: =Formeln!K5 -> 227.95
A43: 2001 | B43: ='M5'!A11 -> frei 2 | C43: ='M5'!B11 -> M5 | D43: ='M5'!AB11 -> 0 | F43: 200 | I43: =Formeln!H7 -> 4 | J43: =Formeln!G7 -> TG LaPeKa | K43: =Formeln!I7 -> 6 | L43: =Formeln!J7 -> 38 | M43: =Formeln!K7 -> 197.6
A44: =IF(D44=0,F44*10+1,RANK(D44,D$12:D$101,0)) -> 2001 | B44: ='TG Oker_Salzg_Wenzen'!A11 -> Rayan Hijazi | C44: ='TG Oker_Salzg_Wenzen'!B11 -> TG Oker/Salzgitter/Wenzen | D44: ='TG Oker_Salzg_Wenzen'!AB11 -> 0 | F44: 200 | I44: =Formeln!H9 -> 6 | J44: =Formeln!G9 -> M5 | K44: =Formeln!I9 -> 2 | L44: =Formeln!J9 -> 0 | M44: =Formeln!K9 -> 0
A45: 2001 | B45: ='M5'!A21 -> frei 7 | C45: ='M5'!B21 -> M5 | D45: ='M5'!AB21 -> 0 | F45: 200 | I45: =Formeln!H10 -> 6 | J45: =Formeln!G10 -> M6 | K45: =Formeln!I10 -> 2 | L45: =Formeln!J10 -> 0 | M45: =Formeln!K10 -> 0
A46: 2001 | B46: ='M5'!A13 -> frei 3 | C46: ='M5'!B13 -> M5 | D46: ='M5'!AB13 -> 0 | F46: 200 | I46: =Formeln!H11 -> 6 | J46: =Formeln!G11 -> M7 | K46: =Formeln!I11 -> 2 | L46: =Formeln!J11 -> 0 | M46: =Formeln!K11 -> 0
A47: 2001 | B47: =Boffzen!A25 -> frei 9 | C47: =Boffzen!B25 -> MTV Boffzen e.V. von 1892 | D47: =Boffzen!AB25 -> 0 | F47: 200
A48: 2001 | B48: =Boffzen!A37 -> frei 15 | C48: =Boffzen!B37 -> MTV Boffzen e.V. von 1892 | D48: =Boffzen!AB37 -> 0 | F48: 200
A49: 2001 | B49: ='TG Oker_Salzg_Wenzen'!A23 -> frei 8 | C49: ='TG Oker_Salzg_Wenzen'!B23 -> TG Oker/Salzgitter/Wenzen | D49: ='TG Oker_Salzg_Wenzen'!AB23 -> 0 | F49: 200
A50: 2001 | B50: ='TG Oker_Salzg_Wenzen'!A25 -> frei 9 | C50: ='TG Oker_Salzg_Wenzen'!B25 -> TG Oker/Salzgitter/Wenzen | D50: ='TG Oker_Salzg_Wenzen'!AB25 -> 0 | F50: 200
A51: 2001 | B51: ='TG Oker_Salzg_Wenzen'!A27 -> frei 10 | C51: ='TG Oker_Salzg_Wenzen'!B27 -> TG Oker/Salzgitter/Wenzen | D51: ='TG Oker_Salzg_Wenzen'!AB27 -> 0 | F51: 200
A52: 2001 | B52: ='TG Oker_Salzg_Wenzen'!A37 -> frei 15 | C52: ='TG Oker_Salzg_Wenzen'!B37 -> TG Oker/Salzgitter/Wenzen | D52: ='TG Oker_Salzg_Wenzen'!AB37 -> 0 | F52: 200
A53: 2001 | B53: =Dielmissen!A23 -> frei 8 | C53: =Dielmissen!B23 ->  | D53: =Dielmissen!AB23 -> 0 | F53: 200
A54: 2001 | B54: =Dielmissen!A25 -> frei 9 | C54: =Dielmissen!B25 ->  | D54: =Dielmissen!AB25 -> 0 | F54: 200
A55: 2001 | B55: =Dielmissen!A27 -> frei 10 | C55: =Dielmissen!B27 ->  | D55: =Dielmissen!AB27 -> 0 | F55: 200
A56: 2001 | B56: =Dielmissen!A37 -> frei 15 | C56: =Dielmissen!B37 ->  | D56: =Dielmissen!AB37 -> 0 | F56: 200
A57: 2001 | B57: ='M6'!A37 -> frei 15 | C57: ='M6'!B37 -> M6 | D57: ='M6'!AB37 -> 0 | F57: 200
A58: 2001 | B58: ='M6'!A15 -> frei 4 | C58: ='M6'!B15 -> M6 | D58: ='M6'!AB15 -> 0 | F58: 200
A59: 2001 | B59: ='M6'!A17 -> frei 5 | C59: ='M6'!B17 -> M6 | D59: ='M6'!AB17 -> 0 | F59: 200
A60: 2001 | B60: ='M6'!A11 -> frei 2 | C60: ='M6'!B11 -> M6 | D60: ='M6'!AB11 -> 0 | F60: 200
A61: 2001 | B61: ='M6'!A13 -> frei 3 | C61: ='M6'!B13 -> M6 | D61: ='M6'!AB13 -> 0 | F61: 200
A62: 2001 | B62: ='M6'!A27 -> frei 10 | C62: ='M6'!B27 -> M6 | D62: ='M6'!AB27 -> 0 | F62: 200
A63: 2001 | B63: ='M6'!A35 -> frei 14 | C63: ='M6'!B35 -> M6 | D63: ='M6'!AB35 -> 0 | F63: 200
A64: 2001 | B64: ='M6'!A9 -> frei 1 | C64: ='M6'!B9 -> M6 | D64: ='M6'!AB9 -> 0 | F64: 200
A65: 2001 | B65: =Boffzen!A35 -> frei 14 | C65: =Boffzen!B35 -> MTV Boffzen e.V. von 1892 | D65: =Boffzen!AB35 -> 0 | F65: 200
A66: 2001 | B66: ='TG Oker_Salzg_Wenzen'!A35 -> frei 14 | C66: ='TG Oker_Salzg_Wenzen'!B35 -> TG Oker/Salzgitter/Wenzen | D66: ='TG Oker_Salzg_Wenzen'!AB35 -> 0 | F66: 200
A67: 2001 | B67: =Boffzen!A33 -> frei 13 | C67: =Boffzen!B33 -> MTV Boffzen e.V. von 1892 | D67: =Boffzen!AB33 -> 0 | F67: 200
A68: 2001 | B68: ='TG Oker_Salzg_Wenzen'!A33 -> frei 13 | C68: ='TG Oker_Salzg_Wenzen'!B33 -> TG Oker/Salzgitter/Wenzen | D68: ='TG Oker_Salzg_Wenzen'!AB33 -> 0 | F68: 200
A69: 2001 | B69: =Boffzen!A31 -> frei 12 | C69: =Boffzen!B31 -> MTV Boffzen e.V. von 1892 | D69: =Boffzen!AB31 -> 0 | F69: 200
A70: 2001 | B70: ='TG Oker_Salzg_Wenzen'!A31 -> frei 12 | C70: ='TG Oker_Salzg_Wenzen'!B31 -> TG Oker/Salzgitter/Wenzen | D70: ='TG Oker_Salzg_Wenzen'!AB31 -> 0 | F70: 200
A71: 2001 | B71: ='TG Oker_Salzg_Wenzen'!A29 -> frei 11 | C71: ='TG Oker_Salzg_Wenzen'!B29 -> TG Oker/Salzgitter/Wenzen | D71: ='TG Oker_Salzg_Wenzen'!AB29 -> 0 | F71: 200
A72: 2001 | B72: =Dielmissen!A29 -> frei 11 | C72: =Dielmissen!B29 ->  | D72: =Dielmissen!AB29 -> 0 | F72: 200
A73: 2001 | B73: =Dielmissen!A35 -> frei 14 | C73: =Dielmissen!B35 ->  | D73: =Dielmissen!AB35 -> 0 | F73: 200
A74: 2001 | B74: =Boffzen!A29 -> frei 11 | C74: =Boffzen!B29 -> MTV Boffzen e.V. von 1892 | D74: =Boffzen!AB29 -> 0 | F74: 200
A75: 2001 | B75: =LaPeKa!A27 -> frei 10 | C75: =LaPeKa!B27 -> TG LaPeKa | D75: =LaPeKa!AB27 -> 0 | F75: 200
A76: =IF(D76=0,F76*10+1,RANK(D76,D$12:D$101,0)) -> 2001 | B76: =Dielmissen!A33 -> frei 13 | C76: =Dielmissen!B33 ->  | D76: =Dielmissen!AB33 -> 0 | F76: 200
A77: 2001 | B77: =LaPeKa!A25 -> frei 9 | C77: =LaPeKa!B25 -> TG LaPeKa | D77: =LaPeKa!AB25 -> 0 | F77: 200
A78: 2001 | B78: =LaPeKa!A23 -> frei 8 | C78: =LaPeKa!B23 -> TG LaPeKa | D78: =LaPeKa!AB23 -> 0 | F78: 200
A79: 2001 | B79: ='M6'!A33 -> frei 13 | C79: ='M6'!B33 -> M6 | D79: ='M6'!AB33 -> 0 | F79: 200
A80: 2001 | B80: ='M6'!A31 -> frei 12 | C80: ='M6'!B31 -> M6 | D80: ='M6'!AB31 -> 0 | F80: =F79 -> 200
A81: 2001 | B81: ='M6'!A29 -> frei 11 | C81: ='M6'!B29 -> M6 | D81: ='M6'!AB29 -> 0 | F81: 200
A82: 2001 | B82: ='M6'!A25 -> frei 9 | C82: ='M6'!B25 -> M6 | D82: ='M6'!AB25 -> 0 | F82: 200
A83: 2001 | B83: ='M6'!A23 -> frei 8 | C83: ='M6'!B23 -> M6 | D83: ='M6'!AB23 -> 0 | F83: 200
A84: 2001 | B84: =Dielmissen!A31 -> frei 12 | C84: =Dielmissen!B31 ->  | D84: =Dielmissen!AB31 -> 0 | F84: 200
A85: 2001 | B85: ='M6'!A19 -> frei 6 | C85: ='M6'!B19 -> M6 | D85: ='M6'!AB19 -> 0 | F85: 200
A86: 2001 | B86: ='M6'!A21 -> frei 7 | C86: ='M6'!B21 -> M6 | D86: ='M6'!AB21 -> 0 | F86: 200
A87: 2001 | B87: =Boffzen!A27 -> frei 10 | C87: =Boffzen!B27 -> MTV Boffzen e.V. von 1892 | D87: =Boffzen!AB27 -> 0 | F87: 200
A88: 2001 | B88: ='M5'!A23 -> frei 8 | C88: ='M5'!B23 -> M5 | D88: ='M5'!AB23 -> 0 | F88: 200
A89: 2001 | B89: ='M5'!A15 -> frei 4 | C89: ='M5'!B15 -> M5 | D89: ='M5'!AB15 -> 0 | F89: 200
A90: 2001 | B90: ='M5'!A25 -> frei 9 | C90: ='M5'!B25 -> M5 | D90: ='M5'!AB25 -> 0 | F90: 200
A91: 2001 | B91: ='M5'!A27 -> frei 10 | C91: ='M5'!B27 -> M5 | D91: ='M5'!AB27 -> 0 | F91: 200
A92: 2001 | B92: ='M5'!A29 -> frei 11 | C92: ='M5'!B29 -> M5 | D92: ='M5'!AB29 -> 0 | F92: 200
A93: 2001 | B93: ='M5'!A31 -> frei 12 | C93: ='M5'!B31 -> M5 | D93: ='M5'!AB31 -> 0 | F93: 200
A94: 2001 | B94: ='M5'!A33 -> frei 13 | C94: ='M5'!B33 -> M5 | D94: ='M5'!AB33 -> 0 | F94: 200
A95: 2001 | B95: ='M5'!A35 -> frei 14 | C95: ='M5'!B35 -> M5 | D95: ='M5'!AB35 -> 0 | F95: 200
A96: 2001 | B96: ='M5'!A37 -> frei 15 | C96: ='M5'!B37 -> M5 | D96: ='M5'!AB37 -> 0 | F96: 200
A97: 2001 | B97: =LaPeKa!A29 -> frei 11 | C97: =LaPeKa!B29 -> TG LaPeKa | D97: =LaPeKa!AB29 -> 0 | F97: 200
A98: 2001 | B98: =LaPeKa!A31 -> frei 12 | C98: =LaPeKa!B31 -> TG LaPeKa | D98: =LaPeKa!AB31 -> 0 | F98: 200
A99: 2001 | B99: =LaPeKa!A33 -> frei 13 | C99: =LaPeKa!B33 -> TG LaPeKa | D99: =LaPeKa!AB33 -> 0 | F99: 200
A100: 2001 | B100: =LaPeKa!A35 -> frei 14 | C100: =LaPeKa!B35 -> TG LaPeKa | D100: =LaPeKa!AB35 -> 0 | F100: 200
A101: 2001 | B101: =LaPeKa!A37 -> frei 15 | C101: =LaPeKa!B37 -> TG LaPeKa | D101: =LaPeKa!AB37 -> 0 | F101: 200
F107: =B106 -> 0
F108: =F107 -> 0
F109: 0
F110: 0
F111: 0
F112: 0
F113: 0
F114: 0

Sheet Startreihenfolge
B2: 1. Runde
B4: Boden | D4: Pauschenpferd | F4: Ringe
B6: =Ergebnisse!J41 -> TSV Dielmissen | D6: =Ergebnisse!J43 -> TG LaPeKa | F6: =Ergebnisse!J45 -> M6
B7: =Ergebnisse!J42 -> MTV Boffzen e.V. von 1892 | D7: =Ergebnisse!J44 -> M5 | F7: =Ergebnisse!J46 -> M7
B10: Sprung | D10: Barren | F10: Reck
B12: =[1]Ergebnisse!$J$40 -> TV Kleefeld 1 | D12: =[1]Ergebnisse!$J$42 -> SC Melle | F12: =[1]Ergebnisse!$J$44 -> TG Braunschweig -Hondelage
B13: =[1]Ergebnisse!$J$41 -> 1860 Bremen | D13: =[1]Ergebnisse!$J$43 -> TG Oker Salzgitter 2 | F13: =[1]Ergebnisse!$J$45 -> TG Rinteln - Hehlen 1
B17: 2. Runde
B19: Boden | D19: Pauschenpferd | F19: Ringe
B21: =F7 -> M7 | D21: =B7 -> MTV Boffzen e.V. von 1892 | F21: =D7 -> M5
B22: =F6 -> M6 | D22: =B6 -> TSV Dielmissen | F22: =D6 -> TG LaPeKa
B25: Sprung | D25: Barren | F25: Reck
B27: =F13 -> TG Rinteln - Hehlen 1 | D27: =B13 -> 1860 Bremen | F27: =D13 -> TG Oker Salzgitter 2
B28: =F12 -> TG Braunschweig -Hondelage | D28: =B12 -> TV Kleefeld 1 | F28: =D12 -> SC Melle
B32: 3. Runde
B34: Boden | D34: Pauschenpferd | F34: Ringe
B36: =F22 -> TG LaPeKa | D36: =B22 -> M6 | F36: =D22 -> TSV Dielmissen
B37: =F21 -> M5 | D37: =B21 -> M7 | F37: =D21 -> MTV Boffzen e.V. von 1892
B40: Sprung | D40: Barren | F40: Reck
B42: =F28 -> SC Melle | D42: =B28 -> TG Braunschweig -Hondelage | F42: =D28 -> TV Kleefeld 1
B43: =F27 -> TG Oker Salzgitter 2 | D43: =B27 -> TG Rinteln - Hehlen 1 | F43: =D27 -> 1860 Bremen
B47: 4. Runde
B49: Boden | D49: Pauschenpferd | F49: Ringe
B51: =F43 -> 1860 Bremen | D51: =B43 -> TG Oker Salzgitter 2 | F51: =D43 -> TG Rinteln - Hehlen 1
B52: =F42 -> TV Kleefeld 1 | D52: =B42 -> SC Melle | F52: =D42 -> TG Braunschweig -Hondelage
B55: Sprung | D55: Barren | F55: Reck
B57: =F37 -> MTV Boffzen e.V. von 1892 | D57: =B37 -> M5 | F57: =D37 -> M7
B58: =F36 -> TSV Dielmissen | D58: =B36 -> TG LaPeKa | F58: =D36 -> M6
B62: 5. Runde
B64: Boden | D64: Pauschenpferd | F64: Ringe
B66: =F52 -> TG Braunschweig -Hondelage | D66: =B52 -> TV Kleefeld 1 | F66: =D52 -> SC Melle
B67: =F51 -> TG Rinteln - Hehlen 1 | D67: =B51 -> 1860 Bremen | F67: =D51 -> TG Oker Salzgitter 2
B70: Sprung | D70: Barren | F70: Reck
B72: =F58 -> M6 | D72: =B58 -> TSV Dielmissen | F72: =D58 -> TG LaPeKa
B73: =F57 -> M7 | D73: =B57 -> MTV Boffzen e.V. von 1892 | F73: =D57 -> M5
B77: 6. Runde
B79: Boden | D79: Pauschenpferd | F79: Ringe
B81: =F67 -> TG Oker Salzgitter 2 | D81: =B67 -> TG Rinteln - Hehlen 1 | F81: =D67 -> 1860 Bremen
B82: =F66 -> SC Melle | D82: =B66 -> TG Braunschweig -Hondelage | F82: =D66 -> TV Kleefeld 1
B85: Sprung | D85: Barren | F85: Reck
B87: =F73 -> M5 | D87: =B73 -> M7 | F87: =D73 -> MTV Boffzen e.V. von 1892
B88: =F72 -> TG LaPeKa | D88: =B72 -> M6 | F88: =D72 -> TSV Dielmissen

Sheet Formeln
A3: Gesamt | G3: Gesamt 1. WK
B4: Punkte | C4: Platz | D4: WK Punkte | E4: Gerät Punkt | H4: Platz | I4: WK Punkte | J4: Gerät Punkt | K4: Punkte | L4: Rang WK | M4: Rang Geräte | N4: Rang Punkte | O4: Hilfsliste
A5: MTV Boffzen e.V. von 1892 | B5: =Boffzen!AB$40 -> 227.95 | C5: =IF(B5=0,'INFO Blatt'!B$3+1,RANK(B5,B$5:B$14,0)) -> 3 | D5: =IF('INFO Blatt'!B$3<6,14-C5*2,'INFO Blatt'!B$3*2+2-C5*2) -> 8 | E5: =SUM(D20,I20,N20,D33,I33,N33) -> 52 | G5: =A5 -> MTV Boffzen e.V. von 1892 | H5: =IF(K5=0,'INFO Blatt'!B$3+1,RANK(O5,O$5:O$14,1)) -> 3 | I5: =D5 -> 8 | J5: =E5 -> 52 | K5: =B5 -> 227.95 | L5: =RANK(I5,I5:I14,0) -> 3 | M5: =RANK(J5,J5:J14,0) -> 3 | N5: =RANK(K5,K$5:K$14,0) -> 3 | O5: =L5+(M5/10)+(N5/100) -> 3.33
A6: TG Oker/Salzgitter/Wenzen | B6: ='TG Oker_Salzg_Wenzen'!AB$40 -> 251.55 | C6: =IF(B6=0,'INFO Blatt'!B$3+1,RANK(B6,B$5:B$14,0)) -> 1 | D6: =IF('INFO Blatt'!B$3<6,14-C6*2,'INFO Blatt'!B$3*2+2-C6*2) -> 12 | E6: 70 | G6: =A6 -> TG Oker/Salzgitter/Wenzen | H6: =IF(K6=0,'INFO Blatt'!B$3+1,RANK(O6,O$5:O$14,1)) -> 1 | I6: =D6 -> 12 | J6: =E6 -> 70 | K6: =B6 -> 251.55 | L6: =RANK(I6,I5:I14,0) -> 1 | M6: =RANK(J6,J5:J14,0) -> 1 | N6: =RANK(K6,K$5:K$14,0) -> 1 | O6: =L6+(M6/10)+(N6/100) -> 1.11
A7: TG LaPeKa | B7: =LaPeKa!AB$40 -> 197.6 | C7: =IF(B7=0,'INFO Blatt'!B$3+1,RANK(B7,B$5:B$14,0)) -> 4 | D7: =IF('INFO Blatt'!B$3<6,14-C7*2,'INFO Blatt'!B$3*2+2-C7*2) -> 6 | E7: 38 | G7: TG LaPeKa | H7: =IF(K7=0,'INFO Blatt'!B$3+1,RANK(O7,O$5:O$14,1)) -> 4 | I7: 6 | J7: 38 | K7: 197.6 | L7: =RANK(I7,I5:I14,0) -> 4 | M7: =RANK(J7,J5:J14,0) -> 4 | N7: 4 | O7: 4.44
A8: TSV Dielmissen | B8: =Dielmissen!AB$40 -> 231.15 | C8: =IF(B8=0,'INFO Blatt'!B$3+1,RANK(B8,B$5:B$14,0)) -> 2 | D8: =IF('INFO Blatt'!B$3<6,14-C8*2,'INFO Blatt'!B$3*2+2-C8*2) -> 10 | E8: 56 | G8: TSV Dielmissen | H8: =IF(K8=0,'INFO Blatt'!B$3+1,RANK(O8,O$5:O$14,1)) -> 2 | I8: 10 | J8: 56 | K8: 231.15 | L8: =RANK(I8,I5:I14,0) -> 2 | M8: =RANK(J8,J5:J14,0) -> 2 | N8: 2 | O8: 2.22
A9: M5 | B9: ='M5'!AB$40 -> 0 | C9: =IF(B9=0,'INFO Blatt'!B$3+1,RANK(B9,B$5:B$14,0)) -> 6 | D9: =IF('INFO Blatt'!B$3<6,14-C9*2,'INFO Blatt'!B$3*2+2-C9*2) -> 2 | E9: 0 | G9: M5 | H9: =IF(K9=0,'INFO Blatt'!B$3+1,RANK(O9,O$5:O$14,1)) -> 6 | I9: 2 | J9: 0 | K9: 0 | L9: =RANK(I9,I5:I14,0) -> 5 | M9: =RANK(J9,J5:J14,0) -> 5 | N9: 5 | O9: 5.55
A10: M6 | B10: ='M6'!AB$40 -> 0 | C10: =IF(B10=0,'INFO Blatt'!B$3+1,RANK(B10,B$5:B$14,0)) -> 6 | D10: =IF('INFO Blatt'!B$3<6,14-C10*2,'INFO Blatt'!B$3*2+2-C10*2) -> 2 | E10: 0 | G10: M6 | H10: =IF(K10=0,'INFO Blatt'!B$3+1,RANK(O10,O$5:O$14,1)) -> 6 | I10: 2 | J10: 0 | K10: 0 | L10: =RANK(I10,I5:I14,0) -> 5 | M10: =RANK(J10,J5:J14,0) -> 5 | N10: 5 | O10: 5.55
A11: M7 | B11: ='M7'!AB$30 -> 0 | C11: =IF(B11=0,'INFO Blatt'!B$3+1,RANK(B11,B$5:B$14,0)) -> 6 | D11: =IF('INFO Blatt'!B$3<6,14-C11*2,'INFO Blatt'!B$3*2+2-C11*2) -> 2 | E11: 0 | G11: M7 | H11: =IF(K11=0,'INFO Blatt'!B$3+1,RANK(O11,O$5:O$14,1)) -> 6 | I11: =D11+[2]Formeln!$I11 -> 2 | J11: =E11+[2]Formeln!$J11 -> 0 | K11: =B11+[2]Formeln!$K11 -> 0 | L11: =RANK(I11,I5:I14,0) -> 5 | M11: =RANK(J11,J5:J14,0) -> 5 | N11: 5 | O11: 5.55
A12: M8 | B12: ='M8'!AB$30 -> 0 | C12: =IF(B12=0,'INFO Blatt'!B$3+1,RANK(B12,B$5:B$14,0)) -> 6 | D12: =IF('INFO Blatt'!B$3<6,14-C12*2,'INFO Blatt'!B$3*2+2-C12*2) -> 2 | E12: 0 | G12: M8 | H12: =IF(K12=0,'INFO Blatt'!B$3+1,RANK(O12,O$5:O$14,1)) -> 6 | I12: =D12+[2]Formeln!$I12 -> 2 | J12: =E12+[2]Formeln!$J12 -> 0 | K12: =B12+[2]Formeln!$K12 -> 0 | L12: =RANK(I12,I5:I14,0) -> 5 | M12: =RANK(J12,J5:J14,0) -> 5 | N12: 5 | O12: 5.55
A13: M9 | B13: ='M9'!AB$30 -> 0 | C13: =IF(B13=0,'INFO Blatt'!B$3+1,RANK(B13,B$5:B$14,0)) -> 6 | D13: =IF('INFO Blatt'!B$3<6,14-C13*2,'INFO Blatt'!B$3*2+2-C13*2) -> 2 | E13: 0 | G13: M9 | H13: =IF(K13=0,'INFO Blatt'!B$3+1,RANK(O13,O$5:O$14,1)) -> 6 | I13: =D13+[2]Formeln!$I13 -> 2 | J13: =E13+[2]Formeln!$J13 -> 0 | K13: =B13+[2]Formeln!$K13 -> 0 | L13: =RANK(I13,I5:I14,0) -> 5 | M13: =RANK(J13,J5:J14,0) -> 5 | N13: 5 | O13: 5.55
A14: M10 | B14: ='M10'!AB$30 -> 0 | C14: =IF(B14=0,'INFO Blatt'!B$3+1,RANK(B14,B$5:B$14,0)) -> 6 | D14: =IF('INFO Blatt'!B$3<6,14-C14*2,'INFO Blatt'!B$3*2+2-C14*2) -> 2 | E14: 0 | G14: M10 | H14: =IF(K14=0,'INFO Blatt'!B$3+1,RANK(O14,O$5:O$14,1)) -> 6 | I14: =D14+[2]Formeln!$I14 -> 2 | J14: =E14+[2]Formeln!$J14 -> 0 | K14: =B14+[2]Formeln!$K14 -> 0 | L14: =RANK(I14,I5:I14,0) -> 5 | M14: =RANK(J14,J5:J14,0) -> 5 | N14: 5 | O14: 5.55
A16: Gerätepunkte
A18: Boden | F18: Pferd | K18: Ringe
B19: Punkte | C19: Platz | D19: Gerät Punkt | G19: Punkte | H19: Platz | I19: Gerät Punkt | L19: Punkte | M19: Platz | N19: Gerät Punkt
A20: =A5 -> MTV Boffzen e.V. von 1892 | B20: =ROUND(Boffzen!$G$40,2) -> 35.15 | C20: =IF(B20=0,,RANK(B20,B$20:B$29,0)) -> 3 | D20: =IF(C20=0,,IF('INFO Blatt'!B$3<6,14-C20*2,'INFO Blatt'!B$3*2+2-C20*2)) -> 8 | F20: =A5 -> MTV Boffzen e.V. von 1892 | G20: =ROUND(Boffzen!$K$40,2) -> 35.9 | H20: =IF(G20=0,,RANK(G20,G$20:G$29,0)) -> 2 | I20: =IF(H20=0,,IF('INFO Blatt'!B$3<6,14-H20*2,'INFO Blatt'!B$3*2+2-H20*2)) -> 10 | K20: =A5 -> MTV Boffzen e.V. von 1892 | L20: =ROUND(Boffzen!$O$40,2) -> 39 | M20: =IF(L20=0,,RANK(L20,L$20:L$29,0)) -> 2 | N20: =IF(M20=0,,IF('INFO Blatt'!B$3<6,14-M20*2,'INFO Blatt'!B$3*2+2-M20*2)) -> 10
A21: TG Oker/Salzgitter/Wenzen | B21: =ROUND('TG Oker_Salzg_Wenzen'!G40,2) -> 37.8 | C21: 2 | D21: =IF(C21=0,,IF('INFO Blatt'!B$3<6,14-C21*2,'INFO Blatt'!B$3*2+2-C21*2)) -> 10 | F21: TG Oker/Salzgitter/Wenzen | G21: =ROUND('TG Oker_Salzg_Wenzen'!K40,2) -> 40.8 | H21: 1 | I21: =IF(H21=0,,IF('INFO Blatt'!B$3<6,14-H21*2,'INFO Blatt'!B$3*2+2-H21*2)) -> 12 | K21: TG Oker/Salzgitter/Wenzen | L21: =ROUND('TG Oker_Salzg_Wenzen'!O40,2) -> 41.8 | M21: =IF(L21=0,,RANK(L21,L$20:L$29,0)) -> 1 | N21: =IF(M21=0,,IF('INFO Blatt'!B$3<6,14-M21*2,'INFO Blatt'!B$3*2+2-M21*2)) -> 12
A22: TG LaPeKa | B22: =ROUND(LaPeKa!$G$40,2) -> 32.45 | C22: 4 | D22: =IF(C22=0,,IF('INFO Blatt'!B$3<6,14-C22*2,'INFO Blatt'!B$3*2+2-C22*2)) -> 6 | F22: TG LaPeKa | G22: =ROUND(LaPeKa!$K$40,2) -> 31.7 | H22: 3 | I22: =IF(H22=0,,IF('INFO Blatt'!B$3<6,14-H22*2,'INFO Blatt'!B$3*2+2-H22*2)) -> 8 | K22: TG LaPeKa | L22: =ROUND(LaPeKa!$O$40,2) -> 27.5 | M22: 4 | N22: =IF(M22=0,,IF('INFO Blatt'!B$3<6,14-M22*2,'INFO Blatt'!B$3*2+2-M22*2)) -> 6
A23: TSV Dielmissen | B23: =ROUND(Dielmissen!$G$40,2) -> 40.1 | C23: 1 | D23: =IF(C23=0,,IF('INFO Blatt'!B$3<6,14-C23*2,'INFO Blatt'!B$3*2+2-C23*2)) -> 12 | F23: TSV Dielmissen | G23: =ROUND(Dielmissen!$K$40,2) -> 31 | H23: 4 | I23: =IF(H23=0,,IF('INFO Blatt'!B$3<6,14-H23*2,'INFO Blatt'!B$3*2+2-H23*2)) -> 6 | K23: TSV Dielmissen | L23: =ROUND(Dielmissen!$O$40,2) -> 38.1 | M23: 3 | N23: =IF(M23=0,,IF('INFO Blatt'!B$3<6,14-M23*2,'INFO Blatt'!B$3*2+2-M23*2)) -> 8
A24: M5 | B24: =ROUND('M5'!$G$40,2) -> 0 | C24: 0 | D24: =IF(C24=0,,IF('INFO Blatt'!B$3<6,14-C24*2,'INFO Blatt'!B$3*2+2-C24*2)) -> 0 | F24: M5 | G24: =ROUND('M5'!$K$40,2) -> 0 | H24: 0 | I24: =IF(H24=0,,IF('INFO Blatt'!B$3<6,14-H24*2,'INFO Blatt'!B$3*2+2-H24*2)) -> 0 | K24: M5 | L24: =ROUND('M5'!$O$40,2) -> 0 | M24: 0 | N24: =IF(M24=0,,IF('INFO Blatt'!B$3<6,14-M24*2,'INFO Blatt'!B$3*2+2-M24*2)) -> 0
A25: M6 | B25: =ROUND('M6'!$G$40,2) -> 0 | C25: 0 | D25: =IF(C25=0,,IF('INFO Blatt'!B$3<6,14-C25*2,'INFO Blatt'!B$3*2+2-C25*2)) -> 0 | F25: M6 | G25: =ROUND('M6'!$K$40,2) -> 0 | H25: 0 | I25: =IF(H25=0,,IF('INFO Blatt'!B$3<6,14-H25*2,'INFO Blatt'!B$3*2+2-H25*2)) -> 0 | K25: M6 | L25: =ROUND('M6'!$O$40,2) -> 0 | M25: 0 | N25: =IF(M25=0,,IF('INFO Blatt'!B$3<6,14-M25*2,'INFO Blatt'!B$3*2+2-M25*2)) -> 0
A26: M7 | B26: =ROUND('M7'!G30,2) -> 0 | C26: 0 | D26: =IF(C26=0,,IF('INFO Blatt'!B$3<6,14-C26*2,'INFO Blatt'!B$3*2+2-C26*2)) -> 0 | F26: M7 | G26: =ROUND('M7'!K30,2) -> 0 | H26: 0 | I26: =IF(H26=0,,IF('INFO Blatt'!B$3<6,14-H26*2,'INFO Blatt'!B$3*2+2-H26*2)) -> 0 | K26: M7 | L26: =ROUND('M7'!O30,2) -> 0 | M26: =IF(L26=0,,RANK(L26,L$20:L$29,0)) -> 0 | N26: =IF(M26=0,,IF('INFO Blatt'!B$3<6,14-M26*2,'INFO Blatt'!B$3*2+2-M26*2)) -> 0
A27: M8 | B27: ='M8'!$G$30 -> 0 | C27: 0 | D27: =IF(C27=0,,IF('INFO Blatt'!B$3<6,14-C27*2,'INFO Blatt'!B$3*2+2-C27*2)) -> 0 | F27: M8 | G27: ='M8'!K$30 -> 0 | H27: 0 | I27: =IF(H27=0,,IF('INFO Blatt'!B$3<6,14-H27*2,'INFO Blatt'!B$3*2+2-H27*2)) -> 0 | K27: M8 | L27: ='M8'!O$30 -> 0 | M27: 0 | N27: =IF(M27=0,,IF('INFO Blatt'!B$3<6,14-M27*2,'INFO Blatt'!B$3*2+2-M27*2)) -> 0
A28: M9 | B28: ='M9'!$G$30 -> 0 | C28: 0 | D28: =IF(C28=0,,IF('INFO Blatt'!B$3<6,14-C28*2,'INFO Blatt'!B$3*2+2-C28*2)) -> 0 | F28: M9 | G28: ='M9'!K$30 -> 0 | H28: 0 | I28: =IF(H28=0,,IF('INFO Blatt'!B$3<6,14-H28*2,'INFO Blatt'!B$3*2+2-H28*2)) -> 0 | K28: M9 | L28: ='M9'!O$30 -> 0 | M28: 0 | N28: =IF(M28=0,,IF('INFO Blatt'!B$3<6,14-M28*2,'INFO Blatt'!B$3*2+2-M28*2)) -> 0
A29: M10 | B29: ='M10'!$G$30 -> 0 | C29: 0 | D29: =IF(C29=0,,IF('INFO Blatt'!B$3<6,14-C29*2,'INFO Blatt'!B$3*2+2-C29*2)) -> 0 | F29: M10 | G29: ='M10'!K$30 -> 0 | H29: 0 | I29: =IF(H29=0,,IF('INFO Blatt'!B$3<6,14-H29*2,'INFO Blatt'!B$3*2+2-H29*2)) -> 0 | K29: M10 | L29: ='M10'!O$30 -> 0 | M29: 0 | N29: =IF(M29=0,,IF('INFO Blatt'!B$3<6,14-M29*2,'INFO Blatt'!B$3*2+2-M29*2)) -> 0
A31: Sprung | F31: Barren | K31: Reck
B32: Punkte | C32: Platz | D32: Gerät Punkt | G32: Punkte | H32: Platz | I32: Gerät Punkt | L32: Punkte | M32: Platz | N32: Gerät Punkt
A33: =A5 -> MTV Boffzen e.V. von 1892 | B33: =ROUND(Boffzen!$S$40,2) -> 40.85 | C33: =IF(B33=0,,RANK(B33,B$33:B$42,0)) -> 3 | D33: =IF(C33=0,,IF('INFO Blatt'!B$3<6,14-C33*2,'INFO Blatt'!B$3*2+2-C33*2)) -> 8 | F33: =A5 -> MTV Boffzen e.V. von 1892 | G33: =ROUND(Boffzen!$W$40,2) -> 39.7 | H33: =IF(G33=0,,RANK(G33,G$33:G$42,0)) -> 3 | I33: =IF(H33=0,,IF('INFO Blatt'!B$3<6,14-H33*2,'INFO Blatt'!B$3*2+2-H33*2)) -> 8 | K33: =A5 -> MTV Boffzen e.V. von 1892 | L33: =ROUND(Boffzen!$AA$40,2) -> 37.35 | M33: =IF(L33=0,,RANK(L33,L$33:L$42,0)) -> 3 | N33: =IF(M33=0,,IF('INFO Blatt'!B$3<6,14-M33*2,'INFO Blatt'!B$3*2+2-M33*2)) -> 8
A34: TG Oker/Salzgitter/Wenzen | B34: =ROUND('TG Oker_Salzg_Wenzen'!S40,2) -> 44.4 | C34: 1 | D34: =IF(C34=0,,IF('INFO Blatt'!B$3<6,14-C34*2,'INFO Blatt'!B$3*2+2-C34*2)) -> 12 | F34: TG Oker/Salzgitter/Wenzen | G34: =ROUND('TG Oker_Salzg_Wenzen'!W40,2) -> 44.7 | H34: 1 | I34: =IF(H34=0,,IF('INFO Blatt'!B$3<6,14-H34*2,'INFO Blatt'!B$3*2+2-H34*2)) -> 12 | K34: TG Oker/Salzgitter/Wenzen | L34: =ROUND('TG Oker_Salzg_Wenzen'!AA40,2) -> 42.05 | M34: =IF(L34=0,,RANK(L34,L$33:L$42,0)) -> 1 | N34: =IF(M34=0,,IF('INFO Blatt'!B$3<6,14-M34*2,'INFO Blatt'!B$3*2+2-M34*2)) -> 12
A35: TG LaPeKa | B35: =ROUND(LaPeKa!$S$40,2) -> 39.4 | C35: 4 | D35: =IF(C35=0,,IF('INFO Blatt'!B$3<6,14-C35*2,'INFO Blatt'!B$3*2+2-C35*2)) -> 6 | F35: TG LaPeKa | G35: =ROUND(LaPeKa!$W$40,2) -> 34 | H35: 4 | I35: =IF(H35=0,,IF('INFO Blatt'!B$3<6,14-H35*2,'INFO Blatt'!B$3*2+2-H35*2)) -> 6 | K35: TG LaPeKa | L35: =ROUND(LaPeKa!$AA$40,2) -> 32.55 | M35: 4 | N35: =IF(M35=0,,IF('INFO Blatt'!B$3<6,14-M35*2,'INFO Blatt'!B$3*2+2-M35*2)) -> 6
A36: TSV Dielmissen | B36: =ROUND(Dielmissen!$S$40,2) -> 41.7 | C36: 2 | D36: =IF(C36=0,,IF('INFO Blatt'!B$3<6,14-C36*2,'INFO Blatt'!B$3*2+2-C36*2)) -> 10 | F36: TSV Dielmissen | G36: =ROUND(Dielmissen!$W$40,2) -> 40.35 | H36: 2 | I36: =IF(H36=0,,IF('INFO Blatt'!B$3<6,14-H36*2,'INFO Blatt'!B$3*2+2-H36*2)) -> 10 | K36: TSV Dielmissen | L36: =ROUND(Dielmissen!$AA$40,2) -> 39.9 | M36: 2 | N36: =IF(M36=0,,IF('INFO Blatt'!B$3<6,14-M36*2,'INFO Blatt'!B$3*2+2-M36*2)) -> 10
A37: M5 | B37: =ROUND('M5'!$S$40,2) -> 0 | C37: 0 | D37: =IF(C37=0,,IF('INFO Blatt'!B$3<6,14-C37*2,'INFO Blatt'!B$3*2+2-C37*2)) -> 0 | F37: M5 | G37: =ROUND('M5'!$W$40,2) -> 0 | H37: 0 | I37: =IF(H37=0,,IF('INFO Blatt'!B$3<6,14-H37*2,'INFO Blatt'!B$3*2+2-H37*2)) -> 0 | K37: M5 | L37: =ROUND('M5'!$AA$40,2) -> 0 | M37: 0 | N37: =IF(M37=0,,IF('INFO Blatt'!B$3<6,14-M37*2,'INFO Blatt'!B$3*2+2-M37*2)) -> 0
A38: M6 | B38: =ROUND('M6'!$S$40,2) -> 0 | C38: 0 | D38: =IF(C38=0,,IF('INFO Blatt'!B$3<6,14-C38*2,'INFO Blatt'!B$3*2+2-C38*2)) -> 0 | F38: M6 | G38: =ROUND('M6'!$W$40,2) -> 0 | H38: 0 | I38: =IF(H38=0,,IF('INFO Blatt'!B$3<6,14-H38*2,'INFO Blatt'!B$3*2+2-H38*2)) -> 0 | K38: M6 | L38: =ROUND('M6'!$AA$40,2) -> 0 | M38: 0 | N38: =IF(M38=0,,IF('INFO Blatt'!B$3<6,14-M38*2,'INFO Blatt'!B$3*2+2-M38*2)) -> 0
A39: M7 | B39: =ROUND('M7'!S30,2) -> 0 | C39: 0 | D39: =IF(C39=0,,IF('INFO Blatt'!B$3<6,14-C39*2,'INFO Blatt'!B$3*2+2-C39*2)) -> 0 | F39: M7 | G39: =ROUND('M7'!W30,2) -> 0 | H39: 0 | I39: =IF(H39=0,,IF('INFO Blatt'!B$3<6,14-H39*2,'INFO Blatt'!B$3*2+2-H39*2)) -> 0 | K39: M7 | L39: =ROUND('M7'!AA30,2) -> 0 | M39: =IF(L39=0,,RANK(L39,L$33:L$42,0)) -> 0 | N39: =IF(M39=0,,IF('INFO Blatt'!B$3<6,14-M39*2,'INFO Blatt'!B$3*2+2-M39*2)) -> 0
A40: M8 | B40: ='M8'!S$30 -> 0 | C40: 0 | D40: =IF(C40=0,,IF('INFO Blatt'!B$3<6,14-C40*2,'INFO Blatt'!B$3*2+2-C40*2)) -> 0 | F40: M8 | G40: ='M8'!W$30 -> 0 | H40: 0 | I40: =IF(H40=0,,IF('INFO Blatt'!B$3<6,14-H40*2,'INFO Blatt'!B$3*2+2-H40*2)) -> 0 | K40: M8 | L40: ='M8'!AA$30 -> 0 | M40: 0 | N40: =IF(M40=0,,IF('INFO Blatt'!B$3<6,14-M40*2,'INFO Blatt'!B$3*2+2-M40*2)) -> 0
A41: M9 | B41: ='M9'!S$30 -> 0 | C41: 0 | D41: =IF(C41=0,,IF('INFO Blatt'!B$3<6,14-C41*2,'INFO Blatt'!B$3*2+2-C41*2)) -> 0 | F41: M9 | G41: ='M9'!W$30 -> 0 | H41: 0 | I41: =IF(H41=0,,IF('INFO Blatt'!B$3<6,14-H41*2,'INFO Blatt'!B$3*2+2-H41*2)) -> 0 | K41: M9 | L41: ='M9'!AA$30 -> 0 | M41: 0 | N41: =IF(M41=0,,IF('INFO Blatt'!B$3<6,14-M41*2,'INFO Blatt'!B$3*2+2-M41*2)) -> 0
A42: M10 | B42: ='M10'!S$30 -> 0 | C42: 0 | D42: =IF(C42=0,,IF('INFO Blatt'!B$3<6,14-C42*2,'INFO Blatt'!B$3*2+2-C42*2)) -> 0 | F42: M10 | G42: ='M10'!W$30 -> 0 | H42: 0 | I42: =IF(H42=0,,IF('INFO Blatt'!B$3<6,14-H42*2,'INFO Blatt'!B$3*2+2-H42*2)) -> 0 | K42: M10 | L42: ='M10'!AA$30 -> 0 | M42: 0 | N42: =IF(M42=0,,IF('INFO Blatt'!B$3<6,14-M42*2,'INFO Blatt'!B$3*2+2-M42*2)) -> 0

Sheet Boffzen
A1: Wettkampfbogen | M1: Datum: | O1: ='INFO Blatt'!B13 -> 2019-02-16
M3: Ort: | O3: ='INFO Blatt'!B11 -> Hehlen
N5: Liga: | O5: ='INFO Blatt'!B7 -> Einsteigerliga
A7: Name | B7: Verein | C7: Jg | D7: Boden | H7: Pferd | L7: Ringe | P7: Sprung | T7: Barren | X7: Reck | AB7: Ges.
D8: D-Note | E8: Abzug OK | F8: E- Abzug | G8: Note | H8: D-Note | I8: Abzug OK | J8: E- Abzug | K8: Note | L8: D-Note | M8: Abzug OK | N8: E-Abzug | O8: Note | P8: D-Note | Q8: Abzug OK | R8: E-Abzug | S8: Note | T8: D-Note | U8: Abzug OK | V8: E-Abzug | W8: Note | X8: D-Note | Y8: Abzug OK | Z8: E-Abzug | AA8: Note
A9: ='Wertungszettel M1'!A7 -> Tom Esau | B9: =Formeln!A5 -> MTV Boffzen e.V. von 1892 | C9: =IF(A9<>"",VLOOKUP(A9,'Wertungszettel M1'!A$7:B$36,2,0),"") -> 11.03.2010 | G9: =IF(AND(F9>0,F10>0),IF(OR(F9>10,F9<0,F10>10,F10<0),"Fehler",IF(ABS(D9)-ABS(E9)-(F9+F10)/2+10>0,IF(D9<0,-(ABS(D9)-ABS(E9)-(F9+F10)/2+10),D9-ABS(E9)-(F9+F10)/2+10),0)),0) -> 0 | K9: =IF(AND(J9>0,J10>0),IF(OR(J9>10,J9<0,J10>10,J10<0),"Fehler",IF(ABS(H9)-ABS(I9)-(J9+J10)/2+10>0,IF(H9<0,-(ABS(H9)-ABS(I9)-(J9+J10)/2+10),H9-ABS(I9)-(J9+J10)/2+10),0)),0) -> 0 | O9: =IF(AND(N9>0,N10>0),IF(OR(N9>10,N9<0,N10>10,N10<0),"Fehler",IF(ABS(L9)-ABS(M9)-(N9+N10)/2+10>0,IF(L9<0,-(ABS(L9)-ABS(M9)-(N9+N10)/2+10),L9-ABS(M9)-(N9+N10)/2+10),0)),0) -> 0 | S9: =IF(AND(R9>0,R10>0),IF(OR(R9>10,R9<0,R10>10,R10<0),"Fehler",IF(ABS(P9)-ABS(Q9)-(R9+R10)/2+10>0,IF(P9<0,-(ABS(P9)-ABS(Q9)-(R9+R10)/2+10),P9-ABS(Q9)-(R9+R10)/2+10),0)),0) -> 0 | W9: =IF(AND(V9>0,V10>0),IF(OR(V9>10,V9<0,V10>10,V10<0),"Fehler",IF(ABS(T9)-ABS(U9)-(V9+V10)/2+10>0,IF(T9<0,-(ABS(T9)-ABS(U9)-(V9+V10)/2+10),T9-ABS(U9)-(V9+V10)/2+10),0)),0) -> 0 | AA9: =IF(AND(Z9>0,Z10>0),IF(OR(Z9>10,Z9<0,Z10>10,Z10<0),"Fehler",IF(ABS(X9)-ABS(Y9)-(Z9+Z10)/2+10>0,IF(X9<0,-(ABS(X9)-ABS(Y9)-(Z9+Z10)/2+10),X9-ABS(Y9)-(Z9+Z10)/2+10),0)),0) -> 0 | AB9: =ABS(G9)+ABS(K9)+ABS(O9)+ABS(S9)+ABS(W9)+ABS(AA9) -> 0
A11: ='Wertungszettel M1'!A9 -> Thorge Haak | B11: =IF(A11>0,B9,"") -> MTV Boffzen e.V. von 1892 | C11: =IF(A11<>"",VLOOKUP(A11,'Wertungszettel M1'!A$7:B$36,2,0),"") -> 21.01.2010 | D11: 4 | E11: 1 | F11: 3.6 | G11: =IF(AND(F11>0,F12>0),IF(OR(F11>10,F11<0,F12>10,F12<0),"Fehler",IF(ABS(D11)-ABS(E11)-(F11+F12)/2+10>0,IF(D11<0,-(ABS(D11)-ABS(E11)-(F11+F12)/2+10),D11-ABS(E11)-(F11+F12)/2+10),0)),0) -> 9.4 | H11: 5 | J11: 3.5 | K11: =IF(AND(J11>0,J12>0),IF(OR(J11>10,J11<0,J12>10,J12<0),"Fehler",IF(ABS(H11)-ABS(I11)-(J11+J12)/2+10>0,IF(H11<0,-(ABS(H11)-ABS(I11)-(J11+J12)/2+10),H11-ABS(I11)-(J11+J12)/2+10),0)),0) -> 11.5 | L11: 5 | N11: 2.3 | O11: =IF(AND(N11>0,N12>0),IF(OR(N11>10,N11<0,N12>10,N12<0),"Fehler",IF(ABS(L11)-ABS(M11)-(N11+N12)/2+10>0,IF(L11<0,-(ABS(L11)-ABS(M11)-(N11+N12)/2+10),L11-ABS(M11)-(N11+N12)/2+10),0)),0) -> 12.7 | P11: 5 | R11: 1.6 | S11: =IF(AND(R11>0,R12>0),IF(OR(R11>10,R11<0,R12>10,R12<0),"Fehler",IF(ABS(P11)-ABS(Q11)-(R11+R12)/2+10>0,IF(P11<0,-(ABS(P11)-ABS(Q11)-(R11+R12)/2+10),P11-ABS(Q11)-(R11+R12)/2+10),0)),0) -> 13.4 | T11: 5 | V11: 1.3 | W11: =IF(AND(V11>0,V12>0),IF(OR(V11>10,V11<0,V12>10,V12<0),"Fehler",IF(ABS(T11)-ABS(U11)-(V11+V12)/2+10>0,IF(T11<0,-(ABS(T11)-ABS(U11)-(V11+V12)/2+10),T11-ABS(U11)-(V11+V12)/2+10),0)),0) -> 13.6 | X11: 5 | Z11: 2.9 | AA11: =IF(AND(Z11>0,Z12>0),IF(OR(Z11>10,Z11<0,Z12>10,Z12<0),"Fehler",IF(ABS(X11)-ABS(Y11)-(Z11+Z12)/2+10>0,IF(X11<0,-(ABS(X11)-ABS(Y11)-(Z11+Z12)/2+10),X11-ABS(Y11)-(Z11+Z12)/2+10),0)),0) -> 12.3 | AB11: =ABS(G11)+ABS(K11)+ABS(O11)+ABS(S11)+ABS(W11)+ABS(AA11) -> 72.9 | AF11: Boden | AG11: =IF(G40>1,1,0) -> 1
F12: 3.6 | J12: 3.5 | N12: 2.3 | R12: 1.6 | V12: 1.5 | Z12: 2.5 | AF12: pauschenpferd | AG12: =IF(K40>1,1,0) -> 1
A13: ='Wertungszettel M1'!A11 -> Robin Meisner | B13: =IF(A13>0,B11,"") -> MTV Boffzen e.V. von 1892 | C13: =IF(A13<>"",VLOOKUP(A13,'Wertungszettel M1'!A$7:B$36,2,0),"") -> 12.07.2010 | D13: 5 | E13: 1 | F13: 2.7 | G13: =IF(AND(F13>0,F14>0),IF(OR(F13>10,F13<0,F14>10,F14<0),"Fehler",IF(ABS(D13)-ABS(E13)-(F13+F14)/2+10>0,IF(D13<0,-(ABS(D13)-ABS(E13)-(F13+F14)/2+10),D13-ABS(E13)-(F13+F14)/2+10),0)),0) -> 11.2 | K13: =IF(AND(J13>0,J14>0),IF(OR(J13>10,J13<0,J14>10,J14<0),"Fehler",IF(ABS(H13)-ABS(I13)-(J13+J14)/2+10>0,IF(H13<0,-(ABS(H13)-ABS(I13)-(J13+J14)/2+10),H13-ABS(I13)-(J13+J14)/2+10),0)),0) -> 0 | L13: 5 | N13: 2.9 | O13: =IF(AND(N13>0,N14>0),IF(OR(N13>10,N13<0,N14>10,N14<0),"Fehler",IF(ABS(L13)-ABS(M13)-(N13+N14)/2+10>0,IF(L13<0,-(ABS(L13)-ABS(M13)-(N13+N14)/2+10),L13-ABS(M13)-(N13+N14)/2+10),0)),0) -> 12.1 | S13: =IF(AND(R13>0,R14>0),IF(OR(R13>10,R13<0,R14>10,R14<0),"Fehler",IF(ABS(P13)-ABS(Q13)-(R13+R14)/2+10>0,IF(P13<0,-(ABS(P13)-ABS(Q13)-(R13+R14)/2+10),P13-ABS(Q13)-(R13+R14)/2+10),0)),0) -> 0 | W13: =IF(AND(V13>0,V14>0),IF(OR(V13>10,V13<0,V14>10,V14<0),"Fehler",IF(ABS(T13)-ABS(U13)-(V13+V14)/2+10>0,IF(T13<0,-(ABS(T13)-ABS(U13)-(V13+V14)/2+10),T13-ABS(U13)-(V13+V14)/2+10),0)),0) -> 0 | X13: 5 | Z13: 3.1 | AA13: =IF(AND(Z13>0,Z14>0),IF(OR(Z13>10,Z13<0,Z14>10,Z14<0),"Fehler",IF(ABS(X13)-ABS(Y13)-(Z13+Z14)/2+10>0,IF(X13<0,-(ABS(X13)-ABS(Y13)-(Z13+Z14)/2+10),X13-ABS(Y13)-(Z13+Z14)/2+10),0)),0) -> 12.1 | AB13: =ABS(G13)+ABS(K13)+ABS(O13)+ABS(S13)+ABS(W13)+ABS(AA13) -> 35.4 | AF13: ringe | AG13: =IF(O40>1,1,0) -> 1
F14: 2.9 | N14: 2.9 | Z14: 2.7 | AF14: sprung | AG14: =IF(S40>1,1,0) -> 1
A15: ='Wertungszettel M1'!A13 -> Nick Bernhardt | B15: =IF(A15>0,B13,"") -> MTV Boffzen e.V. von 1892 | C15: =IF(A15<>"",VLOOKUP(A15,'Wertungszettel M1'!A$7:B$36,2,0),"") -> 29.05.2009 | D15: 5 | E15: 0.5 | F15: 4.4 | G15: =IF(AND(F15>0,F16>0),IF(OR(F15>10,F15<0,F16>10,F16<0),"Fehler",IF(ABS(D15)-ABS(E15)-(F15+F16)/2+10>0,IF(D15<0,-(ABS(D15)-ABS(E15)-(F15+F16)/2+10),D15-ABS(E15)-(F15+F16)/2+10),0)),0) -> 10.1 | H15: 5 | J15: 1.8 | K15: =IF(AND(J15>0,J16>0),IF(OR(J15>10,J15<0,J16>10,J16<0),"Fehler",IF(ABS(H15)-ABS(I15)-(J15+J16)/2+10>0,IF(H15<0,-(ABS(H15)-ABS(I15)-(J15+J16)/2+10),H15-ABS(I15)-(J15+J16)/2+10),0)),0) -> 13.2 | L15: 5 | N15: 2.6 | O15: =IF(AND(N15>0,N16>0),IF(OR(N15>10,N15<0,N16>10,N16<0),"Fehler",IF(ABS(L15)-ABS(M15)-(N15+N16)/2+10>0,IF(L15<0,-(ABS(L15)-ABS(M15)-(N15+N16)/2+10),L15-ABS(M15)-(N15+N16)/2+10),0)),0) -> 12.4 | P15: 5 | R15: 1.2 | S15: =IF(AND(R15>0,R16>0),IF(OR(R15>10,R15<0,R16>10,R16<0),"Fehler",IF(ABS(P15)-ABS(Q15)-(R15+R16)/2+10>0,IF(P15<0,-(ABS(P15)-ABS(Q15)-(R15+R16)/2+10),P15-ABS(Q15)-(R15+R16)/2+10),0)),0) -> 13.85 | T15: 5 | V15: 1.8 | W15: =IF(AND(V15>0,V16>0),IF(OR(V15>10,V15<0,V16>10,V16<0),"Fehler",IF(ABS(T15)-ABS(U15)-(V15+V16)/2+10>0,IF(T15<0,-(ABS(T15)-ABS(U15)-(V15+V16)/2+10),T15-ABS(U15)-(V15+V16)/2+10),0)),0) -> 13.3 | X15: 5 | Z15: 3.8 | AA15: =IF(AND(Z15>0,Z16>0),IF(OR(Z15>10,Z15<0,Z16>10,Z16<0),"Fehler",IF(ABS(X15)-ABS(Y15)-(Z15+Z16)/2+10>0,IF(X15<0,-(ABS(X15)-ABS(Y15)-(Z15+Z16)/2+10),X15-ABS(Y15)-(Z15+Z16)/2+10),0)),0) -> 11.4 | AB15: =ABS(G15)+ABS(K15)+ABS(O15)+ABS(S15)+ABS(W15)+ABS(AA15) -> 74.25 | AF15: Barren | AG15: =IF(W40>1,1,0) -> 1
F16: 4.4 | J16: 1.8 | N16: 2.6 | R16: 1.1 | V16: 1.6 | Z16: 3.4 | AF16: Reck | AG16: =IF(AA40>1,1,0) -> 1
A17: ='Wertungszettel M1'!A15 -> Nico Schilcher | B17: =IF(A17>0,B15,"") -> MTV Boffzen e.V. von 1892 | C17: =IF(A17<>"",VLOOKUP(A17,'Wertungszettel M1'!A$7:B$36,2,0),"") -> 26.01.2009 | D17: 5 | F17: 4 | G17: =IF(AND(F17>0,F18>0),IF(OR(F17>10,F17<0,F18>10,F18<0),"Fehler",IF(ABS(D17)-ABS(E17)-(F17+F18)/2+10>0,IF(D17<0,-(ABS(D17)-ABS(E17)-(F17+F18)/2+10),D17-ABS(E17)-(F17+F18)/2+10),0)),0) -> 11 | H17: 5 | J17: 3.9 | K17: =IF(AND(J17>0,J18>0),IF(OR(J17>10,J17<0,J18>10,J18<0),"Fehler",IF(ABS(H17)-ABS(I17)-(J17+J18)/2+10>0,IF(H17<0,-(ABS(H17)-ABS(I17)-(J17+J18)/2+10),H17-ABS(I17)-(J17+J18)/2+10),0)),0) -> 11.1 | L17: 5 | N17: 1.2 | O17: =IF(AND(N17>0,N18>0),IF(OR(N17>10,N17<0,N18>10,N18<0),"Fehler",IF(ABS(L17)-ABS(M17)-(N17+N18)/2+10>0,IF(L17<0,-(ABS(L17)-ABS(M17)-(N17+N18)/2+10),L17-ABS(M17)-(N17+N18)/2+10),0)),0) -> 13.8 | S17: =IF(AND(R17>0,R18>0),IF(OR(R17>10,R17<0,R18>10,R18<0),"Fehler",IF(ABS(P17)-ABS(Q17)-(R17+R18)/2+10>0,IF(P17<0,-(ABS(P17)-ABS(Q17)-(R17+R18)/2+10),P17-ABS(Q17)-(R17+R18)/2+10),0)),0) -> 0 | T17: 5 | U17: 0.5 | V17: 2.2 | W17: =IF(AND(V17>0,V18>0),IF(OR(V17>10,V17<0,V18>10,V18<0),"Fehler",IF(ABS(T17)-ABS(U17)-(V17+V18)/2+10>0,IF(T17<0,-(ABS(T17)-ABS(U17)-(V17+V18)/2+10),T17-ABS(U17)-(V17+V18)/2+10),0)),0) -> 12.1 | X17: 5 | Z17: 2.8 | AA17: =IF(AND(Z17>0,Z18>0),IF(OR(Z17>10,Z17<0,Z18>10,Z18<0),"Fehler",IF(ABS(X17)-ABS(Y17)-(Z17+Z18)/2+10>0,IF(X17<0,-(ABS(X17)-ABS(Y17)-(Z17+Z18)/2+10),X17-ABS(Y17)-(Z17+Z18)/2+10),0)),0) -> 12.45 | AB17: =ABS(G17)+ABS(K17)+ABS(O17)+ABS(S17)+ABS(W17)+ABS(AA17) -> 60.45
F18: 4 | J18: 3.9 | N18: 1.2 | V18: 2.6 | Z18: 2.3 | AF18: Gesamt | AG18: =SUM(AG11:AG17) -> 6
A19: ='Wertungszettel M1'!A17 -> Benedikt Sievers | B19: =IF(A19>0,B17,"") -> MTV Boffzen e.V. von 1892 | C19: =IF(A19<>"",VLOOKUP(A19,'Wertungszettel M1'!A$7:B$36,2,0),"") -> 12.02.2010 | D19: 5 | F19: 2.2 | G19: =IF(AND(F19>0,F20>0),IF(OR(F19>10,F19<0,F20>10,F20<0),"Fehler",IF(ABS(D19)-ABS(E19)-(F19+F20)/2+10>0,IF(D19<0,-(ABS(D19)-ABS(E19)-(F19+F20)/2+10),D19-ABS(E19)-(F19+F20)/2+10),0)),0) -> 12.95 | H19: 5 | J19: 5.2 | K19: =IF(AND(J19>0,J20>0),IF(OR(J19>10,J19<0,J20>10,J20<0),"Fehler",IF(ABS(H19)-ABS(I19)-(J19+J20)/2+10>0,IF(H19<0,-(ABS(H19)-ABS(I19)-(J19+J20)/2+10),H19-ABS(I19)-(J19+J20)/2+10),0)),0) -> 9.8 | O19: =IF(AND(N19>0,N20>0),IF(OR(N19>10,N19<0,N20>10,N20<0),"Fehler",IF(ABS(L19)-ABS(M19)-(N19+N20)/2+10>0,IF(L19<0,-(ABS(L19)-ABS(M19)-(N19+N20)/2+10),L19-ABS(M19)-(N19+N20)/2+10),0)),0) -> 0 | P19: 5 | R19: 1.4 | S19: =IF(AND(R19>0,R20>0),IF(OR(R19>10,R19<0,R20>10,R20<0),"Fehler",IF(ABS(P19)-ABS(Q19)-(R19+R20)/2+10>0,IF(P19<0,-(ABS(P19)-ABS(Q19)-(R19+R20)/2+10),P19-ABS(Q19)-(R19+R20)/2+10),0)),0) -> 13.6 | T19: 5 | V19: 2.3 | W19: =IF(AND(V19>0,V20>0),IF(OR(V19>10,V19<0,V20>10,V20<0),"Fehler",IF(ABS(T19)-ABS(U19)-(V19+V20)/2+10>0,IF(T19<0,-(ABS(T19)-ABS(U19)-(V19+V20)/2+10),T19-ABS(U19)-(V19+V20)/2+10),0)),0) -> 12.8 | X19: 5 | Z19: 2.5 | AA19: =IF(AND(Z19>0,Z20>0),IF(OR(Z19>10,Z19<0,Z20>10,Z20<0),"Fehler",IF(ABS(X19)-ABS(Y19)-(Z19+Z20)/2+10>0,IF(X19<0,-(ABS(X19)-ABS(Y19)-(Z19+Z20)/2+10),X19-ABS(Y19)-(Z19+Z20)/2+10),0)),0) -> 12.6 | AB19: =ABS(G19)+ABS(K19)+ABS(O19)+ABS(S19)+ABS(W19)+ABS(AA19) -> 61.75
F20: 1.9 | J20: 5.2 | R20: 1.4 | V20: 2.1 | Z20: 2.3
A21: ='Wertungszettel M1'!A19 -> David Janzen | B21: =IF(A21>0,B19,"") -> MTV Boffzen e.V. von 1892 | C21: =IF(A21<>"",VLOOKUP(A21,'Wertungszettel M1'!A$7:B$36,2,0),"") -> 09.12.2008 | D21: -4 | F21: 1.1 | G21: =IF(AND(F21>0,F22>0),IF(OR(F21>10,F21<0,F22>10,F22<0),"Fehler",IF(ABS(D21)-ABS(E21)-(F21+F22)/2+10>0,IF(D21<0,-(ABS(D21)-ABS(E21)-(F21+F22)/2+10),D21-ABS(E21)-(F21+F22)/2+10),0)),0) -> -12.95 | H21: 4 | J21: 2.8 | K21: =IF(AND(J21>0,J22>0),IF(OR(J21>10,J21<0,J22>10,J22<0),"Fehler",IF(ABS(H21)-ABS(I21)-(J21+J22)/2+10>0,IF(H21<0,-(ABS(H21)-ABS(I21)-(J21+J22)/2+10),H21-ABS(I21)-(J21+J22)/2+10),0)),0) -> 11.2 | L21: 5 | N21: 2.5 | O21: =IF(AND(N21>0,N22>0),IF(OR(N21>10,N21<0,N22>10,N22<0),"Fehler",IF(ABS(L21)-ABS(M21)-(N21+N22)/2+10>0,IF(L21<0,-(ABS(L21)-ABS(M21)-(N21+N22)/2+10),L21-ABS(M21)-(N21+N22)/2+10),0)),0) -> 12.5 | P21: 5 | R21: 1.8 | S21: =IF(AND(R21>0,R22>0),IF(OR(R21>10,R21<0,R22>10,R22<0),"Fehler",IF(ABS(P21)-ABS(Q21)-(R21+R22)/2+10>0,IF(P21<0,-(ABS(P21)-ABS(Q21)-(R21+R22)/2+10),P21-ABS(Q21)-(R21+R22)/2+10),0)),0) -> 13.3 | T21: 5 | V21: 2.5 | W21: =IF(AND(V21>0,V22>0),IF(OR(V21>10,V21<0,V22>10,V22<0),"Fehler",IF(ABS(T21)-ABS(U21)-(V21+V22)/2+10>0,IF(T21<0,-(ABS(T21)-ABS(U21)-(V21+V22)/2+10),T21-ABS(U21)-(V21+V22)/2+10),0)),0) -> 12.4 | X21: -4 | Z21: 3.8 | AA21: =IF(AND(Z21>0,Z22>0),IF(OR(Z21>10,Z21<0,Z22>10,Z22<0),"Fehler",IF(ABS(X21)-ABS(Y21)-(Z21+Z22)/2+10>0,IF(X21<0,-(ABS(X21)-ABS(Y21)-(Z21+Z22)/2+10),X21-ABS(Y21)-(Z21+Z22)/2+10),0)),0) -> -10.2 | AB21: =ABS(G21)+ABS(K21)+ABS(O21)+ABS(S21)+ABS(W21)+ABS(AA21) -> 72.55
F22: 1 | J22: 2.8 | N22: 2.5 | R22: 1.6 | V22: 2.7 | Z22: 3.8
A23: ='Wertungszettel M1'!A21 -> Simon Janzen | B23: =IF(A23>0,B21,"") -> MTV Boffzen e.V. von 1892 | C23: =IF(A23<>"",VLOOKUP(A23,'Wertungszettel M1'!A$7:B$36,2,0),"") -> 07.07.2011 | G23: =IF(AND(F23>0,F24>0),IF(OR(F23>10,F23<0,F24>10,F24<0),"Fehler",IF(ABS(D23)-ABS(E23)-(F23+F24)/2+10>0,IF(D23<0,-(ABS(D23)-ABS(E23)-(F23+F24)/2+10),D23-ABS(E23)-(F23+F24)/2+10),0)),0) -> 0 | H23: -4 | J23: 3.4 | K23: =IF(AND(J23>0,J24>0),IF(OR(J23>10,J23<0,J24>10,J24<0),"Fehler",IF(ABS(H23)-ABS(I23)-(J23+J24)/2+10>0,IF(H23<0,-(ABS(H23)-ABS(I23)-(J23+J24)/2+10),H23-ABS(I23)-(J23+J24)/2+10),0)),0) -> -10.6 | O23: =IF(AND(N23>0,N24>0),IF(OR(N23>10,N23<0,N24>10,N24<0),"Fehler",IF(ABS(L23)-ABS(M23)-(N23+N24)/2+10>0,IF(L23<0,-(ABS(L23)-ABS(M23)-(N23+N24)/2+10),L23-ABS(M23)-(N23+N24)/2+10),0)),0) -> 0 | S23: =IF(AND(R23>0,R24>0),IF(OR(R23>10,R23<0,R24>10,R24<0),"Fehler",IF(ABS(P23)-ABS(Q23)-(R23+R24)/2+10>0,IF(P23<0,-(ABS(P23)-ABS(Q23)-(R23+R24)/2+10),P23-ABS(Q23)-(R23+R24)/2+10),0)),0) -> 0 | T23: -4 | V23: 1.6 | W23: =IF(AND(V23>0,V24>0),IF(OR(V23>10,V23<0,V24>10,V24<0),"Fehler",IF(ABS(T23)-ABS(U23)-(V23+V24)/2+10>0,IF(T23<0,-(ABS(T23)-ABS(U23)-(V23+V24)/2+10),T23-ABS(U23)-(V23+V24)/2+10),0)),0) -> -12.3 | AA23: =IF(AND(Z23>0,Z24>0),IF(OR(Z23>10,Z23<0,Z24>10,Z24<0),"Fehler",IF(ABS(X23)-ABS(Y23)-(Z23+Z24)/2+10>0,IF(X23<0,-(ABS(X23)-ABS(Y23)-(Z23+Z24)/2+10),X23-ABS(Y23)-(Z23+Z24)/2+10),0)),0) -> 0 | AB23: =ABS(G23)+ABS(K23)+ABS(O23)+ABS(S23)+ABS(W23)+ABS(AA23) -> 22.9
J24: 3.4 | V24: 1.8
A25: ='Wertungszettel M1'!A23 -> frei 9 | B25: =IF(A25>0,B23,"") -> MTV Boffzen e.V. von 1892 | C25: =IF(A25<>"",VLOOKUP(A25,'Wertungszettel M1'!A$7:B$36,2,0),"") -> 0 | G25: =IF(AND(F25>0,F26>0),IF(OR(F25>10,F25<0,F26>10,F26<0),"Fehler",IF(ABS(D25)-ABS(E25)-(F25+F26)/2+10>0,IF(D25<0,-(ABS(D25)-ABS(E25)-(F25+F26)/2+10),D25-ABS(E25)-(F25+F26)/2+10),0)),0) -> 0 | K25: =IF(AND(J25>0,J26>0),IF(OR(J25>10,J25<0,J26>10,J26<0),"Fehler",IF(ABS(H25)-ABS(I25)-(J25+J26)/2+10>0,IF(H25<0,-(ABS(H25)-ABS(I25)-(J25+J26)/2+10),H25-ABS(I25)-(J25+J26)/2+10),0)),0) -> 0 | O25: =IF(AND(N25>0,N26>0),IF(OR(N25>10,N25<0,N26>10,N26<0),"Fehler",IF(ABS(L25)-ABS(M25)-(N25+N26)/2+10>0,IF(L25<0,-(ABS(L25)-ABS(M25)-(N25+N26)/2+10),L25-ABS(M25)-(N25+N26)/2+10),0)),0) -> 0 | S25: =IF(AND(R25>0,R26>0),IF(OR(R25>10,R25<0,R26>10,R26<0),"Fehler",IF(ABS(P25)-ABS(Q25)-(R25+R26)/2+10>0,IF(P25<0,-(ABS(P25)-ABS(Q25)-(R25+R26)/2+10),P25-ABS(Q25)-(R25+R26)/2+10),0)),0) -> 0 | W25: =IF(AND(V25>0,V26>0),IF(OR(V25>10,V25<0,V26>10,V26<0),"Fehler",IF(ABS(T25)-ABS(U25)-(V25+V26)/2+10>0,IF(T25<0,-(ABS(T25)-ABS(U25)-(V25+V26)/2+10),T25-ABS(U25)-(V25+V26)/2+10),0)),0) -> 0 | AA25: =IF(AND(Z25>0,Z26>0),IF(OR(Z25>10,Z25<0,Z26>10,Z26<0),"Fehler",IF(ABS(X25)-ABS(Y25)-(Z25+Z26)/2+10>0,IF(X25<0,-(ABS(X25)-ABS(Y25)-(Z25+Z26)/2+10),X25-ABS(Y25)-(Z25+Z26)/2+10),0)),0) -> 0 | AB25: =ABS(G25)+ABS(K25)+ABS(O25)+ABS(S25)+ABS(W25)+ABS(AA25) -> 0
A27: ='Wertungszettel M1'!A25 -> frei 10 | B27: =IF(A27>0,B25,"") -> MTV Boffzen e.V. von 1892 | C27: =IF(A27<>"",VLOOKUP(A27,'Wertungszettel M1'!A$7:B$36,2,0),"") -> 0 | G27: =IF(AND(F27>0,F28>0),IF(OR(F27>10,F27<0,F28>10,F28<0),"Fehler",IF(ABS(D27)-ABS(E27)-(F27+F28)/2+10>0,IF(D27<0,-(ABS(D27)-ABS(E27)-(F27+F28)/2+10),D27-ABS(E27)-(F27+F28)/2+10),0)),0) -> 0 | K27: =IF(AND(J27>0,J28>0),IF(OR(J27>10,J27<0,J28>10,J28<0),"Fehler",IF(ABS(H27)-ABS(I27)-(J27+J28)/2+10>0,IF(H27<0,-(ABS(H27)-ABS(I27)-(J27+J28)/2+10),H27-ABS(I27)-(J27+J28)/2+10),0)),0) -> 0 | O27: =IF(AND(N27>0,N28>0),IF(OR(N27>10,N27<0,N28>10,N28<0),"Fehler",IF(ABS(L27)-ABS(M27)-(N27+N28)/2+10>0,IF(L27<0,-(ABS(L27)-ABS(M27)-(N27+N28)/2+10),L27-ABS(M27)-(N27+N28)/2+10),0)),0) -> 0 | S27: =IF(AND(R27>0,R28>0),IF(OR(R27>10,R27<0,R28>10,R28<0),"Fehler",IF(ABS(P27)-ABS(Q27)-(R27+R28)/2+10>0,IF(P27<0,-(ABS(P27)-ABS(Q27)-(R27+R28)/2+10),P27-ABS(Q27)-(R27+R28)/2+10),0)),0) -> 0 | W27: =IF(AND(V27>0,V28>0),IF(OR(V27>10,V27<0,V28>10,V28<0),"Fehler",IF(ABS(T27)-ABS(U27)-(V27+V28)/2+10>0,IF(T27<0,-(ABS(T27)-ABS(U27)-(V27+V28)/2+10),T27-ABS(U27)-(V27+V28)/2+10),0)),0) -> 0 | AA27: =IF(AND(Z27>0,Z28>0),IF(OR(Z27>10,Z27<0,Z28>10,Z28<0),"Fehler",IF(ABS(X27)-ABS(Y27)-(Z27+Z28)/2+10>0,IF(X27<0,-(ABS(X27)-ABS(Y27)-(Z27+Z28)/2+10),X27-ABS(Y27)-(Z27+Z28)/2+10),0)),0) -> 0 | AB27: =ABS(G27)+ABS(K27)+ABS(O27)+ABS(S27)+ABS(W27)+ABS(AA27) -> 0
A29: ='Wertungszettel M1'!A27 -> frei 11 | B29: =IF(A29>0,B27,"") -> MTV Boffzen e.V. von 1892 | C29: =IF(A29<>"",VLOOKUP(A29,'Wertungszettel M1'!A$7:B$36,2,0),"") -> 0 | G29: =IF(AND(F29>0,F30>0),IF(OR(F29>10,F29<0,F30>10,F30<0),"Fehler",IF(ABS(D30)-ABS(E30)-(F29+F30)/2+10>0,IF(D30<0,-(ABS(D30)-ABS(E30)-(F29+F30)/2+10),D29-ABS(E29)-(F29+F30)/2+10),0)),0) -> 0 | K29: =IF(AND(J29>0,J30>0),IF(OR(J29>10,J29<0,J30>10,J30<0),"Fehler",IF(ABS(H30)-ABS(I30)-(J29+J30)/2+10>0,IF(H30<0,-(ABS(H30)-ABS(I30)-(J29+J30)/2+10),H29-ABS(I29)-(J29+J30)/2+10),0)),0) -> 0 | O29: =IF(AND(N29>0,N30>0),IF(OR(N29>10,N29<0,N30>10,N30<0),"Fehler",IF(ABS(L30)-ABS(M30)-(N29+N30)/2+10>0,IF(L30<0,-(ABS(L30)-ABS(M30)-(N29+N30)/2+10),L29-ABS(M29)-(N29+N30)/2+10),0)),0) -> 0 | S29: =IF(AND(R29>0,R30>0),IF(OR(R29>10,R29<0,R30>10,R30<0),"Fehler",IF(ABS(P30)-ABS(Q30)-(R29+R30)/2+10>0,IF(P30<0,-(ABS(P30)-ABS(Q30)-(R29+R30)/2+10),P29-ABS(Q29)-(R29+R30)/2+10),0)),0) -> 0 | W29: =IF(AND(V29>0,V30>0),IF(OR(V29>10,V29<0,V30>10,V30<0),"Fehler",IF(ABS(T30)-ABS(U30)-(V29+V30)/2+10>0,IF(T30<0,-(ABS(T30)-ABS(U30)-(V29+V30)/2+10),T29-ABS(U29)-(V29+V30)/2+10),0)),0) -> 0 | AA29: =IF(AND(Z29>0,Z30>0),IF(OR(Z29>10,Z29<0,Z30>10,Z30<0),"Fehler",IF(ABS(X30)-ABS(Y30)-(Z29+Z30)/2+10>0,IF(X30<0,-(ABS(X30)-ABS(Y30)-(Z29+Z30)/2+10),X29-ABS(Y29)-(Z29+Z30)/2+10),0)),0) -> 0 | AB29: =ABS(G29)+ABS(K29)+ABS(O29)+ABS(S29)+ABS(W29)+ABS(AA29) -> 0
A31: ='Wertungszettel M1'!A29 -> frei 12 | B31: =IF(A31>0,B29,"") -> MTV Boffzen e.V. von 1892 | C31: =IF(A31<>"",VLOOKUP(A31,'Wertungszettel M1'!A$7:B$36,2,0),"") -> 0 | G31: =IF(AND(F31>0,F32>0),IF(OR(F31>10,F31<0,F32>10,F32<0),"Fehler",IF(ABS(D32)-ABS(E32)-(F31+F32)/2+10>0,IF(D32<0,-(ABS(D32)-ABS(E32)-(F31+F32)/2+10),D31-ABS(E31)-(F31+F32)/2+10),0)),0) -> 0 | K31: =IF(AND(J31>0,J32>0),IF(OR(J31>10,J31<0,J32>10,J32<0),"Fehler",IF(ABS(H32)-ABS(I32)-(J31+J32)/2+10>0,IF(H32<0,-(ABS(H32)-ABS(I32)-(J31+J32)/2+10),H31-ABS(I31)-(J31+J32)/2+10),0)),0) -> 0 | O31: =IF(AND(N31>0,N32>0),IF(OR(N31>10,N31<0,N32>10,N32<0),"Fehler",IF(ABS(L32)-ABS(M32)-(N31+N32)/2+10>0,IF(L32<0,-(ABS(L32)-ABS(M32)-(N31+N32)/2+10),L31-ABS(M31)-(N31+N32)/2+10),0)),0) -> 0 | S31: =IF(AND(R31>0,R32>0),IF(OR(R31>10,R31<0,R32>10,R32<0),"Fehler",IF(ABS(P32)-ABS(Q32)-(R31+R32)/2+10>0,IF(P32<0,-(ABS(P32)-ABS(Q32)-(R31+R32)/2+10),P31-ABS(Q31)-(R31+R32)/2+10),0)),0) -> 0 | W31: =IF(AND(V31>0,V32>0),IF(OR(V31>10,V31<0,V32>10,V32<0),"Fehler",IF(ABS(T32)-ABS(U32)-(V31+V32)/2+10>0,IF(T32<0,-(ABS(T32)-ABS(U32)-(V31+V32)/2+10),T31-ABS(U31)-(V31+V32)/2+10),0)),0) -> 0 | AA31: =IF(AND(Z31>0,Z32>0),IF(OR(Z31>10,Z31<0,Z32>10,Z32<0),"Fehler",IF(ABS(X32)-ABS(Y32)-(Z31+Z32)/2+10>0,IF(X32<0,-(ABS(X32)-ABS(Y32)-(Z31+Z32)/2+10),X31-ABS(Y31)-(Z31+Z32)/2+10),0)),0) -> 0 | AB31: =ABS(G31)+ABS(K31)+ABS(O31)+ABS(S31)+ABS(W31)+ABS(AA31) -> 0
A33: ='Wertungszettel M1'!A31 -> frei 13 | B33: =IF(A33>0,B31,"") -> MTV Boffzen e.V. von 1892 | C33: =IF(A33<>"",VLOOKUP(A33,'Wertungszettel M1'!A$7:B$36,2,0),"") -> 0 | G33: =IF(AND(F33>0,F34>0),IF(OR(F33>10,F33<0,F34>10,F34<0),"Fehler",IF(ABS(D34)-ABS(E34)-(F33+F34)/2+10>0,IF(D34<0,-(ABS(D34)-ABS(E34)-(F33+F34)/2+10),D33-ABS(E33)-(F33+F34)/2+10),0)),0) -> 0 | K33: =IF(AND(J33>0,J34>0),IF(OR(J33>10,J33<0,J34>10,J34<0),"Fehler",IF(ABS(H34)-ABS(I34)-(J33+J34)/2+10>0,IF(H34<0,-(ABS(H34)-ABS(I34)-(J33+J34)/2+10),H33-ABS(I33)-(J33+J34)/2+10),0)),0) -> 0 | O33: =IF(AND(N33>0,N34>0),IF(OR(N33>10,N33<0,N34>10,N34<0),"Fehler",IF(ABS(L34)-ABS(M34)-(N33+N34)/2+10>0,IF(L34<0,-(ABS(L34)-ABS(M34)-(N33+N34)/2+10),L33-ABS(M33)-(N33+N34)/2+10),0)),0) -> 0 | S33: =IF(AND(R33>0,R34>0),IF(OR(R33>10,R33<0,R34>10,R34<0),"Fehler",IF(ABS(P34)-ABS(Q34)-(R33+R34)/2+10>0,IF(P34<0,-(ABS(P34)-ABS(Q34)-(R33+R34)/2+10),P33-ABS(Q33)-(R33+R34)/2+10),0)),0) -> 0 | W33: =IF(AND(V33>0,V34>0),IF(OR(V33>10,V33<0,V34>10,V34<0),"Fehler",IF(ABS(T34)-ABS(U34)-(V33+V34)/2+10>0,IF(T34<0,-(ABS(T34)-ABS(U34)-(V33+V34)/2+10),T33-ABS(U33)-(V33+V34)/2+10),0)),0) -> 0 | AA33: =IF(AND(Z33>0,Z34>0),IF(OR(Z33>10,Z33<0,Z34>10,Z34<0),"Fehler",IF(ABS(X34)-ABS(Y34)-(Z33+Z34)/2+10>0,IF(X34<0,-(ABS(X34)-ABS(Y34)-(Z33+Z34)/2+10),X33-ABS(Y33)-(Z33+Z34)/2+10),0)),0) -> 0 | AB33: =ABS(G33)+ABS(K33)+ABS(O33)+ABS(S33)+ABS(W33)+ABS(AA33) -> 0
A35: ='Wertungszettel M1'!A33 -> frei 14 | B35: =IF(A35>0,B33,"") -> MTV Boffzen e.V. von 1892 | C35: =IF(A35<>"",VLOOKUP(A35,'Wertungszettel M1'!A$7:B$36,2,0),"") -> 0 | G35: =IF(AND(F35>0,F36>0),IF(OR(F35>10,F35<0,F36>10,F36<0),"Fehler",IF(ABS(D36)-ABS(E36)-(F35+F36)/2+10>0,IF(D36<0,-(ABS(D36)-ABS(E36)-(F35+F36)/2+10),D35-ABS(E35)-(F35+F36)/2+10),0)),0) -> 0 | K35: =IF(AND(J35>0,J36>0),IF(OR(J35>10,J35<0,J36>10,J36<0),"Fehler",IF(ABS(H36)-ABS(I36)-(J35+J36)/2+10>0,IF(H36<0,-(ABS(H36)-ABS(I36)-(J35+J36)/2+10),H35-ABS(I35)-(J35+J36)/2+10),0)),0) -> 0 | O35: =IF(AND(N35>0,N36>0),IF(OR(N35>10,N35<0,N36>10,N36<0),"Fehler",IF(ABS(L36)-ABS(M36)-(N35+N36)/2+10>0,IF(L36<0,-(ABS(L36)-ABS(M36)-(N35+N36)/2+10),L35-ABS(M35)-(N35+N36)/2+10),0)),0) -> 0 | S35: =IF(AND(R35>0,R36>0),IF(OR(R35>10,R35<0,R36>10,R36<0),"Fehler",IF(ABS(P36)-ABS(Q36)-(R35+R36)/2+10>0,IF(P36<0,-(ABS(P36)-ABS(Q36)-(R35+R36)/2+10),P35-ABS(Q35)-(R35+R36)/2+10),0)),0) -> 0 | W35: =IF(AND(V35>0,V36>0),IF(OR(V35>10,V35<0,V36>10,V36<0),"Fehler",IF(ABS(T36)-ABS(U36)-(V35+V36)/2+10>0,IF(T36<0,-(ABS(T36)-ABS(U36)-(V35+V36)/2+10),T35-ABS(U35)-(V35+V36)/2+10),0)),0) -> 0 | AA35: =IF(AND(Z35>0,Z36>0),IF(OR(Z35>10,Z35<0,Z36>10,Z36<0),"Fehler",IF(ABS(X36)-ABS(Y36)-(Z35+Z36)/2+10>0,IF(X36<0,-(ABS(X36)-ABS(Y36)-(Z35+Z36)/2+10),X35-ABS(Y35)-(Z35+Z36)/2+10),0)),0) -> 0 | AB35: =ABS(G35)+ABS(K35)+ABS(O35)+ABS(S35)+ABS(W35)+ABS(AA35) -> 0
A37: ='Wertungszettel M1'!A35 -> frei 15 | B37: =IF(A37>0,B35,"") -> MTV Boffzen e.V. von 1892 | C37: =IF(A37<>"",VLOOKUP(A37,'Wertungszettel M1'!A$7:B$36,2,0),"") -> 0 | G37: =IF(AND(F37>0,F38>0),IF(OR(F37>10,F37<0,F38>10,F38<0),"Fehler",IF(ABS(D38)-ABS(E38)-(F37+F38)/2+10>0,IF(D38<0,-(ABS(D38)-ABS(E38)-(F37+F38)/2+10),D37-ABS(E37)-(F37+F38)/2+10),0)),0) -> 0 | K37: =IF(AND(J37>0,J38>0),IF(OR(J37>10,J37<0,J38>10,J38<0),"Fehler",IF(ABS(H38)-ABS(I38)-(J37+J38)/2+10>0,IF(H38<0,-(ABS(H38)-ABS(I38)-(J37+J38)/2+10),H37-ABS(I37)-(J37+J38)/2+10),0)),0) -> 0 | O37: =IF(AND(N37>0,N38>0),IF(OR(N37>10,N37<0,N38>10,N38<0),"Fehler",IF(ABS(L38)-ABS(M38)-(N37+N38)/2+10>0,IF(L38<0,-(ABS(L38)-ABS(M38)-(N37+N38)/2+10),L37-ABS(M37)-(N37+N38)/2+10),0)),0) -> 0 | S37: =IF(AND(R37>0,R38>0),IF(OR(R37>10,R37<0,R38>10,R38<0),"Fehler",IF(ABS(P38)-ABS(Q38)-(R37+R38)/2+10>0,IF(P38<0,-(ABS(P38)-ABS(Q38)-(R37+R38)/2+10),P37-ABS(Q37)-(R37+R38)/2+10),0)),0) -> 0 | W37: =IF(AND(V37>0,V38>0),IF(OR(V37>10,V37<0,V38>10,V38<0),"Fehler",IF(ABS(T38)-ABS(U38)-(V37+V38)/2+10>0,IF(T38<0,-(ABS(T38)-ABS(U38)-(V37+V38)/2+10),T37-ABS(U37)-(V37+V38)/2+10),0)),0) -> 0 | AA37: =IF(AND(Z37>0,Z38>0),IF(OR(Z37>10,Z37<0,Z38>10,Z38<0),"Fehler",IF(ABS(X38)-ABS(Y38)-(Z37+Z38)/2+10>0,IF(X38<0,-(ABS(X38)-ABS(Y38)-(Z37+Z38)/2+10),X37-ABS(Y37)-(Z37+Z38)/2+10),0)),0) -> 0 | AB37: =ABS(G37)+ABS(K37)+ABS(O37)+ABS(S37)+ABS(W37)+ABS(AA37) -> 0
G40: =SUM(LARGE(G9:G38,1),LARGE(G9:G38,2),LARGE(G9:G38,3)) -> 35.15 | K40: =SUM(LARGE(K9:K38,1),LARGE(K9:K38,2),LARGE(K9:K38,3)) -> 35.9 | O40: =SUM(LARGE(O9:O38,1),LARGE(O9:O38,2),LARGE(O9:O38,3)) -> 39 | S40: =SUM(LARGE(S9:S38,1),LARGE(S9:S38,2),LARGE(S9:S38,3)) -> 40.85 | W40: =SUM(LARGE(W9:W38,1),LARGE(W9:W38,2),LARGE(W9:W38,3)) -> 39.7 | AA40: =SUM(LARGE(AA9:AA38,1),LARGE(AA9:AA38,2),LARGE(AA9:AA38,3)) -> 37.35 | AB40: =SUM(G40,K40,O40,S40,W40,AA40) -> 227.95

Sheet TG Oker_Salzg_Wenzen
A1: Wettkampfbogen | M1: Datum: | O1: ='INFO Blatt'!B13 -> 2019-02-16
M3: Ort: | O3: ='INFO Blatt'!B11 -> Hehlen
N5: Liga: | O5: ='INFO Blatt'!B7 -> Einsteigerliga
A7: Name | B7: Verein | C7: Jg | D7: Boden | H7: Pferd | L7: Ringe | P7: Sprung | T7: Barren | X7: Reck | AB7: Ges.
D8: D-Note | E8: Abzug OK | F8: E- Abzug | G8: Note | H8: D-Note | I8: Abzug OK | J8: E- Abzug | K8: Note | L8: D-Note | M8: Abzug OK | N8: E-Abzug | O8: Note | P8: D-Note | Q8: Abzug OK | R8: E-Abzug | S8: Note | T8: D-Note | U8: Abzug OK | V8: E-Abzug | W8: Note | X8: D-Note | Y8: Abzug OK | Z8: E-Abzug | AA8: Note
A9: ='Wertungszettel M2'!A7 -> Ian Sureshkumar | B9: =Formeln!A6 -> TG Oker/Salzgitter/Wenzen | C9: =IF(A9<>"",VLOOKUP(A9,'Wertungszettel M2'!A$7:B$36,2,0),"") -> 2009 | G9: =IF(AND(F9>0,F10>0),IF(OR(F9>10,F9<0,F10>10,F10<0),"Fehler",IF(ABS(D9)-ABS(E9)-(F9+F10)/2+10>0,IF(D9<0,-(ABS(D9)-ABS(E9)-(F9+F10)/2+10),D9-ABS(E9)-(F9+F10)/2+10),0)),0) -> 0 | K9: =IF(AND(J9>0,J10>0),IF(OR(J9>10,J9<0,J10>10,J10<0),"Fehler",IF(ABS(H9)-ABS(I9)-(J9+J10)/2+10>0,IF(H9<0,-(ABS(H9)-ABS(I9)-(J9+J10)/2+10),H9-ABS(I9)-(J9+J10)/2+10),0)),0) -> 0 | O9: =IF(AND(N9>0,N10>0),IF(OR(N9>10,N9<0,N10>10,N10<0),"Fehler",IF(ABS(L9)-ABS(M9)-(N9+N10)/2+10>0,IF(L9<0,-(ABS(L9)-ABS(M9)-(N9+N10)/2+10),L9-ABS(M9)-(N9+N10)/2+10),0)),0) -> 0 | S9: =IF(AND(R9>0,R10>0),IF(OR(R9>10,R9<0,R10>10,R10<0),"Fehler",IF(ABS(P9)-ABS(Q9)-(R9+R10)/2+10>0,IF(P9<0,-(ABS(P9)-ABS(Q9)-(R9+R10)/2+10),P9-ABS(Q9)-(R9+R10)/2+10),0)),0) -> 0 | W9: =IF(AND(V9>0,V10>0),IF(OR(V9>10,V9<0,V10>10,V10<0),"Fehler",IF(ABS(T9)-ABS(U9)-(V9+V10)/2+10>0,IF(T9<0,-(ABS(T9)-ABS(U9)-(V9+V10)/2+10),T9-ABS(U9)-(V9+V10)/2+10),0)),0) -> 0 | AA9: =IF(AND(Z9>0,Z10>0),IF(OR(Z9>10,Z9<0,Z10>10,Z10<0),"Fehler",IF(ABS(X9)-ABS(Y9)-(Z9+Z10)/2+10>0,IF(X9<0,-(ABS(X9)-ABS(Y9)-(Z9+Z10)/2+10),X9-ABS(Y9)-(Z9+Z10)/2+10),0)),0) -> 0 | AB9: =ABS(G9)+ABS(K9)+ABS(O9)+ABS(S9)+ABS(W9)+ABS(AA9) -> 0
A11: ='Wertungszettel M2'!A9 -> Rayan Hijazi | B11: =IF(A11>0,B9,"") -> TG Oker/Salzgitter/Wenzen | C11: =IF(A11<>"",VLOOKUP(A11,'Wertungszettel M2'!A$7:B$36,2,0),"") -> 2009 | G11: =IF(AND(F11>0,F12>0),IF(OR(F11>10,F11<0,F12>10,F12<0),"Fehler",IF(ABS(D11)-ABS(E11)-(F11+F12)/2+10>0,IF(D11<0,-(ABS(D11)-ABS(E11)-(F11+F12)/2+10),D11-ABS(E11)-(F11+F12)/2+10),0)),0) -> 0 | K11: =IF(AND(J11>0,J12>0),IF(OR(J11>10,J11<0,J12>10,J12<0),"Fehler",IF(ABS(H11)-ABS(I11)-(J11+J12)/2+10>0,IF(H11<0,-(ABS(H11)-ABS(I11)-(J11+J12)/2+10),H11-ABS(I11)-(J11+J12)/2+10),0)),0) -> 0 | O11: =IF(AND(N11>0,N12>0),IF(OR(N11>10,N11<0,N12>10,N12<0),"Fehler",IF(ABS(L11)-ABS(M11)-(N11+N12)/2+10>0,IF(L11<0,-(ABS(L11)-ABS(M11)-(N11+N12)/2+10),L11-ABS(M11)-(N11+N12)/2+10),0)),0) -> 0 | S11: =IF(AND(R11>0,R12>0),IF(OR(R11>10,R11<0,R12>10,R12<0),"Fehler",IF(ABS(P11)-ABS(Q11)-(R11+R12)/2+10>0,IF(P11<0,-(ABS(P11)-ABS(Q11)-(R11+R12)/2+10),P11-ABS(Q11)-(R11+R12)/2+10),0)),0) -> 0 | W11: =IF(AND(V11>0,V12>0),IF(OR(V11>10,V11<0,V12>10,V12<0),"Fehler",IF(ABS(T11)-ABS(U11)-(V11+V12)/2+10>0,IF(T11<0,-(ABS(T11)-ABS(U11)-(V11+V12)/2+10),T11-ABS(U11)-(V11+V12)/2+10),0)),0) -> 0 | AA11: =IF(AND(Z11>0,Z12>0),IF(OR(Z11>10,Z11<0,Z12>10,Z12<0),"Fehler",IF(ABS(X11)-ABS(Y11)-(Z11+Z12)/2+10>0,IF(X11<0,-(ABS(X11)-ABS(Y11)-(Z11+Z12)/2+10),X11-ABS(Y11)-(Z11+Z12)/2+10),0)),0) -> 0 | AB11: =ABS(G11)+ABS(K11)+ABS(O11)+ABS(S11)+ABS(W11)+ABS(AA11) -> 0 | AF11: Boden | AG11: =IF(G40>1,1,0) -> 1
AF12: pauschenpferd | AG12: =IF(K40>1,1,0) -> 1
A13: ='Wertungszettel M2'!A11 -> Emmanuel König | B13: =IF(A13>0,B11,"") -> TG Oker/Salzgitter/Wenzen | C13: =IF(A13<>"",VLOOKUP(A13,'Wertungszettel M2'!A$7:B$36,2,0),"") -> 2012 | D13: 7 | F13: 1.5 | G13: =IF(AND(F13>0,F14>0),IF(OR(F13>10,F13<0,F14>10,F14<0),"Fehler",IF(ABS(D13)-ABS(E13)-(F13+F14)/2+10>0,IF(D13<0,-(ABS(D13)-ABS(E13)-(F13+F14)/2+10),D13-ABS(E13)-(F13+F14)/2+10),0)),0) -> 15.5 | H13: 7 | J13: 2.6 | K13: =IF(AND(J13>0,J14>0),IF(OR(J13>10,J13<0,J14>10,J14<0),"Fehler",IF(ABS(H13)-ABS(I13)-(J13+J14)/2+10>0,IF(H13<0,-(ABS(H13)-ABS(I13)-(J13+J14)/2+10),H13-ABS(I13)-(J13+J14)/2+10),0)),0) -> 14.4 | L13: 7 | N13: 0.4 | O13: =IF(AND(N13>0,N14>0),IF(OR(N13>10,N13<0,N14>10,N14<0),"Fehler",IF(ABS(L13)-ABS(M13)-(N13+N14)/2+10>0,IF(L13<0,-(ABS(L13)-ABS(M13)-(N13+N14)/2+10),L13-ABS(M13)-(N13+N14)/2+10),0)),0) -> 16.6 | P13: 8 | R13: 1 | S13: =IF(AND(R13>0,R14>0),IF(OR(R13>10,R13<0,R14>10,R14<0),"Fehler",IF(ABS(P13)-ABS(Q13)-(R13+R14)/2+10>0,IF(P13<0,-(ABS(P13)-ABS(Q13)-(R13+R14)/2+10),P13-ABS(Q13)-(R13+R14)/2+10),0)),0) -> 17 | T13: 7 | V13: 0.8 | W13: =IF(AND(V13>0,V14>0),IF(OR(V13>10,V13<0,V14>10,V14<0),"Fehler",IF(ABS(T13)-ABS(U13)-(V13+V14)/2+10>0,IF(T13<0,-(ABS(T13)-ABS(U13)-(V13+V14)/2+10),T13-ABS(U13)-(V13+V14)/2+10),0)),0) -> 16.2 | X13: 8 | Z13: 2.8 | AA13: =IF(AND(Z13>0,Z14>0),IF(OR(Z13>10,Z13<0,Z14>10,Z14<0),"Fehler",IF(ABS(X13)-ABS(Y13)-(Z13+Z14)/2+10>0,IF(X13<0,-(ABS(X13)-ABS(Y13)-(Z13+Z14)/2+10),X13-ABS(Y13)-(Z13+Z14)/2+10),0)),0) -> 15.35 | AB13: =ABS(G13)+ABS(K13)+ABS(O13)+ABS(S13)+ABS(W13)+ABS(AA13) -> 95.05 | AF13: ringe | AG13: =IF(O40>1,1,0) -> 1
F14: 1.5 | J14: 2.6 | N14: 0.4 | R14: 1 | V14: 0.8 | Z14: 2.5 | AF14: sprung | AG14: =IF(S40>1,1,0) -> 1
A15: ='Wertungszettel M2'!A13 -> Linus Ankert | B15: =IF(A15>0,B13,"") -> TG Oker/Salzgitter/Wenzen | C15: =IF(A15<>"",VLOOKUP(A15,'Wertungszettel M2'!A$7:B$36,2,0),"") -> 2009 | D15: 5 | F15: 4.5 | G15: =IF(AND(F15>0,F16>0),IF(OR(F15>10,F15<0,F16>10,F16<0),"Fehler",IF(ABS(D15)-ABS(E15)-(F15+F16)/2+10>0,IF(D15<0,-(ABS(D15)-ABS(E15)-(F15+F16)/2+10),D15-ABS(E15)-(F15+F16)/2+10),0)),0) -> 10.9 | H15: 4 | J15: 2.4 | K15: =IF(AND(J15>0,J16>0),IF(OR(J15>10,J15<0,J16>10,J16<0),"Fehler",IF(ABS(H15)-ABS(I15)-(J15+J16)/2+10>0,IF(H15<0,-(ABS(H15)-ABS(I15)-(J15+J16)/2+10),H15-ABS(I15)-(J15+J16)/2+10),0)),0) -> 11.6 | L15: 5 | N15: 3.2 | O15: =IF(AND(N15>0,N16>0),IF(OR(N15>10,N15<0,N16>10,N16<0),"Fehler",IF(ABS(L15)-ABS(M15)-(N15+N16)/2+10>0,IF(L15<0,-(ABS(L15)-ABS(M15)-(N15+N16)/2+10),L15-ABS(M15)-(N15+N16)/2+10),0)),0) -> 11.8 | P15: 5 | R15: 1.1 | S15: =IF(AND(R15>0,R16>0),IF(OR(R15>10,R15<0,R16>10,R16<0),"Fehler",IF(ABS(P15)-ABS(Q15)-(R15+R16)/2+10>0,IF(P15<0,-(ABS(P15)-ABS(Q15)-(R15+R16)/2+10),P15-ABS(Q15)-(R15+R16)/2+10),0)),0) -> 13.9 | T15: 7 | U15: 2 | V15: 2.4 | W15: =IF(AND(V15>0,V16>0),IF(OR(V15>10,V15<0,V16>10,V16<0),"Fehler",IF(ABS(T15)-ABS(U15)-(V15+V16)/2+10>0,IF(T15<0,-(ABS(T15)-ABS(U15)-(V15+V16)/2+10),T15-ABS(U15)-(V15+V16)/2+10),0)),0) -> 12.6 | X15: 5 | Z15: 2 | AA15: =IF(AND(Z15>0,Z16>0),IF(OR(Z15>10,Z15<0,Z16>10,Z16<0),"Fehler",IF(ABS(X15)-ABS(Y15)-(Z15+Z16)/2+10>0,IF(X15<0,-(ABS(X15)-ABS(Y15)-(Z15+Z16)/2+10),X15-ABS(Y15)-(Z15+Z16)/2+10),0)),0) -> 12.8 | AB15: =ABS(G15)+ABS(K15)+ABS(O15)+ABS(S15)+ABS(W15)+ABS(AA15) -> 73.6 | AF15: Barren | AG15: =IF(W40>1,1,0) -> 1
F16: 3.7 | J16: 2.4 | N16: 3.2 | R16: 1.1 | V16: 2.4 | Z16: 2.4 | AF16: Reck | AG16: =IF(AA40>1,1,0) -> 1
A17: ='Wertungszettel M2'!A15 -> Erik Pohler | B17: =IF(A17>0,B15,"") -> TG Oker/Salzgitter/Wenzen | C17: =IF(A17<>"",VLOOKUP(A17,'Wertungszettel M2'!A$7:B$36,2,0),"") -> 2010 | D17: 5 | F17: 3.5 | G17: =IF(AND(F17>0,F18>0),IF(OR(F17>10,F17<0,F18>10,F18<0),"Fehler",IF(ABS(D17)-ABS(E17)-(F17+F18)/2+10>0,IF(D17<0,-(ABS(D17)-ABS(E17)-(F17+F18)/2+10),D17-ABS(E17)-(F17+F18)/2+10),0)),0) -> 11.4 | H17: 7 | J17: 2.2 | K17: =IF(AND(J17>0,J18>0),IF(OR(J17>10,J17<0,J18>10,J18<0),"Fehler",IF(ABS(H17)-ABS(I17)-(J17+J18)/2+10>0,IF(H17<0,-(ABS(H17)-ABS(I17)-(J17+J18)/2+10),H17-ABS(I17)-(J17+J18)/2+10),0)),0) -> 14.8 | L17: 5 | N17: 1.6 | O17: =IF(AND(N17>0,N18>0),IF(OR(N17>10,N17<0,N18>10,N18<0),"Fehler",IF(ABS(L17)-ABS(M17)-(N17+N18)/2+10>0,IF(L17<0,-(ABS(L17)-ABS(M17)-(N17+N18)/2+10),L17-ABS(M17)-(N17+N18)/2+10),0)),0) -> 13.4 | P17: 5 | R17: 1.5 | S17: =IF(AND(R17>0,R18>0),IF(OR(R17>10,R17<0,R18>10,R18<0),"Fehler",IF(ABS(P17)-ABS(Q17)-(R17+R18)/2+10>0,IF(P17<0,-(ABS(P17)-ABS(Q17)-(R17+R18)/2+10),P17-ABS(Q17)-(R17+R18)/2+10),0)),0) -> 13.5 | T17: 7 | V17: 1.2 | W17: =IF(AND(V17>0,V18>0),IF(OR(V17>10,V17<0,V18>10,V18<0),"Fehler",IF(ABS(T17)-ABS(U17)-(V17+V18)/2+10>0,IF(T17<0,-(ABS(T17)-ABS(U17)-(V17+V18)/2+10),T17-ABS(U17)-(V17+V18)/2+10),0)),0) -> 15.9 | X17: 5 | Z17: 1.2 | AA17: =IF(AND(Z17>0,Z18>0),IF(OR(Z17>10,Z17<0,Z18>10,Z18<0),"Fehler",IF(ABS(X17)-ABS(Y17)-(Z17+Z18)/2+10>0,IF(X17<0,-(ABS(X17)-ABS(Y17)-(Z17+Z18)/2+10),X17-ABS(Y17)-(Z17+Z18)/2+10),0)),0) -> 13.9 | AB17: =ABS(G17)+ABS(K17)+ABS(O17)+ABS(S17)+ABS(W17)+ABS(AA17) -> 82.9
F18: 3.7 | J18: 2.2 | N18: 1.6 | R18: 1.5 | V18: 1 | Z18: 1 | AF18: Gesamt | AG18: =SUM(AG11:AG17) -> 6
A19: ='Wertungszettel M2'!A17 -> Mattis Westermann | B19: =IF(A19>0,B17,"") -> TG Oker/Salzgitter/Wenzen | C19: =IF(A19<>"",VLOOKUP(A19,'Wertungszettel M2'!A$7:B$36,2,0),"") -> 2010 | G19: =IF(AND(F19>0,F20>0),IF(OR(F19>10,F19<0,F20>10,F20<0),"Fehler",IF(ABS(D19)-ABS(E19)-(F19+F20)/2+10>0,IF(D19<0,-(ABS(D19)-ABS(E19)-(F19+F20)/2+10),D19-ABS(E19)-(F19+F20)/2+10),0)),0) -> 0 | K19: =IF(AND(J19>0,J20>0),IF(OR(J19>10,J19<0,J20>10,J20<0),"Fehler",IF(ABS(H19)-ABS(I19)-(J19+J20)/2+10>0,IF(H19<0,-(ABS(H19)-ABS(I19)-(J19+J20)/2+10),H19-ABS(I19)-(J19+J20)/2+10),0)),0) -> 0 | O19: =IF(AND(N19>0,N20>0),IF(OR(N19>10,N19<0,N20>10,N20<0),"Fehler",IF(ABS(L19)-ABS(M19)-(N19+N20)/2+10>0,IF(L19<0,-(ABS(L19)-ABS(M19)-(N19+N20)/2+10),L19-ABS(M19)-(N19+N20)/2+10),0)),0) -> 0 | S19: =IF(AND(R19>0,R20>0),IF(OR(R19>10,R19<0,R20>10,R20<0),"Fehler",IF(ABS(P19)-ABS(Q19)-(R19+R20)/2+10>0,IF(P19<0,-(ABS(P19)-ABS(Q19)-(R19+R20)/2+10),P19-ABS(Q19)-(R19+R20)/2+10),0)),0) -> 0 | W19: =IF(AND(V19>0,V20>0),IF(OR(V19>10,V19<0,V20>10,V20<0),"Fehler",IF(ABS(T19)-ABS(U19)-(V19+V20)/2+10>0,IF(T19<0,-(ABS(T19)-ABS(U19)-(V19+V20)/2+10),T19-ABS(U19)-(V19+V20)/2+10),0)),0) -> 0 | AA19: =IF(AND(Z19>0,Z20>0),IF(OR(Z19>10,Z19<0,Z20>10,Z20<0),"Fehler",IF(ABS(X19)-ABS(Y19)-(Z19+Z20)/2+10>0,IF(X19<0,-(ABS(X19)-ABS(Y19)-(Z19+Z20)/2+10),X19-ABS(Y19)-(Z19+Z20)/2+10),0)),0) -> 0 | AB19: =ABS(G19)+ABS(K19)+ABS(O19)+ABS(S19)+ABS(W19)+ABS(AA19) -> 0
A21: ='Wertungszettel M2'!A19 -> Felix Neuhoff | B21: =IF(A21>0,B19,"") -> TG Oker/Salzgitter/Wenzen | C21: =IF(A21<>"",VLOOKUP(A21,'Wertungszettel M2'!A$7:B$36,2,0),"") -> 2011 | G21: =IF(AND(F21>0,F22>0),IF(OR(F21>10,F21<0,F22>10,F22<0),"Fehler",IF(ABS(D21)-ABS(E21)-(F21+F22)/2+10>0,IF(D21<0,-(ABS(D21)-ABS(E21)-(F21+F22)/2+10),D21-ABS(E21)-(F21+F22)/2+10),0)),0) -> 0 | K21: =IF(AND(J21>0,J22>0),IF(OR(J21>10,J21<0,J22>10,J22<0),"Fehler",IF(ABS(H21)-ABS(I21)-(J21+J22)/2+10>0,IF(H21<0,-(ABS(H21)-ABS(I21)-(J21+J22)/2+10),H21-ABS(I21)-(J21+J22)/2+10),0)),0) -> 0 | O21: =IF(AND(N21>0,N22>0),IF(OR(N21>10,N21<0,N22>10,N22<0),"Fehler",IF(ABS(L21)-ABS(M21)-(N21+N22)/2+10>0,IF(L21<0,-(ABS(L21)-ABS(M21)-(N21+N22)/2+10),L21-ABS(M21)-(N21+N22)/2+10),0)),0) -> 0 | S21: =IF(AND(R21>0,R22>0),IF(OR(R21>10,R21<0,R22>10,R22<0),"Fehler",IF(ABS(P21)-ABS(Q21)-(R21+R22)/2+10>0,IF(P21<0,-(ABS(P21)-ABS(Q21)-(R21+R22)/2+10),P21-ABS(Q21)-(R21+R22)/2+10),0)),0) -> 0 | W21: =IF(AND(V21>0,V22>0),IF(OR(V21>10,V21<0,V22>10,V22<0),"Fehler",IF(ABS(T21)-ABS(U21)-(V21+V22)/2+10>0,IF(T21<0,-(ABS(T21)-ABS(U21)-(V21+V22)/2+10),T21-ABS(U21)-(V21+V22)/2+10),0)),0) -> 0 | AA21: =IF(AND(Z21>0,Z22>0),IF(OR(Z21>10,Z21<0,Z22>10,Z22<0),"Fehler",IF(ABS(X21)-ABS(Y21)-(Z21+Z22)/2+10>0,IF(X21<0,-(ABS(X21)-ABS(Y21)-(Z21+Z22)/2+10),X21-ABS(Y21)-(Z21+Z22)/2+10),0)),0) -> 0 | AB21: =ABS(G21)+ABS(K21)+ABS(O21)+ABS(S21)+ABS(W21)+ABS(AA21) -> 0
A23: ='Wertungszettel M2'!A21 -> frei 8 | B23: =IF(A23>0,B21,"") -> TG Oker/Salzgitter/Wenzen | C23: =IF(A23<>"",VLOOKUP(A23,'Wertungszettel M2'!A$7:B$36,2,0),"") -> 0 | G23: =IF(AND(F23>0,F24>0),IF(OR(F23>10,F23<0,F24>10,F24<0),"Fehler",IF(ABS(D23)-ABS(E23)-(F23+F24)/2+10>0,IF(D23<0,-(ABS(D23)-ABS(E23)-(F23+F24)/2+10),D23-ABS(E23)-(F23+F24)/2+10),0)),0) -> 0 | K23: =IF(AND(J23>0,J24>0),IF(OR(J23>10,J23<0,J24>10,J24<0),"Fehler",IF(ABS(H23)-ABS(I23)-(J23+J24)/2+10>0,IF(H23<0,-(ABS(H23)-ABS(I23)-(J23+J24)/2+10),H23-ABS(I23)-(J23+J24)/2+10),0)),0) -> 0 | O23: =IF(AND(N23>0,N24>0),IF(OR(N23>10,N23<0,N24>10,N24<0),"Fehler",IF(ABS(L23)-ABS(M23)-(N23+N24)/2+10>0,IF(L23<0,-(ABS(L23)-ABS(M23)-(N23+N24)/2+10),L23-ABS(M23)-(N23+N24)/2+10),0)),0) -> 0 | S23: =IF(AND(R23>0,R24>0),IF(OR(R23>10,R23<0,R24>10,R24<0),"Fehler",IF(ABS(P23)-ABS(Q23)-(R23+R24)/2+10>0,IF(P23<0,-(ABS(P23)-ABS(Q23)-(R23+R24)/2+10),P23-ABS(Q23)-(R23+R24)/2+10),0)),0) -> 0 | W23: =IF(AND(V23>0,V24>0),IF(OR(V23>10,V23<0,V24>10,V24<0),"Fehler",IF(ABS(T23)-ABS(U23)-(V23+V24)/2+10>0,IF(T23<0,-(ABS(T23)-ABS(U23)-(V23+V24)/2+10),T23-ABS(U23)-(V23+V24)/2+10),0)),0) -> 0 | AA23: =IF(AND(Z23>0,Z24>0),IF(OR(Z23>10,Z23<0,Z24>10,Z24<0),"Fehler",IF(ABS(X23)-ABS(Y23)-(Z23+Z24)/2+10>0,IF(X23<0,-(ABS(X23)-ABS(Y23)-(Z23+Z24)/2+10),X23-ABS(Y23)-(Z23+Z24)/2+10),0)),0) -> 0 | AB23: =ABS(G23)+ABS(K23)+ABS(O23)+ABS(S23)+ABS(W23)+ABS(AA23) -> 0
A25: ='Wertungszettel M2'!A23 -> frei 9 | B25: =IF(A25>0,B23,"") -> TG Oker/Salzgitter/Wenzen | C25: =IF(A25<>"",VLOOKUP(A25,'Wertungszettel M2'!A$7:B$36,2,0),"") -> 0 | G25: =IF(AND(F25>0,F26>0),IF(OR(F25>10,F25<0,F26>10,F26<0),"Fehler",IF(ABS(D25)-ABS(E25)-(F25+F26)/2+10>0,IF(D25<0,-(ABS(D25)-ABS(E25)-(F25+F26)/2+10),D25-ABS(E25)-(F25+F26)/2+10),0)),0) -> 0 | K25: =IF(AND(J25>0,J26>0),IF(OR(J25>10,J25<0,J26>10,J26<0),"Fehler",IF(ABS(H25)-ABS(I25)-(J25+J26)/2+10>0,IF(H25<0,-(ABS(H25)-ABS(I25)-(J25+J26)/2+10),H25-ABS(I25)-(J25+J26)/2+10),0)),0) -> 0 | O25: =IF(AND(N25>0,N26>0),IF(OR(N25>10,N25<0,N26>10,N26<0),"Fehler",IF(ABS(L25)-ABS(M25)-(N25+N26)/2+10>0,IF(L25<0,-(ABS(L25)-ABS(M25)-(N25+N26)/2+10),L25-ABS(M25)-(N25+N26)/2+10),0)),0) -> 0 | S25: =IF(AND(R25>0,R26>0),IF(OR(R25>10,R25<0,R26>10,R26<0),"Fehler",IF(ABS(P25)-ABS(Q25)-(R25+R26)/2+10>0,IF(P25<0,-(ABS(P25)-ABS(Q25)-(R25+R26)/2+10),P25-ABS(Q25)-(R25+R26)/2+10),0)),0) -> 0 | W25: =IF(AND(V25>0,V26>0),IF(OR(V25>10,V25<0,V26>10,V26<0),"Fehler",IF(ABS(T25)-ABS(U25)-(V25+V26)/2+10>0,IF(T25<0,-(ABS(T25)-ABS(U25)-(V25+V26)/2+10),T25-ABS(U25)-(V25+V26)/2+10),0)),0) -> 0 | AA25: =IF(AND(Z25>0,Z26>0),IF(OR(Z25>10,Z25<0,Z26>10,Z26<0),"Fehler",IF(ABS(X25)-ABS(Y25)-(Z25+Z26)/2+10>0,IF(X25<0,-(ABS(X25)-ABS(Y25)-(Z25+Z26)/2+10),X25-ABS(Y25)-(Z25+Z26)/2+10),0)),0) -> 0 | AB25: =ABS(G25)+ABS(K25)+ABS(O25)+ABS(S25)+ABS(W25)+ABS(AA25) -> 0
A27: ='Wertungszettel M2'!A25 -> frei 10 | B27: =IF(A27>0,B25,"") -> TG Oker/Salzgitter/Wenzen | C27: =IF(A27<>"",VLOOKUP(A27,'Wertungszettel M2'!A$7:B$36,2,0),"") -> 0 | G27: =IF(AND(F27>0,F28>0),IF(OR(F27>10,F27<0,F28>10,F28<0),"Fehler",IF(ABS(D27)-ABS(E27)-(F27+F28)/2+10>0,IF(D27<0,-(ABS(D27)-ABS(E27)-(F27+F28)/2+10),D27-ABS(E27)-(F27+F28)/2+10),0)),0) -> 0 | K27: =IF(AND(J27>0,J28>0),IF(OR(J27>10,J27<0,J28>10,J28<0),"Fehler",IF(ABS(H27)-ABS(I27)-(J27+J28)/2+10>0,IF(H27<0,-(ABS(H27)-ABS(I27)-(J27+J28)/2+10),H27-ABS(I27)-(J27+J28)/2+10),0)),0) -> 0 | O27: =IF(AND(N27>0,N28>0),IF(OR(N27>10,N27<0,N28>10,N28<0),"Fehler",IF(ABS(L27)-ABS(M27)-(N27+N28)/2+10>0,IF(L27<0,-(ABS(L27)-ABS(M27)-(N27+N28)/2+10),L27-ABS(M27)-(N27+N28)/2+10),0)),0) -> 0 | S27: =IF(AND(R27>0,R28>0),IF(OR(R27>10,R27<0,R28>10,R28<0),"Fehler",IF(ABS(P27)-ABS(Q27)-(R27+R28)/2+10>0,IF(P27<0,-(ABS(P27)-ABS(Q27)-(R27+R28)/2+10),P27-ABS(Q27)-(R27+R28)/2+10),0)),0) -> 0 | W27: =IF(AND(V27>0,V28>0),IF(OR(V27>10,V27<0,V28>10,V28<0),"Fehler",IF(ABS(T27)-ABS(U27)-(V27+V28)/2+10>0,IF(T27<0,-(ABS(T27)-ABS(U27)-(V27+V28)/2+10),T27-ABS(U27)-(V27+V28)/2+10),0)),0) -> 0 | AA27: =IF(AND(Z27>0,Z28>0),IF(OR(Z27>10,Z27<0,Z28>10,Z28<0),"Fehler",IF(ABS(X27)-ABS(Y27)-(Z27+Z28)/2+10>0,IF(X27<0,-(ABS(X27)-ABS(Y27)-(Z27+Z28)/2+10),X27-ABS(Y27)-(Z27+Z28)/2+10),0)),0) -> 0 | AB27: =ABS(G27)+ABS(K27)+ABS(O27)+ABS(S27)+ABS(W27)+ABS(AA27) -> 0
A29: ='Wertungszettel M2'!A27 -> frei 11 | B29: =IF(A29>0,B27,"") -> TG Oker/Salzgitter/Wenzen | C29: =IF(A29<>"",VLOOKUP(A29,'Wertungszettel M2'!A$7:B$36,2,0),"") -> 0 | G29: =IF(AND(F29>0,F30>0),IF(OR(F29>10,F29<0,F30>10,F30<0),"Fehler",IF(ABS(D30)-ABS(E30)-(F29+F30)/2+10>0,IF(D30<0,-(ABS(D30)-ABS(E30)-(F29+F30)/2+10),D29-ABS(E29)-(F29+F30)/2+10),0)),0) -> 0 | K29: =IF(AND(J29>0,J30>0),IF(OR(J29>10,J29<0,J30>10,J30<0),"Fehler",IF(ABS(H30)-ABS(I30)-(J29+J30)/2+10>0,IF(H30<0,-(ABS(H30)-ABS(I30)-(J29+J30)/2+10),H29-ABS(I29)-(J29+J30)/2+10),0)),0) -> 0 | O29: =IF(AND(N29>0,N30>0),IF(OR(N29>10,N29<0,N30>10,N30<0),"Fehler",IF(ABS(L30)-ABS(M30)-(N29+N30)/2+10>0,IF(L30<0,-(ABS(L30)-ABS(M30)-(N29+N30)/2+10),L29-ABS(M29)-(N29+N30)/2+10),0)),0) -> 0 | S29: =IF(AND(R29>0,R30>0),IF(OR(R29>10,R29<0,R30>10,R30<0),"Fehler",IF(ABS(P30)-ABS(Q30)-(R29+R30)/2+10>0,IF(P30<0,-(ABS(P30)-ABS(Q30)-(R29+R30)/2+10),P29-ABS(Q29)-(R29+R30)/2+10),0)),0) -> 0 | W29: =IF(AND(V29>0,V30>0),IF(OR(V29>10,V29<0,V30>10,V30<0),"Fehler",IF(ABS(T30)-ABS(U30)-(V29+V30)/2+10>0,IF(T30<0,-(ABS(T30)-ABS(U30)-(V29+V30)/2+10),T29-ABS(U29)-(V29+V30)/2+10),0)),0) -> 0 | AA29: =IF(AND(Z29>0,Z30>0),IF(OR(Z29>10,Z29<0,Z30>10,Z30<0),"Fehler",IF(ABS(X30)-ABS(Y30)-(Z29+Z30)/2+10>0,IF(X30<0,-(ABS(X30)-ABS(Y30)-(Z29+Z30)/2+10),X29-ABS(Y29)-(Z29+Z30)/2+10),0)),0) -> 0 | AB29: =ABS(G29)+ABS(K29)+ABS(O29)+ABS(S29)+ABS(W29)+ABS(AA29) -> 0
A31: ='Wertungszettel M2'!A29 -> frei 12 | B31: =IF(A31>0,B29,"") -> TG Oker/Salzgitter/Wenzen | C31: =IF(A31<>"",VLOOKUP(A31,'Wertungszettel M2'!A$7:B$36,2,0),"") -> 0 | G31: =IF(AND(F31>0,F32>0),IF(OR(F31>10,F31<0,F32>10,F32<0),"Fehler",IF(ABS(D32)-ABS(E32)-(F31+F32)/2+10>0,IF(D32<0,-(ABS(D32)-ABS(E32)-(F31+F32)/2+10),D31-ABS(E31)-(F31+F32)/2+10),0)),0) -> 0 | K31: =IF(AND(J31>0,J32>0),IF(OR(J31>10,J31<0,J32>10,J32<0),"Fehler",IF(ABS(H32)-ABS(I32)-(J31+J32)/2+10>0,IF(H32<0,-(ABS(H32)-ABS(I32)-(J31+J32)/2+10),H31-ABS(I31)-(J31+J32)/2+10),0)),0) -> 0 | O31: =IF(AND(N31>0,N32>0),IF(OR(N31>10,N31<0,N32>10,N32<0),"Fehler",IF(ABS(L32)-ABS(M32)-(N31+N32)/2+10>0,IF(L32<0,-(ABS(L32)-ABS(M32)-(N31+N32)/2+10),L31-ABS(M31)-(N31+N32)/2+10),0)),0) -> 0 | S31: =IF(AND(R31>0,R32>0),IF(OR(R31>10,R31<0,R32>10,R32<0),"Fehler",IF(ABS(P32)-ABS(Q32)-(R31+R32)/2+10>0,IF(P32<0,-(ABS(P32)-ABS(Q32)-(R31+R32)/2+10),P31-ABS(Q31)-(R31+R32)/2+10),0)),0) -> 0 | W31: =IF(AND(V31>0,V32>0),IF(OR(V31>10,V31<0,V32>10,V32<0),"Fehler",IF(ABS(T32)-ABS(U32)-(V31+V32)/2+10>0,IF(T32<0,-(ABS(T32)-ABS(U32)-(V31+V32)/2+10),T31-ABS(U31)-(V31+V32)/2+10),0)),0) -> 0 | AA31: =IF(AND(Z31>0,Z32>0),IF(OR(Z31>10,Z31<0,Z32>10,Z32<0),"Fehler",IF(ABS(X32)-ABS(Y32)-(Z31+Z32)/2+10>0,IF(X32<0,-(ABS(X32)-ABS(Y32)-(Z31+Z32)/2+10),X31-ABS(Y31)-(Z31+Z32)/2+10),0)),0) -> 0 | AB31: =ABS(G31)+ABS(K31)+ABS(O31)+ABS(S31)+ABS(W31)+ABS(AA31) -> 0
A33: ='Wertungszettel M2'!A31 -> frei 13 | B33: =IF(A33>0,B31,"") -> TG Oker/Salzgitter/Wenzen | C33: =IF(A33<>"",VLOOKUP(A33,'Wertungszettel M2'!A$7:B$36,2,0),"") -> 0 | G33: =IF(AND(F33>0,F34>0),IF(OR(F33>10,F33<0,F34>10,F34<0),"Fehler",IF(ABS(D34)-ABS(E34)-(F33+F34)/2+10>0,IF(D34<0,-(ABS(D34)-ABS(E34)-(F33+F34)/2+10),D33-ABS(E33)-(F33+F34)/2+10),0)),0) -> 0 | K33: =IF(AND(J33>0,J34>0),IF(OR(J33>10,J33<0,J34>10,J34<0),"Fehler",IF(ABS(H34)-ABS(I34)-(J33+J34)/2+10>0,IF(H34<0,-(ABS(H34)-ABS(I34)-(J33+J34)/2+10),H33-ABS(I33)-(J33+J34)/2+10),0)),0) -> 0 | O33: =IF(AND(N33>0,N34>0),IF(OR(N33>10,N33<0,N34>10,N34<0),"Fehler",IF(ABS(L34)-ABS(M34)-(N33+N34)/2+10>0,IF(L34<0,-(ABS(L34)-ABS(M34)-(N33+N34)/2+10),L33-ABS(M33)-(N33+N34)/2+10),0)),0) -> 0 | S33: =IF(AND(R33>0,R34>0),IF(OR(R33>10,R33<0,R34>10,R34<0),"Fehler",IF(ABS(P34)-ABS(Q34)-(R33+R34)/2+10>0,IF(P34<0,-(ABS(P34)-ABS(Q34)-(R33+R34)/2+10),P33-ABS(Q33)-(R33+R34)/2+10),0)),0) -> 0 | W33: =IF(AND(V33>0,V34>0),IF(OR(V33>10,V33<0,V34>10,V34<0),"Fehler",IF(ABS(T34)-ABS(U34)-(V33+V34)/2+10>0,IF(T34<0,-(ABS(T34)-ABS(U34)-(V33+V34)/2+10),T33-ABS(U33)-(V33+V34)/2+10),0)),0) -> 0 | AA33: =IF(AND(Z33>0,Z34>0),IF(OR(Z33>10,Z33<0,Z34>10,Z34<0),"Fehler",IF(ABS(X34)-ABS(Y34)-(Z33+Z34)/2+10>0,IF(X34<0,-(ABS(X34)-ABS(Y34)-(Z33+Z34)/2+10),X33-ABS(Y33)-(Z33+Z34)/2+10),0)),0) -> 0 | AB33: =ABS(G33)+ABS(K33)+ABS(O33)+ABS(S33)+ABS(W33)+ABS(AA33) -> 0
A35: ='Wertungszettel M2'!A33 -> frei 14 | B35: =IF(A35>0,B33,"") -> TG Oker/Salzgitter/Wenzen | C35: =IF(A35<>"",VLOOKUP(A35,'Wertungszettel M2'!A$7:B$36,2,0),"") -> 0 | G35: =IF(AND(F35>0,F36>0),IF(OR(F35>10,F35<0,F36>10,F36<0),"Fehler",IF(ABS(D36)-ABS(E36)-(F35+F36)/2+10>0,IF(D36<0,-(ABS(D36)-ABS(E36)-(F35+F36)/2+10),D35-ABS(E35)-(F35+F36)/2+10),0)),0) -> 0 | K35: =IF(AND(J35>0,J36>0),IF(OR(J35>10,J35<0,J36>10,J36<0),"Fehler",IF(ABS(H36)-ABS(I36)-(J35+J36)/2+10>0,IF(H36<0,-(ABS(H36)-ABS(I36)-(J35+J36)/2+10),H35-ABS(I35)-(J35+J36)/2+10),0)),0) -> 0 | O35: =IF(AND(N35>0,N36>0),IF(OR(N35>10,N35<0,N36>10,N36<0),"Fehler",IF(ABS(L36)-ABS(M36)-(N35+N36)/2+10>0,IF(L36<0,-(ABS(L36)-ABS(M36)-(N35+N36)/2+10),L35-ABS(M35)-(N35+N36)/2+10),0)),0) -> 0 | S35: =IF(AND(R35>0,R36>0),IF(OR(R35>10,R35<0,R36>10,R36<0),"Fehler",IF(ABS(P36)-ABS(Q36)-(R35+R36)/2+10>0,IF(P36<0,-(ABS(P36)-ABS(Q36)-(R35+R36)/2+10),P35-ABS(Q35)-(R35+R36)/2+10),0)),0) -> 0 | W35: =IF(AND(V35>0,V36>0),IF(OR(V35>10,V35<0,V36>10,V36<0),"Fehler",IF(ABS(T36)-ABS(U36)-(V35+V36)/2+10>0,IF(T36<0,-(ABS(T36)-ABS(U36)-(V35+V36)/2+10),T35-ABS(U35)-(V35+V36)/2+10),0)),0) -> 0 | AA35: =IF(AND(Z35>0,Z36>0),IF(OR(Z35>10,Z35<0,Z36>10,Z36<0),"Fehler",IF(ABS(X36)-ABS(Y36)-(Z35+Z36)/2+10>0,IF(X36<0,-(ABS(X36)-ABS(Y36)-(Z35+Z36)/2+10),X35-ABS(Y35)-(Z35+Z36)/2+10),0)),0) -> 0 | AB35: =ABS(G35)+ABS(K35)+ABS(O35)+ABS(S35)+ABS(W35)+ABS(AA35) -> 0
A37: ='Wertungszettel M2'!A35 -> frei 15 | B37: =IF(A37>0,B35,"") -> TG Oker/Salzgitter/Wenzen | C37: =IF(A37<>"",VLOOKUP(A37,'Wertungszettel M2'!A$7:B$36,2,0),"") -> 0 | G37: =IF(AND(F37>0,F38>0),IF(OR(F37>10,F37<0,F38>10,F38<0),"Fehler",IF(ABS(D38)-ABS(E38)-(F37+F38)/2+10>0,IF(D38<0,-(ABS(D38)-ABS(E38)-(F37+F38)/2+10),D37-ABS(E37)-(F37+F38)/2+10),0)),0) -> 0 | K37: =IF(AND(J37>0,J38>0),IF(OR(J37>10,J37<0,J38>10,J38<0),"Fehler",IF(ABS(H38)-ABS(I38)-(J37+J38)/2+10>0,IF(H38<0,-(ABS(H38)-ABS(I38)-(J37+J38)/2+10),H37-ABS(I37)-(J37+J38)/2+10),0)),0) -> 0 | O37: =IF(AND(N37>0,N38>0),IF(OR(N37>10,N37<0,N38>10,N38<0),"Fehler",IF(ABS(L38)-ABS(M38)-(N37+N38)/2+10>0,IF(L38<0,-(ABS(L38)-ABS(M38)-(N37+N38)/2+10),L37-ABS(M37)-(N37+N38)/2+10),0)),0) -> 0 | S37: =IF(AND(R37>0,R38>0),IF(OR(R37>10,R37<0,R38>10,R38<0),"Fehler",IF(ABS(P38)-ABS(Q38)-(R37+R38)/2+10>0,IF(P38<0,-(ABS(P38)-ABS(Q38)-(R37+R38)/2+10),P37-ABS(Q37)-(R37+R38)/2+10),0)),0) -> 0 | W37: =IF(AND(V37>0,V38>0),IF(OR(V37>10,V37<0,V38>10,V38<0),"Fehler",IF(ABS(T38)-ABS(U38)-(V37+V38)/2+10>0,IF(T38<0,-(ABS(T38)-ABS(U38)-(V37+V38)/2+10),T37-ABS(U37)-(V37+V38)/2+10),0)),0) -> 0 | AA37: =IF(AND(Z37>0,Z38>0),IF(OR(Z37>10,Z37<0,Z38>10,Z38<0),"Fehler",IF(ABS(X38)-ABS(Y38)-(Z37+Z38)/2+10>0,IF(X38<0,-(ABS(X38)-ABS(Y38)-(Z37+Z38)/2+10),X37-ABS(Y37)-(Z37+Z38)/2+10),0)),0) -> 0 | AB37: =ABS(G37)+ABS(K37)+ABS(O37)+ABS(S37)+ABS(W37)+ABS(AA37) -> 0
G40: =SUM(LARGE(G9:G38,1),LARGE(G9:G38,2),LARGE(G9:G38,3)) -> 37.8 | K40: =SUM(LARGE(K9:K38,1),LARGE(K9:K38,2),LARGE(K9:K38,3)) -> 40.8 | O40: =SUM(LARGE(O9:O38,1),LARGE(O9:O38,2),LARGE(O9:O38,3)) -> 41.8 | S40: =SUM(LARGE(S9:S38,1),LARGE(S9:S38,2),LARGE(S9:S38,3)) -> 44.4 | W40: =SUM(LARGE(W9:W38,1),LARGE(W9:W38,2),LARGE(W9:W38,3)) -> 44.7 | AA40: =SUM(LARGE(AA9:AA38,1),LARGE(AA9:AA38,2),LARGE(AA9:AA38,3)) -> 42.05 | AB40: =SUM(G40,K40,O40,S40,W40,AA40) -> 251.55

Sheet LaPeKa
A1: Wettkampfbogen | M1: Datum: | O1: ='INFO Blatt'!B13 -> 2019-02-16
M3: Ort: | O3: ='INFO Blatt'!B11 -> Hehlen
N5: Liga: | O5: ='INFO Blatt'!B7 -> Einsteigerliga
A7: Name | B7: Verein | C7: Jg | D7: Boden | H7: Pferd | L7: Ringe | P7: Sprung | T7: Barren | X7: Reck | AB7: Ges.
D8: D-Note | E8: Abzug OK | F8: E- Abzug | G8: Note | H8: D-Note | I8: Abzug OK | J8: E- Abzug | K8: Note | L8: D-Note | M8: Abzug OK | N8: E-Abzug | O8: Note | P8: D-Note | Q8: Abzug OK | R8: E-Abzug | S8: Note | T8: D-Note | U8: Abzug OK | V8: E-Abzug | W8: Note | X8: D-Note | Y8: Abzug OK | Z8: E-Abzug | AA8: Note
A9: ='Wertungszettel M3'!A7 -> Lukas Sitzenstock | B9: =Formeln!A7 -> TG LaPeKa | C9: =IF(A9<>"", VLOOKUP(A9,'Wertungszettel M3'!A$7:B$40,2,0),"") -> 0 | D9: 5 | E9: 1.5 | F9: 3 | G9: =IF(AND(F9>0,F10>0),IF(OR(F9>10,F9<0,F10>10,F10<0),"Fehler",IF(ABS(D9)-ABS(E9)-(F9+F10)/2+10>0,IF(D9<0,-(ABS(D9)-ABS(E9)-(F9+F10)/2+10),D9-ABS(E9)-(F9+F10)/2+10),0)),0) -> 10.25 | H9: 4 | J9: 4.8 | K9: =IF(AND(J9>0,J10>0),IF(OR(J9>10,J9<0,J10>10,J10<0),"Fehler",IF(ABS(H9)-ABS(I9)-(J9+J10)/2+10>0,IF(H9<0,-(ABS(H9)-ABS(I9)-(J9+J10)/2+10),H9-ABS(I9)-(J9+J10)/2+10),0)),0) -> 9.2 | L9: 4 | N9: 4.3 | O9: =IF(AND(N9>0,N10>0),IF(OR(N9>10,N9<0,N10>10,N10<0),"Fehler",IF(ABS(L9)-ABS(M9)-(N9+N10)/2+10>0,IF(L9<0,-(ABS(L9)-ABS(M9)-(N9+N10)/2+10),L9-ABS(M9)-(N9+N10)/2+10),0)),0) -> 9.7 | P9: 5 | R9: 1.7 | S9: =IF(AND(R9>0,R10>0),IF(OR(R9>10,R9<0,R10>10,R10<0),"Fehler",IF(ABS(P9)-ABS(Q9)-(R9+R10)/2+10>0,IF(P9<0,-(ABS(P9)-ABS(Q9)-(R9+R10)/2+10),P9-ABS(Q9)-(R9+R10)/2+10),0)),0) -> 13.3 | T9: 4 | V9: 2.8 | W9: =IF(AND(V9>0,V10>0),IF(OR(V9>10,V9<0,V10>10,V10<0),"Fehler",IF(ABS(T9)-ABS(U9)-(V9+V10)/2+10>0,IF(T9<0,-(ABS(T9)-ABS(U9)-(V9+V10)/2+10),T9-ABS(U9)-(V9+V10)/2+10),0)),0) -> 11.4 | X9: 3 | Z9: 2.2 | AA9: =IF(AND(Z9>0,Z10>0),IF(OR(Z9>10,Z9<0,Z10>10,Z10<0),"Fehler",IF(ABS(X9)-ABS(Y9)-(Z9+Z10)/2+10>0,IF(X9<0,-(ABS(X9)-ABS(Y9)-(Z9+Z10)/2+10),X9-ABS(Y9)-(Z9+Z10)/2+10),0)),0) -> 10.85 | AB9: =ABS(G9)+ABS(K9)+ABS(O9)+ABS(S9)+ABS(W9)+ABS(AA9) -> 64.7
F10: 3.5 | J10: 4.8 | N10: 4.3 | R10: 1.7 | V10: 2.4 | Z10: 2.1
A11: ='Wertungszettel M3'!A9 -> Til Mittag | B11: =IF(A11>0,B9,"") -> TG LaPeKa | C11: =IF(A11<>"", VLOOKUP(A11,'Wertungszettel M3'!A$7:B$40,2,0),"") -> 0 | G11: =IF(AND(F11>0,F12>0),IF(OR(F11>10,F11<0,F12>10,F12<0),"Fehler",IF(ABS(D11)-ABS(E11)-(F11+F12)/2+10>0,IF(D11<0,-(ABS(D11)-ABS(E11)-(F11+F12)/2+10),D11-ABS(E11)-(F11+F12)/2+10),0)),0) -> 0 | K11: =IF(AND(J11>0,J12>0),IF(OR(J11>10,J11<0,J12>10,J12<0),"Fehler",IF(ABS(H11)-ABS(I11)-(J11+J12)/2+10>0,IF(H11<0,-(ABS(H11)-ABS(I11)-(J11+J12)/2+10),H11-ABS(I11)-(J11+J12)/2+10),0)),0) -> 0 | O11: =IF(AND(N11>0,N12>0),IF(OR(N11>10,N11<0,N12>10,N12<0),"Fehler",IF(ABS(L11)-ABS(M11)-(N11+N12)/2+10>0,IF(L11<0,-(ABS(L11)-ABS(M11)-(N11+N12)/2+10),L11-ABS(M11)-(N11+N12)/2+10),0)),0) -> 0 | S11: =IF(AND(R11>0,R12>0),IF(OR(R11>10,R11<0,R12>10,R12<0),"Fehler",IF(ABS(P11)-ABS(Q11)-(R11+R12)/2+10>0,IF(P11<0,-(ABS(P11)-ABS(Q11)-(R11+R12)/2+10),P11-ABS(Q11)-(R11+R12)/2+10),0)),0) -> 0 | W11: =IF(AND(V11>0,V12>0),IF(OR(V11>10,V11<0,V12>10,V12<0),"Fehler",IF(ABS(T11)-ABS(U11)-(V11+V12)/2+10>0,IF(T11<0,-(ABS(T11)-ABS(U11)-(V11+V12)/2+10),T11-ABS(U11)-(V11+V12)/2+10),0)),0) -> 0 | AA11: =IF(AND(Z11>0,Z12>0),IF(OR(Z11>10,Z11<0,Z12>10,Z12<0),"Fehler",IF(ABS(X11)-ABS(Y11)-(Z11+Z12)/2+10>0,IF(X11<0,-(ABS(X11)-ABS(Y11)-(Z11+Z12)/2+10),X11-ABS(Y11)-(Z11+Z12)/2+10),0)),0) -> 0 | AB11: =ABS(G11)+ABS(K11)+ABS(O11)+ABS(S11)+ABS(W11)+ABS(AA11) -> 0 | AF11: Boden | AG11: =IF(G40>1,1,0) -> 1
AF12: pauschenpferd | AG12: =IF(K40>1,1,0) -> 1
A13: ='Wertungszettel M3'!A11 -> Maxim Borgardt | B13: =IF(A13>0,B11,"") -> TG LaPeKa | C13: =IF(A13<>"", VLOOKUP(A13,'Wertungszettel M3'!A$7:B$40,2,0),"") -> 0 | D13: 3 | E13: 1.5 | F13: 3 | G13: =IF(AND(F13>0,F14>0),IF(OR(F13>10,F13<0,F14>10,F14<0),"Fehler",IF(ABS(D13)-ABS(E13)-(F13+F14)/2+10>0,IF(D13<0,-(ABS(D13)-ABS(E13)-(F13+F14)/2+10),D13-ABS(E13)-(F13+F14)/2+10),0)),0) -> 8.5 | H13: 3 | J13: 4.4 | K13: =IF(AND(J13>0,J14>0),IF(OR(J13>10,J13<0,J14>10,J14<0),"Fehler",IF(ABS(H13)-ABS(I13)-(J13+J14)/2+10>0,IF(H13<0,-(ABS(H13)-ABS(I13)-(J13+J14)/2+10),H13-ABS(I13)-(J13+J14)/2+10),0)),0) -> 8.6 | L13: 3 | N13: 4.4 | O13: =IF(AND(N13>0,N14>0),IF(OR(N13>10,N13<0,N14>10,N14<0),"Fehler",IF(ABS(L13)-ABS(M13)-(N13+N14)/2+10>0,IF(L13<0,-(ABS(L13)-ABS(M13)-(N13+N14)/2+10),L13-ABS(M13)-(N13+N14)/2+10),0)),0) -> 8.6 | P13: 5 | R13: 2.2 | S13: =IF(AND(R13>0,R14>0),IF(OR(R13>10,R13<0,R14>10,R14<0),"Fehler",IF(ABS(P13)-ABS(Q13)-(R13+R14)/2+10>0,IF(P13<0,-(ABS(P13)-ABS(Q13)-(R13+R14)/2+10),P13-ABS(Q13)-(R13+R14)/2+10),0)),0) -> 12.9 | T13: 4 | V13: 2.9 | W13: =IF(AND(V13>0,V14>0),IF(OR(V13>10,V13<0,V14>10,V14<0),"Fehler",IF(ABS(T13)-ABS(U13)-(V13+V14)/2+10>0,IF(T13<0,-(ABS(T13)-ABS(U13)-(V13+V14)/2+10),T13-ABS(U13)-(V13+V14)/2+10),0)),0) -> 11.3 | X13: 3 | Z13: 2 | AA13: =IF(AND(Z13>0,Z14>0),IF(OR(Z13>10,Z13<0,Z14>10,Z14<0),"Fehler",IF(ABS(X13)-ABS(Y13)-(Z13+Z14)/2+10>0,IF(X13<0,-(ABS(X13)-ABS(Y13)-(Z13+Z14)/2+10),X13-ABS(Y13)-(Z13+Z14)/2+10),0)),0) -> 11.05 | AB13: =ABS(G13)+ABS(K13)+ABS(O13)+ABS(S13)+ABS(W13)+ABS(AA13) -> 60.95 | AF13: ringe | AG13: =IF(O40>1,1,0) -> 1
F14: 3 | J14: 4.4 | N14: 4.4 | R14: 2 | V14: 2.5 | Z14: 1.9 | AF14: sprung | AG14: =IF(S40>1,1,0) -> 1
A15: ='Wertungszettel M3'!A13 -> Maxim Nuss | B15: =IF(A15>0,B13,"") -> TG LaPeKa | C15: =IF(A15<>"", VLOOKUP(A15,'Wertungszettel M3'!A$7:B$40,2,0),"") -> 0 | D15: 5 | E15: 3 | F15: 2.5 | G15: =IF(AND(F15>0,F16>0),IF(OR(F15>10,F15<0,F16>10,F16<0),"Fehler",IF(ABS(D15)-ABS(E15)-(F15+F16)/2+10>0,IF(D15<0,-(ABS(D15)-ABS(E15)-(F15+F16)/2+10),D15-ABS(E15)-(F15+F16)/2+10),0)),0) -> 9.5 | H15: 3 | J15: 3.3 | K15: =IF(AND(J15>0,J16>0),IF(OR(J15>10,J15<0,J16>10,J16<0),"Fehler",IF(ABS(H15)-ABS(I15)-(J15+J16)/2+10>0,IF(H15<0,-(ABS(H15)-ABS(I15)-(J15+J16)/2+10),H15-ABS(I15)-(J15+J16)/2+10),0)),0) -> 9.7 | O15: =IF(AND(N15>0,N16>0),IF(OR(N15>10,N15<0,N16>10,N16<0),"Fehler",IF(ABS(L15)-ABS(M15)-(N15+N16)/2+10>0,IF(L15<0,-(ABS(L15)-ABS(M15)-(N15+N16)/2+10),L15-ABS(M15)-(N15+N16)/2+10),0)),0) -> 0 | P15: 5 | R15: 2.7 | S15: =IF(AND(R15>0,R16>0),IF(OR(R15>10,R15<0,R16>10,R16<0),"Fehler",IF(ABS(P15)-ABS(Q15)-(R15+R16)/2+10>0,IF(P15<0,-(ABS(P15)-ABS(Q15)-(R15+R16)/2+10),P15-ABS(Q15)-(R15+R16)/2+10),0)),0) -> 12.3 | T15: 4 | V15: 3.2 | W15: =IF(AND(V15>0,V16>0),IF(OR(V15>10,V15<0,V16>10,V16<0),"Fehler",IF(ABS(T15)-ABS(U15)-(V15+V16)/2+10>0,IF(T15<0,-(ABS(T15)-ABS(U15)-(V15+V16)/2+10),T15-ABS(U15)-(V15+V16)/2+10),0)),0) -> 10.7 | X15: 3 | Z15: 2.8 | AA15: =IF(AND(Z15>0,Z16>0),IF(OR(Z15>10,Z15<0,Z16>10,Z16<0),"Fehler",IF(ABS(X15)-ABS(Y15)-(Z15+Z16)/2+10>0,IF(X15<0,-(ABS(X15)-ABS(Y15)-(Z15+Z16)/2+10),X15-ABS(Y15)-(Z15+Z16)/2+10),0)),0) -> 10.2 | AB15: =ABS(G15)+ABS(K15)+ABS(O15)+ABS(S15)+ABS(W15)+ABS(AA15) -> 52.4 | AF15: Barren | AG15: =IF(W40>1,1,0) -> 1
F16: 2.5 | J16: 3.3 | R16: 2.7 | V16: 3.4 | Z16: 2.8 | AF16: Reck | AG16: =IF(AA40>1,1,0) -> 1
A17: ='Wertungszettel M3'!A15 -> Bennett Hasenfuß | B17: =IF(A17>0,B15,"") -> TG LaPeKa | C17: =IF(A17<>"", VLOOKUP(A17,'Wertungszettel M3'!A$7:B$40,2,0),"") -> 0 | D17: 3 | F17: 2.1 | G17: =IF(AND(F17>0,F18>0),IF(OR(F17>10,F17<0,F18>10,F18<0),"Fehler",IF(ABS(D17)-ABS(E17)-(F17+F18)/2+10>0,IF(D17<0,-(ABS(D17)-ABS(E17)-(F17+F18)/2+10),D17-ABS(E17)-(F17+F18)/2+10),0)),0) -> 10.8 | H17: 3 | J17: 2.4 | K17: =IF(AND(J17>0,J18>0),IF(OR(J17>10,J17<0,J18>10,J18<0),"Fehler",IF(ABS(H17)-ABS(I17)-(J17+J18)/2+10>0,IF(H17<0,-(ABS(H17)-ABS(I17)-(J17+J18)/2+10),H17-ABS(I17)-(J17+J18)/2+10),0)),0) -> 10.6 | L17: 4 | M17: 2.5 | N17: 4 | O17: =IF(AND(N17>0,N18>0),IF(OR(N17>10,N17<0,N18>10,N18<0),"Fehler",IF(ABS(L17)-ABS(M17)-(N17+N18)/2+10>0,IF(L17<0,-(ABS(L17)-ABS(M17)-(N17+N18)/2+10),L17-ABS(M17)-(N17+N18)/2+10),0)),0) -> 7.5 | P17: 5 | R17: 2.2 | S17: =IF(AND(R17>0,R18>0),IF(OR(R17>10,R17<0,R18>10,R18<0),"Fehler",IF(ABS(P17)-ABS(Q17)-(R17+R18)/2+10>0,IF(P17<0,-(ABS(P17)-ABS(Q17)-(R17+R18)/2+10),P17-ABS(Q17)-(R17+R18)/2+10),0)),0) -> 12.9 | T17: 3 | V17: 1.8 | W17: =IF(AND(V17>0,V18>0),IF(OR(V17>10,V17<0,V18>10,V18<0),"Fehler",IF(ABS(T17)-ABS(U17)-(V17+V18)/2+10>0,IF(T17<0,-(ABS(T17)-ABS(U17)-(V17+V18)/2+10),T17-ABS(U17)-(V17+V18)/2+10),0)),0) -> 11.3 | X17: 3 | Z17: 3.5 | AA17: =IF(AND(Z17>0,Z18>0),IF(OR(Z17>10,Z17<0,Z18>10,Z18<0),"Fehler",IF(ABS(X17)-ABS(Y17)-(Z17+Z18)/2+10>0,IF(X17<0,-(ABS(X17)-ABS(Y17)-(Z17+Z18)/2+10),X17-ABS(Y17)-(Z17+Z18)/2+10),0)),0) -> 9.55 | AB17: =ABS(G17)+ABS(K17)+ABS(O17)+ABS(S17)+ABS(W17)+ABS(AA17) -> 62.65
F18: 2.3 | J18: 2.4 | N18: 4 | R18: 2 | V18: 1.6 | Z18: 3.4 | AF18: Gesamt | AG18: =SUM(AG11:AG17) -> 6
A19: ='Wertungszettel M3'!A17 -> Jaroslaw Schwentner | B19: =IF(A19>0,B17,"") -> TG LaPeKa | C19: =IF(A19<>"", VLOOKUP(A19,'Wertungszettel M3'!A$7:B$40,2,0),"") -> 0 | D19: 3 | F19: 1.6 | G19: =IF(AND(F19>0,F20>0),IF(OR(F19>10,F19<0,F20>10,F20<0),"Fehler",IF(ABS(D19)-ABS(E19)-(F19+F20)/2+10>0,IF(D19<0,-(ABS(D19)-ABS(E19)-(F19+F20)/2+10),D19-ABS(E19)-(F19+F20)/2+10),0)),0) -> 11.4 | H19: 3 | J19: 1.6 | K19: =IF(AND(J19>0,J20>0),IF(OR(J19>10,J19<0,J20>10,J20<0),"Fehler",IF(ABS(H19)-ABS(I19)-(J19+J20)/2+10>0,IF(H19<0,-(ABS(H19)-ABS(I19)-(J19+J20)/2+10),H19-ABS(I19)-(J19+J20)/2+10),0)),0) -> 11.4 | L19: 3 | N19: 3.8 | O19: =IF(AND(N19>0,N20>0),IF(OR(N19>10,N19<0,N20>10,N20<0),"Fehler",IF(ABS(L19)-ABS(M19)-(N19+N20)/2+10>0,IF(L19<0,-(ABS(L19)-ABS(M19)-(N19+N20)/2+10),L19-ABS(M19)-(N19+N20)/2+10),0)),0) -> 9.2 | P19: 5 | R19: 1.9 | S19: =IF(AND(R19>0,R20>0),IF(OR(R19>10,R19<0,R20>10,R20<0),"Fehler",IF(ABS(P19)-ABS(Q19)-(R19+R20)/2+10>0,IF(P19<0,-(ABS(P19)-ABS(Q19)-(R19+R20)/2+10),P19-ABS(Q19)-(R19+R20)/2+10),0)),0) -> 13.2 | T19: 4 | U19: 0.5 | V19: 2.6 | W19: =IF(AND(V19>0,V20>0),IF(OR(V19>10,V19<0,V20>10,V20<0),"Fehler",IF(ABS(T19)-ABS(U19)-(V19+V20)/2+10>0,IF(T19<0,-(ABS(T19)-ABS(U19)-(V19+V20)/2+10),T19-ABS(U19)-(V19+V20)/2+10),0)),0) -> 10.9 | X19: 3 | Z19: 2.5 | AA19: =IF(AND(Z19>0,Z20>0),IF(OR(Z19>10,Z19<0,Z20>10,Z20<0),"Fehler",IF(ABS(X19)-ABS(Y19)-(Z19+Z20)/2+10>0,IF(X19<0,-(ABS(X19)-ABS(Y19)-(Z19+Z20)/2+10),X19-ABS(Y19)-(Z19+Z20)/2+10),0)),0) -> 10.65 | AB19: =ABS(G19)+ABS(K19)+ABS(O19)+ABS(S19)+ABS(W19)+ABS(AA19) -> 66.75
F20: 1.6 | J20: 1.6 | N20: 3.8 | R20: 1.7 | V20: 2.6 | Z20: 2.2
A21: ='Wertungszettel M3'!A19 -> frei 7 | B21: =IF(A21>0,B19,"") -> TG LaPeKa | C21: =IF(A21<>"", VLOOKUP(A21,'Wertungszettel M3'!A$7:B$40,2,0),"") -> 0 | G21: =IF(AND(F21>0,F22>0),IF(OR(F21>10,F21<0,F22>10,F22<0),"Fehler",IF(ABS(D21)-ABS(E21)-(F21+F22)/2+10>0,IF(D21<0,-(ABS(D21)-ABS(E21)-(F21+F22)/2+10),D21-ABS(E21)-(F21+F22)/2+10),0)),0) -> 0 | K21: =IF(AND(J21>0,J22>0),IF(OR(J21>10,J21<0,J22>10,J22<0),"Fehler",IF(ABS(H21)-ABS(I21)-(J21+J22)/2+10>0,IF(H21<0,-(ABS(H21)-ABS(I21)-(J21+J22)/2+10),H21-ABS(I21)-(J21+J22)/2+10),0)),0) -> 0 | O21: =IF(AND(N21>0,N22>0),IF(OR(N21>10,N21<0,N22>10,N22<0),"Fehler",IF(ABS(L21)-ABS(M21)-(N21+N22)/2+10>0,IF(L21<0,-(ABS(L21)-ABS(M21)-(N21+N22)/2+10),L21-ABS(M21)-(N21+N22)/2+10),0)),0) -> 0 | S21: =IF(AND(R21>0,R22>0),IF(OR(R21>10,R21<0,R22>10,R22<0),"Fehler",IF(ABS(P21)-ABS(Q21)-(R21+R22)/2+10>0,IF(P21<0,-(ABS(P21)-ABS(Q21)-(R21+R22)/2+10),P21-ABS(Q21)-(R21+R22)/2+10),0)),0) -> 0 | W21: =IF(AND(V21>0,V22>0),IF(OR(V21>10,V21<0,V22>10,V22<0),"Fehler",IF(ABS(T21)-ABS(U21)-(V21+V22)/2+10>0,IF(T21<0,-(ABS(T21)-ABS(U21)-(V21+V22)/2+10),T21-ABS(U21)-(V21+V22)/2+10),0)),0) -> 0 | AA21: =IF(AND(Z21>0,Z22>0),IF(OR(Z21>10,Z21<0,Z22>10,Z22<0),"Fehler",IF(ABS(X21)-ABS(Y21)-(Z21+Z22)/2+10>0,IF(X21<0,-(ABS(X21)-ABS(Y21)-(Z21+Z22)/2+10),X21-ABS(Y21)-(Z21+Z22)/2+10),0)),0) -> 0 | AB21: =ABS(G21)+ABS(K21)+ABS(O21)+ABS(S21)+ABS(W21)+ABS(AA21) -> 0
A23: ='Wertungszettel M3'!A21 -> frei 8 | B23: =IF(A23>0,B21,"") -> TG LaPeKa | C23: =IF(A23<>"", VLOOKUP(A23,'Wertungszettel M3'!A$7:B$40,2,0),"") -> 0 | G23: =IF(AND(F23>0,F24>0),IF(OR(F23>10,F23<0,F24>10,F24<0),"Fehler",IF(ABS(D23)-ABS(E23)-(F23+F24)/2+10>0,IF(D23<0,-(ABS(D23)-ABS(E23)-(F23+F24)/2+10),D23-ABS(E23)-(F23+F24)/2+10),0)),0) -> 0 | K23: =IF(AND(J23>0,J24>0),IF(OR(J23>10,J23<0,J24>10,J24<0),"Fehler",IF(ABS(H23)-ABS(I23)-(J23+J24)/2+10>0,IF(H23<0,-(ABS(H23)-ABS(I23)-(J23+J24)/2+10),H23-ABS(I23)-(J23+J24)/2+10),0)),0) -> 0 | O23: =IF(AND(N23>0,N24>0),IF(OR(N23>10,N23<0,N24>10,N24<0),"Fehler",IF(ABS(L23)-ABS(M23)-(N23+N24)/2+10>0,IF(L23<0,-(ABS(L23)-ABS(M23)-(N23+N24)/2+10),L23-ABS(M23)-(N23+N24)/2+10),0)),0) -> 0 | S23: =IF(AND(R23>0,R24>0),IF(OR(R23>10,R23<0,R24>10,R24<0),"Fehler",IF(ABS(P23)-ABS(Q23)-(R23+R24)/2+10>0,IF(P23<0,-(ABS(P23)-ABS(Q23)-(R23+R24)/2+10),P23-ABS(Q23)-(R23+R24)/2+10),0)),0) -> 0 | W23: =IF(AND(V23>0,V24>0),IF(OR(V23>10,V23<0,V24>10,V24<0),"Fehler",IF(ABS(T23)-ABS(U23)-(V23+V24)/2+10>0,IF(T23<0,-(ABS(T23)-ABS(U23)-(V23+V24)/2+10),T23-ABS(U23)-(V23+V24)/2+10),0)),0) -> 0 | AA23: =IF(AND(Z23>0,Z24>0),IF(OR(Z23>10,Z23<0,Z24>10,Z24<0),"Fehler",IF(ABS(X23)-ABS(Y23)-(Z23+Z24)/2+10>0,IF(X23<0,-(ABS(X23)-ABS(Y23)-(Z23+Z24)/2+10),X23-ABS(Y23)-(Z23+Z24)/2+10),0)),0) -> 0 | AB23: =ABS(G23)+ABS(K23)+ABS(O23)+ABS(S23)+ABS(W23)+ABS(AA23) -> 0
A25: ='Wertungszettel M3'!A23 -> frei 9 | B25: =IF(A25>0,B23,"") -> TG LaPeKa | C25: =IF(A25<>"", VLOOKUP(A25,'Wertungszettel M3'!A$7:B$40,2,0),"") -> 0 | G25: =IF(AND(F25>0,F26>0),IF(OR(F25>10,F25<0,F26>10,F26<0),"Fehler",IF(ABS(D25)-ABS(E25)-(F25+F26)/2+10>0,IF(D25<0,-(ABS(D25)-ABS(E25)-(F25+F26)/2+10),D25-ABS(E25)-(F25+F26)/2+10),0)),0) -> 0 | K25: =IF(AND(J25>0,J26>0),IF(OR(J25>10,J25<0,J26>10,J26<0),"Fehler",IF(ABS(H25)-ABS(I25)-(J25+J26)/2+10>0,IF(H25<0,-(ABS(H25)-ABS(I25)-(J25+J26)/2+10),H25-ABS(I25)-(J25+J26)/2+10),0)),0) -> 0 | O25: =IF(AND(N25>0,N26>0),IF(OR(N25>10,N25<0,N26>10,N26<0),"Fehler",IF(ABS(L25)-ABS(M25)-(N25+N26)/2+10>0,IF(L25<0,-(ABS(L25)-ABS(M25)-(N25+N26)/2+10),L25-ABS(M25)-(N25+N26)/2+10),0)),0) -> 0 | S25: =IF(AND(R25>0,R26>0),IF(OR(R25>10,R25<0,R26>10,R26<0),"Fehler",IF(ABS(P25)-ABS(Q25)-(R25+R26)/2+10>0,IF(P25<0,-(ABS(P25)-ABS(Q25)-(R25+R26)/2+10),P25-ABS(Q25)-(R25+R26)/2+10),0)),0) -> 0 | W25: =IF(AND(V25>0,V26>0),IF(OR(V25>10,V25<0,V26>10,V26<0),"Fehler",IF(ABS(T25)-ABS(U25)-(V25+V26)/2+10>0,IF(T25<0,-(ABS(T25)-ABS(U25)-(V25+V26)/2+10),T25-ABS(U25)-(V25+V26)/2+10),0)),0) -> 0 | AA25: =IF(AND(Z25>0,Z26>0),IF(OR(Z25>10,Z25<0,Z26>10,Z26<0),"Fehler",IF(ABS(X25)-ABS(Y25)-(Z25+Z26)/2+10>0,IF(X25<0,-(ABS(X25)-ABS(Y25)-(Z25+Z26)/2+10),X25-ABS(Y25)-(Z25+Z26)/2+10),0)),0) -> 0 | AB25: =ABS(G25)+ABS(K25)+ABS(O25)+ABS(S25)+ABS(W25)+ABS(AA25) -> 0
A27: ='Wertungszettel M3'!A25 -> frei 10 | B27: =IF(A27>0,B25,"") -> TG LaPeKa | C27: =IF(A27<>"", VLOOKUP(A27,'Wertungszettel M3'!A$7:B$40,2,0),"") -> 0 | G27: =IF(AND(F27>0,F28>0),IF(OR(F27>10,F27<0,F28>10,F28<0),"Fehler",IF(ABS(D27)-ABS(E27)-(F27+F28)/2+10>0,IF(D27<0,-(ABS(D27)-ABS(E27)-(F27+F28)/2+10),D27-ABS(E27)-(F27+F28)/2+10),0)),0) -> 0 | K27: =IF(AND(J27>0,J28>0),IF(OR(J27>10,J27<0,J28>10,J28<0),"Fehler",IF(ABS(H27)-ABS(I27)-(J27+J28)/2+10>0,IF(H27<0,-(ABS(H27)-ABS(I27)-(J27+J28)/2+10),H27-ABS(I27)-(J27+J28)/2+10),0)),0) -> 0 | O27: =IF(AND(N27>0,N28>0),IF(OR(N27>10,N27<0,N28>10,N28<0),"Fehler",IF(ABS(L27)-ABS(M27)-(N27+N28)/2+10>0,IF(L27<0,-(ABS(L27)-ABS(M27)-(N27+N28)/2+10),L27-ABS(M27)-(N27+N28)/2+10),0)),0) -> 0 | S27: =IF(AND(R27>0,R28>0),IF(OR(R27>10,R27<0,R28>10,R28<0),"Fehler",IF(ABS(P27)-ABS(Q27)-(R27+R28)/2+10>0,IF(P27<0,-(ABS(P27)-ABS(Q27)-(R27+R28)/2+10),P27-ABS(Q27)-(R27+R28)/2+10),0)),0) -> 0 | W27: =IF(AND(V27>0,V28>0),IF(OR(V27>10,V27<0,V28>10,V28<0),"Fehler",IF(ABS(T27)-ABS(U27)-(V27+V28)/2+10>0,IF(T27<0,-(ABS(T27)-ABS(U27)-(V27+V28)/2+10),T27-ABS(U27)-(V27+V28)/2+10),0)),0) -> 0 | AA27: =IF(AND(Z27>0,Z28>0),IF(OR(Z27>10,Z27<0,Z28>10,Z28<0),"Fehler",IF(ABS(X27)-ABS(Y27)-(Z27+Z28)/2+10>0,IF(X27<0,-(ABS(X27)-ABS(Y27)-(Z27+Z28)/2+10),X27-ABS(Y27)-(Z27+Z28)/2+10),0)),0) -> 0 | AB27: =ABS(G27)+ABS(K27)+ABS(O27)+ABS(S27)+ABS(W27)+ABS(AA27) -> 0
A29: ='Wertungszettel M3'!A27 -> frei 11 | B29: =IF(A29>0,B27,"") -> TG LaPeKa | C29: =IF(A29<>"", VLOOKUP(A29,'Wertungszettel M3'!A$7:B$40,2,0),"") -> 0 | G29: =IF(AND(F29>0,F30>0),IF(OR(F29>10,F29<0,F30>10,F30<0),"Fehler",IF(ABS(D30)-ABS(E30)-(F29+F30)/2+10>0,IF(D30<0,-(ABS(D30)-ABS(E30)-(F29+F30)/2+10),D29-ABS(E29)-(F29+F30)/2+10),0)),0) -> 0 | K29: =IF(AND(J29>0,J30>0),IF(OR(J29>10,J29<0,J30>10,J30<0),"Fehler",IF(ABS(H30)-ABS(I30)-(J29+J30)/2+10>0,IF(H30<0,-(ABS(H30)-ABS(I30)-(J29+J30)/2+10),H29-ABS(I29)-(J29+J30)/2+10),0)),0) -> 0 | O29: =IF(AND(N29>0,N30>0),IF(OR(N29>10,N29<0,N30>10,N30<0),"Fehler",IF(ABS(L30)-ABS(M30)-(N29+N30)/2+10>0,IF(L30<0,-(ABS(L30)-ABS(M30)-(N29+N30)/2+10),L29-ABS(M29)-(N29+N30)/2+10),0)),0) -> 0 | S29: =IF(AND(R29>0,R30>0),IF(OR(R29>10,R29<0,R30>10,R30<0),"Fehler",IF(ABS(P30)-ABS(Q30)-(R29+R30)/2+10>0,IF(P30<0,-(ABS(P30)-ABS(Q30)-(R29+R30)/2+10),P29-ABS(Q29)-(R29+R30)/2+10),0)),0) -> 0 | W29: =IF(AND(V29>0,V30>0),IF(OR(V29>10,V29<0,V30>10,V30<0),"Fehler",IF(ABS(T30)-ABS(U30)-(V29+V30)/2+10>0,IF(T30<0,-(ABS(T30)-ABS(U30)-(V29+V30)/2+10),T29-ABS(U29)-(V29+V30)/2+10),0)),0) -> 0 | AA29: =IF(AND(Z29>0,Z30>0),IF(OR(Z29>10,Z29<0,Z30>10,Z30<0),"Fehler",IF(ABS(X30)-ABS(Y30)-(Z29+Z30)/2+10>0,IF(X30<0,-(ABS(X30)-ABS(Y30)-(Z29+Z30)/2+10),X29-ABS(Y29)-(Z29+Z30)/2+10),0)),0) -> 0 | AB29: =ABS(G29)+ABS(K29)+ABS(O29)+ABS(S29)+ABS(W29)+ABS(AA29) -> 0
A31: ='Wertungszettel M3'!A29 -> frei 12 | B31: =IF(A31>0,B29,"") -> TG LaPeKa | C31: =IF(A31<>"", VLOOKUP(A31,'Wertungszettel M3'!A$7:B$40,2,0),"") -> 0 | G31: =IF(AND(F31>0,F32>0),IF(OR(F31>10,F31<0,F32>10,F32<0),"Fehler",IF(ABS(D32)-ABS(E32)-(F31+F32)/2+10>0,IF(D32<0,-(ABS(D32)-ABS(E32)-(F31+F32)/2+10),D31-ABS(E31)-(F31+F32)/2+10),0)),0) -> 0 | K31: =IF(AND(J31>0,J32>0),IF(OR(J31>10,J31<0,J32>10,J32<0),"Fehler",IF(ABS(H32)-ABS(I32)-(J31+J32)/2+10>0,IF(H32<0,-(ABS(H32)-ABS(I32)-(J31+J32)/2+10),H31-ABS(I31)-(J31+J32)/2+10),0)),0) -> 0 | O31: =IF(AND(N31>0,N32>0),IF(OR(N31>10,N31<0,N32>10,N32<0),"Fehler",IF(ABS(L32)-ABS(M32)-(N31+N32)/2+10>0,IF(L32<0,-(ABS(L32)-ABS(M32)-(N31+N32)/2+10),L31-ABS(M31)-(N31+N32)/2+10),0)),0) -> 0 | S31: =IF(AND(R31>0,R32>0),IF(OR(R31>10,R31<0,R32>10,R32<0),"Fehler",IF(ABS(P32)-ABS(Q32)-(R31+R32)/2+10>0,IF(P32<0,-(ABS(P32)-ABS(Q32)-(R31+R32)/2+10),P31-ABS(Q31)-(R31+R32)/2+10),0)),0) -> 0 | W31: =IF(AND(V31>0,V32>0),IF(OR(V31>10,V31<0,V32>10,V32<0),"Fehler",IF(ABS(T32)-ABS(U32)-(V31+V32)/2+10>0,IF(T32<0,-(ABS(T32)-ABS(U32)-(V31+V32)/2+10),T31-ABS(U31)-(V31+V32)/2+10),0)),0) -> 0 | AA31: =IF(AND(Z31>0,Z32>0),IF(OR(Z31>10,Z31<0,Z32>10,Z32<0),"Fehler",IF(ABS(X32)-ABS(Y32)-(Z31+Z32)/2+10>0,IF(X32<0,-(ABS(X32)-ABS(Y32)-(Z31+Z32)/2+10),X31-ABS(Y31)-(Z31+Z32)/2+10),0)),0) -> 0 | AB31: =ABS(G31)+ABS(K31)+ABS(O31)+ABS(S31)+ABS(W31)+ABS(AA31) -> 0
A33: ='Wertungszettel M3'!A31 -> frei 13 | B33: =IF(A33>0,B31,"") -> TG LaPeKa | C33: =IF(A33<>"", VLOOKUP(A33,'Wertungszettel M3'!A$7:B$40,2,0),"") -> 0 | G33: =IF(AND(F33>0,F34>0),IF(OR(F33>10,F33<0,F34>10,F34<0),"Fehler",IF(ABS(D34)-ABS(E34)-(F33+F34)/2+10>0,IF(D34<0,-(ABS(D34)-ABS(E34)-(F33+F34)/2+10),D33-ABS(E33)-(F33+F34)/2+10),0)),0) -> 0 | K33: =IF(AND(J33>0,J34>0),IF(OR(J33>10,J33<0,J34>10,J34<0),"Fehler",IF(ABS(H34)-ABS(I34)-(J33+J34)/2+10>0,IF(H34<0,-(ABS(H34)-ABS(I34)-(J33+J34)/2+10),H33-ABS(I33)-(J33+J34)/2+10),0)),0) -> 0 | O33: =IF(AND(N33>0,N34>0),IF(OR(N33>10,N33<0,N34>10,N34<0),"Fehler",IF(ABS(L34)-ABS(M34)-(N33+N34)/2+10>0,IF(L34<0,-(ABS(L34)-ABS(M34)-(N33+N34)/2+10),L33-ABS(M33)-(N33+N34)/2+10),0)),0) -> 0 | S33: =IF(AND(R33>0,R34>0),IF(OR(R33>10,R33<0,R34>10,R34<0),"Fehler",IF(ABS(P34)-ABS(Q34)-(R33+R34)/2+10>0,IF(P34<0,-(ABS(P34)-ABS(Q34)-(R33+R34)/2+10),P33-ABS(Q33)-(R33+R34)/2+10),0)),0) -> 0 | W33: =IF(AND(V33>0,V34>0),IF(OR(V33>10,V33<0,V34>10,V34<0),"Fehler",IF(ABS(T34)-ABS(U34)-(V33+V34)/2+10>0,IF(T34<0,-(ABS(T34)-ABS(U34)-(V33+V34)/2+10),T33-ABS(U33)-(V33+V34)/2+10),0)),0) -> 0 | AA33: =IF(AND(Z33>0,Z34>0),IF(OR(Z33>10,Z33<0,Z34>10,Z34<0),"Fehler",IF(ABS(X34)-ABS(Y34)-(Z33+Z34)/2+10>0,IF(X34<0,-(ABS(X34)-ABS(Y34)-(Z33+Z34)/2+10),X33-ABS(Y33)-(Z33+Z34)/2+10),0)),0) -> 0 | AB33: =ABS(G33)+ABS(K33)+ABS(O33)+ABS(S33)+ABS(W33)+ABS(AA33) -> 0
A35: ='Wertungszettel M3'!A33 -> frei 14 | B35: =IF(A35>0,B33,"") -> TG LaPeKa | C35: =IF(A35<>"", VLOOKUP(A35,'Wertungszettel M3'!A$7:B$40,2,0),"") -> 0 | G35: =IF(AND(F35>0,F36>0),IF(OR(F35>10,F35<0,F36>10,F36<0),"Fehler",IF(ABS(D36)-ABS(E36)-(F35+F36)/2+10>0,IF(D36<0,-(ABS(D36)-ABS(E36)-(F35+F36)/2+10),D35-ABS(E35)-(F35+F36)/2+10),0)),0) -> 0 | K35: =IF(AND(J35>0,J36>0),IF(OR(J35>10,J35<0,J36>10,J36<0),"Fehler",IF(ABS(H36)-ABS(I36)-(J35+J36)/2+10>0,IF(H36<0,-(ABS(H36)-ABS(I36)-(J35+J36)/2+10),H35-ABS(I35)-(J35+J36)/2+10),0)),0) -> 0 | O35: =IF(AND(N35>0,N36>0),IF(OR(N35>10,N35<0,N36>10,N36<0),"Fehler",IF(ABS(L36)-ABS(M36)-(N35+N36)/2+10>0,IF(L36<0,-(ABS(L36)-ABS(M36)-(N35+N36)/2+10),L35-ABS(M35)-(N35+N36)/2+10),0)),0) -> 0 | S35: =IF(AND(R35>0,R36>0),IF(OR(R35>10,R35<0,R36>10,R36<0),"Fehler",IF(ABS(P36)-ABS(Q36)-(R35+R36)/2+10>0,IF(P36<0,-(ABS(P36)-ABS(Q36)-(R35+R36)/2+10),P35-ABS(Q35)-(R35+R36)/2+10),0)),0) -> 0 | W35: =IF(AND(V35>0,V36>0),IF(OR(V35>10,V35<0,V36>10,V36<0),"Fehler",IF(ABS(T36)-ABS(U36)-(V35+V36)/2+10>0,IF(T36<0,-(ABS(T36)-ABS(U36)-(V35+V36)/2+10),T35-ABS(U35)-(V35+V36)/2+10),0)),0) -> 0 | AA35: =IF(AND(Z35>0,Z36>0),IF(OR(Z35>10,Z35<0,Z36>10,Z36<0),"Fehler",IF(ABS(X36)-ABS(Y36)-(Z35+Z36)/2+10>0,IF(X36<0,-(ABS(X36)-ABS(Y36)-(Z35+Z36)/2+10),X35-ABS(Y35)-(Z35+Z36)/2+10),0)),0) -> 0 | AB35: =ABS(G35)+ABS(K35)+ABS(O35)+ABS(S35)+ABS(W35)+ABS(AA35) -> 0
A37: ='Wertungszettel M3'!A35 -> frei 15 | B37: =IF(A37>0,B35,"") -> TG LaPeKa | C37: =IF(A37<>"", VLOOKUP(A37,'Wertungszettel M3'!A$7:B$40,2,0),"") -> 0 | G37: =IF(AND(F37>0,F38>0),IF(OR(F37>10,F37<0,F38>10,F38<0),"Fehler",IF(ABS(D38)-ABS(E38)-(F37+F38)/2+10>0,IF(D38<0,-(ABS(D38)-ABS(E38)-(F37+F38)/2+10),D37-ABS(E37)-(F37+F38)/2+10),0)),0) -> 0 | K37: =IF(AND(J37>0,J38>0),IF(OR(J37>10,J37<0,J38>10,J38<0),"Fehler",IF(ABS(H38)-ABS(I38)-(J37+J38)/2+10>0,IF(H38<0,-(ABS(H38)-ABS(I38)-(J37+J38)/2+10),H37-ABS(I37)-(J37+J38)/2+10),0)),0) -> 0 | O37: =IF(AND(N37>0,N38>0),IF(OR(N37>10,N37<0,N38>10,N38<0),"Fehler",IF(ABS(L38)-ABS(M38)-(N37+N38)/2+10>0,IF(L38<0,-(ABS(L38)-ABS(M38)-(N37+N38)/2+10),L37-ABS(M37)-(N37+N38)/2+10),0)),0) -> 0 | S37: =IF(AND(R37>0,R38>0),IF(OR(R37>10,R37<0,R38>10,R38<0),"Fehler",IF(ABS(P38)-ABS(Q38)-(R37+R38)/2+10>0,IF(P38<0,-(ABS(P38)-ABS(Q38)-(R37+R38)/2+10),P37-ABS(Q37)-(R37+R38)/2+10),0)),0) -> 0 | W37: =IF(AND(V37>0,V38>0),IF(OR(V37>10,V37<0,V38>10,V38<0),"Fehler",IF(ABS(T38)-ABS(U38)-(V37+V38)/2+10>0,IF(T38<0,-(ABS(T38)-ABS(U38)-(V37+V38)/2+10),T37-ABS(U37)-(V37+V38)/2+10),0)),0) -> 0 | AA37: =IF(AND(Z37>0,Z38>0),IF(OR(Z37>10,Z37<0,Z38>10,Z38<0),"Fehler",IF(ABS(X38)-ABS(Y38)-(Z37+Z38)/2+10>0,IF(X38<0,-(ABS(X38)-ABS(Y38)-(Z37+Z38)/2+10),X37-ABS(Y37)-(Z37+Z38)/2+10),0)),0) -> 0 | AB37: =ABS(G37)+ABS(K37)+ABS(O37)+ABS(S37)+ABS(W37)+ABS(AA37) -> 0
G40: =SUM(LARGE(G9:G38,1),LARGE(G9:G38,2),LARGE(G9:G38,3)) -> 32.45 | K40: =SUM(LARGE(K9:K38,1),LARGE(K9:K38,2),LARGE(K9:K38,3)) -> 31.7 | O40: =SUM(LARGE(O9:O38,1),LARGE(O9:O38,2),LARGE(O9:O38,3)) -> 27.5 | S40: =SUM(LARGE(S9:S38,1),LARGE(S9:S38,2),LARGE(S9:S38,3)) -> 39.4 | W40: =SUM(LARGE(W9:W38,1),LARGE(W9:W38,2),LARGE(W9:W38,3)) -> 34 | AA40: =SUM(LARGE(AA9:AA38,1),LARGE(AA9:AA38,2),LARGE(AA9:AA38,3)) -> 32.55 | AB40: =SUM(G40,K40,O40,S40,W40,AA40) -> 197.6

Sheet Dielmissen
A1: Wettkampfbogen | M1: Datum: | O1: ='INFO Blatt'!B13 -> 2019-02-16
M3: Ort: | O3: ='INFO Blatt'!B11 -> Hehlen
N5: Liga: | O5: ='INFO Blatt'!B7 -> Einsteigerliga
A7: Name | B7: Verein | C7: Jg | D7: Boden | H7: Pferd | L7: Ringe | P7: Sprung | T7: Barren | X7: Reck | AB7: Ges.
D8: D-Note | E8: Abzug OK | F8: E- Abzug | G8: Note | H8: D-Note | I8: Abzug OK | J8: E- Abzug | K8: Note | L8: D-Note | M8: Abzug OK | N8: E-Abzug | O8: Note | P8: D-Note | Q8: Abzug OK | R8: E-Abzug | S8: Note | T8: D-Note | U8: Abzug OK | V8: E-Abzug | W8: Note | X8: D-Note | Y8: Abzug OK | Z8: E-Abzug | AA8: Note
A9: ='Wertungszettel M4'!A7 -> Sebastian Bocian | B9: =Formeln!A8 -> TSV Dielmissen | C9: =IF(A9<>"", VLOOKUP(A9,'Wertungszettel M4'!A$7:B$36,2,0),"") -> 2009 | D9: 6 | F9: 2.5 | G9: =IF(AND(F9>0,F10>0),IF(OR(F9>10,F9<0,F10>10,F10<0),"Fehler",IF(ABS(D9)-ABS(E9)-(F9+F10)/2+10>0,IF(D9<0,-(ABS(D9)-ABS(E9)-(F9+F10)/2+10),D9-ABS(E9)-(F9+F10)/2+10),0)),0) -> 13.65 | H9: 5 | J9: 4 | K9: =IF(AND(J9>0,J10>0),IF(OR(J9>10,J9<0,J10>10,J10<0),"Fehler",IF(ABS(H9)-ABS(I9)-(J9+J10)/2+10>0,IF(H9<0,-(ABS(H9)-ABS(I9)-(J9+J10)/2+10),H9-ABS(I9)-(J9+J10)/2+10),0)),0) -> 11 | L9: 6 | N9: 2.3 | O9: =IF(AND(N9>0,N10>0),IF(OR(N9>10,N9<0,N10>10,N10<0),"Fehler",IF(ABS(L9)-ABS(M9)-(N9+N10)/2+10>0,IF(L9<0,-(ABS(L9)-ABS(M9)-(N9+N10)/2+10),L9-ABS(M9)-(N9+N10)/2+10),0)),0) -> 13.7 | P9: 5 | R9: 1.2 | S9: =IF(AND(R9>0,R10>0),IF(OR(R9>10,R9<0,R10>10,R10<0),"Fehler",IF(ABS(P9)-ABS(Q9)-(R9+R10)/2+10>0,IF(P9<0,-(ABS(P9)-ABS(Q9)-(R9+R10)/2+10),P9-ABS(Q9)-(R9+R10)/2+10),0)),0) -> 13.9 | T9: 5 | V9: 1.4 | W9: =IF(AND(V9>0,V10>0),IF(OR(V9>10,V9<0,V10>10,V10<0),"Fehler",IF(ABS(T9)-ABS(U9)-(V9+V10)/2+10>0,IF(T9<0,-(ABS(T9)-ABS(U9)-(V9+V10)/2+10),T9-ABS(U9)-(V9+V10)/2+10),0)),0) -> 13.6 | X9: 5 | Z9: 1.5 | AA9: =IF(AND(Z9>0,Z10>0),IF(OR(Z9>10,Z9<0,Z10>10,Z10<0),"Fehler",IF(ABS(X9)-ABS(Y9)-(Z9+Z10)/2+10>0,IF(X9<0,-(ABS(X9)-ABS(Y9)-(Z9+Z10)/2+10),X9-ABS(Y9)-(Z9+Z10)/2+10),0)),0) -> 13.45 | AB9: =ABS(G9)+ABS(K9)+ABS(O9)+ABS(S9)+ABS(W9)+ABS(AA9) -> 79.3
F10: 2.2 | J10: 4 | N10: 2.3 | R10: 1 | V10: 1.4 | Z10: 1.6
A11: ='Wertungszettel M4'!A9 -> Yannick Schröder | B11: =IF(A11>0,B9,"") -> TSV Dielmissen | C11: =IF(A11<>"", VLOOKUP(A11,'Wertungszettel M4'!A$7:B$36,2,0),"") -> 2009 | D11: 5 | F11: 1 | G11: =IF(AND(F11>0,F12>0),IF(OR(F11>10,F11<0,F12>10,F12<0),"Fehler",IF(ABS(D11)-ABS(E11)-(F11+F12)/2+10>0,IF(D11<0,-(ABS(D11)-ABS(E11)-(F11+F12)/2+10),D11-ABS(E11)-(F11+F12)/2+10),0)),0) -> 13.9 | H11: 5 | J11: 4.7 | K11: =IF(AND(J11>0,J12>0),IF(OR(J11>10,J11<0,J12>10,J12<0),"Fehler",IF(ABS(H11)-ABS(I11)-(J11+J12)/2+10>0,IF(H11<0,-(ABS(H11)-ABS(I11)-(J11+J12)/2+10),H11-ABS(I11)-(J11+J12)/2+10),0)),0) -> 10.3 | L11: 5 | M11: 0.5 | N11: 2.2 | O11: =IF(AND(N11>0,N12>0),IF(OR(N11>10,N11<0,N12>10,N12<0),"Fehler",IF(ABS(L11)-ABS(M11)-(N11+N12)/2+10>0,IF(L11<0,-(ABS(L11)-ABS(M11)-(N11+N12)/2+10),L11-ABS(M11)-(N11+N12)/2+10),0)),0) -> 12.3 | P11: 5 | R11: 1 | S11: =IF(AND(R11>0,R12>0),IF(OR(R11>10,R11<0,R12>10,R12<0),"Fehler",IF(ABS(P11)-ABS(Q11)-(R11+R12)/2+10>0,IF(P11<0,-(ABS(P11)-ABS(Q11)-(R11+R12)/2+10),P11-ABS(Q11)-(R11+R12)/2+10),0)),0) -> 14 | T11: 5 | V11: 1.1 | W11: =IF(AND(V11>0,V12>0),IF(OR(V11>10,V11<0,V12>10,V12<0),"Fehler",IF(ABS(T11)-ABS(U11)-(V11+V12)/2+10>0,IF(T11<0,-(ABS(T11)-ABS(U11)-(V11+V12)/2+10),T11-ABS(U11)-(V11+V12)/2+10),0)),0) -> 13.8 | X11: 5 | Z11: 1.4 | AA11: =IF(AND(Z11>0,Z12>0),IF(OR(Z11>10,Z11<0,Z12>10,Z12<0),"Fehler",IF(ABS(X11)-ABS(Y11)-(Z11+Z12)/2+10>0,IF(X11<0,-(ABS(X11)-ABS(Y11)-(Z11+Z12)/2+10),X11-ABS(Y11)-(Z11+Z12)/2+10),0)),0) -> 13.65 | AB11: =ABS(G11)+ABS(K11)+ABS(O11)+ABS(S11)+ABS(W11)+ABS(AA11) -> 77.95 | AF11: Boden | AG11: =IF(G40>1,1,0) -> 1
F12: 1.2 | J12: 4.7 | N12: 2.2 | R12: 1 | V12: 1.3 | Z12: 1.3 | AF12: pauschenpferd | AG12: =IF(K40>1,1,0) -> 1
A13: ='Wertungszettel M4'!A11 -> Tristan Warmuth | B13: =IF(A13>0,B11,"") -> TSV Dielmissen | C13: =IF(A13<>"", VLOOKUP(A13,'Wertungszettel M4'!A$7:B$36,2,0),"") -> 2010 | D13: 5 | F13: 2.7 | G13: =IF(AND(F13>0,F14>0),IF(OR(F13>10,F13<0,F14>10,F14<0),"Fehler",IF(ABS(D13)-ABS(E13)-(F13+F14)/2+10>0,IF(D13<0,-(ABS(D13)-ABS(E13)-(F13+F14)/2+10),D13-ABS(E13)-(F13+F14)/2+10),0)),0) -> 12.55 | H13: 5 | J13: 5.3 | K13: =IF(AND(J13>0,J14>0),IF(OR(J13>10,J13<0,J14>10,J14<0),"Fehler",IF(ABS(H13)-ABS(I13)-(J13+J14)/2+10>0,IF(H13<0,-(ABS(H13)-ABS(I13)-(J13+J14)/2+10),H13-ABS(I13)-(J13+J14)/2+10),0)),0) -> 9.7 | L13: 6 | N13: 3.9 | O13: =IF(AND(N13>0,N14>0),IF(OR(N13>10,N13<0,N14>10,N14<0),"Fehler",IF(ABS(L13)-ABS(M13)-(N13+N14)/2+10>0,IF(L13<0,-(ABS(L13)-ABS(M13)-(N13+N14)/2+10),L13-ABS(M13)-(N13+N14)/2+10),0)),0) -> 12.1 | P13: 5 | R13: 1.7 | S13: =IF(AND(R13>0,R14>0),IF(OR(R13>10,R13<0,R14>10,R14<0),"Fehler",IF(ABS(P13)-ABS(Q13)-(R13+R14)/2+10>0,IF(P13<0,-(ABS(P13)-ABS(Q13)-(R13+R14)/2+10),P13-ABS(Q13)-(R13+R14)/2+10),0)),0) -> 13.3 | T13: 5 | V13: 2.2 | W13: =IF(AND(V13>0,V14>0),IF(OR(V13>10,V13<0,V14>10,V14<0),"Fehler",IF(ABS(T13)-ABS(U13)-(V13+V14)/2+10>0,IF(T13<0,-(ABS(T13)-ABS(U13)-(V13+V14)/2+10),T13-ABS(U13)-(V13+V14)/2+10),0)),0) -> 12.95 | X13: 5 | Z13: 2.3 | AA13: =IF(AND(Z13>0,Z14>0),IF(OR(Z13>10,Z13<0,Z14>10,Z14<0),"Fehler",IF(ABS(X13)-ABS(Y13)-(Z13+Z14)/2+10>0,IF(X13<0,-(ABS(X13)-ABS(Y13)-(Z13+Z14)/2+10),X13-ABS(Y13)-(Z13+Z14)/2+10),0)),0) -> 12.8 | AB13: =ABS(G13)+ABS(K13)+ABS(O13)+ABS(S13)+ABS(W13)+ABS(AA13) -> 73.4 | AF13: ringe | AG13: =IF(O40>1,1,0) -> 1
F14: 2.2 | J14: 5.3 | N14: 3.9 | R14: 1.7 | V14: 1.9 | Z14: 2.1 | AF14: sprung | AG14: =IF(S40>1,1,0) -> 1
A15: ='Wertungszettel M4'!A13 -> Leon Nolte-Furchner | B15: =IF(A15>0,B13,"") -> TSV Dielmissen | C15: =IF(A15<>"", VLOOKUP(A15,'Wertungszettel M4'!A$7:B$36,2,0),"") -> 2011 | D15: 3 | F15: 2.1 | G15: =IF(AND(F15>0,F16>0),IF(OR(F15>10,F15<0,F16>10,F16<0),"Fehler",IF(ABS(D15)-ABS(E15)-(F15+F16)/2+10>0,IF(D15<0,-(ABS(D15)-ABS(E15)-(F15+F16)/2+10),D15-ABS(E15)-(F15+F16)/2+10),0)),0) -> 11.1 | H15: 3 | J15: 4.1 | K15: =IF(AND(J15>0,J16>0),IF(OR(J15>10,J15<0,J16>10,J16<0),"Fehler",IF(ABS(H15)-ABS(I15)-(J15+J16)/2+10>0,IF(H15<0,-(ABS(H15)-ABS(I15)-(J15+J16)/2+10),H15-ABS(I15)-(J15+J16)/2+10),0)),0) -> 8.9 | L15: 3 | N15: 1.9 | O15: =IF(AND(N15>0,N16>0),IF(OR(N15>10,N15<0,N16>10,N16<0),"Fehler",IF(ABS(L15)-ABS(M15)-(N15+N16)/2+10>0,IF(L15<0,-(ABS(L15)-ABS(M15)-(N15+N16)/2+10),L15-ABS(M15)-(N15+N16)/2+10),0)),0) -> 11.1 | P15: 5 | R15: 1.2 | S15: =IF(AND(R15>0,R16>0),IF(OR(R15>10,R15<0,R16>10,R16<0),"Fehler",IF(ABS(P15)-ABS(Q15)-(R15+R16)/2+10>0,IF(P15<0,-(ABS(P15)-ABS(Q15)-(R15+R16)/2+10),P15-ABS(Q15)-(R15+R16)/2+10),0)),0) -> 13.8 | T15: 4 | V15: 1.4 | W15: =IF(AND(V15>0,V16>0),IF(OR(V15>10,V15<0,V16>10,V16<0),"Fehler",IF(ABS(T15)-ABS(U15)-(V15+V16)/2+10>0,IF(T15<0,-(ABS(T15)-ABS(U15)-(V15+V16)/2+10),T15-ABS(U15)-(V15+V16)/2+10),0)),0) -> 12.65 | X15: 3 | Z15: 2.8 | AA15: =IF(AND(Z15>0,Z16>0),IF(OR(Z15>10,Z15<0,Z16>10,Z16<0),"Fehler",IF(ABS(X15)-ABS(Y15)-(Z15+Z16)/2+10>0,IF(X15<0,-(ABS(X15)-ABS(Y15)-(Z15+Z16)/2+10),X15-ABS(Y15)-(Z15+Z16)/2+10),0)),0) -> 10.4 | AB15: =ABS(G15)+ABS(K15)+ABS(O15)+ABS(S15)+ABS(W15)+ABS(AA15) -> 67.95 | AF15: Barren | AG15: =IF(W40>1,1,0) -> 1
F16: 1.7 | J16: 4.1 | N16: 1.9 | R16: 1.2 | V16: 1.3 | Z16: 2.4 | AF16: Reck | AG16: =IF(AA40>1,1,0) -> 1
A17: ='Wertungszettel M4'!A15 -> Joel Holzkamp | B17: =IF(A17>0,B15,"") -> TSV Dielmissen | C17: =IF(A17<>"", VLOOKUP(A17,'Wertungszettel M4'!A$7:B$36,2,0),"") -> 2011 | D17: 3 | F17: 1.2 | G17: =IF(AND(F17>0,F18>0),IF(OR(F17>10,F17<0,F18>10,F18<0),"Fehler",IF(ABS(D17)-ABS(E17)-(F17+F18)/2+10>0,IF(D17<0,-(ABS(D17)-ABS(E17)-(F17+F18)/2+10),D17-ABS(E17)-(F17+F18)/2+10),0)),0) -> 11.7 | H17: 3 | J17: 4.6 | K17: =IF(AND(J17>0,J18>0),IF(OR(J17>10,J17<0,J18>10,J18<0),"Fehler",IF(ABS(H17)-ABS(I17)-(J17+J18)/2+10>0,IF(H17<0,-(ABS(H17)-ABS(I17)-(J17+J18)/2+10),H17-ABS(I17)-(J17+J18)/2+10),0)),0) -> 8.4 | L17: 4 | N17: 3.5 | O17: =IF(AND(N17>0,N18>0),IF(OR(N17>10,N17<0,N18>10,N18<0),"Fehler",IF(ABS(L17)-ABS(M17)-(N17+N18)/2+10>0,IF(L17<0,-(ABS(L17)-ABS(M17)-(N17+N18)/2+10),L17-ABS(M17)-(N17+N18)/2+10),0)),0) -> 10.5 | S17: =IF(AND(R17>0,R18>0),IF(OR(R17>10,R17<0,R18>10,R18<0),"Fehler",IF(ABS(P17)-ABS(Q17)-(R17+R18)/2+10>0,IF(P17<0,-(ABS(P17)-ABS(Q17)-(R17+R18)/2+10),P17-ABS(Q17)-(R17+R18)/2+10),0)),0) -> 0 | T17: 3 | V17: 1.6 | W17: =IF(AND(V17>0,V18>0),IF(OR(V17>10,V17<0,V18>10,V18<0),"Fehler",IF(ABS(T17)-ABS(U17)-(V17+V18)/2+10>0,IF(T17<0,-(ABS(T17)-ABS(U17)-(V17+V18)/2+10),T17-ABS(U17)-(V17+V18)/2+10),0)),0) -> 11.2 | X17: 3 | Z17: 3.2 | AA17: =IF(AND(Z17>0,Z18>0),IF(OR(Z17>10,Z17<0,Z18>10,Z18<0),"Fehler",IF(ABS(X17)-ABS(Y17)-(Z17+Z18)/2+10>0,IF(X17<0,-(ABS(X17)-ABS(Y17)-(Z17+Z18)/2+10),X17-ABS(Y17)-(Z17+Z18)/2+10),0)),0) -> 9.9 | AB17: =ABS(G17)+ABS(K17)+ABS(O17)+ABS(S17)+ABS(W17)+ABS(AA17) -> 51.7
F18: 1.4 | J18: 4.6 | N18: 3.5 | V18: 2 | Z18: 3 | AF18: Gesamt | AG18: =SUM(AG11:AG17) -> 6
A19: ='Wertungszettel M4'!A18 -> 0 | B19: =IF(A19>0,B17,"") ->  | C19: =IF(A19<>"", VLOOKUP(A19,'Wertungszettel M4'!A$7:B$36,2,0),"") ->  | G19: =IF(AND(F19>0,F20>0),IF(OR(F19>10,F19<0,F20>10,F20<0),"Fehler",IF(ABS(D19)-ABS(E19)-(F19+F20)/2+10>0,IF(D19<0,-(ABS(D19)-ABS(E19)-(F19+F20)/2+10),D19-ABS(E19)-(F19+F20)/2+10),0)),0) -> 0 | K19: =IF(AND(J19>0,J20>0),IF(OR(J19>10,J19<0,J20>10,J20<0),"Fehler",IF(ABS(H19)-ABS(I19)-(J19+J20)/2+10>0,IF(H19<0,-(ABS(H19)-ABS(I19)-(J19+J20)/2+10),H19-ABS(I19)-(J19+J20)/2+10),0)),0) -> 0 | O19: =IF(AND(N19>0,N20>0),IF(OR(N19>10,N19<0,N20>10,N20<0),"Fehler",IF(ABS(L19)-ABS(M19)-(N19+N20)/2+10>0,IF(L19<0,-(ABS(L19)-ABS(M19)-(N19+N20)/2+10),L19-ABS(M19)-(N19+N20)/2+10),0)),0) -> 0 | S19: =IF(AND(R19>0,R20>0),IF(OR(R19>10,R19<0,R20>10,R20<0),"Fehler",IF(ABS(P19)-ABS(Q19)-(R19+R20)/2+10>0,IF(P19<0,-(ABS(P19)-ABS(Q19)-(R19+R20)/2+10),P19-ABS(Q19)-(R19+R20)/2+10),0)),0) -> 0 | W19: =IF(AND(V19>0,V20>0),IF(OR(V19>10,V19<0,V20>10,V20<0),"Fehler",IF(ABS(T19)-ABS(U19)-(V19+V20)/2+10>0,IF(T19<0,-(ABS(T19)-ABS(U19)-(V19+V20)/2+10),T19-ABS(U19)-(V19+V20)/2+10),0)),0) -> 0 | AA19: =IF(AND(Z19>0,Z20>0),IF(OR(Z19>10,Z19<0,Z20>10,Z20<0),"Fehler",IF(ABS(X19)-ABS(Y19)-(Z19+Z20)/2+10>0,IF(X19<0,-(ABS(X19)-ABS(Y19)-(Z19+Z20)/2+10),X19-ABS(Y19)-(Z19+Z20)/2+10),0)),0) -> 0 | AB19: =ABS(G19)+ABS(K19)+ABS(O19)+ABS(S19)+ABS(W19)+ABS(AA19) -> 0
A21: ='Wertungszettel M4'!A19 -> frei 7 | B21: =IF(A21>0,B19,"") ->  | C21: =IF(A21<>"", VLOOKUP(A21,'Wertungszettel M4'!A$7:B$36,2,0),"") -> 0 | G21: =IF(AND(F21>0,F22>0),IF(OR(F21>10,F21<0,F22>10,F22<0),"Fehler",IF(ABS(D21)-ABS(E21)-(F21+F22)/2+10>0,IF(D21<0,-(ABS(D21)-ABS(E21)-(F21+F22)/2+10),D21-ABS(E21)-(F21+F22)/2+10),0)),0) -> 0 | K21: =IF(AND(J21>0,J22>0),IF(OR(J21>10,J21<0,J22>10,J22<0),"Fehler",IF(ABS(H21)-ABS(I21)-(J21+J22)/2+10>0,IF(H21<0,-(ABS(H21)-ABS(I21)-(J21+J22)/2+10),H21-ABS(I21)-(J21+J22)/2+10),0)),0) -> 0 | O21: =IF(AND(N21>0,N22>0),IF(OR(N21>10,N21<0,N22>10,N22<0),"Fehler",IF(ABS(L21)-ABS(M21)-(N21+N22)/2+10>0,IF(L21<0,-(ABS(L21)-ABS(M21)-(N21+N22)/2+10),L21-ABS(M21)-(N21+N22)/2+10),0)),0) -> 0 | S21: =IF(AND(R21>0,R22>0),IF(OR(R21>10,R21<0,R22>10,R22<0),"Fehler",IF(ABS(P21)-ABS(Q21)-(R21+R22)/2+10>0,IF(P21<0,-(ABS(P21)-ABS(Q21)-(R21+R22)/2+10),P21-ABS(Q21)-(R21+R22)/2+10),0)),0) -> 0 | W21: =IF(AND(V21>0,V22>0),IF(OR(V21>10,V21<0,V22>10,V22<0),"Fehler",IF(ABS(T21)-ABS(U21)-(V21+V22)/2+10>0,IF(T21<0,-(ABS(T21)-ABS(U21)-(V21+V22)/2+10),T21-ABS(U21)-(V21+V22)/2+10),0)),0) -> 0 | AA21: =IF(AND(Z21>0,Z22>0),IF(OR(Z21>10,Z21<0,Z22>10,Z22<0),"Fehler",IF(ABS(X21)-ABS(Y21)-(Z21+Z22)/2+10>0,IF(X21<0,-(ABS(X21)-ABS(Y21)-(Z21+Z22)/2+10),X21-ABS(Y21)-(Z21+Z22)/2+10),0)),0) -> 0 | AB21: =ABS(G21)+ABS(K21)+ABS(O21)+ABS(S21)+ABS(W21)+ABS(AA21) -> 0
A23: ='Wertungszettel M4'!A21 -> frei 8 | B23: =IF(A23>0,B21,"") ->  | C23: =IF(A23<>"", VLOOKUP(A23,'Wertungszettel M4'!A$7:B$36,2,0),"") -> 0 | G23: =IF(AND(F23>0,F24>0),IF(OR(F23>10,F23<0,F24>10,F24<0),"Fehler",IF(ABS(D23)-ABS(E23)-(F23+F24)/2+10>0,IF(D23<0,-(ABS(D23)-ABS(E23)-(F23+F24)/2+10),D23-ABS(E23)-(F23+F24)/2+10),0)),0) -> 0 | K23: =IF(AND(J23>0,J24>0),IF(OR(J23>10,J23<0,J24>10,J24<0),"Fehler",IF(ABS(H23)-ABS(I23)-(J23+J24)/2+10>0,IF(H23<0,-(ABS(H23)-ABS(I23)-(J23+J24)/2+10),H23-ABS(I23)-(J23+J24)/2+10),0)),0) -> 0 | O23: =IF(AND(N23>0,N24>0),IF(OR(N23>10,N23<0,N24>10,N24<0),"Fehler",IF(ABS(L23)-ABS(M23)-(N23+N24)/2+10>0,IF(L23<0,-(ABS(L23)-ABS(M23)-(N23+N24)/2+10),L23-ABS(M23)-(N23+N24)/2+10),0)),0) -> 0 | S23: =IF(AND(R23>0,R24>0),IF(OR(R23>10,R23<0,R24>10,R24<0),"Fehler",IF(ABS(P23)-ABS(Q23)-(R23+R24)/2+10>0,IF(P23<0,-(ABS(P23)-ABS(Q23)-(R23+R24)/2+10),P23-ABS(Q23)-(R23+R24)/2+10),0)),0) -> 0 | W23: =IF(AND(V23>0,V24>0),IF(OR(V23>10,V23<0,V24>10,V24<0),"Fehler",IF(ABS(T23)-ABS(U23)-(V23+V24)/2+10>0,IF(T23<0,-(ABS(T23)-ABS(U23)-(V23+V24)/2+10),T23-ABS(U23)-(V23+V24)/2+10),0)),0) -> 0 | AA23: =IF(AND(Z23>0,Z24>0),IF(OR(Z23>10,Z23<0,Z24>10,Z24<0),"Fehler",IF(ABS(X23)-ABS(Y23)-(Z23+Z24)/2+10>0,IF(X23<0,-(ABS(X23)-ABS(Y23)-(Z23+Z24)/2+10),X23-ABS(Y23)-(Z23+Z24)/2+10),0)),0) -> 0 | AB23: =ABS(G23)+ABS(K23)+ABS(O23)+ABS(S23)+ABS(W23)+ABS(AA23) -> 0
A25: ='Wertungszettel M4'!A23 -> frei 9 | B25: =IF(A25>0,B23,"") ->  | C25: =IF(A25<>"", VLOOKUP(A25,'Wertungszettel M4'!A$7:B$36,2,0),"") -> 0 | G25: =IF(AND(F25>0,F26>0),IF(OR(F25>10,F25<0,F26>10,F26<0),"Fehler",IF(ABS(D25)-ABS(E25)-(F25+F26)/2+10>0,IF(D25<0,-(ABS(D25)-ABS(E25)-(F25+F26)/2+10),D25-ABS(E25)-(F25+F26)/2+10),0)),0) -> 0 | K25: =IF(AND(J25>0,J26>0),IF(OR(J25>10,J25<0,J26>10,J26<0),"Fehler",IF(ABS(H25)-ABS(I25)-(J25+J26)/2+10>0,IF(H25<0,-(ABS(H25)-ABS(I25)-(J25+J26)/2+10),H25-ABS(I25)-(J25+J26)/2+10),0)),0) -> 0 | O25: =IF(AND(N25>0,N26>0),IF(OR(N25>10,N25<0,N26>10,N26<0),"Fehler",IF(ABS(L25)-ABS(M25)-(N25+N26)/2+10>0,IF(L25<0,-(ABS(L25)-ABS(M25)-(N25+N26)/2+10),L25-ABS(M25)-(N25+N26)/2+10),0)),0) -> 0 | S25: =IF(AND(R25>0,R26>0),IF(OR(R25>10,R25<0,R26>10,R26<0),"Fehler",IF(ABS(P25)-ABS(Q25)-(R25+R26)/2+10>0,IF(P25<0,-(ABS(P25)-ABS(Q25)-(R25+R26)/2+10),P25-ABS(Q25)-(R25+R26)/2+10),0)),0) -> 0 | W25: =IF(AND(V25>0,V26>0),IF(OR(V25>10,V25<0,V26>10,V26<0),"Fehler",IF(ABS(T25)-ABS(U25)-(V25+V26)/2+10>0,IF(T25<0,-(ABS(T25)-ABS(U25)-(V25+V26)/2+10),T25-ABS(U25)-(V25+V26)/2+10),0)),0) -> 0 | AA25: =IF(AND(Z25>0,Z26>0),IF(OR(Z25>10,Z25<0,Z26>10,Z26<0),"Fehler",IF(ABS(X25)-ABS(Y25)-(Z25+Z26)/2+10>0,IF(X25<0,-(ABS(X25)-ABS(Y25)-(Z25+Z26)/2+10),X25-ABS(Y25)-(Z25+Z26)/2+10),0)),0) -> 0 | AB25: =ABS(G25)+ABS(K25)+ABS(O25)+ABS(S25)+ABS(W25)+ABS(AA25) -> 0
A27: ='Wertungszettel M4'!A25 -> frei 10 | B27: =IF(A27>0,B25,"") ->  | C27: =IF(A27<>"", VLOOKUP(A27,'Wertungszettel M4'!A$7:B$36,2,0),"") -> 0 | G27: =IF(AND(F27>0,F28>0),IF(OR(F27>10,F27<0,F28>10,F28<0),"Fehler",IF(ABS(D27)-ABS(E27)-(F27+F28)/2+10>0,IF(D27<0,-(ABS(D27)-ABS(E27)-(F27+F28)/2+10),D27-ABS(E27)-(F27+F28)/2+10),0)),0) -> 0 | K27: =IF(AND(J27>0,J28>0),IF(OR(J27>10,J27<0,J28>10,J28<0),"Fehler",IF(ABS(H27)-ABS(I27)-(J27+J28)/2+10>0,IF(H27<0,-(ABS(H27)-ABS(I27)-(J27+J28)/2+10),H27-ABS(I27)-(J27+J28)/2+10),0)),0) -> 0 | O27: =IF(AND(N27>0,N28>0),IF(OR(N27>10,N27<0,N28>10,N28<0),"Fehler",IF(ABS(L27)-ABS(M27)-(N27+N28)/2+10>0,IF(L27<0,-(ABS(L27)-ABS(M27)-(N27+N28)/2+10),L27-ABS(M27)-(N27+N28)/2+10),0)),0) -> 0 | S27: =IF(AND(R27>0,R28>0),IF(OR(R27>10,R27<0,R28>10,R28<0),"Fehler",IF(ABS(P27)-ABS(Q27)-(R27+R28)/2+10>0,IF(P27<0,-(ABS(P27)-ABS(Q27)-(R27+R28)/2+10),P27-ABS(Q27)-(R27+R28)/2+10),0)),0) -> 0 | W27: =IF(AND(V27>0,V28>0),IF(OR(V27>10,V27<0,V28>10,V28<0),"Fehler",IF(ABS(T27)-ABS(U27)-(V27+V28)/2+10>0,IF(T27<0,-(ABS(T27)-ABS(U27)-(V27+V28)/2+10),T27-ABS(U27)-(V27+V28)/2+10),0)),0) -> 0 | AA27: =IF(AND(Z27>0,Z28>0),IF(OR(Z27>10,Z27<0,Z28>10,Z28<0),"Fehler",IF(ABS(X27)-ABS(Y27)-(Z27+Z28)/2+10>0,IF(X27<0,-(ABS(X27)-ABS(Y27)-(Z27+Z28)/2+10),X27-ABS(Y27)-(Z27+Z28)/2+10),0)),0) -> 0 | AB27: =ABS(G27)+ABS(K27)+ABS(O27)+ABS(S27)+ABS(W27)+ABS(AA27) -> 0
A29: ='Wertungszettel M4'!A27 -> frei 11 | B29: =IF(A29>0,B27,"") ->  | C29: =IF(A29<>"", VLOOKUP(A29,'Wertungszettel M4'!A$7:B$36,2,0),"") -> 0 | G29: =IF(AND(F29>0,F30>0),IF(OR(F29>10,F29<0,F30>10,F30<0),"Fehler",IF(ABS(D30)-ABS(E30)-(F29+F30)/2+10>0,IF(D30<0,-(ABS(D30)-ABS(E30)-(F29+F30)/2+10),D29-ABS(E29)-(F29+F30)/2+10),0)),0) -> 0 | K29: =IF(AND(J29>0,J30>0),IF(OR(J29>10,J29<0,J30>10,J30<0),"Fehler",IF(ABS(H30)-ABS(I30)-(J29+J30)/2+10>0,IF(H30<0,-(ABS(H30)-ABS(I30)-(J29+J30)/2+10),H29-ABS(I29)-(J29+J30)/2+10),0)),0) -> 0 | O29: =IF(AND(N29>0,N30>0),IF(OR(N29>10,N29<0,N30>10,N30<0),"Fehler",IF(ABS(L30)-ABS(M30)-(N29+N30)/2+10>0,IF(L30<0,-(ABS(L30)-ABS(M30)-(N29+N30)/2+10),L29-ABS(M29)-(N29+N30)/2+10),0)),0) -> 0 | S29: =IF(AND(R29>0,R30>0),IF(OR(R29>10,R29<0,R30>10,R30<0),"Fehler",IF(ABS(P30)-ABS(Q30)-(R29+R30)/2+10>0,IF(P30<0,-(ABS(P30)-ABS(Q30)-(R29+R30)/2+10),P29-ABS(Q29)-(R29+R30)/2+10),0)),0) -> 0 | W29: =IF(AND(V29>0,V30>0),IF(OR(V29>10,V29<0,V30>10,V30<0),"Fehler",IF(ABS(T30)-ABS(U30)-(V29+V30)/2+10>0,IF(T30<0,-(ABS(T30)-ABS(U30)-(V29+V30)/2+10),T29-ABS(U29)-(V29+V30)/2+10),0)),0) -> 0 | AA29: =IF(AND(Z29>0,Z30>0),IF(OR(Z29>10,Z29<0,Z30>10,Z30<0),"Fehler",IF(ABS(X30)-ABS(Y30)-(Z29+Z30)/2+10>0,IF(X30<0,-(ABS(X30)-ABS(Y30)-(Z29+Z30)/2+10),X29-ABS(Y29)-(Z29+Z30)/2+10),0)),0) -> 0 | AB29: =ABS(G29)+ABS(K29)+ABS(O29)+ABS(S29)+ABS(W29)+ABS(AA29) -> 0
A31: ='Wertungszettel M4'!A29 -> frei 12 | B31: =IF(A31>0,B29,"") ->  | C31: =IF(A31<>"", VLOOKUP(A31,'Wertungszettel M4'!A$7:B$36,2,0),"") -> 0 | G31: =IF(AND(F31>0,F32>0),IF(OR(F31>10,F31<0,F32>10,F32<0),"Fehler",IF(ABS(D32)-ABS(E32)-(F31+F32)/2+10>0,IF(D32<0,-(ABS(D32)-ABS(E32)-(F31+F32)/2+10),D31-ABS(E31)-(F31+F32)/2+10),0)),0) -> 0 | K31: =IF(AND(J31>0,J32>0),IF(OR(J31>10,J31<0,J32>10,J32<0),"Fehler",IF(ABS(H32)-ABS(I32)-(J31+J32)/2+10>0,IF(H32<0,-(ABS(H32)-ABS(I32)-(J31+J32)/2+10),H31-ABS(I31)-(J31+J32)/2+10),0)),0) -> 0 | O31: =IF(AND(N31>0,N32>0),IF(OR(N31>10,N31<0,N32>10,N32<0),"Fehler",IF(ABS(L32)-ABS(M32)-(N31+N32)/2+10>0,IF(L32<0,-(ABS(L32)-ABS(M32)-(N31+N32)/2+10),L31-ABS(M31)-(N31+N32)/2+10),0)),0) -> 0 | S31: =IF(AND(R31>0,R32>0),IF(OR(R31>10,R31<0,R32>10,R32<0),"Fehler",IF(ABS(P32)-ABS(Q32)-(R31+R32)/2+10>0,IF(P32<0,-(ABS(P32)-ABS(Q32)-(R31+R32)/2+10),P31-ABS(Q31)-(R31+R32)/2+10),0)),0) -> 0 | W31: =IF(AND(V31>0,V32>0),IF(OR(V31>10,V31<0,V32>10,V32<0),"Fehler",IF(ABS(T32)-ABS(U32)-(V31+V32)/2+10>0,IF(T32<0,-(ABS(T32)-ABS(U32)-(V31+V32)/2+10),T31-ABS(U31)-(V31+V32)/2+10),0)),0) -> 0 | AA31: =IF(AND(Z31>0,Z32>0),IF(OR(Z31>10,Z31<0,Z32>10,Z32<0),"Fehler",IF(ABS(X32)-ABS(Y32)-(Z31+Z32)/2+10>0,IF(X32<0,-(ABS(X32)-ABS(Y32)-(Z31+Z32)/2+10),X31-ABS(Y31)-(Z31+Z32)/2+10),0)),0) -> 0 | AB31: =ABS(G31)+ABS(K31)+ABS(O31)+ABS(S31)+ABS(W31)+ABS(AA31) -> 0
A33: ='Wertungszettel M4'!A31 -> frei 13 | B33: =IF(A33>0,B31,"") ->  | C33: =IF(A33<>"", VLOOKUP(A33,'Wertungszettel M4'!A$7:B$36,2,0),"") -> 0 | G33: =IF(AND(F33>0,F34>0),IF(OR(F33>10,F33<0,F34>10,F34<0),"Fehler",IF(ABS(D34)-ABS(E34)-(F33+F34)/2+10>0,IF(D34<0,-(ABS(D34)-ABS(E34)-(F33+F34)/2+10),D33-ABS(E33)-(F33+F34)/2+10),0)),0) -> 0 | K33: =IF(AND(J33>0,J34>0),IF(OR(J33>10,J33<0,J34>10,J34<0),"Fehler",IF(ABS(H34)-ABS(I34)-(J33+J34)/2+10>0,IF(H34<0,-(ABS(H34)-ABS(I34)-(J33+J34)/2+10),H33-ABS(I33)-(J33+J34)/2+10),0)),0) -> 0 | O33: =IF(AND(N33>0,N34>0),IF(OR(N33>10,N33<0,N34>10,N34<0),"Fehler",IF(ABS(L34)-ABS(M34)-(N33+N34)/2+10>0,IF(L34<0,-(ABS(L34)-ABS(M34)-(N33+N34)/2+10),L33-ABS(M33)-(N33+N34)/2+10),0)),0) -> 0 | S33: =IF(AND(R33>0,R34>0),IF(OR(R33>10,R33<0,R34>10,R34<0),"Fehler",IF(ABS(P34)-ABS(Q34)-(R33+R34)/2+10>0,IF(P34<0,-(ABS(P34)-ABS(Q34)-(R33+R34)/2+10),P33-ABS(Q33)-(R33+R34)/2+10),0)),0) -> 0 | W33: =IF(AND(V33>0,V34>0),IF(OR(V33>10,V33<0,V34>10,V34<0),"Fehler",IF(ABS(T34)-ABS(U34)-(V33+V34)/2+10>0,IF(T34<0,-(ABS(T34)-ABS(U34)-(V33+V34)/2+10),T33-ABS(U33)-(V33+V34)/2+10),0)),0) -> 0 | AA33: =IF(AND(Z33>0,Z34>0),IF(OR(Z33>10,Z33<0,Z34>10,Z34<0),"Fehler",IF(ABS(X34)-ABS(Y34)-(Z33+Z34)/2+10>0,IF(X34<0,-(ABS(X34)-ABS(Y34)-(Z33+Z34)/2+10),X33-ABS(Y33)-(Z33+Z34)/2+10),0)),0) -> 0 | AB33: =ABS(G33)+ABS(K33)+ABS(O33)+ABS(S33)+ABS(W33)+ABS(AA33) -> 0
A35: ='Wertungszettel M4'!A33 -> frei 14 | B35: =IF(A35>0,B33,"") ->  | C35: =IF(A35<>"", VLOOKUP(A35,'Wertungszettel M4'!A$7:B$36,2,0),"") -> 0 | G35: =IF(AND(F35>0,F36>0),IF(OR(F35>10,F35<0,F36>10,F36<0),"Fehler",IF(ABS(D36)-ABS(E36)-(F35+F36)/2+10>0,IF(D36<0,-(ABS(D36)-ABS(E36)-(F35+F36)/2+10),D35-ABS(E35)-(F35+F36)/2+10),0)),0) -> 0 | K35: =IF(AND(J35>0,J36>0),IF(OR(J35>10,J35<0,J36>10,J36<0),"Fehler",IF(ABS(H36)-ABS(I36)-(J35+J36)/2+10>0,IF(H36<0,-(ABS(H36)-ABS(I36)-(J35+J36)/2+10),H35-ABS(I35)-(J35+J36)/2+10),0)),0) -> 0 | O35: =IF(AND(N35>0,N36>0),IF(OR(N35>10,N35<0,N36>10,N36<0),"Fehler",IF(ABS(L36)-ABS(M36)-(N35+N36)/2+10>0,IF(L36<0,-(ABS(L36)-ABS(M36)-(N35+N36)/2+10),L35-ABS(M35)-(N35+N36)/2+10),0)),0) -> 0 | S35: =IF(AND(R35>0,R36>0),IF(OR(R35>10,R35<0,R36>10,R36<0),"Fehler",IF(ABS(P36)-ABS(Q36)-(R35+R36)/2+10>0,IF(P36<0,-(ABS(P36)-ABS(Q36)-(R35+R36)/2+10),P35-ABS(Q35)-(R35+R36)/2+10),0)),0) -> 0 | W35: =IF(AND(V35>0,V36>0),IF(OR(V35>10,V35<0,V36>10,V36<0),"Fehler",IF(ABS(T36)-ABS(U36)-(V35+V36)/2+10>0,IF(T36<0,-(ABS(T36)-ABS(U36)-(V35+V36)/2+10),T35-ABS(U35)-(V35+V36)/2+10),0)),0) -> 0 | AA35: =IF(AND(Z35>0,Z36>0),IF(OR(Z35>10,Z35<0,Z36>10,Z36<0),"Fehler",IF(ABS(X36)-ABS(Y36)-(Z35+Z36)/2+10>0,IF(X36<0,-(ABS(X36)-ABS(Y36)-(Z35+Z36)/2+10),X35-ABS(Y35)-(Z35+Z36)/2+10),0)),0) -> 0 | AB35: =ABS(G35)+ABS(K35)+ABS(O35)+ABS(S35)+ABS(W35)+ABS(AA35) -> 0
A37: ='Wertungszettel M4'!A35 -> frei 15 | B37: =IF(A37>0,B35,"") ->  | C37: =IF(A37<>"", VLOOKUP(A37,'Wertungszettel M4'!A$7:B$36,2,0),"") -> 0 | G37: =IF(AND(F37>0,F38>0),IF(OR(F37>10,F37<0,F38>10,F38<0),"Fehler",IF(ABS(D38)-ABS(E38)-(F37+F38)/2+10>0,IF(D38<0,-(ABS(D38)-ABS(E38)-(F37+F38)/2+10),D37-ABS(E37)-(F37+F38)/2+10),0)),0) -> 0 | K37: =IF(AND(J37>0,J38>0),IF(OR(J37>10,J37<0,J38>10,J38<0),"Fehler",IF(ABS(H38)-ABS(I38)-(J37+J38)/2+10>0,IF(H38<0,-(ABS(H38)-ABS(I38)-(J37+J38)/2+10),H37-ABS(I37)-(J37+J38)/2+10),0)),0) -> 0 | O37: =IF(AND(N37>0,N38>0),IF(OR(N37>10,N37<0,N38>10,N38<0),"Fehler",IF(ABS(L38)-ABS(M38)-(N37+N38)/2+10>0,IF(L38<0,-(ABS(L38)-ABS(M38)-(N37+N38)/2+10),L37-ABS(M37)-(N37+N38)/2+10),0)),0) -> 0 | S37: =IF(AND(R37>0,R38>0),IF(OR(R37>10,R37<0,R38>10,R38<0),"Fehler",IF(ABS(P38)-ABS(Q38)-(R37+R38)/2+10>0,IF(P38<0,-(ABS(P38)-ABS(Q38)-(R37+R38)/2+10),P37-ABS(Q37)-(R37+R38)/2+10),0)),0) -> 0 | W37: =IF(AND(V37>0,V38>0),IF(OR(V37>10,V37<0,V38>10,V38<0),"Fehler",IF(ABS(T38)-ABS(U38)-(V37+V38)/2+10>0,IF(T38<0,-(ABS(T38)-ABS(U38)-(V37+V38)/2+10),T37-ABS(U37)-(V37+V38)/2+10),0)),0) -> 0 | AA37: =IF(AND(Z37>0,Z38>0),IF(OR(Z37>10,Z37<0,Z38>10,Z38<0),"Fehler",IF(ABS(X38)-ABS(Y38)-(Z37+Z38)/2+10>0,IF(X38<0,-(ABS(X38)-ABS(Y38)-(Z37+Z38)/2+10),X37-ABS(Y37)-(Z37+Z38)/2+10),0)),0) -> 0 | AB37: =ABS(G37)+ABS(K37)+ABS(O37)+ABS(S37)+ABS(W37)+ABS(AA37) -> 0
G40: =SUM(LARGE(G9:G38,1),LARGE(G9:G38,2),LARGE(G9:G38,3)) -> 40.1 | K40: =SUM(LARGE(K9:K38,1),LARGE(K9:K38,2),LARGE(K9:K38,3)) -> 31 | O40: =SUM(LARGE(O9:O38,1),LARGE(O9:O38,2),LARGE(O9:O38,3)) -> 38.1 | S40: =SUM(LARGE(S9:S38,1),LARGE(S9:S38,2),LARGE(S9:S38,3)) -> 41.7 | W40: =SUM(LARGE(W9:W38,1),LARGE(W9:W38,2),LARGE(W9:W38,3)) -> 40.35 | AA40: =SUM(LARGE(AA9:AA38,1),LARGE(AA9:AA38,2),LARGE(AA9:AA38,3)) -> 39.9 | AB40: =SUM(G40,K40,O40,S40,W40,AA40) -> 231.15

Sheet M5
A1: Wettkampfbogen | M1: Datum: | O1: ='INFO Blatt'!B13 -> 2019-02-16
M3: Ort: | O3: ='INFO Blatt'!B11 -> Hehlen
N5: Liga: | O5: ='INFO Blatt'!B7 -> Einsteigerliga
A7: Name | B7: Verein | C7: Jg | D7: Boden | H7: Pferd | L7: Ringe | P7: Sprung | T7: Barren | X7: Reck | AB7: Ges.
D8: D-Note | E8: Abzug OK | F8: E- Abzug | G8: Note | H8: D-Note | I8: Abzug OK | J8: E- Abzug | K8: Note | L8: D-Note | M8: Abzug OK | N8: E-Abzug | O8: Note | P8: D-Note | Q8: Abzug OK | R8: E-Abzug | S8: Note | T8: D-Note | U8: Abzug OK | V8: E-Abzug | W8: Note | X8: D-Note | Y8: Abzug OK | Z8: E-Abzug | AA8: Note
A9: ='Wertungszettel M5'!A7 -> frei 1 | B9: =Formeln!A9 -> M5 | C9: =IF(A9<>"", VLOOKUP(A9,'Wertungszettel M5'!A$7:B$36,2,0),"") -> 0 | G9: =IF(AND(F9>0,F10>0),IF(OR(F9>10,F9<0,F10>10,F10<0),"Fehler",IF(ABS(D9)-ABS(E9)-(F9+F10)/2+10>0,IF(D9<0,-(ABS(D9)-ABS(E9)-(F9+F10)/2+10),D9-ABS(E9)-(F9+F10)/2+10),0)),0) -> 0 | K9: =IF(AND(J9>0,J10>0),IF(OR(J9>10,J9<0,J10>10,J10<0),"Fehler",IF(ABS(H9)-ABS(I9)-(J9+J10)/2+10>0,IF(H9<0,-(ABS(H9)-ABS(I9)-(J9+J10)/2+10),H9-ABS(I9)-(J9+J10)/2+10),0)),0) -> 0 | O9: =IF(AND(N9>0,N10>0),IF(OR(N9>10,N9<0,N10>10,N10<0),"Fehler",IF(ABS(L9)-ABS(M9)-(N9+N10)/2+10>0,IF(L9<0,-(ABS(L9)-ABS(M9)-(N9+N10)/2+10),L9-ABS(M9)-(N9+N10)/2+10),0)),0) -> 0 | S9: =IF(AND(R9>0,R10>0),IF(OR(R9>10,R9<0,R10>10,R10<0),"Fehler",IF(ABS(P9)-ABS(Q9)-(R9+R10)/2+10>0,IF(P9<0,-(ABS(P9)-ABS(Q9)-(R9+R10)/2+10),P9-ABS(Q9)-(R9+R10)/2+10),0)),0) -> 0 | W9: =IF(AND(V9>0,V10>0),IF(OR(V9>10,V9<0,V10>10,V10<0),"Fehler",IF(ABS(T9)-ABS(U9)-(V9+V10)/2+10>0,IF(T9<0,-(ABS(T9)-ABS(U9)-(V9+V10)/2+10),T9-ABS(U9)-(V9+V10)/2+10),0)),0) -> 0 | AA9: =IF(AND(Z9>0,Z10>0),IF(OR(Z9>10,Z9<0,Z10>10,Z10<0),"Fehler",IF(ABS(X9)-ABS(Y9)-(Z9+Z10)/2+10>0,IF(X9<0,-(ABS(X9)-ABS(Y9)-(Z9+Z10)/2+10),X9-ABS(Y9)-(Z9+Z10)/2+10),0)),0) -> 0 | AB9: =ABS(G9)+ABS(K9)+ABS(O9)+ABS(S9)+ABS(W9)+ABS(AA9) -> 0
A11: ='Wertungszettel M5'!A9 -> frei 2 | B11: =IF(A11>0,B9,"") -> M5 | C11: =IF(A11<>"", VLOOKUP(A11,'Wertungszettel M5'!A$7:B$36,2,0),"") -> 0 | G11: =IF(AND(F11>0,F12>0),IF(OR(F11>10,F11<0,F12>10,F12<0),"Fehler",IF(ABS(D11)-ABS(E11)-(F11+F12)/2+10>0,IF(D11<0,-(ABS(D11)-ABS(E11)-(F11+F12)/2+10),D11-ABS(E11)-(F11+F12)/2+10),0)),0) -> 0 | K11: =IF(AND(J11>0,J12>0),IF(OR(J11>10,J11<0,J12>10,J12<0),"Fehler",IF(ABS(H11)-ABS(I11)-(J11+J12)/2+10>0,IF(H11<0,-(ABS(H11)-ABS(I11)-(J11+J12)/2+10),H11-ABS(I11)-(J11+J12)/2+10),0)),0) -> 0 | O11: =IF(AND(N11>0,N12>0),IF(OR(N11>10,N11<0,N12>10,N12<0),"Fehler",IF(ABS(L11)-ABS(M11)-(N11+N12)/2+10>0,IF(L11<0,-(ABS(L11)-ABS(M11)-(N11+N12)/2+10),L11-ABS(M11)-(N11+N12)/2+10),0)),0) -> 0 | S11: =IF(AND(R11>0,R12>0),IF(OR(R11>10,R11<0,R12>10,R12<0),"Fehler",IF(ABS(P11)-ABS(Q11)-(R11+R12)/2+10>0,IF(P11<0,-(ABS(P11)-ABS(Q11)-(R11+R12)/2+10),P11-ABS(Q11)-(R11+R12)/2+10),0)),0) -> 0 | W11: =IF(AND(V11>0,V12>0),IF(OR(V11>10,V11<0,V12>10,V12<0),"Fehler",IF(ABS(T11)-ABS(U11)-(V11+V12)/2+10>0,IF(T11<0,-(ABS(T11)-ABS(U11)-(V11+V12)/2+10),T11-ABS(U11)-(V11+V12)/2+10),0)),0) -> 0 | AA11: =IF(AND(Z11>0,Z12>0),IF(OR(Z11>10,Z11<0,Z12>10,Z12<0),"Fehler",IF(ABS(X11)-ABS(Y11)-(Z11+Z12)/2+10>0,IF(X11<0,-(ABS(X11)-ABS(Y11)-(Z11+Z12)/2+10),X11-ABS(Y11)-(Z11+Z12)/2+10),0)),0) -> 0 | AB11: =ABS(G11)+ABS(K11)+ABS(O11)+ABS(S11)+ABS(W11)+ABS(AA11) -> 0 | AF11: Boden | AG11: =IF(G40>1,1,0) -> 0
AF12: pauschenpferd | AG12: =IF(K40>1,1,0) -> 0
A13: ='Wertungszettel M5'!A11 -> frei 3 | B13: =IF(A13>0,B11,"") -> M5 | C13: =IF(A13<>"", VLOOKUP(A13,'Wertungszettel M5'!A$7:B$36,2,0),"") -> 0 | G13: =IF(AND(F13>0,F14>0),IF(OR(F13>10,F13<0,F14>10,F14<0),"Fehler",IF(ABS(D13)-ABS(E13)-(F13+F14)/2+10>0,IF(D13<0,-(ABS(D13)-ABS(E13)-(F13+F14)/2+10),D13-ABS(E13)-(F13+F14)/2+10),0)),0) -> 0 | K13: =IF(AND(J13>0,J14>0),IF(OR(J13>10,J13<0,J14>10,J14<0),"Fehler",IF(ABS(H13)-ABS(I13)-(J13+J14)/2+10>0,IF(H13<0,-(ABS(H13)-ABS(I13)-(J13+J14)/2+10),H13-ABS(I13)-(J13+J14)/2+10),0)),0) -> 0 | O13: =IF(AND(N13>0,N14>0),IF(OR(N13>10,N13<0,N14>10,N14<0),"Fehler",IF(ABS(L13)-ABS(M13)-(N13+N14)/2+10>0,IF(L13<0,-(ABS(L13)-ABS(M13)-(N13+N14)/2+10),L13-ABS(M13)-(N13+N14)/2+10),0)),0) -> 0 | S13: =IF(AND(R13>0,R14>0),IF(OR(R13>10,R13<0,R14>10,R14<0),"Fehler",IF(ABS(P13)-ABS(Q13)-(R13+R14)/2+10>0,IF(P13<0,-(ABS(P13)-ABS(Q13)-(R13+R14)/2+10),P13-ABS(Q13)-(R13+R14)/2+10),0)),0) -> 0 | W13: =IF(AND(V13>0,V14>0),IF(OR(V13>10,V13<0,V14>10,V14<0),"Fehler",IF(ABS(T13)-ABS(U13)-(V13+V14)/2+10>0,IF(T13<0,-(ABS(T13)-ABS(U13)-(V13+V14)/2+10),T13-ABS(U13)-(V13+V14)/2+10),0)),0) -> 0 | AA13: =IF(AND(Z13>0,Z14>0),IF(OR(Z13>10,Z13<0,Z14>10,Z14<0),"Fehler",IF(ABS(X13)-ABS(Y13)-(Z13+Z14)/2+10>0,IF(X13<0,-(ABS(X13)-ABS(Y13)-(Z13+Z14)/2+10),X13-ABS(Y13)-(Z13+Z14)/2+10),0)),0) -> 0 | AB13: =ABS(G13)+ABS(K13)+ABS(O13)+ABS(S13)+ABS(W13)+ABS(AA13) -> 0 | AF13: ringe | AG13: =IF(O40>1,1,0) -> 0
AF14: sprung | AG14: =IF(S40>1,1,0) -> 0
A15: ='Wertungszettel M5'!A13 -> frei 4 | B15: =IF(A15>0,B13,"") -> M5 | C15: =IF(A15<>"", VLOOKUP(A15,'Wertungszettel M5'!A$7:B$36,2,0),"") -> 0 | G15: =IF(AND(F15>0,F16>0),IF(OR(F15>10,F15<0,F16>10,F16<0),"Fehler",IF(ABS(D15)-ABS(E15)-(F15+F16)/2+10>0,IF(D15<0,-(ABS(D15)-ABS(E15)-(F15+F16)/2+10),D15-ABS(E15)-(F15+F16)/2+10),0)),0) -> 0 | K15: =IF(AND(J15>0,J16>0),IF(OR(J15>10,J15<0,J16>10,J16<0),"Fehler",IF(ABS(H15)-ABS(I15)-(J15+J16)/2+10>0,IF(H15<0,-(ABS(H15)-ABS(I15)-(J15+J16)/2+10),H15-ABS(I15)-(J15+J16)/2+10),0)),0) -> 0 | O15: =IF(AND(N15>0,N16>0),IF(OR(N15>10,N15<0,N16>10,N16<0),"Fehler",IF(ABS(L15)-ABS(M15)-(N15+N16)/2+10>0,IF(L15<0,-(ABS(L15)-ABS(M15)-(N15+N16)/2+10),L15-ABS(M15)-(N15+N16)/2+10),0)),0) -> 0 | S15: =IF(AND(R15>0,R16>0),IF(OR(R15>10,R15<0,R16>10,R16<0),"Fehler",IF(ABS(P15)-ABS(Q15)-(R15+R16)/2+10>0,IF(P15<0,-(ABS(P15)-ABS(Q15)-(R15+R16)/2+10),P15-ABS(Q15)-(R15+R16)/2+10),0)),0) -> 0 | W15: =IF(AND(V15>0,V16>0),IF(OR(V15>10,V15<0,V16>10,V16<0),"Fehler",IF(ABS(T15)-ABS(U15)-(V15+V16)/2+10>0,IF(T15<0,-(ABS(T15)-ABS(U15)-(V15+V16)/2+10),T15-ABS(U15)-(V15+V16)/2+10),0)),0) -> 0 | AA15: =IF(AND(Z15>0,Z16>0),IF(OR(Z15>10,Z15<0,Z16>10,Z16<0),"Fehler",IF(ABS(X15)-ABS(Y15)-(Z15+Z16)/2+10>0,IF(X15<0,-(ABS(X15)-ABS(Y15)-(Z15+Z16)/2+10),X15-ABS(Y15)-(Z15+Z16)/2+10),0)),0) -> 0 | AB15: =ABS(G15)+ABS(K15)+ABS(O15)+ABS(S15)+ABS(W15)+ABS(AA15) -> 0 | AF15: Barren | AG15: =IF(W40>1,1,0) -> 0
AF16: Reck | AG16: =IF(AA40>1,1,0) -> 0
A17: ='Wertungszettel M5'!A15 -> frei 5 | B17: =IF(A17>0,B15,"") -> M5 | C17: =IF(A17<>"", VLOOKUP(A17,'Wertungszettel M5'!A$7:B$36,2,0),"") -> 0 | G17: =IF(AND(F17>0,F18>0),IF(OR(F17>10,F17<0,F18>10,F18<0),"Fehler",IF(ABS(D17)-ABS(E17)-(F17+F18)/2+10>0,IF(D17<0,-(ABS(D17)-ABS(E17)-(F17+F18)/2+10),D17-ABS(E17)-(F17+F18)/2+10),0)),0) -> 0 | K17: =IF(AND(J17>0,J18>0),IF(OR(J17>10,J17<0,J18>10,J18<0),"Fehler",IF(ABS(H17)-ABS(I17)-(J17+J18)/2+10>0,IF(H17<0,-(ABS(H17)-ABS(I17)-(J17+J18)/2+10),H17-ABS(I17)-(J17+J18)/2+10),0)),0) -> 0 | O17: =IF(AND(N17>0,N18>0),IF(OR(N17>10,N17<0,N18>10,N18<0),"Fehler",IF(ABS(L17)-ABS(M17)-(N17+N18)/2+10>0,IF(L17<0,-(ABS(L17)-ABS(M17)-(N17+N18)/2+10),L17-ABS(M17)-(N17+N18)/2+10),0)),0) -> 0 | S17: =IF(AND(R17>0,R18>0),IF(OR(R17>10,R17<0,R18>10,R18<0),"Fehler",IF(ABS(P17)-ABS(Q17)-(R17+R18)/2+10>0,IF(P17<0,-(ABS(P17)-ABS(Q17)-(R17+R18)/2+10),P17-ABS(Q17)-(R17+R18)/2+10),0)),0) -> 0 | W17: =IF(AND(V17>0,V18>0),IF(OR(V17>10,V17<0,V18>10,V18<0),"Fehler",IF(ABS(T17)-ABS(U17)-(V17+V18)/2+10>0,IF(T17<0,-(ABS(T17)-ABS(U17)-(V17+V18)/2+10),T17-ABS(U17)-(V17+V18)/2+10),0)),0) -> 0 | AA17: =IF(AND(Z17>0,Z18>0),IF(OR(Z17>10,Z17<0,Z18>10,Z18<0),"Fehler",IF(ABS(X17)-ABS(Y17)-(Z17+Z18)/2+10>0,IF(X17<0,-(ABS(X17)-ABS(Y17)-(Z17+Z18)/2+10),X17-ABS(Y17)-(Z17+Z18)/2+10),0)),0) -> 0 | AB17: =ABS(G17)+ABS(K17)+ABS(O17)+ABS(S17)+ABS(W17)+ABS(AA17) -> 0
AF18: Gesamt | AG18: =SUM(AG11:AG17) -> 0
A19: ='Wertungszettel M5'!A17 -> frei 6 | B19: =IF(A19>0,B17,"") -> M5 | C19: =IF(A19<>"", VLOOKUP(A19,'Wertungszettel M5'!A$7:B$36,2,0),"") -> 0 | G19: =IF(AND(F19>0,F20>0),IF(OR(F19>10,F19<0,F20>10,F20<0),"Fehler",IF(ABS(D19)-ABS(E19)-(F19+F20)/2+10>0,IF(D19<0,-(ABS(D19)-ABS(E19)-(F19+F20)/2+10),D19-ABS(E19)-(F19+F20)/2+10),0)),0) -> 0 | K19: =IF(AND(J19>0,J20>0),IF(OR(J19>10,J19<0,J20>10,J20<0),"Fehler",IF(ABS(H19)-ABS(I19)-(J19+J20)/2+10>0,IF(H19<0,-(ABS(H19)-ABS(I19)-(J19+J20)/2+10),H19-ABS(I19)-(J19+J20)/2+10),0)),0) -> 0 | O19: =IF(AND(N19>0,N20>0),IF(OR(N19>10,N19<0,N20>10,N20<0),"Fehler",IF(ABS(L19)-ABS(M19)-(N19+N20)/2+10>0,IF(L19<0,-(ABS(L19)-ABS(M19)-(N19+N20)/2+10),L19-ABS(M19)-(N19+N20)/2+10),0)),0) -> 0 | S19: =IF(AND(R19>0,R20>0),IF(OR(R19>10,R19<0,R20>10,R20<0),"Fehler",IF(ABS(P19)-ABS(Q19)-(R19+R20)/2+10>0,IF(P19<0,-(ABS(P19)-ABS(Q19)-(R19+R20)/2+10),P19-ABS(Q19)-(R19+R20)/2+10),0)),0) -> 0 | W19: =IF(AND(V19>0,V20>0),IF(OR(V19>10,V19<0,V20>10,V20<0),"Fehler",IF(ABS(T19)-ABS(U19)-(V19+V20)/2+10>0,IF(T19<0,-(ABS(T19)-ABS(U19)-(V19+V20)/2+10),T19-ABS(U19)-(V19+V20)/2+10),0)),0) -> 0 | AA19: =IF(AND(Z19>0,Z20>0),IF(OR(Z19>10,Z19<0,Z20>10,Z20<0),"Fehler",IF(ABS(X19)-ABS(Y19)-(Z19+Z20)/2+10>0,IF(X19<0,-(ABS(X19)-ABS(Y19)-(Z19+Z20)/2+10),X19-ABS(Y19)-(Z19+Z20)/2+10),0)),0) -> 0 | AB19: =ABS(G19)+ABS(K19)+ABS(O19)+ABS(S19)+ABS(W19)+ABS(AA19) -> 0
A21: ='Wertungszettel M5'!A19 -> frei 7 | B21: =IF(A21>0,B19,"") -> M5 | C21: =IF(A21<>"", VLOOKUP(A21,'Wertungszettel M5'!A$7:B$36,2,0),"") -> 0 | G21: =IF(AND(F21>0,F22>0),IF(OR(F21>10,F21<0,F22>10,F22<0),"Fehler",IF(ABS(D21)-ABS(E21)-(F21+F22)/2+10>0,IF(D21<0,-(ABS(D21)-ABS(E21)-(F21+F22)/2+10),D21-ABS(E21)-(F21+F22)/2+10),0)),0) -> 0 | K21: =IF(AND(J21>0,J22>0),IF(OR(J21>10,J21<0,J22>10,J22<0),"Fehler",IF(ABS(H21)-ABS(I21)-(J21+J22)/2+10>0,IF(H21<0,-(ABS(H21)-ABS(I21)-(J21+J22)/2+10),H21-ABS(I21)-(J21+J22)/2+10),0)),0) -> 0 | O21: =IF(AND(N21>0,N22>0),IF(OR(N21>10,N21<0,N22>10,N22<0),"Fehler",IF(ABS(L21)-ABS(M21)-(N21+N22)/2+10>0,IF(L21<0,-(ABS(L21)-ABS(M21)-(N21+N22)/2+10),L21-ABS(M21)-(N21+N22)/2+10),0)),0) -> 0 | S21: =IF(AND(R21>0,R22>0),IF(OR(R21>10,R21<0,R22>10,R22<0),"Fehler",IF(ABS(P21)-ABS(Q21)-(R21+R22)/2+10>0,IF(P21<0,-(ABS(P21)-ABS(Q21)-(R21+R22)/2+10),P21-ABS(Q21)-(R21+R22)/2+10),0)),0) -> 0 | W21: =IF(AND(V21>0,V22>0),IF(OR(V21>10,V21<0,V22>10,V22<0),"Fehler",IF(ABS(T21)-ABS(U21)-(V21+V22)/2+10>0,IF(T21<0,-(ABS(T21)-ABS(U21)-(V21+V22)/2+10),T21-ABS(U21)-(V21+V22)/2+10),0)),0) -> 0 | AA21: =IF(AND(Z21>0,Z22>0),IF(OR(Z21>10,Z21<0,Z22>10,Z22<0),"Fehler",IF(ABS(X21)-ABS(Y21)-(Z21+Z22)/2+10>0,IF(X21<0,-(ABS(X21)-ABS(Y21)-(Z21+Z22)/2+10),X21-ABS(Y21)-(Z21+Z22)/2+10),0)),0) -> 0 | AB21: =ABS(G21)+ABS(K21)+ABS(O21)+ABS(S21)+ABS(W21)+ABS(AA21) -> 0
A23: ='Wertungszettel M5'!A21 -> frei 8 | B23: =IF(A23>0,B21,"") -> M5 | C23: =IF(A23<>"", VLOOKUP(A23,'Wertungszettel M5'!A$7:B$36,2,0),"") -> 0 | G23: =IF(AND(F23>0,F24>0),IF(OR(F23>10,F23<0,F24>10,F24<0),"Fehler",IF(ABS(D23)-ABS(E23)-(F23+F24)/2+10>0,IF(D23<0,-(ABS(D23)-ABS(E23)-(F23+F24)/2+10),D23-ABS(E23)-(F23+F24)/2+10),0)),0) -> 0 | K23: =IF(AND(J23>0,J24>0),IF(OR(J23>10,J23<0,J24>10,J24<0),"Fehler",IF(ABS(H23)-ABS(I23)-(J23+J24)/2+10>0,IF(H23<0,-(ABS(H23)-ABS(I23)-(J23+J24)/2+10),H23-ABS(I23)-(J23+J24)/2+10),0)),0) -> 0 | O23: =IF(AND(N23>0,N24>0),IF(OR(N23>10,N23<0,N24>10,N24<0),"Fehler",IF(ABS(L23)-ABS(M23)-(N23+N24)/2+10>0,IF(L23<0,-(ABS(L23)-ABS(M23)-(N23+N24)/2+10),L23-ABS(M23)-(N23+N24)/2+10),0)),0) -> 0 | S23: =IF(AND(R23>0,R24>0),IF(OR(R23>10,R23<0,R24>10,R24<0),"Fehler",IF(ABS(P23)-ABS(Q23)-(R23+R24)/2+10>0,IF(P23<0,-(ABS(P23)-ABS(Q23)-(R23+R24)/2+10),P23-ABS(Q23)-(R23+R24)/2+10),0)),0) -> 0 | W23: =IF(AND(V23>0,V24>0),IF(OR(V23>10,V23<0,V24>10,V24<0),"Fehler",IF(ABS(T23)-ABS(U23)-(V23+V24)/2+10>0,IF(T23<0,-(ABS(T23)-ABS(U23)-(V23+V24)/2+10),T23-ABS(U23)-(V23+V24)/2+10),0)),0) -> 0 | AA23: =IF(AND(Z23>0,Z24>0),IF(OR(Z23>10,Z23<0,Z24>10,Z24<0),"Fehler",IF(ABS(X23)-ABS(Y23)-(Z23+Z24)/2+10>0,IF(X23<0,-(ABS(X23)-ABS(Y23)-(Z23+Z24)/2+10),X23-ABS(Y23)-(Z23+Z24)/2+10),0)),0) -> 0 | AB23: =ABS(G23)+ABS(K23)+ABS(O23)+ABS(S23)+ABS(W23)+ABS(AA23) -> 0
A25: ='Wertungszettel M5'!A23 -> frei 9 | B25: =IF(A25>0,B23,"") -> M5 | C25: =IF(A25<>"", VLOOKUP(A25,'Wertungszettel M5'!A$7:B$36,2,0),"") -> 0 | G25: =IF(AND(F25>0,F26>0),IF(OR(F25>10,F25<0,F26>10,F26<0),"Fehler",IF(ABS(D25)-ABS(E25)-(F25+F26)/2+10>0,IF(D25<0,-(ABS(D25)-ABS(E25)-(F25+F26)/2+10),D25-ABS(E25)-(F25+F26)/2+10),0)),0) -> 0 | K25: =IF(AND(J25>0,J26>0),IF(OR(J25>10,J25<0,J26>10,J26<0),"Fehler",IF(ABS(H25)-ABS(I25)-(J25+J26)/2+10>0,IF(H25<0,-(ABS(H25)-ABS(I25)-(J25+J26)/2+10),H25-ABS(I25)-(J25+J26)/2+10),0)),0) -> 0 | O25: =IF(AND(N25>0,N26>0),IF(OR(N25>10,N25<0,N26>10,N26<0),"Fehler",IF(ABS(L25)-ABS(M25)-(N25+N26)/2+10>0,IF(L25<0,-(ABS(L25)-ABS(M25)-(N25+N26)/2+10),L25-ABS(M25)-(N25+N26)/2+10),0)),0) -> 0 | S25: =IF(AND(R25>0,R26>0),IF(OR(R25>10,R25<0,R26>10,R26<0),"Fehler",IF(ABS(P25)-ABS(Q25)-(R25+R26)/2+10>0,IF(P25<0,-(ABS(P25)-ABS(Q25)-(R25+R26)/2+10),P25-ABS(Q25)-(R25+R26)/2+10),0)),0) -> 0 | W25: =IF(AND(V25>0,V26>0),IF(OR(V25>10,V25<0,V26>10,V26<0),"Fehler",IF(ABS(T25)-ABS(U25)-(V25+V26)/2+10>0,IF(T25<0,-(ABS(T25)-ABS(U25)-(V25+V26)/2+10),T25-ABS(U25)-(V25+V26)/2+10),0)),0) -> 0 | AA25: =IF(AND(Z25>0,Z26>0),IF(OR(Z25>10,Z25<0,Z26>10,Z26<0),"Fehler",IF(ABS(X25)-ABS(Y25)-(Z25+Z26)/2+10>0,IF(X25<0,-(ABS(X25)-ABS(Y25)-(Z25+Z26)/2+10),X25-ABS(Y25)-(Z25+Z26)/2+10),0)),0) -> 0 | AB25: =ABS(G25)+ABS(K25)+ABS(O25)+ABS(S25)+ABS(W25)+ABS(AA25) -> 0
A27: ='Wertungszettel M5'!A25 -> frei 10 | B27: =IF(A27>0,B25,"") -> M5 | C27: =IF(A27<>"", VLOOKUP(A27,'Wertungszettel M5'!A$7:B$36,2,0),"") -> 0 | G27: =IF(AND(F27>0,F28>0),IF(OR(F27>10,F27<0,F28>10,F28<0),"Fehler",IF(ABS(D27)-ABS(E27)-(F27+F28)/2+10>0,IF(D27<0,-(ABS(D27)-ABS(E27)-(F27+F28)/2+10),D27-ABS(E27)-(F27+F28)/2+10),0)),0) -> 0 | K27: =IF(AND(J27>0,J28>0),IF(OR(J27>10,J27<0,J28>10,J28<0),"Fehler",IF(ABS(H27)-ABS(I27)-(J27+J28)/2+10>0,IF(H27<0,-(ABS(H27)-ABS(I27)-(J27+J28)/2+10),H27-ABS(I27)-(J27+J28)/2+10),0)),0) -> 0 | O27: =IF(AND(N27>0,N28>0),IF(OR(N27>10,N27<0,N28>10,N28<0),"Fehler",IF(ABS(L27)-ABS(M27)-(N27+N28)/2+10>0,IF(L27<0,-(ABS(L27)-ABS(M27)-(N27+N28)/2+10),L27-ABS(M27)-(N27+N28)/2+10),0)),0) -> 0 | S27: =IF(AND(R27>0,R28>0),IF(OR(R27>10,R27<0,R28>10,R28<0),"Fehler",IF(ABS(P27)-ABS(Q27)-(R27+R28)/2+10>0,IF(P27<0,-(ABS(P27)-ABS(Q27)-(R27+R28)/2+10),P27-ABS(Q27)-(R27+R28)/2+10),0)),0) -> 0 | W27: =IF(AND(V27>0,V28>0),IF(OR(V27>10,V27<0,V28>10,V28<0),"Fehler",IF(ABS(T27)-ABS(U27)-(V27+V28)/2+10>0,IF(T27<0,-(ABS(T27)-ABS(U27)-(V27+V28)/2+10),T27-ABS(U27)-(V27+V28)/2+10),0)),0) -> 0 | AA27: =IF(AND(Z27>0,Z28>0),IF(OR(Z27>10,Z27<0,Z28>10,Z28<0),"Fehler",IF(ABS(X27)-ABS(Y27)-(Z27+Z28)/2+10>0,IF(X27<0,-(ABS(X27)-ABS(Y27)-(Z27+Z28)/2+10),X27-ABS(Y27)-(Z27+Z28)/2+10),0)),0) -> 0 | AB27: =ABS(G27)+ABS(K27)+ABS(O27)+ABS(S27)+ABS(W27)+ABS(AA27) -> 0
A29: ='Wertungszettel M5'!A27 -> frei 11 | B29: =IF(A29>0,B27,"") -> M5 | C29: =IF(A29<>"", VLOOKUP(A29,'Wertungszettel M5'!A$7:B$36,2,0),"") -> 0 | G29: =IF(AND(F29>0,F30>0),IF(OR(F29>10,F29<0,F30>10,F30<0),"Fehler",IF(ABS(D30)-ABS(E30)-(F29+F30)/2+10>0,IF(D30<0,-(ABS(D30)-ABS(E30)-(F29+F30)/2+10),D29-ABS(E29)-(F29+F30)/2+10),0)),0) -> 0 | K29: =IF(AND(J29>0,J30>0),IF(OR(J29>10,J29<0,J30>10,J30<0),"Fehler",IF(ABS(H30)-ABS(I30)-(J29+J30)/2+10>0,IF(H30<0,-(ABS(H30)-ABS(I30)-(J29+J30)/2+10),H29-ABS(I29)-(J29+J30)/2+10),0)),0) -> 0 | O29: =IF(AND(N29>0,N30>0),IF(OR(N29>10,N29<0,N30>10,N30<0),"Fehler",IF(ABS(L30)-ABS(M30)-(N29+N30)/2+10>0,IF(L30<0,-(ABS(L30)-ABS(M30)-(N29+N30)/2+10),L29-ABS(M29)-(N29+N30)/2+10),0)),0) -> 0 | S29: =IF(AND(R29>0,R30>0),IF(OR(R29>10,R29<0,R30>10,R30<0),"Fehler",IF(ABS(P30)-ABS(Q30)-(R29+R30)/2+10>0,IF(P30<0,-(ABS(P30)-ABS(Q30)-(R29+R30)/2+10),P29-ABS(Q29)-(R29+R30)/2+10),0)),0) -> 0 | W29: =IF(AND(V29>0,V30>0),IF(OR(V29>10,V29<0,V30>10,V30<0),"Fehler",IF(ABS(T30)-ABS(U30)-(V29+V30)/2+10>0,IF(T30<0,-(ABS(T30)-ABS(U30)-(V29+V30)/2+10),T29-ABS(U29)-(V29+V30)/2+10),0)),0) -> 0 | AA29: =IF(AND(Z29>0,Z30>0),IF(OR(Z29>10,Z29<0,Z30>10,Z30<0),"Fehler",IF(ABS(X30)-ABS(Y30)-(Z29+Z30)/2+10>0,IF(X30<0,-(ABS(X30)-ABS(Y30)-(Z29+Z30)/2+10),X29-ABS(Y29)-(Z29+Z30)/2+10),0)),0) -> 0 | AB29: =ABS(G29)+ABS(K29)+ABS(O29)+ABS(S29)+ABS(W29)+ABS(AA29) -> 0
A31: ='Wertungszettel M5'!A29 -> frei 12 | B31: =IF(A31>0,B29,"") -> M5 | C31: =IF(A31<>"", VLOOKUP(A31,'Wertungszettel M5'!A$7:B$36,2,0),"") -> 0 | G31: =IF(AND(F31>0,F32>0),IF(OR(F31>10,F31<0,F32>10,F32<0),"Fehler",IF(ABS(D32)-ABS(E32)-(F31+F32)/2+10>0,IF(D32<0,-(ABS(D32)-ABS(E32)-(F31+F32)/2+10),D31-ABS(E31)-(F31+F32)/2+10),0)),0) -> 0 | K31: =IF(AND(J31>0,J32>0),IF(OR(J31>10,J31<0,J32>10,J32<0),"Fehler",IF(ABS(H32)-ABS(I32)-(J31+J32)/2+10>0,IF(H32<0,-(ABS(H32)-ABS(I32)-(J31+J32)/2+10),H31-ABS(I31)-(J31+J32)/2+10),0)),0) -> 0 | O31: =IF(AND(N31>0,N32>0),IF(OR(N31>10,N31<0,N32>10,N32<0),"Fehler",IF(ABS(L32)-ABS(M32)-(N31+N32)/2+10>0,IF(L32<0,-(ABS(L32)-ABS(M32)-(N31+N32)/2+10),L31-ABS(M31)-(N31+N32)/2+10),0)),0) -> 0 | S31: =IF(AND(R31>0,R32>0),IF(OR(R31>10,R31<0,R32>10,R32<0),"Fehler",IF(ABS(P32)-ABS(Q32)-(R31+R32)/2+10>0,IF(P32<0,-(ABS(P32)-ABS(Q32)-(R31+R32)/2+10),P31-ABS(Q31)-(R31+R32)/2+10),0)),0) -> 0 | W31: =IF(AND(V31>0,V32>0),IF(OR(V31>10,V31<0,V32>10,V32<0),"Fehler",IF(ABS(T32)-ABS(U32)-(V31+V32)/2+10>0,IF(T32<0,-(ABS(T32)-ABS(U32)-(V31+V32)/2+10),T31-ABS(U31)-(V31+V32)/2+10),0)),0) -> 0 | AA31: =IF(AND(Z31>0,Z32>0),IF(OR(Z31>10,Z31<0,Z32>10,Z32<0),"Fehler",IF(ABS(X32)-ABS(Y32)-(Z31+Z32)/2+10>0,IF(X32<0,-(ABS(X32)-ABS(Y32)-(Z31+Z32)/2+10),X31-ABS(Y31)-(Z31+Z32)/2+10),0)),0) -> 0 | AB31: =ABS(G31)+ABS(K31)+ABS(O31)+ABS(S31)+ABS(W31)+ABS(AA31) -> 0
A33: ='Wertungszettel M5'!A31 -> frei 13 | B33: =IF(A33>0,B31,"") -> M5 | C33: =IF(A33<>"", VLOOKUP(A33,'Wertungszettel M5'!A$7:B$36,2,0),"") -> 0 | G33: =IF(AND(F33>0,F34>0),IF(OR(F33>10,F33<0,F34>10,F34<0),"Fehler",IF(ABS(D34)-ABS(E34)-(F33+F34)/2+10>0,IF(D34<0,-(ABS(D34)-ABS(E34)-(F33+F34)/2+10),D33-ABS(E33)-(F33+F34)/2+10),0)),0) -> 0 | K33: =IF(AND(J33>0,J34>0),IF(OR(J33>10,J33<0,J34>10,J34<0),"Fehler",IF(ABS(H34)-ABS(I34)-(J33+J34)/2+10>0,IF(H34<0,-(ABS(H34)-ABS(I34)-(J33+J34)/2+10),H33-ABS(I33)-(J33+J34)/2+10),0)),0) -> 0 | O33: =IF(AND(N33>0,N34>0),IF(OR(N33>10,N33<0,N34>10,N34<0),"Fehler",IF(ABS(L34)-ABS(M34)-(N33+N34)/2+10>0,IF(L34<0,-(ABS(L34)-ABS(M34)-(N33+N34)/2+10),L33-ABS(M33)-(N33+N34)/2+10),0)),0) -> 0 | S33: =IF(AND(R33>0,R34>0),IF(OR(R33>10,R33<0,R34>10,R34<0),"Fehler",IF(ABS(P34)-ABS(Q34)-(R33+R34)/2+10>0,IF(P34<0,-(ABS(P34)-ABS(Q34)-(R33+R34)/2+10),P33-ABS(Q33)-(R33+R34)/2+10),0)),0) -> 0 | W33: =IF(AND(V33>0,V34>0),IF(OR(V33>10,V33<0,V34>10,V34<0),"Fehler",IF(ABS(T34)-ABS(U34)-(V33+V34)/2+10>0,IF(T34<0,-(ABS(T34)-ABS(U34)-(V33+V34)/2+10),T33-ABS(U33)-(V33+V34)/2+10),0)),0) -> 0 | AA33: =IF(AND(Z33>0,Z34>0),IF(OR(Z33>10,Z33<0,Z34>10,Z34<0),"Fehler",IF(ABS(X34)-ABS(Y34)-(Z33+Z34)/2+10>0,IF(X34<0,-(ABS(X34)-ABS(Y34)-(Z33+Z34)/2+10),X33-ABS(Y33)-(Z33+Z34)/2+10),0)),0) -> 0 | AB33: =ABS(G33)+ABS(K33)+ABS(O33)+ABS(S33)+ABS(W33)+ABS(AA33) -> 0
A35: ='Wertungszettel M5'!A33 -> frei 14 | B35: =IF(A35>0,B33,"") -> M5 | C35: =IF(A35<>"", VLOOKUP(A35,'Wertungszettel M5'!A$7:B$36,2,0),"") -> 0 | G35: =IF(AND(F35>0,F36>0),IF(OR(F35>10,F35<0,F36>10,F36<0),"Fehler",IF(ABS(D36)-ABS(E36)-(F35+F36)/2+10>0,IF(D36<0,-(ABS(D36)-ABS(E36)-(F35+F36)/2+10),D35-ABS(E35)-(F35+F36)/2+10),0)),0) -> 0 | K35: =IF(AND(J35>0,J36>0),IF(OR(J35>10,J35<0,J36>10,J36<0),"Fehler",IF(ABS(H36)-ABS(I36)-(J35+J36)/2+10>0,IF(H36<0,-(ABS(H36)-ABS(I36)-(J35+J36)/2+10),H35-ABS(I35)-(J35+J36)/2+10),0)),0) -> 0 | O35: =IF(AND(N35>0,N36>0),IF(OR(N35>10,N35<0,N36>10,N36<0),"Fehler",IF(ABS(L36)-ABS(M36)-(N35+N36)/2+10>0,IF(L36<0,-(ABS(L36)-ABS(M36)-(N35+N36)/2+10),L35-ABS(M35)-(N35+N36)/2+10),0)),0) -> 0 | S35: =IF(AND(R35>0,R36>0),IF(OR(R35>10,R35<0,R36>10,R36<0),"Fehler",IF(ABS(P36)-ABS(Q36)-(R35+R36)/2+10>0,IF(P36<0,-(ABS(P36)-ABS(Q36)-(R35+R36)/2+10),P35-ABS(Q35)-(R35+R36)/2+10),0)),0) -> 0 | W35: =IF(AND(V35>0,V36>0),IF(OR(V35>10,V35<0,V36>10,V36<0),"Fehler",IF(ABS(T36)-ABS(U36)-(V35+V36)/2+10>0,IF(T36<0,-(ABS(T36)-ABS(U36)-(V35+V36)/2+10),T35-ABS(U35)-(V35+V36)/2+10),0)),0) -> 0 | AA35: =IF(AND(Z35>0,Z36>0),IF(OR(Z35>10,Z35<0,Z36>10,Z36<0),"Fehler",IF(ABS(X36)-ABS(Y36)-(Z35+Z36)/2+10>0,IF(X36<0,-(ABS(X36)-ABS(Y36)-(Z35+Z36)/2+10),X35-ABS(Y35)-(Z35+Z36)/2+10),0)),0) -> 0 | AB35: =ABS(G35)+ABS(K35)+ABS(O35)+ABS(S35)+ABS(W35)+ABS(AA35) -> 0
A37: ='Wertungszettel M5'!A35 -> frei 15 | B37: =IF(A37>0,B35,"") -> M5 | C37: =IF(A37<>"", VLOOKUP(A37,'Wertungszettel M5'!A$7:B$36,2,0),"") -> 0 | G37: =IF(AND(F37>0,F38>0),IF(OR(F37>10,F37<0,F38>10,F38<0),"Fehler",IF(ABS(D38)-ABS(E38)-(F37+F38)/2+10>0,IF(D38<0,-(ABS(D38)-ABS(E38)-(F37+F38)/2+10),D37-ABS(E37)-(F37+F38)/2+10),0)),0) -> 0 | K37: =IF(AND(J37>0,J38>0),IF(OR(J37>10,J37<0,J38>10,J38<0),"Fehler",IF(ABS(H38)-ABS(I38)-(J37+J38)/2+10>0,IF(H38<0,-(ABS(H38)-ABS(I38)-(J37+J38)/2+10),H37-ABS(I37)-(J37+J38)/2+10),0)),0) -> 0 | O37: =IF(AND(N37>0,N38>0),IF(OR(N37>10,N37<0,N38>10,N38<0),"Fehler",IF(ABS(L38)-ABS(M38)-(N37+N38)/2+10>0,IF(L38<0,-(ABS(L38)-ABS(M38)-(N37+N38)/2+10),L37-ABS(M37)-(N37+N38)/2+10),0)),0) -> 0 | S37: =IF(AND(R37>0,R38>0),IF(OR(R37>10,R37<0,R38>10,R38<0),"Fehler",IF(ABS(P38)-ABS(Q38)-(R37+R38)/2+10>0,IF(P38<0,-(ABS(P38)-ABS(Q38)-(R37+R38)/2+10),P37-ABS(Q37)-(R37+R38)/2+10),0)),0) -> 0 | W37: =IF(AND(V37>0,V38>0),IF(OR(V37>10,V37<0,V38>10,V38<0),"Fehler",IF(ABS(T38)-ABS(U38)-(V37+V38)/2+10>0,IF(T38<0,-(ABS(T38)-ABS(U38)-(V37+V38)/2+10),T37-ABS(U37)-(V37+V38)/2+10),0)),0) -> 0 | AA37: =IF(AND(Z37>0,Z38>0),IF(OR(Z37>10,Z37<0,Z38>10,Z38<0),"Fehler",IF(ABS(X38)-ABS(Y38)-(Z37+Z38)/2+10>0,IF(X38<0,-(ABS(X38)-ABS(Y38)-(Z37+Z38)/2+10),X37-ABS(Y37)-(Z37+Z38)/2+10),0)),0) -> 0 | AB37: =ABS(G37)+ABS(K37)+ABS(O37)+ABS(S37)+ABS(W37)+ABS(AA37) -> 0
G40: =SUM(LARGE(G9:G38,1),LARGE(G9:G38,2),LARGE(G9:G38,3)) -> 0 | K40: =SUM(LARGE(K9:K38,1),LARGE(K9:K38,2),LARGE(K9:K38,3)) -> 0 | O40: =SUM(LARGE(O9:O38,1),LARGE(O9:O38,2),LARGE(O9:O38,3)) -> 0 | S40: =SUM(LARGE(S9:S38,1),LARGE(S9:S38,2),LARGE(S9:S38,3)) -> 0 | W40: =SUM(LARGE(W9:W38,1),LARGE(W9:W38,2),LARGE(W9:W38,3)) -> 0 | AA40: =SUM(LARGE(AA9:AA38,1),LARGE(AA9:AA38,2),LARGE(AA9:AA38,3)) -> 0 | AB40: =SUM(G40,K40,O40,S40,W40,AA40) -> 0

Sheet M6
A1: Wettkampfbogen | M1: Datum: | O1: ='INFO Blatt'!B13 -> 2019-02-16
M3: Ort: | O3: ='INFO Blatt'!B11 -> Hehlen
N5: Liga: | O5: ='INFO Blatt'!B7 -> Einsteigerliga
A7: Name | B7: Verein | C7: Jg | D7: Boden | H7: Pferd | L7: Ringe | P7: Sprung | T7: Barren | X7: Reck | AB7: Ges.
D8: D-Note | E8: Abzug OK | F8: E- Abzug | G8: Note | H8: D-Note | I8: Abzug OK | J8: E- Abzug | K8: Note | L8: D-Note | M8: Abzug OK | N8: E-Abzug | O8: Note | P8: D-Note | Q8: Abzug OK | R8: E-Abzug | S8: Note | T8: D-Note | U8: Abzug OK | V8: E-Abzug | W8: Note | X8: D-Note | Y8: Abzug OK | Z8: E-Abzug | AA8: Note
A9: ='Wertungszettel M6'!A7 -> frei 1 | B9: =Formeln!A10 -> M6 | C9: =IF(A9<>"", VLOOKUP(A9,'Wertungszettel M6'!A$7:B$36,2,0),"") -> 0 | G9: =IF(AND(F9>0,F10>0),IF(OR(F9>10,F9<0,F10>10,F10<0),"Fehler",IF(ABS(D9)-ABS(E9)-(F9+F10)/2+10>0,IF(D9<0,-(ABS(D9)-ABS(E9)-(F9+F10)/2+10),D9-ABS(E9)-(F9+F10)/2+10),0)),0) -> 0 | K9: =IF(AND(J9>0,J10>0),IF(OR(J9>10,J9<0,J10>10,J10<0),"Fehler",IF(ABS(H9)-ABS(I9)-(J9+J10)/2+10>0,IF(H9<0,-(ABS(H9)-ABS(I9)-(J9+J10)/2+10),H9-ABS(I9)-(J9+J10)/2+10),0)),0) -> 0 | O9: =IF(AND(N9>0,N10>0),IF(OR(N9>10,N9<0,N10>10,N10<0),"Fehler",IF(ABS(L9)-ABS(M9)-(N9+N10)/2+10>0,IF(L9<0,-(ABS(L9)-ABS(M9)-(N9+N10)/2+10),L9-ABS(M9)-(N9+N10)/2+10),0)),0) -> 0 | S9: =IF(AND(R9>0,R10>0),IF(OR(R9>10,R9<0,R10>10,R10<0),"Fehler",IF(ABS(P9)-ABS(Q9)-(R9+R10)/2+10>0,IF(P9<0,-(ABS(P9)-ABS(Q9)-(R9+R10)/2+10),P9-ABS(Q9)-(R9+R10)/2+10),0)),0) -> 0 | W9: =IF(AND(V9>0,V10>0),IF(OR(V9>10,V9<0,V10>10,V10<0),"Fehler",IF(ABS(T9)-ABS(U9)-(V9+V10)/2+10>0,IF(T9<0,-(ABS(T9)-ABS(U9)-(V9+V10)/2+10),T9-ABS(U9)-(V9+V10)/2+10),0)),0) -> 0 | AA9: =IF(AND(Z9>0,Z10>0),IF(OR(Z9>10,Z9<0,Z10>10,Z10<0),"Fehler",IF(ABS(X9)-ABS(Y9)-(Z9+Z10)/2+10>0,IF(X9<0,-(ABS(X9)-ABS(Y9)-(Z9+Z10)/2+10),X9-ABS(Y9)-(Z9+Z10)/2+10),0)),0) -> 0 | AB9: =ABS(G9)+ABS(K9)+ABS(O9)+ABS(S9)+ABS(W9)+ABS(AA9) -> 0
A11: ='Wertungszettel M6'!A9 -> frei 2 | B11: =IF(A11>0,B9,"") -> M6 | C11: =IF(A11<>"", VLOOKUP(A11,'Wertungszettel M6'!A$7:B$36,2,0),"") -> 0 | G11: =IF(AND(F11>0,F12>0),IF(OR(F11>10,F11<0,F12>10,F12<0),"Fehler",IF(ABS(D11)-ABS(E11)-(F11+F12)/2+10>0,IF(D11<0,-(ABS(D11)-ABS(E11)-(F11+F12)/2+10),D11-ABS(E11)-(F11+F12)/2+10),0)),0) -> 0 | K11: =IF(AND(J11>0,J12>0),IF(OR(J11>10,J11<0,J12>10,J12<0),"Fehler",IF(ABS(H11)-ABS(I11)-(J11+J12)/2+10>0,IF(H11<0,-(ABS(H11)-ABS(I11)-(J11+J12)/2+10),H11-ABS(I11)-(J11+J12)/2+10),0)),0) -> 0 | O11: =IF(AND(N11>0,N12>0),IF(OR(N11>10,N11<0,N12>10,N12<0),"Fehler",IF(ABS(L11)-ABS(M11)-(N11+N12)/2+10>0,IF(L11<0,-(ABS(L11)-ABS(M11)-(N11+N12)/2+10),L11-ABS(M11)-(N11+N12)/2+10),0)),0) -> 0 | S11: =IF(AND(R11>0,R12>0),IF(OR(R11>10,R11<0,R12>10,R12<0),"Fehler",IF(ABS(P11)-ABS(Q11)-(R11+R12)/2+10>0,IF(P11<0,-(ABS(P11)-ABS(Q11)-(R11+R12)/2+10),P11-ABS(Q11)-(R11+R12)/2+10),0)),0) -> 0 | W11: =IF(AND(V11>0,V12>0),IF(OR(V11>10,V11<0,V12>10,V12<0),"Fehler",IF(ABS(T11)-ABS(U11)-(V11+V12)/2+10>0,IF(T11<0,-(ABS(T11)-ABS(U11)-(V11+V12)/2+10),T11-ABS(U11)-(V11+V12)/2+10),0)),0) -> 0 | AA11: =IF(AND(Z11>0,Z12>0),IF(OR(Z11>10,Z11<0,Z12>10,Z12<0),"Fehler",IF(ABS(X11)-ABS(Y11)-(Z11+Z12)/2+10>0,IF(X11<0,-(ABS(X11)-ABS(Y11)-(Z11+Z12)/2+10),X11-ABS(Y11)-(Z11+Z12)/2+10),0)),0) -> 0 | AB11: =ABS(G11)+ABS(K11)+ABS(O11)+ABS(S11)+ABS(W11)+ABS(AA11) -> 0 | AF11: Boden | AG11: =IF(G40>1,1,0) -> 0
AF12: pauschenpferd | AG12: =IF(K40>1,1,0) -> 0
A13: ='Wertungszettel M6'!A11 -> frei 3 | B13: =IF(A13>0,B11,"") -> M6 | C13: =IF(A13<>"", VLOOKUP(A13,'Wertungszettel M6'!A$7:B$36,2,0),"") -> 0 | G13: =IF(AND(F13>0,F14>0),IF(OR(F13>10,F13<0,F14>10,F14<0),"Fehler",IF(ABS(D13)-ABS(E13)-(F13+F14)/2+10>0,IF(D13<0,-(ABS(D13)-ABS(E13)-(F13+F14)/2+10),D13-ABS(E13)-(F13+F14)/2+10),0)),0) -> 0 | K13: =IF(AND(J13>0,J14>0),IF(OR(J13>10,J13<0,J14>10,J14<0),"Fehler",IF(ABS(H13)-ABS(I13)-(J13+J14)/2+10>0,IF(H13<0,-(ABS(H13)-ABS(I13)-(J13+J14)/2+10),H13-ABS(I13)-(J13+J14)/2+10),0)),0) -> 0 | O13: =IF(AND(N13>0,N14>0),IF(OR(N13>10,N13<0,N14>10,N14<0),"Fehler",IF(ABS(L13)-ABS(M13)-(N13+N14)/2+10>0,IF(L13<0,-(ABS(L13)-ABS(M13)-(N13+N14)/2+10),L13-ABS(M13)-(N13+N14)/2+10),0)),0) -> 0 | S13: =IF(AND(R13>0,R14>0),IF(OR(R13>10,R13<0,R14>10,R14<0),"Fehler",IF(ABS(P13)-ABS(Q13)-(R13+R14)/2+10>0,IF(P13<0,-(ABS(P13)-ABS(Q13)-(R13+R14)/2+10),P13-ABS(Q13)-(R13+R14)/2+10),0)),0) -> 0 | W13: =IF(AND(V13>0,V14>0),IF(OR(V13>10,V13<0,V14>10,V14<0),"Fehler",IF(ABS(T13)-ABS(U13)-(V13+V14)/2+10>0,IF(T13<0,-(ABS(T13)-ABS(U13)-(V13+V14)/2+10),T13-ABS(U13)-(V13+V14)/2+10),0)),0) -> 0 | AA13: =IF(AND(Z13>0,Z14>0),IF(OR(Z13>10,Z13<0,Z14>10,Z14<0),"Fehler",IF(ABS(X13)-ABS(Y13)-(Z13+Z14)/2+10>0,IF(X13<0,-(ABS(X13)-ABS(Y13)-(Z13+Z14)/2+10),X13-ABS(Y13)-(Z13+Z14)/2+10),0)),0) -> 0 | AB13: =ABS(G13)+ABS(K13)+ABS(O13)+ABS(S13)+ABS(W13)+ABS(AA13) -> 0 | AF13: ringe | AG13: =IF(O40>1,1,0) -> 0
AF14: sprung | AG14: =IF(S40>1,1,0) -> 0
A15: ='Wertungszettel M6'!A13 -> frei 4 | B15: =IF(A15>0,B13,"") -> M6 | C15: =IF(A15<>"", VLOOKUP(A15,'Wertungszettel M6'!A$7:B$36,2,0),"") -> 0 | G15: =IF(AND(F15>0,F16>0),IF(OR(F15>10,F15<0,F16>10,F16<0),"Fehler",IF(ABS(D15)-ABS(E15)-(F15+F16)/2+10>0,IF(D15<0,-(ABS(D15)-ABS(E15)-(F15+F16)/2+10),D15-ABS(E15)-(F15+F16)/2+10),0)),0) -> 0 | K15: =IF(AND(J15>0,J16>0),IF(OR(J15>10,J15<0,J16>10,J16<0),"Fehler",IF(ABS(H15)-ABS(I15)-(J15+J16)/2+10>0,IF(H15<0,-(ABS(H15)-ABS(I15)-(J15+J16)/2+10),H15-ABS(I15)-(J15+J16)/2+10),0)),0) -> 0 | O15: =IF(AND(N15>0,N16>0),IF(OR(N15>10,N15<0,N16>10,N16<0),"Fehler",IF(ABS(L15)-ABS(M15)-(N15+N16)/2+10>0,IF(L15<0,-(ABS(L15)-ABS(M15)-(N15+N16)/2+10),L15-ABS(M15)-(N15+N16)/2+10),0)),0) -> 0 | S15: =IF(AND(R15>0,R16>0),IF(OR(R15>10,R15<0,R16>10,R16<0),"Fehler",IF(ABS(P15)-ABS(Q15)-(R15+R16)/2+10>0,IF(P15<0,-(ABS(P15)-ABS(Q15)-(R15+R16)/2+10),P15-ABS(Q15)-(R15+R16)/2+10),0)),0) -> 0 | W15: =IF(AND(V15>0,V16>0),IF(OR(V15>10,V15<0,V16>10,V16<0),"Fehler",IF(ABS(T15)-ABS(U15)-(V15+V16)/2+10>0,IF(T15<0,-(ABS(T15)-ABS(U15)-(V15+V16)/2+10),T15-ABS(U15)-(V15+V16)/2+10),0)),0) -> 0 | AA15: =IF(AND(Z15>0,Z16>0),IF(OR(Z15>10,Z15<0,Z16>10,Z16<0),"Fehler",IF(ABS(X15)-ABS(Y15)-(Z15+Z16)/2+10>0,IF(X15<0,-(ABS(X15)-ABS(Y15)-(Z15+Z16)/2+10),X15-ABS(Y15)-(Z15+Z16)/2+10),0)),0) -> 0 | AB15: =ABS(G15)+ABS(K15)+ABS(O15)+ABS(S15)+ABS(W15)+ABS(AA15) -> 0 | AF15: Barren | AG15: =IF(W40>1,1,0) -> 0
AF16: Reck | AG16: =IF(AA40>1,1,0) -> 0
A17: ='Wertungszettel M6'!A15 -> frei 5 | B17: =IF(A17>0,B15,"") -> M6 | C17: =IF(A17<>"", VLOOKUP(A17,'Wertungszettel M6'!A$7:B$36,2,0),"") -> 0 | G17: =IF(AND(F17>0,F18>0),IF(OR(F17>10,F17<0,F18>10,F18<0),"Fehler",IF(ABS(D17)-ABS(E17)-(F17+F18)/2+10>0,IF(D17<0,-(ABS(D17)-ABS(E17)-(F17+F18)/2+10),D17-ABS(E17)-(F17+F18)/2+10),0)),0) -> 0 | K17: =IF(AND(J17>0,J18>0),IF(OR(J17>10,J17<0,J18>10,J18<0),"Fehler",IF(ABS(H17)-ABS(I17)-(J17+J18)/2+10>0,IF(H17<0,-(ABS(H17)-ABS(I17)-(J17+J18)/2+10),H17-ABS(I17)-(J17+J18)/2+10),0)),0) -> 0 | O17: =IF(AND(N17>0,N18>0),IF(OR(N17>10,N17<0,N18>10,N18<0),"Fehler",IF(ABS(L17)-ABS(M17)-(N17+N18)/2+10>0,IF(L17<0,-(ABS(L17)-ABS(M17)-(N17+N18)/2+10),L17-ABS(M17)-(N17+N18)/2+10),0)),0) -> 0 | S17: =IF(AND(R17>0,R18>0),IF(OR(R17>10,R17<0,R18>10,R18<0),"Fehler",IF(ABS(P17)-ABS(Q17)-(R17+R18)/2+10>0,IF(P17<0,-(ABS(P17)-ABS(Q17)-(R17+R18)/2+10),P17-ABS(Q17)-(R17+R18)/2+10),0)),0) -> 0 | W17: =IF(AND(V17>0,V18>0),IF(OR(V17>10,V17<0,V18>10,V18<0),"Fehler",IF(ABS(T17)-ABS(U17)-(V17+V18)/2+10>0,IF(T17<0,-(ABS(T17)-ABS(U17)-(V17+V18)/2+10),T17-ABS(U17)-(V17+V18)/2+10),0)),0) -> 0 | AA17: =IF(AND(Z17>0,Z18>0),IF(OR(Z17>10,Z17<0,Z18>10,Z18<0),"Fehler",IF(ABS(X17)-ABS(Y17)-(Z17+Z18)/2+10>0,IF(X17<0,-(ABS(X17)-ABS(Y17)-(Z17+Z18)/2+10),X17-ABS(Y17)-(Z17+Z18)/2+10),0)),0) -> 0 | AB17: =ABS(G17)+ABS(K17)+ABS(O17)+ABS(S17)+ABS(W17)+ABS(AA17) -> 0
AF18: Gesamt | AG18: =SUM(AG11:AG17) -> 0
A19: ='Wertungszettel M6'!A17 -> frei 6 | B19: =IF(A19>0,B17,"") -> M6 | C19: =IF(A19<>"", VLOOKUP(A19,'Wertungszettel M6'!A$7:B$36,2,0),"") -> 0 | G19: =IF(AND(F19>0,F20>0),IF(OR(F19>10,F19<0,F20>10,F20<0),"Fehler",IF(ABS(D19)-ABS(E19)-(F19+F20)/2+10>0,IF(D19<0,-(ABS(D19)-ABS(E19)-(F19+F20)/2+10),D19-ABS(E19)-(F19+F20)/2+10),0)),0) -> 0 | K19: =IF(AND(J19>0,J20>0),IF(OR(J19>10,J19<0,J20>10,J20<0),"Fehler",IF(ABS(H19)-ABS(I19)-(J19+J20)/2+10>0,IF(H19<0,-(ABS(H19)-ABS(I19)-(J19+J20)/2+10),H19-ABS(I19)-(J19+J20)/2+10),0)),0) -> 0 | O19: =IF(AND(N19>0,N20>0),IF(OR(N19>10,N19<0,N20>10,N20<0),"Fehler",IF(ABS(L19)-ABS(M19)-(N19+N20)/2+10>0,IF(L19<0,-(ABS(L19)-ABS(M19)-(N19+N20)/2+10),L19-ABS(M19)-(N19+N20)/2+10),0)),0) -> 0 | S19: =IF(AND(R19>0,R20>0),IF(OR(R19>10,R19<0,R20>10,R20<0),"Fehler",IF(ABS(P19)-ABS(Q19)-(R19+R20)/2+10>0,IF(P19<0,-(ABS(P19)-ABS(Q19)-(R19+R20)/2+10),P19-ABS(Q19)-(R19+R20)/2+10),0)),0) -> 0 | W19: =IF(AND(V19>0,V20>0),IF(OR(V19>10,V19<0,V20>10,V20<0),"Fehler",IF(ABS(T19)-ABS(U19)-(V19+V20)/2+10>0,IF(T19<0,-(ABS(T19)-ABS(U19)-(V19+V20)/2+10),T19-ABS(U19)-(V19+V20)/2+10),0)),0) -> 0 | AA19: =IF(AND(Z19>0,Z20>0),IF(OR(Z19>10,Z19<0,Z20>10,Z20<0),"Fehler",IF(ABS(X19)-ABS(Y19)-(Z19+Z20)/2+10>0,IF(X19<0,-(ABS(X19)-ABS(Y19)-(Z19+Z20)/2+10),X19-ABS(Y19)-(Z19+Z20)/2+10),0)),0) -> 0 | AB19: =ABS(G19)+ABS(K19)+ABS(O19)+ABS(S19)+ABS(W19)+ABS(AA19) -> 0
A21: ='Wertungszettel M6'!A19 -> frei 7 | B21: =IF(A21>0,B19,"") -> M6 | C21: =IF(A21<>"", VLOOKUP(A21,'Wertungszettel M6'!A$7:B$36,2,0),"") -> 0 | G21: =IF(AND(F21>0,F22>0),IF(OR(F21>10,F21<0,F22>10,F22<0),"Fehler",IF(ABS(D21)-ABS(E21)-(F21+F22)/2+10>0,IF(D21<0,-(ABS(D21)-ABS(E21)-(F21+F22)/2+10),D21-ABS(E21)-(F21+F22)/2+10),0)),0) -> 0 | K21: =IF(AND(J21>0,J22>0),IF(OR(J21>10,J21<0,J22>10,J22<0),"Fehler",IF(ABS(H21)-ABS(I21)-(J21+J22)/2+10>0,IF(H21<0,-(ABS(H21)-ABS(I21)-(J21+J22)/2+10),H21-ABS(I21)-(J21+J22)/2+10),0)),0) -> 0 | O21: =IF(AND(N21>0,N22>0),IF(OR(N21>10,N21<0,N22>10,N22<0),"Fehler",IF(ABS(L21)-ABS(M21)-(N21+N22)/2+10>0,IF(L21<0,-(ABS(L21)-ABS(M21)-(N21+N22)/2+10),L21-ABS(M21)-(N21+N22)/2+10),0)),0) -> 0 | S21: =IF(AND(R21>0,R22>0),IF(OR(R21>10,R21<0,R22>10,R22<0),"Fehler",IF(ABS(P21)-ABS(Q21)-(R21+R22)/2+10>0,IF(P21<0,-(ABS(P21)-ABS(Q21)-(R21+R22)/2+10),P21-ABS(Q21)-(R21+R22)/2+10),0)),0) -> 0 | W21: =IF(AND(V21>0,V22>0),IF(OR(V21>10,V21<0,V22>10,V22<0),"Fehler",IF(ABS(T21)-ABS(U21)-(V21+V22)/2+10>0,IF(T21<0,-(ABS(T21)-ABS(U21)-(V21+V22)/2+10),T21-ABS(U21)-(V21+V22)/2+10),0)),0) -> 0 | AA21: =IF(AND(Z21>0,Z22>0),IF(OR(Z21>10,Z21<0,Z22>10,Z22<0),"Fehler",IF(ABS(X21)-ABS(Y21)-(Z21+Z22)/2+10>0,IF(X21<0,-(ABS(X21)-ABS(Y21)-(Z21+Z22)/2+10),X21-ABS(Y21)-(Z21+Z22)/2+10),0)),0) -> 0 | AB21: =ABS(G21)+ABS(K21)+ABS(O21)+ABS(S21)+ABS(W21)+ABS(AA21) -> 0
A23: ='Wertungszettel M6'!A21 -> frei 8 | B23: =IF(A23>0,B21,"") -> M6 | C23: =IF(A23<>"", VLOOKUP(A23,'Wertungszettel M6'!A$7:B$36,2,0),"") -> 0 | G23: =IF(AND(F23>0,F24>0),IF(OR(F23>10,F23<0,F24>10,F24<0),"Fehler",IF(ABS(D23)-ABS(E23)-(F23+F24)/2+10>0,IF(D23<0,-(ABS(D23)-ABS(E23)-(F23+F24)/2+10),D23-ABS(E23)-(F23+F24)/2+10),0)),0) -> 0 | K23: =IF(AND(J23>0,J24>0),IF(OR(J23>10,J23<0,J24>10,J24<0),"Fehler",IF(ABS(H23)-ABS(I23)-(J23+J24)/2+10>0,IF(H23<0,-(ABS(H23)-ABS(I23)-(J23+J24)/2+10),H23-ABS(I23)-(J23+J24)/2+10),0)),0) -> 0 | O23: =IF(AND(N23>0,N24>0),IF(OR(N23>10,N23<0,N24>10,N24<0),"Fehler",IF(ABS(L23)-ABS(M23)-(N23+N24)/2+10>0,IF(L23<0,-(ABS(L23)-ABS(M23)-(N23+N24)/2+10),L23-ABS(M23)-(N23+N24)/2+10),0)),0) -> 0 | S23: =IF(AND(R23>0,R24>0),IF(OR(R23>10,R23<0,R24>10,R24<0),"Fehler",IF(ABS(P23)-ABS(Q23)-(R23+R24)/2+10>0,IF(P23<0,-(ABS(P23)-ABS(Q23)-(R23+R24)/2+10),P23-ABS(Q23)-(R23+R24)/2+10),0)),0) -> 0 | W23: =IF(AND(V23>0,V24>0),IF(OR(V23>10,V23<0,V24>10,V24<0),"Fehler",IF(ABS(T23)-ABS(U23)-(V23+V24)/2+10>0,IF(T23<0,-(ABS(T23)-ABS(U23)-(V23+V24)/2+10),T23-ABS(U23)-(V23+V24)/2+10),0)),0) -> 0 | AA23: =IF(AND(Z23>0,Z24>0),IF(OR(Z23>10,Z23<0,Z24>10,Z24<0),"Fehler",IF(ABS(X23)-ABS(Y23)-(Z23+Z24)/2+10>0,IF(X23<0,-(ABS(X23)-ABS(Y23)-(Z23+Z24)/2+10),X23-ABS(Y23)-(Z23+Z24)/2+10),0)),0) -> 0 | AB23: =ABS(G23)+ABS(K23)+ABS(O23)+ABS(S23)+ABS(W23)+ABS(AA23) -> 0
A25: ='Wertungszettel M6'!A23 -> frei 9 | B25: =IF(A25>0,B23,"") -> M6 | C25: =IF(A25<>"", VLOOKUP(A25,'Wertungszettel M6'!A$7:B$36,2,0),"") -> 0 | G25: =IF(AND(F25>0,F26>0),IF(OR(F25>10,F25<0,F26>10,F26<0),"Fehler",IF(ABS(D25)-ABS(E25)-(F25+F26)/2+10>0,IF(D25<0,-(ABS(D25)-ABS(E25)-(F25+F26)/2+10),D25-ABS(E25)-(F25+F26)/2+10),0)),0) -> 0 | K25: =IF(AND(J25>0,J26>0),IF(OR(J25>10,J25<0,J26>10,J26<0),"Fehler",IF(ABS(H25)-ABS(I25)-(J25+J26)/2+10>0,IF(H25<0,-(ABS(H25)-ABS(I25)-(J25+J26)/2+10),H25-ABS(I25)-(J25+J26)/2+10),0)),0) -> 0 | O25: =IF(AND(N25>0,N26>0),IF(OR(N25>10,N25<0,N26>10,N26<0),"Fehler",IF(ABS(L25)-ABS(M25)-(N25+N26)/2+10>0,IF(L25<0,-(ABS(L25)-ABS(M25)-(N25+N26)/2+10),L25-ABS(M25)-(N25+N26)/2+10),0)),0) -> 0 | S25: =IF(AND(R25>0,R26>0),IF(OR(R25>10,R25<0,R26>10,R26<0),"Fehler",IF(ABS(P25)-ABS(Q25)-(R25+R26)/2+10>0,IF(P25<0,-(ABS(P25)-ABS(Q25)-(R25+R26)/2+10),P25-ABS(Q25)-(R25+R26)/2+10),0)),0) -> 0 | W25: =IF(AND(V25>0,V26>0),IF(OR(V25>10,V25<0,V26>10,V26<0),"Fehler",IF(ABS(T25)-ABS(U25)-(V25+V26)/2+10>0,IF(T25<0,-(ABS(T25)-ABS(U25)-(V25+V26)/2+10),T25-ABS(U25)-(V25+V26)/2+10),0)),0) -> 0 | AA25: =IF(AND(Z25>0,Z26>0),IF(OR(Z25>10,Z25<0,Z26>10,Z26<0),"Fehler",IF(ABS(X25)-ABS(Y25)-(Z25+Z26)/2+10>0,IF(X25<0,-(ABS(X25)-ABS(Y25)-(Z25+Z26)/2+10),X25-ABS(Y25)-(Z25+Z26)/2+10),0)),0) -> 0 | AB25: =ABS(G25)+ABS(K25)+ABS(O25)+ABS(S25)+ABS(W25)+ABS(AA25) -> 0
A27: ='Wertungszettel M6'!A25 -> frei 10 | B27: =IF(A27>0,B25,"") -> M6 | C27: =IF(A27<>"", VLOOKUP(A27,'Wertungszettel M6'!A$7:B$36,2,0),"") -> 0 | G27: =IF(AND(F27>0,F28>0),IF(OR(F27>10,F27<0,F28>10,F28<0),"Fehler",IF(ABS(D27)-ABS(E27)-(F27+F28)/2+10>0,IF(D27<0,-(ABS(D27)-ABS(E27)-(F27+F28)/2+10),D27-ABS(E27)-(F27+F28)/2+10),0)),0) -> 0 | K27: =IF(AND(J27>0,J28>0),IF(OR(J27>10,J27<0,J28>10,J28<0),"Fehler",IF(ABS(H27)-ABS(I27)-(J27+J28)/2+10>0,IF(H27<0,-(ABS(H27)-ABS(I27)-(J27+J28)/2+10),H27-ABS(I27)-(J27+J28)/2+10),0)),0) -> 0 | O27: =IF(AND(N27>0,N28>0),IF(OR(N27>10,N27<0,N28>10,N28<0),"Fehler",IF(ABS(L27)-ABS(M27)-(N27+N28)/2+10>0,IF(L27<0,-(ABS(L27)-ABS(M27)-(N27+N28)/2+10),L27-ABS(M27)-(N27+N28)/2+10),0)),0) -> 0 | S27: =IF(AND(R27>0,R28>0),IF(OR(R27>10,R27<0,R28>10,R28<0),"Fehler",IF(ABS(P27)-ABS(Q27)-(R27+R28)/2+10>0,IF(P27<0,-(ABS(P27)-ABS(Q27)-(R27+R28)/2+10),P27-ABS(Q27)-(R27+R28)/2+10),0)),0) -> 0 | W27: =IF(AND(V27>0,V28>0),IF(OR(V27>10,V27<0,V28>10,V28<0),"Fehler",IF(ABS(T27)-ABS(U27)-(V27+V28)/2+10>0,IF(T27<0,-(ABS(T27)-ABS(U27)-(V27+V28)/2+10),T27-ABS(U27)-(V27+V28)/2+10),0)),0) -> 0 | AA27: =IF(AND(Z27>0,Z28>0),IF(OR(Z27>10,Z27<0,Z28>10,Z28<0),"Fehler",IF(ABS(X27)-ABS(Y27)-(Z27+Z28)/2+10>0,IF(X27<0,-(ABS(X27)-ABS(Y27)-(Z27+Z28)/2+10),X27-ABS(Y27)-(Z27+Z28)/2+10),0)),0) -> 0 | AB27: =ABS(G27)+ABS(K27)+ABS(O27)+ABS(S27)+ABS(W27)+ABS(AA27) -> 0
A29: ='Wertungszettel M6'!A27 -> frei 11 | B29: =IF(A29>0,B27,"") -> M6 | C29: =IF(A29<>"", VLOOKUP(A29,'Wertungszettel M6'!A$7:B$36,2,0),"") -> 0 | G29: =IF(AND(F29>0,F30>0),IF(OR(F29>10,F29<0,F30>10,F30<0),"Fehler",IF(ABS(D30)-ABS(E30)-(F29+F30)/2+10>0,IF(D30<0,-(ABS(D30)-ABS(E30)-(F29+F30)/2+10),D29-ABS(E29)-(F29+F30)/2+10),0)),0) -> 0 | K29: =IF(AND(J29>0,J30>0),IF(OR(J29>10,J29<0,J30>10,J30<0),"Fehler",IF(ABS(H30)-ABS(I30)-(J29+J30)/2+10>0,IF(H30<0,-(ABS(H30)-ABS(I30)-(J29+J30)/2+10),H29-ABS(I29)-(J29+J30)/2+10),0)),0) -> 0 | O29: =IF(AND(N29>0,N30>0),IF(OR(N29>10,N29<0,N30>10,N30<0),"Fehler",IF(ABS(L30)-ABS(M30)-(N29+N30)/2+10>0,IF(L30<0,-(ABS(L30)-ABS(M30)-(N29+N30)/2+10),L29-ABS(M29)-(N29+N30)/2+10),0)),0) -> 0 | S29: =IF(AND(R29>0,R30>0),IF(OR(R29>10,R29<0,R30>10,R30<0),"Fehler",IF(ABS(P30)-ABS(Q30)-(R29+R30)/2+10>0,IF(P30<0,-(ABS(P30)-ABS(Q30)-(R29+R30)/2+10),P29-ABS(Q29)-(R29+R30)/2+10),0)),0) -> 0 | W29: =IF(AND(V29>0,V30>0),IF(OR(V29>10,V29<0,V30>10,V30<0),"Fehler",IF(ABS(T30)-ABS(U30)-(V29+V30)/2+10>0,IF(T30<0,-(ABS(T30)-ABS(U30)-(V29+V30)/2+10),T29-ABS(U29)-(V29+V30)/2+10),0)),0) -> 0 | AA29: =IF(AND(Z29>0,Z30>0),IF(OR(Z29>10,Z29<0,Z30>10,Z30<0),"Fehler",IF(ABS(X30)-ABS(Y30)-(Z29+Z30)/2+10>0,IF(X30<0,-(ABS(X30)-ABS(Y30)-(Z29+Z30)/2+10),X29-ABS(Y29)-(Z29+Z30)/2+10),0)),0) -> 0 | AB29: =ABS(G29)+ABS(K29)+ABS(O29)+ABS(S29)+ABS(W29)+ABS(AA29) -> 0
A31: ='Wertungszettel M6'!A29 -> frei 12 | B31: =IF(A31>0,B29,"") -> M6 | C31: =IF(A31<>"", VLOOKUP(A31,'Wertungszettel M6'!A$7:B$36,2,0),"") -> 0 | G31: =IF(AND(F31>0,F32>0),IF(OR(F31>10,F31<0,F32>10,F32<0),"Fehler",IF(ABS(D32)-ABS(E32)-(F31+F32)/2+10>0,IF(D32<0,-(ABS(D32)-ABS(E32)-(F31+F32)/2+10),D31-ABS(E31)-(F31+F32)/2+10),0)),0) -> 0 | K31: =IF(AND(J31>0,J32>0),IF(OR(J31>10,J31<0,J32>10,J32<0),"Fehler",IF(ABS(H32)-ABS(I32)-(J31+J32)/2+10>0,IF(H32<0,-(ABS(H32)-ABS(I32)-(J31+J32)/2+10),H31-ABS(I31)-(J31+J32)/2+10),0)),0) -> 0 | O31: =IF(AND(N31>0,N32>0),IF(OR(N31>10,N31<0,N32>10,N32<0),"Fehler",IF(ABS(L32)-ABS(M32)-(N31+N32)/2+10>0,IF(L32<0,-(ABS(L32)-ABS(M32)-(N31+N32)/2+10),L31-ABS(M31)-(N31+N32)/2+10),0)),0) -> 0 | S31: =IF(AND(R31>0,R32>0),IF(OR(R31>10,R31<0,R32>10,R32<0),"Fehler",IF(ABS(P32)-ABS(Q32)-(R31+R32)/2+10>0,IF(P32<0,-(ABS(P32)-ABS(Q32)-(R31+R32)/2+10),P31-ABS(Q31)-(R31+R32)/2+10),0)),0) -> 0 | W31: =IF(AND(V31>0,V32>0),IF(OR(V31>10,V31<0,V32>10,V32<0),"Fehler",IF(ABS(T32)-ABS(U32)-(V31+V32)/2+10>0,IF(T32<0,-(ABS(T32)-ABS(U32)-(V31+V32)/2+10),T31-ABS(U31)-(V31+V32)/2+10),0)),0) -> 0 | AA31: =IF(AND(Z31>0,Z32>0),IF(OR(Z31>10,Z31<0,Z32>10,Z32<0),"Fehler",IF(ABS(X32)-ABS(Y32)-(Z31+Z32)/2+10>0,IF(X32<0,-(ABS(X32)-ABS(Y32)-(Z31+Z32)/2+10),X31-ABS(Y31)-(Z31+Z32)/2+10),0)),0) -> 0 | AB31: =ABS(G31)+ABS(K31)+ABS(O31)+ABS(S31)+ABS(W31)+ABS(AA31) -> 0
A33: ='Wertungszettel M6'!A31 -> frei 13 | B33: =IF(A33>0,B31,"") -> M6 | C33: =IF(A33<>"", VLOOKUP(A33,'Wertungszettel M6'!A$7:B$36,2,0),"") -> 0 | G33: =IF(AND(F33>0,F34>0),IF(OR(F33>10,F33<0,F34>10,F34<0),"Fehler",IF(ABS(D34)-ABS(E34)-(F33+F34)/2+10>0,IF(D34<0,-(ABS(D34)-ABS(E34)-(F33+F34)/2+10),D33-ABS(E33)-(F33+F34)/2+10),0)),0) -> 0 | K33: =IF(AND(J33>0,J34>0),IF(OR(J33>10,J33<0,J34>10,J34<0),"Fehler",IF(ABS(H34)-ABS(I34)-(J33+J34)/2+10>0,IF(H34<0,-(ABS(H34)-ABS(I34)-(J33+J34)/2+10),H33-ABS(I33)-(J33+J34)/2+10),0)),0) -> 0 | O33: =IF(AND(N33>0,N34>0),IF(OR(N33>10,N33<0,N34>10,N34<0),"Fehler",IF(ABS(L34)-ABS(M34)-(N33+N34)/2+10>0,IF(L34<0,-(ABS(L34)-ABS(M34)-(N33+N34)/2+10),L33-ABS(M33)-(N33+N34)/2+10),0)),0) -> 0 | S33: =IF(AND(R33>0,R34>0),IF(OR(R33>10,R33<0,R34>10,R34<0),"Fehler",IF(ABS(P34)-ABS(Q34)-(R33+R34)/2+10>0,IF(P34<0,-(ABS(P34)-ABS(Q34)-(R33+R34)/2+10),P33-ABS(Q33)-(R33+R34)/2+10),0)),0) -> 0 | W33: =IF(AND(V33>0,V34>0),IF(OR(V33>10,V33<0,V34>10,V34<0),"Fehler",IF(ABS(T34)-ABS(U34)-(V33+V34)/2+10>0,IF(T34<0,-(ABS(T34)-ABS(U34)-(V33+V34)/2+10),T33-ABS(U33)-(V33+V34)/2+10),0)),0) -> 0 | AA33: =IF(AND(Z33>0,Z34>0),IF(OR(Z33>10,Z33<0,Z34>10,Z34<0),"Fehler",IF(ABS(X34)-ABS(Y34)-(Z33+Z34)/2+10>0,IF(X34<0,-(ABS(X34)-ABS(Y34)-(Z33+Z34)/2+10),X33-ABS(Y33)-(Z33+Z34)/2+10),0)),0) -> 0 | AB33: =ABS(G33)+ABS(K33)+ABS(O33)+ABS(S33)+ABS(W33)+ABS(AA33) -> 0
A35: ='Wertungszettel M6'!A33 -> frei 14 | B35: =IF(A35>0,B33,"") -> M6 | C35: =IF(A35<>"", VLOOKUP(A35,'Wertungszettel M6'!A$7:B$36,2,0),"") -> 0 | G35: =IF(AND(F35>0,F36>0),IF(OR(F35>10,F35<0,F36>10,F36<0),"Fehler",IF(ABS(D36)-ABS(E36)-(F35+F36)/2+10>0,IF(D36<0,-(ABS(D36)-ABS(E36)-(F35+F36)/2+10),D35-ABS(E35)-(F35+F36)/2+10),0)),0) -> 0 | K35: =IF(AND(J35>0,J36>0),IF(OR(J35>10,J35<0,J36>10,J36<0),"Fehler",IF(ABS(H36)-ABS(I36)-(J35+J36)/2+10>0,IF(H36<0,-(ABS(H36)-ABS(I36)-(J35+J36)/2+10),H35-ABS(I35)-(J35+J36)/2+10),0)),0) -> 0 | O35: =IF(AND(N35>0,N36>0),IF(OR(N35>10,N35<0,N36>10,N36<0),"Fehler",IF(ABS(L36)-ABS(M36)-(N35+N36)/2+10>0,IF(L36<0,-(ABS(L36)-ABS(M36)-(N35+N36)/2+10),L35-ABS(M35)-(N35+N36)/2+10),0)),0) -> 0 | S35: =IF(AND(R35>0,R36>0),IF(OR(R35>10,R35<0,R36>10,R36<0),"Fehler",IF(ABS(P36)-ABS(Q36)-(R35+R36)/2+10>0,IF(P36<0,-(ABS(P36)-ABS(Q36)-(R35+R36)/2+10),P35-ABS(Q35)-(R35+R36)/2+10),0)),0) -> 0 | W35: =IF(AND(V35>0,V36>0),IF(OR(V35>10,V35<0,V36>10,V36<0),"Fehler",IF(ABS(T36)-ABS(U36)-(V35+V36)/2+10>0,IF(T36<0,-(ABS(T36)-ABS(U36)-(V35+V36)/2+10),T35-ABS(U35)-(V35+V36)/2+10),0)),0) -> 0 | AA35: =IF(AND(Z35>0,Z36>0),IF(OR(Z35>10,Z35<0,Z36>10,Z36<0),"Fehler",IF(ABS(X36)-ABS(Y36)-(Z35+Z36)/2+10>0,IF(X36<0,-(ABS(X36)-ABS(Y36)-(Z35+Z36)/2+10),X35-ABS(Y35)-(Z35+Z36)/2+10),0)),0) -> 0 | AB35: =ABS(G35)+ABS(K35)+ABS(O35)+ABS(S35)+ABS(W35)+ABS(AA35) -> 0
A37: ='Wertungszettel M6'!A35 -> frei 15 | B37: =IF(A37>0,B35,"") -> M6 | C37: =IF(A37<>"", VLOOKUP(A37,'Wertungszettel M6'!A$7:B$36,2,0),"") -> 0 | G37: =IF(AND(F37>0,F38>0),IF(OR(F37>10,F37<0,F38>10,F38<0),"Fehler",IF(ABS(D38)-ABS(E38)-(F37+F38)/2+10>0,IF(D38<0,-(ABS(D38)-ABS(E38)-(F37+F38)/2+10),D37-ABS(E37)-(F37+F38)/2+10),0)),0) -> 0 | K37: =IF(AND(J37>0,J38>0),IF(OR(J37>10,J37<0,J38>10,J38<0),"Fehler",IF(ABS(H38)-ABS(I38)-(J37+J38)/2+10>0,IF(H38<0,-(ABS(H38)-ABS(I38)-(J37+J38)/2+10),H37-ABS(I37)-(J37+J38)/2+10),0)),0) -> 0 | O37: =IF(AND(N37>0,N38>0),IF(OR(N37>10,N37<0,N38>10,N38<0),"Fehler",IF(ABS(L38)-ABS(M38)-(N37+N38)/2+10>0,IF(L38<0,-(ABS(L38)-ABS(M38)-(N37+N38)/2+10),L37-ABS(M37)-(N37+N38)/2+10),0)),0) -> 0 | S37: =IF(AND(R37>0,R38>0),IF(OR(R37>10,R37<0,R38>10,R38<0),"Fehler",IF(ABS(P38)-ABS(Q38)-(R37+R38)/2+10>0,IF(P38<0,-(ABS(P38)-ABS(Q38)-(R37+R38)/2+10),P37-ABS(Q37)-(R37+R38)/2+10),0)),0) -> 0 | W37: =IF(AND(V37>0,V38>0),IF(OR(V37>10,V37<0,V38>10,V38<0),"Fehler",IF(ABS(T38)-ABS(U38)-(V37+V38)/2+10>0,IF(T38<0,-(ABS(T38)-ABS(U38)-(V37+V38)/2+10),T37-ABS(U37)-(V37+V38)/2+10),0)),0) -> 0 | AA37: =IF(AND(Z37>0,Z38>0),IF(OR(Z37>10,Z37<0,Z38>10,Z38<0),"Fehler",IF(ABS(X38)-ABS(Y38)-(Z37+Z38)/2+10>0,IF(X38<0,-(ABS(X38)-ABS(Y38)-(Z37+Z38)/2+10),X37-ABS(Y37)-(Z37+Z38)/2+10),0)),0) -> 0 | AB37: =ABS(G37)+ABS(K37)+ABS(O37)+ABS(S37)+ABS(W37)+ABS(AA37) -> 0
G40: =SUM(LARGE(G9:G38,1),LARGE(G9:G38,2),LARGE(G9:G38,3)) -> 0 | K40: =SUM(LARGE(K9:K38,1),LARGE(K9:K38,2),LARGE(K9:K38,3)) -> 0 | O40: =SUM(LARGE(O9:O38,1),LARGE(O9:O38,2),LARGE(O9:O38,3)) -> 0 | S40: =SUM(LARGE(S9:S38,1),LARGE(S9:S38,2),LARGE(S9:S38,3)) -> 0 | W40: =SUM(LARGE(W9:W38,1),LARGE(W9:W38,2),LARGE(W9:W38,3)) -> 0 | AA40: =SUM(LARGE(AA9:AA38,1),LARGE(AA9:AA38,2),LARGE(AA9:AA38,3)) -> 0 | AB40: =SUM(G40,K40,O40,S40,W40,AA40) -> 0

Sheet M7 (hidden)
A1: Wettkampfbogen | M1: Datum: | O1: ='INFO Blatt'!B13 -> 2019-02-16
M3: Ort: | O3: ='INFO Blatt'!B11 -> Hehlen
N5: Liga: | O5: ='INFO Blatt'!B7 -> Einsteigerliga
A7: Name | B7: Verein | C7: Jg | D7: Boden | H7: Pferd | L7: Ringe | P7: Sprung | T7: Barren | X7: Reck | AB7: Ges.
D8: D-Note | E8: Abzug OK | F8: E- Abzug | G8: Note | H8: D-Note | I8: Abzug OK | J8: E- Abzug | K8: Note | L8: D-Note | M8: Abzug OK | N8: E-Abzug | O8: Note | P8: D-Note | Q8: Abzug OK | R8: E-Abzug | S8: Note | T8: D-Note | U8: Abzug OK | V8: E-Abzug | W8: Note | X8: D-Note | Y8: Abzug OK | Z8: E-Abzug | AA8: Note
A9: 1 | B9: =Formeln!A11 -> M7 | C9: =IF(A9<>"", VLOOKUP(A9,'Wertungszettel M7'!A$7:B$36,2,0),"") -> 1 | G9: =IF(AND(F9>0,F10>0),IF(OR(F9>10,F9<0,F10>10,F10<0),"Fehler",IF(ABS(D9)-ABS(E9)-(F9+F10)/2+10>0,IF(D9<0,-(ABS(D9)-ABS(E9)-(F9+F10)/2+10),D9-ABS(E9)-(F9+F10)/2+10),0)),0) -> 0 | K9: =IF(AND(J9>0,J10>0),IF(OR(J9>10,J9<0,J10>10,J10<0),"Fehler",IF(ABS(H9)-ABS(I9)-(J9+J10)/2+10>0,IF(H9<0,-(ABS(H9)-ABS(I9)-(J9+J10)/2+10),H9-ABS(I9)-(J9+J10)/2+10),0)),0) -> 0 | O9: =IF(AND(N9>0,N10>0),IF(OR(N9>10,N9<0,N10>10,N10<0),"Fehler",IF(ABS(L9)-ABS(M9)-(N9+N10)/2+10>0,IF(L9<0,-(ABS(L9)-ABS(M9)-(N9+N10)/2+10),L9-ABS(M9)-(N9+N10)/2+10),0)),0) -> 0 | S9: =IF(AND(R9>0,R10>0),IF(OR(R9>10,R9<0,R10>10,R10<0),"Fehler",IF(ABS(P9)-ABS(Q9)-(R9+R10)/2+10>0,IF(P9<0,-(ABS(P9)-ABS(Q9)-(R9+R10)/2+10),P9-ABS(Q9)-(R9+R10)/2+10),0)),0) -> 0 | W9: =IF(AND(V9>0,V10>0),IF(OR(V9>10,V9<0,V10>10,V10<0),"Fehler",IF(ABS(T9)-ABS(U9)-(V9+V10)/2+10>0,IF(T9<0,-(ABS(T9)-ABS(U9)-(V9+V10)/2+10),T9-ABS(U9)-(V9+V10)/2+10),0)),0) -> 0 | AA9: =IF(AND(Z9>0,Z10>0),IF(OR(Z9>10,Z9<0,Z10>10,Z10<0),"Fehler",IF(ABS(X9)-ABS(Y9)-(Z9+Z10)/2+10>0,IF(X9<0,-(ABS(X9)-ABS(Y9)-(Z9+Z10)/2+10),X9-ABS(Y9)-(Z9+Z10)/2+10),0)),0) -> 0 | AB9: =ABS(G9)+ABS(K9)+ABS(O9)+ABS(S9)+ABS(W9)+ABS(AA9) -> 0
A11: 2 | B11: =IF(A11>0,B9,"") -> M7 | C11: =IF(A11<>"", VLOOKUP(A11,'Wertungszettel M7'!A$7:B$36,2,0),"") -> 2 | G11: =IF(AND(F11>0,F12>0),IF(OR(F11>10,F11<0,F12>10,F12<0),"Fehler",IF(ABS(D11)-ABS(E11)-(F11+F12)/2+10>0,IF(D11<0,-(ABS(D11)-ABS(E11)-(F11+F12)/2+10),D11-ABS(E11)-(F11+F12)/2+10),0)),0) -> 0 | K11: =IF(AND(J11>0,J12>0),IF(OR(J11>10,J11<0,J12>10,J12<0),"Fehler",IF(ABS(H11)-ABS(I11)-(J11+J12)/2+10>0,IF(H11<0,-(ABS(H11)-ABS(I11)-(J11+J12)/2+10),H11-ABS(I11)-(J11+J12)/2+10),0)),0) -> 0 | O11: =IF(AND(N11>0,N12>0),IF(OR(N11>10,N11<0,N12>10,N12<0),"Fehler",IF(ABS(L11)-ABS(M11)-(N11+N12)/2+10>0,IF(L11<0,-(ABS(L11)-ABS(M11)-(N11+N12)/2+10),L11-ABS(M11)-(N11+N12)/2+10),0)),0) -> 0 | S11: =IF(AND(R11>0,R12>0),IF(OR(R11>10,R11<0,R12>10,R12<0),"Fehler",IF(ABS(P11)-ABS(Q11)-(R11+R12)/2+10>0,IF(P11<0,-(ABS(P11)-ABS(Q11)-(R11+R12)/2+10),P11-ABS(Q11)-(R11+R12)/2+10),0)),0) -> 0 | W11: =IF(AND(V11>0,V12>0),IF(OR(V11>10,V11<0,V12>10,V12<0),"Fehler",IF(ABS(T11)-ABS(U11)-(V11+V12)/2+10>0,IF(T11<0,-(ABS(T11)-ABS(U11)-(V11+V12)/2+10),T11-ABS(U11)-(V11+V12)/2+10),0)),0) -> 0 | AA11: =IF(AND(Z11>0,Z12>0),IF(OR(Z11>10,Z11<0,Z12>10,Z12<0),"Fehler",IF(ABS(X11)-ABS(Y11)-(Z11+Z12)/2+10>0,IF(X11<0,-(ABS(X11)-ABS(Y11)-(Z11+Z12)/2+10),X11-ABS(Y11)-(Z11+Z12)/2+10),0)),0) -> 0 | AB11: =ABS(G11)+ABS(K11)+ABS(O11)+ABS(S11)+ABS(W11)+ABS(AA11) -> 0 | AF11: Boden | AG11: =IF(G30>1,1,0) -> 0
AF12: pauschenpferd | AG12: =IF(K30>1,1,0) -> 0
A13: 3 | B13: =IF(A13>0,B11,"") -> M7 | C13: =IF(A13<>"", VLOOKUP(A13,'Wertungszettel M7'!A$7:B$36,2,0),"") -> 3 | G13: =IF(AND(F13>0,F14>0),IF(OR(F13>10,F13<0,F14>10,F14<0),"Fehler",IF(ABS(D13)-ABS(E13)-(F13+F14)/2+10>0,IF(D13<0,-(ABS(D13)-ABS(E13)-(F13+F14)/2+10),D13-ABS(E13)-(F13+F14)/2+10),0)),0) -> 0 | K13: =IF(AND(J13>0,J14>0),IF(OR(J13>10,J13<0,J14>10,J14<0),"Fehler",IF(ABS(H13)-ABS(I13)-(J13+J14)/2+10>0,IF(H13<0,-(ABS(H13)-ABS(I13)-(J13+J14)/2+10),H13-ABS(I13)-(J13+J14)/2+10),0)),0) -> 0 | O13: =IF(AND(N13>0,N14>0),IF(OR(N13>10,N13<0,N14>10,N14<0),"Fehler",IF(ABS(L13)-ABS(M13)-(N13+N14)/2+10>0,IF(L13<0,-(ABS(L13)-ABS(M13)-(N13+N14)/2+10),L13-ABS(M13)-(N13+N14)/2+10),0)),0) -> 0 | S13: =IF(AND(R13>0,R14>0),IF(OR(R13>10,R13<0,R14>10,R14<0),"Fehler",IF(ABS(P13)-ABS(Q13)-(R13+R14)/2+10>0,IF(P13<0,-(ABS(P13)-ABS(Q13)-(R13+R14)/2+10),P13-ABS(Q13)-(R13+R14)/2+10),0)),0) -> 0 | W13: =IF(AND(V13>0,V14>0),IF(OR(V13>10,V13<0,V14>10,V14<0),"Fehler",IF(ABS(T13)-ABS(U13)-(V13+V14)/2+10>0,IF(T13<0,-(ABS(T13)-ABS(U13)-(V13+V14)/2+10),T13-ABS(U13)-(V13+V14)/2+10),0)),0) -> 0 | AA13: =IF(AND(Z13>0,Z14>0),IF(OR(Z13>10,Z13<0,Z14>10,Z14<0),"Fehler",IF(ABS(X13)-ABS(Y13)-(Z13+Z14)/2+10>0,IF(X13<0,-(ABS(X13)-ABS(Y13)-(Z13+Z14)/2+10),X13-ABS(Y13)-(Z13+Z14)/2+10),0)),0) -> 0 | AB13: =ABS(G13)+ABS(K13)+ABS(O13)+ABS(S13)+ABS(W13)+ABS(AA13) -> 0 | AF13: ringe | AG13: =IF(O30>1,1,0) -> 0
AF14: sprung | AG14: =IF(S30>1,1,0) -> 0
A15: 4 | B15: =IF(A15>0,B13,"") -> M7 | C15: =IF(A15<>"", VLOOKUP(A15,'Wertungszettel M7'!A$7:B$36,2,0),"") -> 4 | G15: =IF(AND(F15>0,F16>0),IF(OR(F15>10,F15<0,F16>10,F16<0),"Fehler",IF(ABS(D15)-ABS(E15)-(F15+F16)/2+10>0,IF(D15<0,-(ABS(D15)-ABS(E15)-(F15+F16)/2+10),D15-ABS(E15)-(F15+F16)/2+10),0)),0) -> 0 | K15: =IF(AND(J15>0,J16>0),IF(OR(J15>10,J15<0,J16>10,J16<0),"Fehler",IF(ABS(H15)-ABS(I15)-(J15+J16)/2+10>0,IF(H15<0,-(ABS(H15)-ABS(I15)-(J15+J16)/2+10),H15-ABS(I15)-(J15+J16)/2+10),0)),0) -> 0 | O15: =IF(AND(N15>0,N16>0),IF(OR(N15>10,N15<0,N16>10,N16<0),"Fehler",IF(ABS(L15)-ABS(M15)-(N15+N16)/2+10>0,IF(L15<0,-(ABS(L15)-ABS(M15)-(N15+N16)/2+10),L15-ABS(M15)-(N15+N16)/2+10),0)),0) -> 0 | S15: =IF(AND(R15>0,R16>0),IF(OR(R15>10,R15<0,R16>10,R16<0),"Fehler",IF(ABS(P15)-ABS(Q15)-(R15+R16)/2+10>0,IF(P15<0,-(ABS(P15)-ABS(Q15)-(R15+R16)/2+10),P15-ABS(Q15)-(R15+R16)/2+10),0)),0) -> 0 | W15: =IF(AND(V15>0,V16>0),IF(OR(V15>10,V15<0,V16>10,V16<0),"Fehler",IF(ABS(T15)-ABS(U15)-(V15+V16)/2+10>0,IF(T15<0,-(ABS(T15)-ABS(U15)-(V15+V16)/2+10),T15-ABS(U15)-(V15+V16)/2+10),0)),0) -> 0 | AA15: =IF(AND(Z15>0,Z16>0),IF(OR(Z15>10,Z15<0,Z16>10,Z16<0),"Fehler",IF(ABS(X15)-ABS(Y15)-(Z15+Z16)/2+10>0,IF(X15<0,-(ABS(X15)-ABS(Y15)-(Z15+Z16)/2+10),X15-ABS(Y15)-(Z15+Z16)/2+10),0)),0) -> 0 | AB15: =ABS(G15)+ABS(K15)+ABS(O15)+ABS(S15)+ABS(W15)+ABS(AA15) -> 0 | AF15: Barren | AG15: =IF(W30>1,1,0) -> 0
AF16: Reck | AG16: =IF(AA30>1,1,0) -> 0
A17: 5 | B17: =IF(A17>0,B15,"") -> M7 | C17: =IF(A17<>"", VLOOKUP(A17,'Wertungszettel M7'!A$7:B$36,2,0),"") -> 5 | G17: =IF(AND(F17>0,F18>0),IF(OR(F17>10,F17<0,F18>10,F18<0),"Fehler",IF(ABS(D17)-ABS(E17)-(F17+F18)/2+10>0,IF(D17<0,-(ABS(D17)-ABS(E17)-(F17+F18)/2+10),D17-ABS(E17)-(F17+F18)/2+10),0)),0) -> 0 | K17: =IF(AND(J17>0,J18>0),IF(OR(J17>10,J17<0,J18>10,J18<0),"Fehler",IF(ABS(H17)-ABS(I17)-(J17+J18)/2+10>0,IF(H17<0,-(ABS(H17)-ABS(I17)-(J17+J18)/2+10),H17-ABS(I17)-(J17+J18)/2+10),0)),0) -> 0 | O17: =IF(AND(N17>0,N18>0),IF(OR(N17>10,N17<0,N18>10,N18<0),"Fehler",IF(ABS(L17)-ABS(M17)-(N17+N18)/2+10>0,IF(L17<0,-(ABS(L17)-ABS(M17)-(N17+N18)/2+10),L17-ABS(M17)-(N17+N18)/2+10),0)),0) -> 0 | S17: =IF(AND(R17>0,R18>0),IF(OR(R17>10,R17<0,R18>10,R18<0),"Fehler",IF(ABS(P17)-ABS(Q17)-(R17+R18)/2+10>0,IF(P17<0,-(ABS(P17)-ABS(Q17)-(R17+R18)/2+10),P17-ABS(Q17)-(R17+R18)/2+10),0)),0) -> 0 | W17: =IF(AND(V17>0,V18>0),IF(OR(V17>10,V17<0,V18>10,V18<0),"Fehler",IF(ABS(T17)-ABS(U17)-(V17+V18)/2+10>0,IF(T17<0,-(ABS(T17)-ABS(U17)-(V17+V18)/2+10),T17-ABS(U17)-(V17+V18)/2+10),0)),0) -> 0 | AA17: =IF(AND(Z17>0,Z18>0),IF(OR(Z17>10,Z17<0,Z18>10,Z18<0),"Fehler",IF(ABS(X17)-ABS(Y17)-(Z17+Z18)/2+10>0,IF(X17<0,-(ABS(X17)-ABS(Y17)-(Z17+Z18)/2+10),X17-ABS(Y17)-(Z17+Z18)/2+10),0)),0) -> 0 | AB17: =ABS(G17)+ABS(K17)+ABS(O17)+ABS(S17)+ABS(W17)+ABS(AA17) -> 0
AF18: Gesamt | AG18: =SUM(AG11:AG17) -> 0
A19: 6 | B19: =IF(A19>0,B17,"") -> M7 | C19: =IF(A19<>"", VLOOKUP(A19,'Wertungszettel M7'!A$7:B$36,2,0),"") -> 6 | G19: =IF(AND(F19>0,F20>0),IF(OR(F19>10,F19<0,F20>10,F20<0),"Fehler",IF(ABS(D19)-ABS(E19)-(F19+F20)/2+10>0,IF(D19<0,-(ABS(D19)-ABS(E19)-(F19+F20)/2+10),D19-ABS(E19)-(F19+F20)/2+10),0)),0) -> 0 | K19: =IF(AND(J19>0,J20>0),IF(OR(J19>10,J19<0,J20>10,J20<0),"Fehler",IF(ABS(H19)-ABS(I19)-(J19+J20)/2+10>0,IF(H19<0,-(ABS(H19)-ABS(I19)-(J19+J20)/2+10),H19-ABS(I19)-(J19+J20)/2+10),0)),0) -> 0 | O19: =IF(AND(N19>0,N20>0),IF(OR(N19>10,N19<0,N20>10,N20<0),"Fehler",IF(ABS(L19)-ABS(M19)-(N19+N20)/2+10>0,IF(L19<0,-(ABS(L19)-ABS(M19)-(N19+N20)/2+10),L19-ABS(M19)-(N19+N20)/2+10),0)),0) -> 0 | S19: =IF(AND(R19>0,R20>0),IF(OR(R19>10,R19<0,R20>10,R20<0),"Fehler",IF(ABS(P19)-ABS(Q19)-(R19+R20)/2+10>0,IF(P19<0,-(ABS(P19)-ABS(Q19)-(R19+R20)/2+10),P19-ABS(Q19)-(R19+R20)/2+10),0)),0) -> 0 | W19: =IF(AND(V19>0,V20>0),IF(OR(V19>10,V19<0,V20>10,V20<0),"Fehler",IF(ABS(T19)-ABS(U19)-(V19+V20)/2+10>0,IF(T19<0,-(ABS(T19)-ABS(U19)-(V19+V20)/2+10),T19-ABS(U19)-(V19+V20)/2+10),0)),0) -> 0 | AA19: =IF(AND(Z19>0,Z20>0),IF(OR(Z19>10,Z19<0,Z20>10,Z20<0),"Fehler",IF(ABS(X19)-ABS(Y19)-(Z19+Z20)/2+10>0,IF(X19<0,-(ABS(X19)-ABS(Y19)-(Z19+Z20)/2+10),X19-ABS(Y19)-(Z19+Z20)/2+10),0)),0) -> 0 | AB19: =ABS(G19)+ABS(K19)+ABS(O19)+ABS(S19)+ABS(W19)+ABS(AA19) -> 0
A21: 7 | B21: =IF(A21>0,B19,"") -> M7 | C21: =IF(A21<>"", VLOOKUP(A21,'Wertungszettel M7'!A$7:B$36,2,0),"") -> 7 | G21: =IF(AND(F21>0,F22>0),IF(OR(F21>10,F21<0,F22>10,F22<0),"Fehler",IF(ABS(D21)-ABS(E21)-(F21+F22)/2+10>0,IF(D21<0,-(ABS(D21)-ABS(E21)-(F21+F22)/2+10),D21-ABS(E21)-(F21+F22)/2+10),0)),0) -> 0 | K21: =IF(AND(J21>0,J22>0),IF(OR(J21>10,J21<0,J22>10,J22<0),"Fehler",IF(ABS(H21)-ABS(I21)-(J21+J22)/2+10>0,IF(H21<0,-(ABS(H21)-ABS(I21)-(J21+J22)/2+10),H21-ABS(I21)-(J21+J22)/2+10),0)),0) -> 0 | O21: =IF(AND(N21>0,N22>0),IF(OR(N21>10,N21<0,N22>10,N22<0),"Fehler",IF(ABS(L21)-ABS(M21)-(N21+N22)/2+10>0,IF(L21<0,-(ABS(L21)-ABS(M21)-(N21+N22)/2+10),L21-ABS(M21)-(N21+N22)/2+10),0)),0) -> 0 | S21: =IF(AND(R21>0,R22>0),IF(OR(R21>10,R21<0,R22>10,R22<0),"Fehler",IF(ABS(P21)-ABS(Q21)-(R21+R22)/2+10>0,IF(P21<0,-(ABS(P21)-ABS(Q21)-(R21+R22)/2+10),P21-ABS(Q21)-(R21+R22)/2+10),0)),0) -> 0 | W21: =IF(AND(V21>0,V22>0),IF(OR(V21>10,V21<0,V22>10,V22<0),"Fehler",IF(ABS(T21)-ABS(U21)-(V21+V22)/2+10>0,IF(T21<0,-(ABS(T21)-ABS(U21)-(V21+V22)/2+10),T21-ABS(U21)-(V21+V22)/2+10),0)),0) -> 0 | AA21: =IF(AND(Z21>0,Z22>0),IF(OR(Z21>10,Z21<0,Z22>10,Z22<0),"Fehler",IF(ABS(X21)-ABS(Y21)-(Z21+Z22)/2+10>0,IF(X21<0,-(ABS(X21)-ABS(Y21)-(Z21+Z22)/2+10),X21-ABS(Y21)-(Z21+Z22)/2+10),0)),0) -> 0 | AB21: =ABS(G21)+ABS(K21)+ABS(O21)+ABS(S21)+ABS(W21)+ABS(AA21) -> 0
A23: 8 | B23: =IF(A23>0,B21,"") -> M7 | C23: =IF(A23<>"", VLOOKUP(A23,'Wertungszettel M7'!A$7:B$36,2,0),"") -> 8 | G23: =IF(AND(F23>0,F24>0),IF(OR(F23>10,F23<0,F24>10,F24<0),"Fehler",IF(ABS(D23)-ABS(E23)-(F23+F24)/2+10>0,IF(D23<0,-(ABS(D23)-ABS(E23)-(F23+F24)/2+10),D23-ABS(E23)-(F23+F24)/2+10),0)),0) -> 0 | K23: =IF(AND(J23>0,J24>0),IF(OR(J23>10,J23<0,J24>10,J24<0),"Fehler",IF(ABS(H23)-ABS(I23)-(J23+J24)/2+10>0,IF(H23<0,-(ABS(H23)-ABS(I23)-(J23+J24)/2+10),H23-ABS(I23)-(J23+J24)/2+10),0)),0) -> 0 | O23: =IF(AND(N23>0,N24>0),IF(OR(N23>10,N23<0,N24>10,N24<0),"Fehler",IF(ABS(L23)-ABS(M23)-(N23+N24)/2+10>0,IF(L23<0,-(ABS(L23)-ABS(M23)-(N23+N24)/2+10),L23-ABS(M23)-(N23+N24)/2+10),0)),0) -> 0 | S23: =IF(AND(R23>0,R24>0),IF(OR(R23>10,R23<0,R24>10,R24<0),"Fehler",IF(ABS(P23)-ABS(Q23)-(R23+R24)/2+10>0,IF(P23<0,-(ABS(P23)-ABS(Q23)-(R23+R24)/2+10),P23-ABS(Q23)-(R23+R24)/2+10),0)),0) -> 0 | W23: =IF(AND(V23>0,V24>0),IF(OR(V23>10,V23<0,V24>10,V24<0),"Fehler",IF(ABS(T23)-ABS(U23)-(V23+V24)/2+10>0,IF(T23<0,-(ABS(T23)-ABS(U23)-(V23+V24)/2+10),T23-ABS(U23)-(V23+V24)/2+10),0)),0) -> 0 | AA23: =IF(AND(Z23>0,Z24>0),IF(OR(Z23>10,Z23<0,Z24>10,Z24<0),"Fehler",IF(ABS(X23)-ABS(Y23)-(Z23+Z24)/2+10>0,IF(X23<0,-(ABS(X23)-ABS(Y23)-(Z23+Z24)/2+10),X23-ABS(Y23)-(Z23+Z24)/2+10),0)),0) -> 0 | AB23: =ABS(G23)+ABS(K23)+ABS(O23)+ABS(S23)+ABS(W23)+ABS(AA23) -> 0
A25: 9 | B25: =IF(A25>0,B23,"") -> M7 | C25: =IF(A25<>"", VLOOKUP(A25,'Wertungszettel M7'!A$7:B$36,2,0),"") -> 9 | G25: =IF(AND(F25>0,F26>0),IF(OR(F25>10,F25<0,F26>10,F26<0),"Fehler",IF(ABS(D25)-ABS(E25)-(F25+F26)/2+10>0,IF(D25<0,-(ABS(D25)-ABS(E25)-(F25+F26)/2+10),D25-ABS(E25)-(F25+F26)/2+10),0)),0) -> 0 | K25: =IF(AND(J25>0,J26>0),IF(OR(J25>10,J25<0,J26>10,J26<0),"Fehler",IF(ABS(H25)-ABS(I25)-(J25+J26)/2+10>0,IF(H25<0,-(ABS(H25)-ABS(I25)-(J25+J26)/2+10),H25-ABS(I25)-(J25+J26)/2+10),0)),0) -> 0 | O25: =IF(AND(N25>0,N26>0),IF(OR(N25>10,N25<0,N26>10,N26<0),"Fehler",IF(ABS(L25)-ABS(M25)-(N25+N26)/2+10>0,IF(L25<0,-(ABS(L25)-ABS(M25)-(N25+N26)/2+10),L25-ABS(M25)-(N25+N26)/2+10),0)),0) -> 0 | S25: =IF(AND(R25>0,R26>0),IF(OR(R25>10,R25<0,R26>10,R26<0),"Fehler",IF(ABS(P25)-ABS(Q25)-(R25+R26)/2+10>0,IF(P25<0,-(ABS(P25)-ABS(Q25)-(R25+R26)/2+10),P25-ABS(Q25)-(R25+R26)/2+10),0)),0) -> 0 | W25: =IF(AND(V25>0,V26>0),IF(OR(V25>10,V25<0,V26>10,V26<0),"Fehler",IF(ABS(T25)-ABS(U25)-(V25+V26)/2+10>0,IF(T25<0,-(ABS(T25)-ABS(U25)-(V25+V26)/2+10),T25-ABS(U25)-(V25+V26)/2+10),0)),0) -> 0 | AA25: =IF(AND(Z25>0,Z26>0),IF(OR(Z25>10,Z25<0,Z26>10,Z26<0),"Fehler",IF(ABS(X25)-ABS(Y25)-(Z25+Z26)/2+10>0,IF(X25<0,-(ABS(X25)-ABS(Y25)-(Z25+Z26)/2+10),X25-ABS(Y25)-(Z25+Z26)/2+10),0)),0) -> 0 | AB25: =ABS(G25)+ABS(K25)+ABS(O25)+ABS(S25)+ABS(W25)+ABS(AA25) -> 0
A27: 10 | B27: =IF(A27>0,B25,"") -> M7 | C27: =IF(A27<>"", VLOOKUP(A27,'Wertungszettel M7'!A$7:B$36,2,0),"") -> 10 | G27: =IF(AND(F27>0,F28>0),IF(OR(F27>10,F27<0,F28>10,F28<0),"Fehler",IF(ABS(D27)-ABS(E27)-(F27+F28)/2+10>0,IF(D27<0,-(ABS(D27)-ABS(E27)-(F27+F28)/2+10),D27-ABS(E27)-(F27+F28)/2+10),0)),0) -> 0 | K27: =IF(AND(J27>0,J28>0),IF(OR(J27>10,J27<0,J28>10,J28<0),"Fehler",IF(ABS(H27)-ABS(I27)-(J27+J28)/2+10>0,IF(H27<0,-(ABS(H27)-ABS(I27)-(J27+J28)/2+10),H27-ABS(I27)-(J27+J28)/2+10),0)),0) -> 0 | O27: =IF(AND(N27>0,N28>0),IF(OR(N27>10,N27<0,N28>10,N28<0),"Fehler",IF(ABS(L27)-ABS(M27)-(N27+N28)/2+10>0,IF(L27<0,-(ABS(L27)-ABS(M27)-(N27+N28)/2+10),L27-ABS(M27)-(N27+N28)/2+10),0)),0) -> 0 | S27: =IF(AND(R27>0,R28>0),IF(OR(R27>10,R27<0,R28>10,R28<0),"Fehler",IF(ABS(P27)-ABS(Q27)-(R27+R28)/2+10>0,IF(P27<0,-(ABS(P27)-ABS(Q27)-(R27+R28)/2+10),P27-ABS(Q27)-(R27+R28)/2+10),0)),0) -> 0 | W27: =IF(AND(V27>0,V28>0),IF(OR(V27>10,V27<0,V28>10,V28<0),"Fehler",IF(ABS(T27)-ABS(U27)-(V27+V28)/2+10>0,IF(T27<0,-(ABS(T27)-ABS(U27)-(V27+V28)/2+10),T27-ABS(U27)-(V27+V28)/2+10),0)),0) -> 0 | AA27: =IF(AND(Z27>0,Z28>0),IF(OR(Z27>10,Z27<0,Z28>10,Z28<0),"Fehler",IF(ABS(X27)-ABS(Y27)-(Z27+Z28)/2+10>0,IF(X27<0,-(ABS(X27)-ABS(Y27)-(Z27+Z28)/2+10),X27-ABS(Y27)-(Z27+Z28)/2+10),0)),0) -> 0 | AB27: =ABS(G27)+ABS(K27)+ABS(O27)+ABS(S27)+ABS(W27)+ABS(AA27) -> 0
G30: =SUM(LARGE(G9:G28,1),LARGE(G9:G28,2),LARGE(G9:G28,3)) -> 0 | K30: =SUM(LARGE(K9:K28,1),LARGE(K9:K28,2),LARGE(K9:K28,3)) -> 0 | O30: =SUM(LARGE(O9:O28,1),LARGE(O9:O28,2),LARGE(O9:O28,3)) -> 0 | S30: =SUM(LARGE(S9:S28,1),LARGE(S9:S28,2),LARGE(S9:S28,3)) -> 0 | W30: =SUM(LARGE(W9:W28,1),LARGE(W9:W28,2),LARGE(W9:W28,3)) -> 0 | AA30: =SUM(LARGE(AA9:AA28,1),LARGE(AA9:AA28,2),LARGE(AA9:AA28,3)) -> 0 | AB30: =SUM(G30,K30,O30,S30,W30,AA30) -> 0

Sheet M8 (hidden)
A1: Wettkampfbogen | M1: Datum: | O1: ='INFO Blatt'!B13 -> 2019-02-16
M3: Ort: | O3: ='INFO Blatt'!B11 -> Hehlen
N5: Liga: | O5: ='INFO Blatt'!B7 -> Einsteigerliga
A7: Name | B7: Verein | C7: Jg | D7: Boden | H7: Pferd | L7: Ringe | P7: Sprung | T7: Barren | X7: Reck | AB7: Ges.
D8: D-Note | E8: Abzug OK | F8: E- Abzug | G8: Note | H8: D-Note | I8: Abzug OK | J8: E- Abzug | K8: Note | L8: D-Note | M8: Abzug OK | N8: E-Abzug | O8: Note | P8: D-Note | Q8: Abzug OK | R8: E-Abzug | S8: Note | T8: D-Note | U8: Abzug OK | V8: E-Abzug | W8: Note | X8: D-Note | Y8: Abzug OK | Z8: E-Abzug | AA8: Note
B9: =Formeln!A12 -> M8 | C9: =IF(A9<>"", VLOOKUP(A9,'Wertungszettel M8'!A$7:B$36,2,0),"") ->  | G9: =IF(AND(F9>0,F10>0),IF(OR(F9>10,F9<0,F10>10,F10<0),"Fehler",IF(ABS(D9)-ABS(E9)-(F9+F10)/2+10>0,IF(D9<0,-(ABS(D9)-ABS(E9)-(F9+F10)/2+10),D9-ABS(E9)-(F9+F10)/2+10),0)),0) -> 0 | K9: =IF(AND(J9>0,J10>0),IF(OR(J9>10,J9<0,J10>10,J10<0),"Fehler",IF(ABS(H9)-ABS(I9)-(J9+J10)/2+10>0,IF(H9<0,-(ABS(H9)-ABS(I9)-(J9+J10)/2+10),H9-ABS(I9)-(J9+J10)/2+10),0)),0) -> 0 | O9: =IF(AND(N9>0,N10>0),IF(OR(N9>10,N9<0,N10>10,N10<0),"Fehler",IF(ABS(L9)-ABS(M9)-(N9+N10)/2+10>0,IF(L9<0,-(ABS(L9)-ABS(M9)-(N9+N10)/2+10),L9-ABS(M9)-(N9+N10)/2+10),0)),0) -> 0 | S9: =IF(AND(R9>0,R10>0),IF(OR(R9>10,R9<0,R10>10,R10<0),"Fehler",IF(ABS(P9)-ABS(Q9)-(R9+R10)/2+10>0,IF(P9<0,-(ABS(P9)-ABS(Q9)-(R9+R10)/2+10),P9-ABS(Q9)-(R9+R10)/2+10),0)),0) -> 0 | W9: =IF(AND(V9>0,V10>0),IF(OR(V9>10,V9<0,V10>10,V10<0),"Fehler",IF(ABS(T9)-ABS(U9)-(V9+V10)/2+10>0,IF(T9<0,-(ABS(T9)-ABS(U9)-(V9+V10)/2+10),T9-ABS(U9)-(V9+V10)/2+10),0)),0) -> 0 | AA9: =IF(AND(Z9>0,Z10>0),IF(OR(Z9>10,Z9<0,Z10>10,Z10<0),"Fehler",IF(ABS(X9)-ABS(Y9)-(Z9+Z10)/2+10>0,IF(X9<0,-(ABS(X9)-ABS(Y9)-(Z9+Z10)/2+10),X9-ABS(Y9)-(Z9+Z10)/2+10),0)),0) -> 0 | AB9: =ABS(G9)+ABS(K9)+ABS(O9)+ABS(S9)+ABS(W9)+ABS(AA9) -> 0
B11: =IF(A11>0,B9,"") ->  | C11: =IF(A11<>"", VLOOKUP(A11,'Wertungszettel M8'!A$7:B$36,2),"") ->  | G11: =IF(AND(F11>0,F12>0),IF(OR(F11>10,F11<0,F12>10,F12<0),"Fehler",IF(ABS(D11)-ABS(E11)-(F11+F12)/2+10>0,IF(D11<0,-(ABS(D11)-ABS(E11)-(F11+F12)/2+10),D11-ABS(E11)-(F11+F12)/2+10),0)),0) -> 0 | K11: =IF(AND(J11>0,J12>0),IF(OR(J11>10,J11<0,J12>10,J12<0),"Fehler",IF(ABS(H11)-ABS(I11)-(J11+J12)/2+10>0,IF(H11<0,-(ABS(H11)-ABS(I11)-(J11+J12)/2+10),H11-ABS(I11)-(J11+J12)/2+10),0)),0) -> 0 | O11: =IF(AND(N11>0,N12>0),IF(OR(N11>10,N11<0,N12>10,N12<0),"Fehler",IF(ABS(L11)-ABS(M11)-(N11+N12)/2+10>0,IF(L11<0,-(ABS(L11)-ABS(M11)-(N11+N12)/2+10),L11-ABS(M11)-(N11+N12)/2+10),0)),0) -> 0 | S11: =IF(AND(R11>0,R12>0),IF(OR(R11>10,R11<0,R12>10,R12<0),"Fehler",IF(ABS(P11)-ABS(Q11)-(R11+R12)/2+10>0,IF(P11<0,-(ABS(P11)-ABS(Q11)-(R11+R12)/2+10),P11-ABS(Q11)-(R11+R12)/2+10),0)),0) -> 0 | W11: =IF(AND(V11>0,V12>0),IF(OR(V11>10,V11<0,V12>10,V12<0),"Fehler",IF(ABS(T11)-ABS(U11)-(V11+V12)/2+10>0,IF(T11<0,-(ABS(T11)-ABS(U11)-(V11+V12)/2+10),T11-ABS(U11)-(V11+V12)/2+10),0)),0) -> 0 | AA11: =IF(AND(Z11>0,Z12>0),IF(OR(Z11>10,Z11<0,Z12>10,Z12<0),"Fehler",IF(ABS(X11)-ABS(Y11)-(Z11+Z12)/2+10>0,IF(X11<0,-(ABS(X11)-ABS(Y11)-(Z11+Z12)/2+10),X11-ABS(Y11)-(Z11+Z12)/2+10),0)),0) -> 0 | AB11: =ABS(G11)+ABS(K11)+ABS(O11)+ABS(S11)+ABS(W11)+ABS(AA11) -> 0
B13: =IF(A13>0,B11,"") ->  | C13: =IF(A13<>"", VLOOKUP(A13,'Wertungszettel M8'!A$7:B$36,2),"") ->  | G13: =IF(AND(F13>0,F14>0),IF(OR(F13>10,F13<0,F14>10,F14<0),"Fehler",IF(ABS(D13)-ABS(E13)-(F13+F14)/2+10>0,IF(D13<0,-(ABS(D13)-ABS(E13)-(F13+F14)/2+10),D13-ABS(E13)-(F13+F14)/2+10),0)),0) -> 0 | K13: =IF(AND(J13>0,J14>0),IF(OR(J13>10,J13<0,J14>10,J14<0),"Fehler",IF(ABS(H13)-ABS(I13)-(J13+J14)/2+10>0,IF(H13<0,-(ABS(H13)-ABS(I13)-(J13+J14)/2+10),H13-ABS(I13)-(J13+J14)/2+10),0)),0) -> 0 | O13: =IF(AND(N13>0,N14>0),IF(OR(N13>10,N13<0,N14>10,N14<0),"Fehler",IF(ABS(L13)-ABS(M13)-(N13+N14)/2+10>0,IF(L13<0,-(ABS(L13)-ABS(M13)-(N13+N14)/2+10),L13-ABS(M13)-(N13+N14)/2+10),0)),0) -> 0 | S13: =IF(AND(R13>0,R14>0),IF(OR(R13>10,R13<0,R14>10,R14<0),"Fehler",IF(ABS(P13)-ABS(Q13)-(R13+R14)/2+10>0,IF(P13<0,-(ABS(P13)-ABS(Q13)-(R13+R14)/2+10),P13-ABS(Q13)-(R13+R14)/2+10),0)),0) -> 0 | W13: =IF(AND(V13>0,V14>0),IF(OR(V13>10,V13<0,V14>10,V14<0),"Fehler",IF(ABS(T13)-ABS(U13)-(V13+V14)/2+10>0,IF(T13<0,-(ABS(T13)-ABS(U13)-(V13+V14)/2+10),T13-ABS(U13)-(V13+V14)/2+10),0)),0) -> 0 | AA13: =IF(AND(Z13>0,Z14>0),IF(OR(Z13>10,Z13<0,Z14>10,Z14<0),"Fehler",IF(ABS(X13)-ABS(Y13)-(Z13+Z14)/2+10>0,IF(X13<0,-(ABS(X13)-ABS(Y13)-(Z13+Z14)/2+10),X13-ABS(Y13)-(Z13+Z14)/2+10),0)),0) -> 0 | AB13: =ABS(G13)+ABS(K13)+ABS(O13)+ABS(S13)+ABS(W13)+ABS(AA13) -> 0
B15: =IF(A15>0,B13,"") ->  | C15: =IF(A15<>"", VLOOKUP(A15,'Wertungszettel M8'!A$7:B$36,2),"") ->  | G15: =IF(AND(F15>0,F16>0),IF(OR(F15>10,F15<0,F16>10,F16<0),"Fehler",IF(ABS(D15)-ABS(E15)-(F15+F16)/2+10>0,IF(D15<0,-(ABS(D15)-ABS(E15)-(F15+F16)/2+10),D15-ABS(E15)-(F15+F16)/2+10),0)),0) -> 0 | K15: =IF(AND(J15>0,J16>0),IF(OR(J15>10,J15<0,J16>10,J16<0),"Fehler",IF(ABS(H15)-ABS(I15)-(J15+J16)/2+10>0,IF(H15<0,-(ABS(H15)-ABS(I15)-(J15+J16)/2+10),H15-ABS(I15)-(J15+J16)/2+10),0)),0) -> 0 | O15: =IF(AND(N15>0,N16>0),IF(OR(N15>10,N15<0,N16>10,N16<0),"Fehler",IF(ABS(L15)-ABS(M15)-(N15+N16)/2+10>0,IF(L15<0,-(ABS(L15)-ABS(M15)-(N15+N16)/2+10),L15-ABS(M15)-(N15+N16)/2+10),0)),0) -> 0 | S15: =IF(AND(R15>0,R16>0),IF(OR(R15>10,R15<0,R16>10,R16<0),"Fehler",IF(ABS(P15)-ABS(Q15)-(R15+R16)/2+10>0,IF(P15<0,-(ABS(P15)-ABS(Q15)-(R15+R16)/2+10),P15-ABS(Q15)-(R15+R16)/2+10),0)),0) -> 0 | W15: =IF(AND(V15>0,V16>0),IF(OR(V15>10,V15<0,V16>10,V16<0),"Fehler",IF(ABS(T15)-ABS(U15)-(V15+V16)/2+10>0,IF(T15<0,-(ABS(T15)-ABS(U15)-(V15+V16)/2+10),T15-ABS(U15)-(V15+V16)/2+10),0)),0) -> 0 | AA15: =IF(AND(Z15>0,Z16>0),IF(OR(Z15>10,Z15<0,Z16>10,Z16<0),"Fehler",IF(ABS(X15)-ABS(Y15)-(Z15+Z16)/2+10>0,IF(X15<0,-(ABS(X15)-ABS(Y15)-(Z15+Z16)/2+10),X15-ABS(Y15)-(Z15+Z16)/2+10),0)),0) -> 0 | AB15: =ABS(G15)+ABS(K15)+ABS(O15)+ABS(S15)+ABS(W15)+ABS(AA15) -> 0
B17: =IF(A17>0,B15,"") ->  | C17: =IF(A17<>"", VLOOKUP(A17,'Wertungszettel M8'!A$7:B$36,2),"") ->  | G17: =IF(AND(F17>0,F18>0),IF(OR(F17>10,F17<0,F18>10,F18<0),"Fehler",IF(ABS(D17)-ABS(E17)-(F17+F18)/2+10>0,IF(D17<0,-(ABS(D17)-ABS(E17)-(F17+F18)/2+10),D17-ABS(E17)-(F17+F18)/2+10),0)),0) -> 0 | K17: =IF(AND(J17>0,J18>0),IF(OR(J17>10,J17<0,J18>10,J18<0),"Fehler",IF(ABS(H17)-ABS(I17)-(J17+J18)/2+10>0,IF(H17<0,-(ABS(H17)-ABS(I17)-(J17+J18)/2+10),H17-ABS(I17)-(J17+J18)/2+10),0)),0) -> 0 | O17: =IF(AND(N17>0,N18>0),IF(OR(N17>10,N17<0,N18>10,N18<0),"Fehler",IF(ABS(L17)-ABS(M17)-(N17+N18)/2+10>0,IF(L17<0,-(ABS(L17)-ABS(M17)-(N17+N18)/2+10),L17-ABS(M17)-(N17+N18)/2+10),0)),0) -> 0 | S17: =IF(AND(R17>0,R18>0),IF(OR(R17>10,R17<0,R18>10,R18<0),"Fehler",IF(ABS(P17)-ABS(Q17)-(R17+R18)/2+10>0,IF(P17<0,-(ABS(P17)-ABS(Q17)-(R17+R18)/2+10),P17-ABS(Q17)-(R17+R18)/2+10),0)),0) -> 0 | W17: =IF(AND(V17>0,V18>0),IF(OR(V17>10,V17<0,V18>10,V18<0),"Fehler",IF(ABS(T17)-ABS(U17)-(V17+V18)/2+10>0,IF(T17<0,-(ABS(T17)-ABS(U17)-(V17+V18)/2+10),T17-ABS(U17)-(V17+V18)/2+10),0)),0) -> 0 | AA17: =IF(AND(Z17>0,Z18>0),IF(OR(Z17>10,Z17<0,Z18>10,Z18<0),"Fehler",IF(ABS(X17)-ABS(Y17)-(Z17+Z18)/2+10>0,IF(X17<0,-(ABS(X17)-ABS(Y17)-(Z17+Z18)/2+10),X17-ABS(Y17)-(Z17+Z18)/2+10),0)),0) -> 0 | AB17: =ABS(G17)+ABS(K17)+ABS(O17)+ABS(S17)+ABS(W17)+ABS(AA17) -> 0
B19: =IF(A19>0,B17,"") ->  | C19: =IF(A19<>"", VLOOKUP(A19,'Wertungszettel M8'!A$7:B$36,2),"") ->  | G19: =IF(AND(F19>0,F20>0),IF(OR(F19>10,F19<0,F20>10,F20<0),"Fehler",IF(ABS(D19)-ABS(E19)-(F19+F20)/2+10>0,IF(D19<0,-(ABS(D19)-ABS(E19)-(F19+F20)/2+10),D19-ABS(E19)-(F19+F20)/2+10),0)),0) -> 0 | K19: =IF(AND(J19>0,J20>0),IF(OR(J19>10,J19<0,J20>10,J20<0),"Fehler",IF(ABS(H19)-ABS(I19)-(J19+J20)/2+10>0,IF(H19<0,-(ABS(H19)-ABS(I19)-(J19+J20)/2+10),H19-ABS(I19)-(J19+J20)/2+10),0)),0) -> 0 | O19: =IF(AND(N19>0,N20>0),IF(OR(N19>10,N19<0,N20>10,N20<0),"Fehler",IF(ABS(L19)-ABS(M19)-(N19+N20)/2+10>0,IF(L19<0,-(ABS(L19)-ABS(M19)-(N19+N20)/2+10),L19-ABS(M19)-(N19+N20)/2+10),0)),0) -> 0 | S19: =IF(AND(R19>0,R20>0),IF(OR(R19>10,R19<0,R20>10,R20<0),"Fehler",IF(ABS(P19)-ABS(Q19)-(R19+R20)/2+10>0,IF(P19<0,-(ABS(P19)-ABS(Q19)-(R19+R20)/2+10),P19-ABS(Q19)-(R19+R20)/2+10),0)),0) -> 0 | W19: =IF(AND(V19>0,V20>0),IF(OR(V19>10,V19<0,V20>10,V20<0),"Fehler",IF(ABS(T19)-ABS(U19)-(V19+V20)/2+10>0,IF(T19<0,-(ABS(T19)-ABS(U19)-(V19+V20)/2+10),T19-ABS(U19)-(V19+V20)/2+10),0)),0) -> 0 | AA19: =IF(AND(Z19>0,Z20>0),IF(OR(Z19>10,Z19<0,Z20>10,Z20<0),"Fehler",IF(ABS(X19)-ABS(Y19)-(Z19+Z20)/2+10>0,IF(X19<0,-(ABS(X19)-ABS(Y19)-(Z19+Z20)/2+10),X19-ABS(Y19)-(Z19+Z20)/2+10),0)),0) -> 0 | AB19: =ABS(G19)+ABS(K19)+ABS(O19)+ABS(S19)+ABS(W19)+ABS(AA19) -> 0
B21: =IF(A21>0,B19,"") ->  | C21: =IF(A21<>"", VLOOKUP(A21,'Wertungszettel M8'!A$7:B$36,2),"") ->  | G21: =IF(AND(F21>0,F22>0),IF(OR(F21>10,F21<0,F22>10,F22<0),"Fehler",IF(ABS(D21)-ABS(E21)-(F21+F22)/2+10>0,IF(D21<0,-(ABS(D21)-ABS(E21)-(F21+F22)/2+10),D21-ABS(E21)-(F21+F22)/2+10),0)),0) -> 0 | K21: =IF(AND(J21>0,J22>0),IF(OR(J21>10,J21<0,J22>10,J22<0),"Fehler",IF(ABS(H21)-ABS(I21)-(J21+J22)/2+10>0,IF(H21<0,-(ABS(H21)-ABS(I21)-(J21+J22)/2+10),H21-ABS(I21)-(J21+J22)/2+10),0)),0) -> 0 | O21: =IF(AND(N21>0,N22>0),IF(OR(N21>10,N21<0,N22>10,N22<0),"Fehler",IF(ABS(L21)-ABS(M21)-(N21+N22)/2+10>0,IF(L21<0,-(ABS(L21)-ABS(M21)-(N21+N22)/2+10),L21-ABS(M21)-(N21+N22)/2+10),0)),0) -> 0 | S21: =IF(AND(R21>0,R22>0),IF(OR(R21>10,R21<0,R22>10,R22<0),"Fehler",IF(ABS(P21)-ABS(Q21)-(R21+R22)/2+10>0,IF(P21<0,-(ABS(P21)-ABS(Q21)-(R21+R22)/2+10),P21-ABS(Q21)-(R21+R22)/2+10),0)),0) -> 0 | W21: =IF(AND(V21>0,V22>0),IF(OR(V21>10,V21<0,V22>10,V22<0),"Fehler",IF(ABS(T21)-ABS(U21)-(V21+V22)/2+10>0,IF(T21<0,-(ABS(T21)-ABS(U21)-(V21+V22)/2+10),T21-ABS(U21)-(V21+V22)/2+10),0)),0) -> 0 | AA21: =IF(AND(Z21>0,Z22>0),IF(OR(Z21>10,Z21<0,Z22>10,Z22<0),"Fehler",IF(ABS(X21)-ABS(Y21)-(Z21+Z22)/2+10>0,IF(X21<0,-(ABS(X21)-ABS(Y21)-(Z21+Z22)/2+10),X21-ABS(Y21)-(Z21+Z22)/2+10),0)),0) -> 0 | AB21: =ABS(G21)+ABS(K21)+ABS(O21)+ABS(S21)+ABS(W21)+ABS(AA21) -> 0
B23: =IF(A23>0,B21,"") ->  | C23: =IF(A23<>"", VLOOKUP(A23,'Wertungszettel M8'!A$7:B$36,2),"") ->  | G23: =IF(AND(F23>0,F24>0),IF(OR(F23>10,F23<0,F24>10,F24<0),"Fehler",IF(ABS(D23)-ABS(E23)-(F23+F24)/2+10>0,IF(D23<0,-(ABS(D23)-ABS(E23)-(F23+F24)/2+10),D23-ABS(E23)-(F23+F24)/2+10),0)),0) -> 0 | K23: =IF(AND(J23>0,J24>0),IF(OR(J23>10,J23<0,J24>10,J24<0),"Fehler",IF(ABS(H23)-ABS(I23)-(J23+J24)/2+10>0,IF(H23<0,-(ABS(H23)-ABS(I23)-(J23+J24)/2+10),H23-ABS(I23)-(J23+J24)/2+10),0)),0) -> 0 | O23: =IF(AND(N23>0,N24>0),IF(OR(N23>10,N23<0,N24>10,N24<0),"Fehler",IF(ABS(L23)-ABS(M23)-(N23+N24)/2+10>0,IF(L23<0,-(ABS(L23)-ABS(M23)-(N23+N24)/2+10),L23-ABS(M23)-(N23+N24)/2+10),0)),0) -> 0 | S23: =IF(AND(R23>0,R24>0),IF(OR(R23>10,R23<0,R24>10,R24<0),"Fehler",IF(ABS(P23)-ABS(Q23)-(R23+R24)/2+10>0,IF(P23<0,-(ABS(P23)-ABS(Q23)-(R23+R24)/2+10),P23-ABS(Q23)-(R23+R24)/2+10),0)),0) -> 0 | W23: =IF(AND(V23>0,V24>0),IF(OR(V23>10,V23<0,V24>10,V24<0),"Fehler",IF(ABS(T23)-ABS(U23)-(V23+V24)/2+10>0,IF(T23<0,-(ABS(T23)-ABS(U23)-(V23+V24)/2+10),T23-ABS(U23)-(V23+V24)/2+10),0)),0) -> 0 | AA23: =IF(AND(Z23>0,Z24>0),IF(OR(Z23>10,Z23<0,Z24>10,Z24<0),"Fehler",IF(ABS(X23)-ABS(Y23)-(Z23+Z24)/2+10>0,IF(X23<0,-(ABS(X23)-ABS(Y23)-(Z23+Z24)/2+10),X23-ABS(Y23)-(Z23+Z24)/2+10),0)),0) -> 0 | AB23: =ABS(G23)+ABS(K23)+ABS(O23)+ABS(S23)+ABS(W23)+ABS(AA23) -> 0
B25: =IF(A25>0,B23,"") ->  | C25: =IF(A25<>"", VLOOKUP(A25,'Wertungszettel M8'!A$7:B$36,2),"") ->  | G25: =IF(AND(F25>0,F26>0),IF(OR(F25>10,F25<0,F26>10,F26<0),"Fehler",IF(ABS(D25)-ABS(E25)-(F25+F26)/2+10>0,IF(D25<0,-(ABS(D25)-ABS(E25)-(F25+F26)/2+10),D25-ABS(E25)-(F25+F26)/2+10),0)),0) -> 0 | K25: =IF(AND(J25>0,J26>0),IF(OR(J25>10,J25<0,J26>10,J26<0),"Fehler",IF(ABS(H25)-ABS(I25)-(J25+J26)/2+10>0,IF(H25<0,-(ABS(H25)-ABS(I25)-(J25+J26)/2+10),H25-ABS(I25)-(J25+J26)/2+10),0)),0) -> 0 | O25: =IF(AND(N25>0,N26>0),IF(OR(N25>10,N25<0,N26>10,N26<0),"Fehler",IF(ABS(L25)-ABS(M25)-(N25+N26)/2+10>0,IF(L25<0,-(ABS(L25)-ABS(M25)-(N25+N26)/2+10),L25-ABS(M25)-(N25+N26)/2+10),0)),0) -> 0 | S25: =IF(AND(R25>0,R26>0),IF(OR(R25>10,R25<0,R26>10,R26<0),"Fehler",IF(ABS(P25)-ABS(Q25)-(R25+R26)/2+10>0,IF(P25<0,-(ABS(P25)-ABS(Q25)-(R25+R26)/2+10),P25-ABS(Q25)-(R25+R26)/2+10),0)),0) -> 0 | W25: =IF(AND(V25>0,V26>0),IF(OR(V25>10,V25<0,V26>10,V26<0),"Fehler",IF(ABS(T25)-ABS(U25)-(V25+V26)/2+10>0,IF(T25<0,-(ABS(T25)-ABS(U25)-(V25+V26)/2+10),T25-ABS(U25)-(V25+V26)/2+10),0)),0) -> 0 | AA25: =IF(AND(Z25>0,Z26>0),IF(OR(Z25>10,Z25<0,Z26>10,Z26<0),"Fehler",IF(ABS(X25)-ABS(Y25)-(Z25+Z26)/2+10>0,IF(X25<0,-(ABS(X25)-ABS(Y25)-(Z25+Z26)/2+10),X25-ABS(Y25)-(Z25+Z26)/2+10),0)),0) -> 0 | AB25: =ABS(G25)+ABS(K25)+ABS(O25)+ABS(S25)+ABS(W25)+ABS(AA25) -> 0
B27: =IF(A27>0,B25,"") ->  | C27: =IF(A27<>"", VLOOKUP(A27,'Wertungszettel M8'!A$7:B$36,2),"") ->  | G27: =IF(AND(F27>0,F28>0),IF(OR(F27>10,F27<0,F28>10,F28<0),"Fehler",IF(ABS(D27)-ABS(E27)-(F27+F28)/2+10>0,IF(D27<0,-(ABS(D27)-ABS(E27)-(F27+F28)/2+10),D27-ABS(E27)-(F27+F28)/2+10),0)),0) -> 0 | K27: =IF(AND(J27>0,J28>0),IF(OR(J27>10,J27<0,J28>10,J28<0),"Fehler",IF(ABS(H27)-ABS(I27)-(J27+J28)/2+10>0,IF(H27<0,-(ABS(H27)-ABS(I27)-(J27+J28)/2+10),H27-ABS(I27)-(J27+J28)/2+10),0)),0) -> 0 | O27: =IF(AND(N27>0,N28>0),IF(OR(N27>10,N27<0,N28>10,N28<0),"Fehler",IF(ABS(L27)-ABS(M27)-(N27+N28)/2+10>0,IF(L27<0,-(ABS(L27)-ABS(M27)-(N27+N28)/2+10),L27-ABS(M27)-(N27+N28)/2+10),0)),0) -> 0 | S27: =IF(AND(R27>0,R28>0),IF(OR(R27>10,R27<0,R28>10,R28<0),"Fehler",IF(ABS(P27)-ABS(Q27)-(R27+R28)/2+10>0,IF(P27<0,-(ABS(P27)-ABS(Q27)-(R27+R28)/2+10),P27-ABS(Q27)-(R27+R28)/2+10),0)),0) -> 0 | W27: =IF(AND(V27>0,V28>0),IF(OR(V27>10,V27<0,V28>10,V28<0),"Fehler",IF(ABS(T27)-ABS(U27)-(V27+V28)/2+10>0,IF(T27<0,-(ABS(T27)-ABS(U27)-(V27+V28)/2+10),T27-ABS(U27)-(V27+V28)/2+10),0)),0) -> 0 | AA27: =IF(AND(Z27>0,Z28>0),IF(OR(Z27>10,Z27<0,Z28>10,Z28<0),"Fehler",IF(ABS(X27)-ABS(Y27)-(Z27+Z28)/2+10>0,IF(X27<0,-(ABS(X27)-ABS(Y27)-(Z27+Z28)/2+10),X27-ABS(Y27)-(Z27+Z28)/2+10),0)),0) -> 0 | AB27: =ABS(G27)+ABS(K27)+ABS(O27)+ABS(S27)+ABS(W27)+ABS(AA27) -> 0
G30: =SUM(LARGE(G9:G28,1),LARGE(G9:G28,2),LARGE(G9:G28,3)) -> 0 | K30: =SUM(LARGE(K9:K28,1),LARGE(K9:K28,2),LARGE(K9:K28,3)) -> 0 | O30: =SUM(LARGE(O9:O28,1),LARGE(O9:O28,2),LARGE(O9:O28,3)) -> 0 | S30: =SUM(LARGE(S9:S28,1),LARGE(S9:S28,2),LARGE(S9:S28,3)) -> 0 | W30: =SUM(LARGE(W9:W28,1),LARGE(W9:W28,2),LARGE(W9:W28,3)) -> 0 | AA30: =SUM(LARGE(AA9:AA28,1),LARGE(AA9:AA28,2),LARGE(AA9:AA28,3)) -> 0 | AB30: =SUM(G30,K30,O30,S30,W30,AA30) -> 0

Sheet M9 (hidden)
A1: Wettkampfbogen | M1: Datum: | O1: ='INFO Blatt'!B13 -> 2019-02-16
M3: Ort: | O3: ='INFO Blatt'!B11 -> Hehlen
N5: Liga: | O5: ='INFO Blatt'!B7 -> Einsteigerliga
A7: Name | B7: Verein | C7: Jg | D7: Boden | H7: Pferd | L7: Ringe | P7: Sprung | T7: Barren | X7: Reck | AB7: Ges.
D8: D-Note | E8: Abzug OK | F8: E- Abzug | G8: Note | H8: D-Note | I8: Abzug OK | J8: E- Abzug | K8: Note | L8: D-Note | M8: Abzug OK | N8: E-Abzug | O8: Note | P8: D-Note | Q8: Abzug OK | R8: E-Abzug | S8: Note | T8: D-Note | U8: Abzug OK | V8: E-Abzug | W8: Note | X8: D-Note | Y8: Abzug OK | Z8: E-Abzug | AA8: Note
B9: =Formeln!A13 -> M9 | C9: =IF(A9<>"", VLOOKUP(A9,'Wertungszettel M9'!A$7:B$36,2,0),"") ->  | G9: =IF(AND(F9>0,F10>0),IF(OR(F9>10,F9<0,F10>10,F10<0),"Fehler",IF(ABS(D9)-ABS(E9)-(F9+F10)/2+10>0,IF(D9<0,-(ABS(D9)-ABS(E9)-(F9+F10)/2+10),D9-ABS(E9)-(F9+F10)/2+10),0)),0) -> 0 | K9: =IF(AND(J9>0,J10>0),IF(OR(J9>10,J9<0,J10>10,J10<0),"Fehler",IF(ABS(H9)-ABS(I9)-(J9+J10)/2+10>0,IF(H9<0,-(ABS(H9)-ABS(I9)-(J9+J10)/2+10),H9-ABS(I9)-(J9+J10)/2+10),0)),0) -> 0 | O9: =IF(AND(N9>0,N10>0),IF(OR(N9>10,N9<0,N10>10,N10<0),"Fehler",IF(ABS(L9)-ABS(M9)-(N9+N10)/2+10>0,IF(L9<0,-(ABS(L9)-ABS(M9)-(N9+N10)/2+10),L9-ABS(M9)-(N9+N10)/2+10),0)),0) -> 0 | S9: =IF(AND(R9>0,R10>0),IF(OR(R9>10,R9<0,R10>10,R10<0),"Fehler",IF(ABS(P9)-ABS(Q9)-(R9+R10)/2+10>0,IF(P9<0,-(ABS(P9)-ABS(Q9)-(R9+R10)/2+10),P9-ABS(Q9)-(R9+R10)/2+10),0)),0) -> 0 | W9: =IF(AND(V9>0,V10>0),IF(OR(V9>10,V9<0,V10>10,V10<0),"Fehler",IF(ABS(T9)-ABS(U9)-(V9+V10)/2+10>0,IF(T9<0,-(ABS(T9)-ABS(U9)-(V9+V10)/2+10),T9-ABS(U9)-(V9+V10)/2+10),0)),0) -> 0 | AA9: =IF(AND(Z9>0,Z10>0),IF(OR(Z9>10,Z9<0,Z10>10,Z10<0),"Fehler",IF(ABS(X9)-ABS(Y9)-(Z9+Z10)/2+10>0,IF(X9<0,-(ABS(X9)-ABS(Y9)-(Z9+Z10)/2+10),X9-ABS(Y9)-(Z9+Z10)/2+10),0)),0) -> 0 | AB9: =ABS(G9)+ABS(K9)+ABS(O9)+ABS(S9)+ABS(W9)+ABS(AA9) -> 0
B11: =IF(A11>0,B9,"") ->  | C11: =IF(A11<>"", VLOOKUP(A11,'Wertungszettel M9'!A$7:B$36,2,0),"") ->  | G11: =IF(AND(F11>0,F12>0),IF(OR(F11>10,F11<0,F12>10,F12<0),"Fehler",IF(ABS(D11)-ABS(E11)-(F11+F12)/2+10>0,IF(D11<0,-(ABS(D11)-ABS(E11)-(F11+F12)/2+10),D11-ABS(E11)-(F11+F12)/2+10),0)),0) -> 0 | K11: =IF(AND(J11>0,J12>0),IF(OR(J11>10,J11<0,J12>10,J12<0),"Fehler",IF(ABS(H11)-ABS(I11)-(J11+J12)/2+10>0,IF(H11<0,-(ABS(H11)-ABS(I11)-(J11+J12)/2+10),H11-ABS(I11)-(J11+J12)/2+10),0)),0) -> 0 | O11: =IF(AND(N11>0,N12>0),IF(OR(N11>10,N11<0,N12>10,N12<0),"Fehler",IF(ABS(L11)-ABS(M11)-(N11+N12)/2+10>0,IF(L11<0,-(ABS(L11)-ABS(M11)-(N11+N12)/2+10),L11-ABS(M11)-(N11+N12)/2+10),0)),0) -> 0 | S11: =IF(AND(R11>0,R12>0),IF(OR(R11>10,R11<0,R12>10,R12<0),"Fehler",IF(ABS(P11)-ABS(Q11)-(R11+R12)/2+10>0,IF(P11<0,-(ABS(P11)-ABS(Q11)-(R11+R12)/2+10),P11-ABS(Q11)-(R11+R12)/2+10),0)),0) -> 0 | W11: =IF(AND(V11>0,V12>0),IF(OR(V11>10,V11<0,V12>10,V12<0),"Fehler",IF(ABS(T11)-ABS(U11)-(V11+V12)/2+10>0,IF(T11<0,-(ABS(T11)-ABS(U11)-(V11+V12)/2+10),T11-ABS(U11)-(V11+V12)/2+10),0)),0) -> 0 | AA11: =IF(AND(Z11>0,Z12>0),IF(OR(Z11>10,Z11<0,Z12>10,Z12<0),"Fehler",IF(ABS(X11)-ABS(Y11)-(Z11+Z12)/2+10>0,IF(X11<0,-(ABS(X11)-ABS(Y11)-(Z11+Z12)/2+10),X11-ABS(Y11)-(Z11+Z12)/2+10),0)),0) -> 0 | AB11: =ABS(G11)+ABS(K11)+ABS(O11)+ABS(S11)+ABS(W11)+ABS(AA11) -> 0
B13: =IF(A13>0,B11,"") ->  | C13: =IF(A13<>"", VLOOKUP(A13,'Wertungszettel M9'!A$7:B$36,2,0),"") ->  | G13: =IF(AND(F13>0,F14>0),IF(OR(F13>10,F13<0,F14>10,F14<0),"Fehler",IF(ABS(D13)-ABS(E13)-(F13+F14)/2+10>0,IF(D13<0,-(ABS(D13)-ABS(E13)-(F13+F14)/2+10),D13-ABS(E13)-(F13+F14)/2+10),0)),0) -> 0 | K13: =IF(AND(J13>0,J14>0),IF(OR(J13>10,J13<0,J14>10,J14<0),"Fehler",IF(ABS(H13)-ABS(I13)-(J13+J14)/2+10>0,IF(H13<0,-(ABS(H13)-ABS(I13)-(J13+J14)/2+10),H13-ABS(I13)-(J13+J14)/2+10),0)),0) -> 0 | O13: =IF(AND(N13>0,N14>0),IF(OR(N13>10,N13<0,N14>10,N14<0),"Fehler",IF(ABS(L13)-ABS(M13)-(N13+N14)/2+10>0,IF(L13<0,-(ABS(L13)-ABS(M13)-(N13+N14)/2+10),L13-ABS(M13)-(N13+N14)/2+10),0)),0) -> 0 | S13: =IF(AND(R13>0,R14>0),IF(OR(R13>10,R13<0,R14>10,R14<0),"Fehler",IF(ABS(P13)-ABS(Q13)-(R13+R14)/2+10>0,IF(P13<0,-(ABS(P13)-ABS(Q13)-(R13+R14)/2+10),P13-ABS(Q13)-(R13+R14)/2+10),0)),0) -> 0 | W13: =IF(AND(V13>0,V14>0),IF(OR(V13>10,V13<0,V14>10,V14<0),"Fehler",IF(ABS(T13)-ABS(U13)-(V13+V14)/2+10>0,IF(T13<0,-(ABS(T13)-ABS(U13)-(V13+V14)/2+10),T13-ABS(U13)-(V13+V14)/2+10),0)),0) -> 0 | AA13: =IF(AND(Z13>0,Z14>0),IF(OR(Z13>10,Z13<0,Z14>10,Z14<0),"Fehler",IF(ABS(X13)-ABS(Y13)-(Z13+Z14)/2+10>0,IF(X13<0,-(ABS(X13)-ABS(Y13)-(Z13+Z14)/2+10),X13-ABS(Y13)-(Z13+Z14)/2+10),0)),0) -> 0 | AB13: =ABS(G13)+ABS(K13)+ABS(O13)+ABS(S13)+ABS(W13)+ABS(AA13) -> 0
B15: =IF(A15>0,B13,"") ->  | C15: =IF(A15<>"", VLOOKUP(A15,'Wertungszettel M9'!A$7:B$36,2,0),"") ->  | G15: =IF(AND(F15>0,F16>0),IF(OR(F15>10,F15<0,F16>10,F16<0),"Fehler",IF(ABS(D15)-ABS(E15)-(F15+F16)/2+10>0,IF(D15<0,-(ABS(D15)-ABS(E15)-(F15+F16)/2+10),D15-ABS(E15)-(F15+F16)/2+10),0)),0) -> 0 | K15: =IF(AND(J15>0,J16>0),IF(OR(J15>10,J15<0,J16>10,J16<0),"Fehler",IF(ABS(H15)-ABS(I15)-(J15+J16)/2+10>0,IF(H15<0,-(ABS(H15)-ABS(I15)-(J15+J16)/2+10),H15-ABS(I15)-(J15+J16)/2+10),0)),0) -> 0 | O15: =IF(AND(N15>0,N16>0),IF(OR(N15>10,N15<0,N16>10,N16<0),"Fehler",IF(ABS(L15)-ABS(M15)-(N15+N16)/2+10>0,IF(L15<0,-(ABS(L15)-ABS(M15)-(N15+N16)/2+10),L15-ABS(M15)-(N15+N16)/2+10),0)),0) -> 0 | S15: =IF(AND(R15>0,R16>0),IF(OR(R15>10,R15<0,R16>10,R16<0),"Fehler",IF(ABS(P15)-ABS(Q15)-(R15+R16)/2+10>0,IF(P15<0,-(ABS(P15)-ABS(Q15)-(R15+R16)/2+10),P15-ABS(Q15)-(R15+R16)/2+10),0)),0) -> 0 | W15: =IF(AND(V15>0,V16>0),IF(OR(V15>10,V15<0,V16>10,V16<0),"Fehler",IF(ABS(T15)-ABS(U15)-(V15+V16)/2+10>0,IF(T15<0,-(ABS(T15)-ABS(U15)-(V15+V16)/2+10),T15-ABS(U15)-(V15+V16)/2+10),0)),0) -> 0 | AA15: =IF(AND(Z15>0,Z16>0),IF(OR(Z15>10,Z15<0,Z16>10,Z16<0),"Fehler",IF(ABS(X15)-ABS(Y15)-(Z15+Z16)/2+10>0,IF(X15<0,-(ABS(X15)-ABS(Y15)-(Z15+Z16)/2+10),X15-ABS(Y15)-(Z15+Z16)/2+10),0)),0) -> 0 | AB15: =ABS(G15)+ABS(K15)+ABS(O15)+ABS(S15)+ABS(W15)+ABS(AA15) -> 0
B17: =IF(A17>0,B15,"") ->  | C17: =IF(A17<>"", VLOOKUP(A17,'Wertungszettel M9'!A$7:B$36,2,0),"") ->  | G17: =IF(AND(F17>0,F18>0),IF(OR(F17>10,F17<0,F18>10,F18<0),"Fehler",IF(ABS(D17)-ABS(E17)-(F17+F18)/2+10>0,IF(D17<0,-(ABS(D17)-ABS(E17)-(F17+F18)/2+10),D17-ABS(E17)-(F17+F18)/2+10),0)),0) -> 0 | K17: =IF(AND(J17>0,J18>0),IF(OR(J17>10,J17<0,J18>10,J18<0),"Fehler",IF(ABS(H17)-ABS(I17)-(J17+J18)/2+10>0,IF(H17<0,-(ABS(H17)-ABS(I17)-(J17+J18)/2+10),H17-ABS(I17)-(J17+J18)/2+10),0)),0) -> 0 | O17: =IF(AND(N17>0,N18>0),IF(OR(N17>10,N17<0,N18>10,N18<0),"Fehler",IF(ABS(L17)-ABS(M17)-(N17+N18)/2+10>0,IF(L17<0,-(ABS(L17)-ABS(M17)-(N17+N18)/2+10),L17-ABS(M17)-(N17+N18)/2+10),0)),0) -> 0 | S17: =IF(AND(R17>0,R18>0),IF(OR(R17>10,R17<0,R18>10,R18<0),"Fehler",IF(ABS(P17)-ABS(Q17)-(R17+R18)/2+10>0,IF(P17<0,-(ABS(P17)-ABS(Q17)-(R17+R18)/2+10),P17-ABS(Q17)-(R17+R18)/2+10),0)),0) -> 0 | W17: =IF(AND(V17>0,V18>0),IF(OR(V17>10,V17<0,V18>10,V18<0),"Fehler",IF(ABS(T17)-ABS(U17)-(V17+V18)/2+10>0,IF(T17<0,-(ABS(T17)-ABS(U17)-(V17+V18)/2+10),T17-ABS(U17)-(V17+V18)/2+10),0)),0) -> 0 | AA17: =IF(AND(Z17>0,Z18>0),IF(OR(Z17>10,Z17<0,Z18>10,Z18<0),"Fehler",IF(ABS(X17)-ABS(Y17)-(Z17+Z18)/2+10>0,IF(X17<0,-(ABS(X17)-ABS(Y17)-(Z17+Z18)/2+10),X17-ABS(Y17)-(Z17+Z18)/2+10),0)),0) -> 0 | AB17: =ABS(G17)+ABS(K17)+ABS(O17)+ABS(S17)+ABS(W17)+ABS(AA17) -> 0
B19: =IF(A19>0,B17,"") ->  | C19: =IF(A19<>"", VLOOKUP(A19,'Wertungszettel M9'!A$7:B$36,2,0),"") ->  | G19: =IF(AND(F19>0,F20>0),IF(OR(F19>10,F19<0,F20>10,F20<0),"Fehler",IF(ABS(D19)-ABS(E19)-(F19+F20)/2+10>0,IF(D19<0,-(ABS(D19)-ABS(E19)-(F19+F20)/2+10),D19-ABS(E19)-(F19+F20)/2+10),0)),0) -> 0 | K19: =IF(AND(J19>0,J20>0),IF(OR(J19>10,J19<0,J20>10,J20<0),"Fehler",IF(ABS(H19)-ABS(I19)-(J19+J20)/2+10>0,IF(H19<0,-(ABS(H19)-ABS(I19)-(J19+J20)/2+10),H19-ABS(I19)-(J19+J20)/2+10),0)),0) -> 0 | O19: =IF(AND(N19>0,N20>0),IF(OR(N19>10,N19<0,N20>10,N20<0),"Fehler",IF(ABS(L19)-ABS(M19)-(N19+N20)/2+10>0,IF(L19<0,-(ABS(L19)-ABS(M19)-(N19+N20)/2+10),L19-ABS(M19)-(N19+N20)/2+10),0)),0) -> 0 | S19: =IF(AND(R19>0,R20>0),IF(OR(R19>10,R19<0,R20>10,R20<0),"Fehler",IF(ABS(P19)-ABS(Q19)-(R19+R20)/2+10>0,IF(P19<0,-(ABS(P19)-ABS(Q19)-(R19+R20)/2+10),P19-ABS(Q19)-(R19+R20)/2+10),0)),0) -> 0 | W19: =IF(AND(V19>0,V20>0),IF(OR(V19>10,V19<0,V20>10,V20<0),"Fehler",IF(ABS(T19)-ABS(U19)-(V19+V20)/2+10>0,IF(T19<0,-(ABS(T19)-ABS(U19)-(V19+V20)/2+10),T19-ABS(U19)-(V19+V20)/2+10),0)),0) -> 0 | AA19: =IF(AND(Z19>0,Z20>0),IF(OR(Z19>10,Z19<0,Z20>10,Z20<0),"Fehler",IF(ABS(X19)-ABS(Y19)-(Z19+Z20)/2+10>0,IF(X19<0,-(ABS(X19)-ABS(Y19)-(Z19+Z20)/2+10),X19-ABS(Y19)-(Z19+Z20)/2+10),0)),0) -> 0 | AB19: =ABS(G19)+ABS(K19)+ABS(O19)+ABS(S19)+ABS(W19)+ABS(AA19) -> 0
B21: =IF(A21>0,B19,"") ->  | C21: =IF(A21<>"", VLOOKUP(A21,'Wertungszettel M9'!A$7:B$36,2,0),"") ->  | G21: =IF(AND(F21>0,F22>0),IF(OR(F21>10,F21<0,F22>10,F22<0),"Fehler",IF(ABS(D21)-ABS(E21)-(F21+F22)/2+10>0,IF(D21<0,-(ABS(D21)-ABS(E21)-(F21+F22)/2+10),D21-ABS(E21)-(F21+F22)/2+10),0)),0) -> 0 | K21: =IF(AND(J21>0,J22>0),IF(OR(J21>10,J21<0,J22>10,J22<0),"Fehler",IF(ABS(H21)-ABS(I21)-(J21+J22)/2+10>0,IF(H21<0,-(ABS(H21)-ABS(I21)-(J21+J22)/2+10),H21-ABS(I21)-(J21+J22)/2+10),0)),0) -> 0 | O21: =IF(AND(N21>0,N22>0),IF(OR(N21>10,N21<0,N22>10,N22<0),"Fehler",IF(ABS(L21)-ABS(M21)-(N21+N22)/2+10>0,IF(L21<0,-(ABS(L21)-ABS(M21)-(N21+N22)/2+10),L21-ABS(M21)-(N21+N22)/2+10),0)),0) -> 0 | S21: =IF(AND(R21>0,R22>0),IF(OR(R21>10,R21<0,R22>10,R22<0),"Fehler",IF(ABS(P21)-ABS(Q21)-(R21+R22)/2+10>0,IF(P21<0,-(ABS(P21)-ABS(Q21)-(R21+R22)/2+10),P21-ABS(Q21)-(R21+R22)/2+10),0)),0) -> 0 | W21: =IF(AND(V21>0,V22>0),IF(OR(V21>10,V21<0,V22>10,V22<0),"Fehler",IF(ABS(T21)-ABS(U21)-(V21+V22)/2+10>0,IF(T21<0,-(ABS(T21)-ABS(U21)-(V21+V22)/2+10),T21-ABS(U21)-(V21+V22)/2+10),0)),0) -> 0 | AA21: =IF(AND(Z21>0,Z22>0),IF(OR(Z21>10,Z21<0,Z22>10,Z22<0),"Fehler",IF(ABS(X21)-ABS(Y21)-(Z21+Z22)/2+10>0,IF(X21<0,-(ABS(X21)-ABS(Y21)-(Z21+Z22)/2+10),X21-ABS(Y21)-(Z21+Z22)/2+10),0)),0) -> 0 | AB21: =ABS(G21)+ABS(K21)+ABS(O21)+ABS(S21)+ABS(W21)+ABS(AA21) -> 0
B23: =IF(A23>0,B21,"") ->  | C23: =IF(A23<>"", VLOOKUP(A23,'Wertungszettel M9'!A$7:B$36,2,0),"") ->  | G23: =IF(AND(F23>0,F24>0),IF(OR(F23>10,F23<0,F24>10,F24<0),"Fehler",IF(ABS(D23)-ABS(E23)-(F23+F24)/2+10>0,IF(D23<0,-(ABS(D23)-ABS(E23)-(F23+F24)/2+10),D23-ABS(E23)-(F23+F24)/2+10),0)),0) -> 0 | K23: =IF(AND(J23>0,J24>0),IF(OR(J23>10,J23<0,J24>10,J24<0),"Fehler",IF(ABS(H23)-ABS(I23)-(J23+J24)/2+10>0,IF(H23<0,-(ABS(H23)-ABS(I23)-(J23+J24)/2+10),H23-ABS(I23)-(J23+J24)/2+10),0)),0) -> 0 | O23: =IF(AND(N23>0,N24>0),IF(OR(N23>10,N23<0,N24>10,N24<0),"Fehler",IF(ABS(L23)-ABS(M23)-(N23+N24)/2+10>0,IF(L23<0,-(ABS(L23)-ABS(M23)-(N23+N24)/2+10),L23-ABS(M23)-(N23+N24)/2+10),0)),0) -> 0 | S23: =IF(AND(R23>0,R24>0),IF(OR(R23>10,R23<0,R24>10,R24<0),"Fehler",IF(ABS(P23)-ABS(Q23)-(R23+R24)/2+10>0,IF(P23<0,-(ABS(P23)-ABS(Q23)-(R23+R24)/2+10),P23-ABS(Q23)-(R23+R24)/2+10),0)),0) -> 0 | W23: =IF(AND(V23>0,V24>0),IF(OR(V23>10,V23<0,V24>10,V24<0),"Fehler",IF(ABS(T23)-ABS(U23)-(V23+V24)/2+10>0,IF(T23<0,-(ABS(T23)-ABS(U23)-(V23+V24)/2+10),T23-ABS(U23)-(V23+V24)/2+10),0)),0) -> 0 | AA23: =IF(AND(Z23>0,Z24>0),IF(OR(Z23>10,Z23<0,Z24>10,Z24<0),"Fehler",IF(ABS(X23)-ABS(Y23)-(Z23+Z24)/2+10>0,IF(X23<0,-(ABS(X23)-ABS(Y23)-(Z23+Z24)/2+10),X23-ABS(Y23)-(Z23+Z24)/2+10),0)),0) -> 0 | AB23: =ABS(G23)+ABS(K23)+ABS(O23)+ABS(S23)+ABS(W23)+ABS(AA23) -> 0
B25: =IF(A25>0,B23,"") ->  | C25: =IF(A25<>"", VLOOKUP(A25,'Wertungszettel M9'!A$7:B$36,2,0),"") ->  | G25: =IF(AND(F25>0,F26>0),IF(OR(F25>10,F25<0,F26>10,F26<0),"Fehler",IF(ABS(D25)-ABS(E25)-(F25+F26)/2+10>0,IF(D25<0,-(ABS(D25)-ABS(E25)-(F25+F26)/2+10),D25-ABS(E25)-(F25+F26)/2+10),0)),0) -> 0 | K25: =IF(AND(J25>0,J26>0),IF(OR(J25>10,J25<0,J26>10,J26<0),"Fehler",IF(ABS(H25)-ABS(I25)-(J25+J26)/2+10>0,IF(H25<0,-(ABS(H25)-ABS(I25)-(J25+J26)/2+10),H25-ABS(I25)-(J25+J26)/2+10),0)),0) -> 0 | O25: =IF(AND(N25>0,N26>0),IF(OR(N25>10,N25<0,N26>10,N26<0),"Fehler",IF(ABS(L25)-ABS(M25)-(N25+N26)/2+10>0,IF(L25<0,-(ABS(L25)-ABS(M25)-(N25+N26)/2+10),L25-ABS(M25)-(N25+N26)/2+10),0)),0) -> 0 | S25: =IF(AND(R25>0,R26>0),IF(OR(R25>10,R25<0,R26>10,R26<0),"Fehler",IF(ABS(P25)-ABS(Q25)-(R25+R26)/2+10>0,IF(P25<0,-(ABS(P25)-ABS(Q25)-(R25+R26)/2+10),P25-ABS(Q25)-(R25+R26)/2+10),0)),0) -> 0 | W25: =IF(AND(V25>0,V26>0),IF(OR(V25>10,V25<0,V26>10,V26<0),"Fehler",IF(ABS(T25)-ABS(U25)-(V25+V26)/2+10>0,IF(T25<0,-(ABS(T25)-ABS(U25)-(V25+V26)/2+10),T25-ABS(U25)-(V25+V26)/2+10),0)),0) -> 0 | AA25: =IF(AND(Z25>0,Z26>0),IF(OR(Z25>10,Z25<0,Z26>10,Z26<0),"Fehler",IF(ABS(X25)-ABS(Y25)-(Z25+Z26)/2+10>0,IF(X25<0,-(ABS(X25)-ABS(Y25)-(Z25+Z26)/2+10),X25-ABS(Y25)-(Z25+Z26)/2+10),0)),0) -> 0 | AB25: =ABS(G25)+ABS(K25)+ABS(O25)+ABS(S25)+ABS(W25)+ABS(AA25) -> 0
B27: =IF(A27>0,B25,"") ->  | C27: =IF(A27<>"", VLOOKUP(A27,'Wertungszettel M9'!A$7:B$36,2,0),"") ->  | G27: =IF(AND(F27>0,F28>0),IF(OR(F27>10,F27<0,F28>10,F28<0),"Fehler",IF(ABS(D27)-ABS(E27)-(F27+F28)/2+10>0,IF(D27<0,-(ABS(D27)-ABS(E27)-(F27+F28)/2+10),D27-ABS(E27)-(F27+F28)/2+10),0)),0) -> 0 | K27: =IF(AND(J27>0,J28>0),IF(OR(J27>10,J27<0,J28>10,J28<0),"Fehler",IF(ABS(H27)-ABS(I27)-(J27+J28)/2+10>0,IF(H27<0,-(ABS(H27)-ABS(I27)-(J27+J28)/2+10),H27-ABS(I27)-(J27+J28)/2+10),0)),0) -> 0 | O27: =IF(AND(N27>0,N28>0),IF(OR(N27>10,N27<0,N28>10,N28<0),"Fehler",IF(ABS(L27)-ABS(M27)-(N27+N28)/2+10>0,IF(L27<0,-(ABS(L27)-ABS(M27)-(N27+N28)/2+10),L27-ABS(M27)-(N27+N28)/2+10),0)),0) -> 0 | S27: =IF(AND(R27>0,R28>0),IF(OR(R27>10,R27<0,R28>10,R28<0),"Fehler",IF(ABS(P27)-ABS(Q27)-(R27+R28)/2+10>0,IF(P27<0,-(ABS(P27)-ABS(Q27)-(R27+R28)/2+10),P27-ABS(Q27)-(R27+R28)/2+10),0)),0) -> 0 | W27: =IF(AND(V27>0,V28>0),IF(OR(V27>10,V27<0,V28>10,V28<0),"Fehler",IF(ABS(T27)-ABS(U27)-(V27+V28)/2+10>0,IF(T27<0,-(ABS(T27)-ABS(U27)-(V27+V28)/2+10),T27-ABS(U27)-(V27+V28)/2+10),0)),0) -> 0 | AA27: =IF(AND(Z27>0,Z28>0),IF(OR(Z27>10,Z27<0,Z28>10,Z28<0),"Fehler",IF(ABS(X27)-ABS(Y27)-(Z27+Z28)/2+10>0,IF(X27<0,-(ABS(X27)-ABS(Y27)-(Z27+Z28)/2+10),X27-ABS(Y27)-(Z27+Z28)/2+10),0)),0) -> 0 | AB27: =ABS(G27)+ABS(K27)+ABS(O27)+ABS(S27)+ABS(W27)+ABS(AA27) -> 0
G30: =SUM(LARGE(G9:G28,1),LARGE(G9:G28,2),LARGE(G9:G28,3)) -> 0 | K30: =SUM(LARGE(K9:K28,1),LARGE(K9:K28,2),LARGE(K9:K28,3)) -> 0 | O30: =SUM(LARGE(O9:O28,1),LARGE(O9:O28,2),LARGE(O9:O28,3)) -> 0 | S30: =SUM(LARGE(S9:S28,1),LARGE(S9:S28,2),LARGE(S9:S28,3)) -> 0 | W30: =SUM(LARGE(W9:W28,1),LARGE(W9:W28,2),LARGE(W9:W28,3)) -> 0 | AA30: =SUM(LARGE(AA9:AA28,1),LARGE(AA9:AA28,2),LARGE(AA9:AA28,3)) -> 0 | AB30: =SUM(G30,K30,O30,S30,W30,AA30) -> 0

Sheet M10 (hidden)
A1: Wettkampfbogen | M1: Datum: | O1: ='INFO Blatt'!B13 -> 2019-02-16
M3: Ort: | O3: ='INFO Blatt'!B11 -> Hehlen
N5: Liga: | O5: ='INFO Blatt'!B7 -> Einsteigerliga
A7: Name | B7: Verein | C7: Jg | D7: Boden | H7: Pferd | L7: Ringe | P7: Sprung | T7: Barren | X7: Reck | AB7: Ges.
D8: D-Note | E8: Abzug OK | F8: E- Abzug | G8: Note | H8: D-Note | I8: Abzug OK | J8: E- Abzug | K8: Note | L8: D-Note | M8: Abzug OK | N8: E-Abzug | O8: Note | P8: D-Note | Q8: Abzug OK | R8: E-Abzug | S8: Note | T8: D-Note | U8: Abzug OK | V8: E-Abzug | W8: Note | X8: D-Note | Y8: Abzug OK | Z8: E-Abzug | AA8: Note
B9: =Formeln!A14 -> M10 | C9: =IF(A9<>"", VLOOKUP(A9,'Wertungszettel M10'!A$7:B$36,2,0),"") ->  | G9: =IF(AND(F9>0,F10>0),IF(OR(F9>10,F9<0,F10>10,F10<0),"Fehler",IF(ABS(D9)-ABS(E9)-(F9+F10)/2+10>0,IF(D9<0,-(ABS(D9)-ABS(E9)-(F9+F10)/2+10),D9-ABS(E9)-(F9+F10)/2+10),0)),0) -> 0 | K9: =IF(AND(J9>0,J10>0),IF(OR(J9>10,J9<0,J10>10,J10<0),"Fehler",IF(ABS(H9)-ABS(I9)-(J9+J10)/2+10>0,IF(H9<0,-(ABS(H9)-ABS(I9)-(J9+J10)/2+10),H9-ABS(I9)-(J9+J10)/2+10),0)),0) -> 0 | O9: =IF(AND(N9>0,N10>0),IF(OR(N9>10,N9<0,N10>10,N10<0),"Fehler",IF(ABS(L9)-ABS(M9)-(N9+N10)/2+10>0,IF(L9<0,-(ABS(L9)-ABS(M9)-(N9+N10)/2+10),L9-ABS(M9)-(N9+N10)/2+10),0)),0) -> 0 | S9: =IF(AND(R9>0,R10>0),IF(OR(R9>10,R9<0,R10>10,R10<0),"Fehler",IF(ABS(P9)-ABS(Q9)-(R9+R10)/2+10>0,IF(P9<0,-(ABS(P9)-ABS(Q9)-(R9+R10)/2+10),P9-ABS(Q9)-(R9+R10)/2+10),0)),0) -> 0 | W9: =IF(AND(V9>0,V10>0),IF(OR(V9>10,V9<0,V10>10,V10<0),"Fehler",IF(ABS(T9)-ABS(U9)-(V9+V10)/2+10>0,IF(T9<0,-(ABS(T9)-ABS(U9)-(V9+V10)/2+10),T9-ABS(U9)-(V9+V10)/2+10),0)),0) -> 0 | AA9: =IF(AND(Z9>0,Z10>0),IF(OR(Z9>10,Z9<0,Z10>10,Z10<0),"Fehler",IF(ABS(X9)-ABS(Y9)-(Z9+Z10)/2+10>0,IF(X9<0,-(ABS(X9)-ABS(Y9)-(Z9+Z10)/2+10),X9-ABS(Y9)-(Z9+Z10)/2+10),0)),0) -> 0 | AB9: =ABS(G9)+ABS(K9)+ABS(O9)+ABS(S9)+ABS(W9)+ABS(AA9) -> 0
B11: =IF(A11>0,B9,"") ->  | C11: =IF(A11<>"", VLOOKUP(A11,'Wertungszettel M10'!A$7:B$36,2),"") ->  | G11: =IF(AND(F11>0,F12>0),IF(OR(F11>10,F11<0,F12>10,F12<0),"Fehler",IF(ABS(D11)-ABS(E11)-(F11+F12)/2+10>0,IF(D11<0,-(ABS(D11)-ABS(E11)-(F11+F12)/2+10),D11-ABS(E11)-(F11+F12)/2+10),0)),0) -> 0 | K11: =IF(AND(J11>0,J12>0),IF(OR(J11>10,J11<0,J12>10,J12<0),"Fehler",IF(ABS(H11)-ABS(I11)-(J11+J12)/2+10>0,IF(H11<0,-(ABS(H11)-ABS(I11)-(J11+J12)/2+10),H11-ABS(I11)-(J11+J12)/2+10),0)),0) -> 0 | O11: =IF(AND(N11>0,N12>0),IF(OR(N11>10,N11<0,N12>10,N12<0),"Fehler",IF(ABS(L11)-ABS(M11)-(N11+N12)/2+10>0,IF(L11<0,-(ABS(L11)-ABS(M11)-(N11+N12)/2+10),L11-ABS(M11)-(N11+N12)/2+10),0)),0) -> 0 | S11: =IF(AND(R11>0,R12>0),IF(OR(R11>10,R11<0,R12>10,R12<0),"Fehler",IF(ABS(P11)-ABS(Q11)-(R11+R12)/2+10>0,IF(P11<0,-(ABS(P11)-ABS(Q11)-(R11+R12)/2+10),P11-ABS(Q11)-(R11+R12)/2+10),0)),0) -> 0 | W11: =IF(AND(V11>0,V12>0),IF(OR(V11>10,V11<0,V12>10,V12<0),"Fehler",IF(ABS(T11)-ABS(U11)-(V11+V12)/2+10>0,IF(T11<0,-(ABS(T11)-ABS(U11)-(V11+V12)/2+10),T11-ABS(U11)-(V11+V12)/2+10),0)),0) -> 0 | AA11: =IF(AND(Z11>0,Z12>0),IF(OR(Z11>10,Z11<0,Z12>10,Z12<0),"Fehler",IF(ABS(X11)-ABS(Y11)-(Z11+Z12)/2+10>0,IF(X11<0,-(ABS(X11)-ABS(Y11)-(Z11+Z12)/2+10),X11-ABS(Y11)-(Z11+Z12)/2+10),0)),0) -> 0 | AB11: =ABS(G11)+ABS(K11)+ABS(O11)+ABS(S11)+ABS(W11)+ABS(AA11) -> 0
B13: =IF(A13>0,B11,"") ->  | C13: =IF(A13<>"", VLOOKUP(A13,'Wertungszettel M10'!A$7:B$36,2),"") ->  | G13: =IF(AND(F13>0,F14>0),IF(OR(F13>10,F13<0,F14>10,F14<0),"Fehler",IF(ABS(D13)-ABS(E13)-(F13+F14)/2+10>0,IF(D13<0,-(ABS(D13)-ABS(E13)-(F13+F14)/2+10),D13-ABS(E13)-(F13+F14)/2+10),0)),0) -> 0 | K13: =IF(AND(J13>0,J14>0),IF(OR(J13>10,J13<0,J14>10,J14<0),"Fehler",IF(ABS(H13)-ABS(I13)-(J13+J14)/2+10>0,IF(H13<0,-(ABS(H13)-ABS(I13)-(J13+J14)/2+10),H13-ABS(I13)-(J13+J14)/2+10),0)),0) -> 0 | O13: =IF(AND(N13>0,N14>0),IF(OR(N13>10,N13<0,N14>10,N14<0),"Fehler",IF(ABS(L13)-ABS(M13)-(N13+N14)/2+10>0,IF(L13<0,-(ABS(L13)-ABS(M13)-(N13+N14)/2+10),L13-ABS(M13)-(N13+N14)/2+10),0)),0) -> 0 | S13: =IF(AND(R13>0,R14>0),IF(OR(R13>10,R13<0,R14>10,R14<0),"Fehler",IF(ABS(P13)-ABS(Q13)-(R13+R14)/2+10>0,IF(P13<0,-(ABS(P13)-ABS(Q13)-(R13+R14)/2+10),P13-ABS(Q13)-(R13+R14)/2+10),0)),0) -> 0 | W13: =IF(AND(V13>0,V14>0),IF(OR(V13>10,V13<0,V14>10,V14<0),"Fehler",IF(ABS(T13)-ABS(U13)-(V13+V14)/2+10>0,IF(T13<0,-(ABS(T13)-ABS(U13)-(V13+V14)/2+10),T13-ABS(U13)-(V13+V14)/2+10),0)),0) -> 0 | AA13: =IF(AND(Z13>0,Z14>0),IF(OR(Z13>10,Z13<0,Z14>10,Z14<0),"Fehler",IF(ABS(X13)-ABS(Y13)-(Z13+Z14)/2+10>0,IF(X13<0,-(ABS(X13)-ABS(Y13)-(Z13+Z14)/2+10),X13-ABS(Y13)-(Z13+Z14)/2+10),0)),0) -> 0 | AB13: =ABS(G13)+ABS(K13)+ABS(O13)+ABS(S13)+ABS(W13)+ABS(AA13) -> 0
B15: =IF(A15>0,B13,"") ->  | C15: =IF(A15<>"", VLOOKUP(A15,'Wertungszettel M10'!A$7:B$36,2),"") ->  | G15: =IF(AND(F15>0,F16>0),IF(OR(F15>10,F15<0,F16>10,F16<0),"Fehler",IF(ABS(D15)-ABS(E15)-(F15+F16)/2+10>0,IF(D15<0,-(ABS(D15)-ABS(E15)-(F15+F16)/2+10),D15-ABS(E15)-(F15+F16)/2+10),0)),0) -> 0 | K15: =IF(AND(J15>0,J16>0),IF(OR(J15>10,J15<0,J16>10,J16<0),"Fehler",IF(ABS(H15)-ABS(I15)-(J15+J16)/2+10>0,IF(H15<0,-(ABS(H15)-ABS(I15)-(J15+J16)/2+10),H15-ABS(I15)-(J15+J16)/2+10),0)),0) -> 0 | O15: =IF(AND(N15>0,N16>0),IF(OR(N15>10,N15<0,N16>10,N16<0),"Fehler",IF(ABS(L15)-ABS(M15)-(N15+N16)/2+10>0,IF(L15<0,-(ABS(L15)-ABS(M15)-(N15+N16)/2+10),L15-ABS(M15)-(N15+N16)/2+10),0)),0) -> 0 | S15: =IF(AND(R15>0,R16>0),IF(OR(R15>10,R15<0,R16>10,R16<0),"Fehler",IF(ABS(P15)-ABS(Q15)-(R15+R16)/2+10>0,IF(P15<0,-(ABS(P15)-ABS(Q15)-(R15+R16)/2+10),P15-ABS(Q15)-(R15+R16)/2+10),0)),0) -> 0 | W15: =IF(AND(V15>0,V16>0),IF(OR(V15>10,V15<0,V16>10,V16<0),"Fehler",IF(ABS(T15)-ABS(U15)-(V15+V16)/2+10>0,IF(T15<0,-(ABS(T15)-ABS(U15)-(V15+V16)/2+10),T15-ABS(U15)-(V15+V16)/2+10),0)),0) -> 0 | AA15: =IF(AND(Z15>0,Z16>0),IF(OR(Z15>10,Z15<0,Z16>10,Z16<0),"Fehler",IF(ABS(X15)-ABS(Y15)-(Z15+Z16)/2+10>0,IF(X15<0,-(ABS(X15)-ABS(Y15)-(Z15+Z16)/2+10),X15-ABS(Y15)-(Z15+Z16)/2+10),0)),0) -> 0 | AB15: =ABS(G15)+ABS(K15)+ABS(O15)+ABS(S15)+ABS(W15)+ABS(AA15) -> 0
B17: =IF(A17>0,B15,"") ->  | C17: =IF(A17<>"", VLOOKUP(A17,'Wertungszettel M10'!A$7:B$36,2),"") ->  | G17: =IF(AND(F17>0,F18>0),IF(OR(F17>10,F17<0,F18>10,F18<0),"Fehler",IF(ABS(D17)-ABS(E17)-(F17+F18)/2+10>0,IF(D17<0,-(ABS(D17)-ABS(E17)-(F17+F18)/2+10),D17-ABS(E17)-(F17+F18)/2+10),0)),0) -> 0 | K17: =IF(AND(J17>0,J18>0),IF(OR(J17>10,J17<0,J18>10,J18<0),"Fehler",IF(ABS(H17)-ABS(I17)-(J17+J18)/2+10>0,IF(H17<0,-(ABS(H17)-ABS(I17)-(J17+J18)/2+10),H17-ABS(I17)-(J17+J18)/2+10),0)),0) -> 0 | O17: =IF(AND(N17>0,N18>0),IF(OR(N17>10,N17<0,N18>10,N18<0),"Fehler",IF(ABS(L17)-ABS(M17)-(N17+N18)/2+10>0,IF(L17<0,-(ABS(L17)-ABS(M17)-(N17+N18)/2+10),L17-ABS(M17)-(N17+N18)/2+10),0)),0) -> 0 | S17: =IF(AND(R17>0,R18>0),IF(OR(R17>10,R17<0,R18>10,R18<0),"Fehler",IF(ABS(P17)-ABS(Q17)-(R17+R18)/2+10>0,IF(P17<0,-(ABS(P17)-ABS(Q17)-(R17+R18)/2+10),P17-ABS(Q17)-(R17+R18)/2+10),0)),0) -> 0 | W17: =IF(AND(V17>0,V18>0),IF(OR(V17>10,V17<0,V18>10,V18<0),"Fehler",IF(ABS(T17)-ABS(U17)-(V17+V18)/2+10>0,IF(T17<0,-(ABS(T17)-ABS(U17)-(V17+V18)/2+10),T17-ABS(U17)-(V17+V18)/2+10),0)),0) -> 0 | AA17: =IF(AND(Z17>0,Z18>0),IF(OR(Z17>10,Z17<0,Z18>10,Z18<0),"Fehler",IF(ABS(X17)-ABS(Y17)-(Z17+Z18)/2+10>0,IF(X17<0,-(ABS(X17)-ABS(Y17)-(Z17+Z18)/2+10),X17-ABS(Y17)-(Z17+Z18)/2+10),0)),0) -> 0 | AB17: =ABS(G17)+ABS(K17)+ABS(O17)+ABS(S17)+ABS(W17)+ABS(AA17) -> 0
B19: =IF(A19>0,B17,"") ->  | C19: =IF(A19<>"", VLOOKUP(A19,'Wertungszettel M10'!A$7:B$36,2),"") ->  | G19: =IF(AND(F19>0,F20>0),IF(OR(F19>10,F19<0,F20>10,F20<0),"Fehler",IF(ABS(D19)-ABS(E19)-(F19+F20)/2+10>0,IF(D19<0,-(ABS(D19)-ABS(E19)-(F19+F20)/2+10),D19-ABS(E19)-(F19+F20)/2+10),0)),0) -> 0 | K19: =IF(AND(J19>0,J20>0),IF(OR(J19>10,J19<0,J20>10,J20<0),"Fehler",IF(ABS(H19)-ABS(I19)-(J19+J20)/2+10>0,IF(H19<0,-(ABS(H19)-ABS(I19)-(J19+J20)/2+10),H19-ABS(I19)-(J19+J20)/2+10),0)),0) -> 0 | O19: =IF(AND(N19>0,N20>0),IF(OR(N19>10,N19<0,N20>10,N20<0),"Fehler",IF(ABS(L19)-ABS(M19)-(N19+N20)/2+10>0,IF(L19<0,-(ABS(L19)-ABS(M19)-(N19+N20)/2+10),L19-ABS(M19)-(N19+N20)/2+10),0)),0) -> 0 | S19: =IF(AND(R19>0,R20>0),IF(OR(R19>10,R19<0,R20>10,R20<0),"Fehler",IF(ABS(P19)-ABS(Q19)-(R19+R20)/2+10>0,IF(P19<0,-(ABS(P19)-ABS(Q19)-(R19+R20)/2+10),P19-ABS(Q19)-(R19+R20)/2+10),0)),0) -> 0 | W19: =IF(AND(V19>0,V20>0),IF(OR(V19>10,V19<0,V20>10,V20<0),"Fehler",IF(ABS(T19)-ABS(U19)-(V19+V20)/2+10>0,IF(T19<0,-(ABS(T19)-ABS(U19)-(V19+V20)/2+10),T19-ABS(U19)-(V19+V20)/2+10),0)),0) -> 0 | AA19: =IF(AND(Z19>0,Z20>0),IF(OR(Z19>10,Z19<0,Z20>10,Z20<0),"Fehler",IF(ABS(X19)-ABS(Y19)-(Z19+Z20)/2+10>0,IF(X19<0,-(ABS(X19)-ABS(Y19)-(Z19+Z20)/2+10),X19-ABS(Y19)-(Z19+Z20)/2+10),0)),0) -> 0 | AB19: =ABS(G19)+ABS(K19)+ABS(O19)+ABS(S19)+ABS(W19)+ABS(AA19) -> 0
B21: =IF(A21>0,B19,"") ->  | C21: =IF(A21<>"", VLOOKUP(A21,'Wertungszettel M10'!A$7:B$36,2),"") ->  | G21: =IF(AND(F21>0,F22>0),IF(OR(F21>10,F21<0,F22>10,F22<0),"Fehler",IF(ABS(D21)-ABS(E21)-(F21+F22)/2+10>0,IF(D21<0,-(ABS(D21)-ABS(E21)-(F21+F22)/2+10),D21-ABS(E21)-(F21+F22)/2+10),0)),0) -> 0 | K21: =IF(AND(J21>0,J22>0),IF(OR(J21>10,J21<0,J22>10,J22<0),"Fehler",IF(ABS(H21)-ABS(I21)-(J21+J22)/2+10>0,IF(H21<0,-(ABS(H21)-ABS(I21)-(J21+J22)/2+10),H21-ABS(I21)-(J21+J22)/2+10),0)),0) -> 0 | O21: =IF(AND(N21>0,N22>0),IF(OR(N21>10,N21<0,N22>10,N22<0),"Fehler",IF(ABS(L21)-ABS(M21)-(N21+N22)/2+10>0,IF(L21<0,-(ABS(L21)-ABS(M21)-(N21+N22)/2+10),L21-ABS(M21)-(N21+N22)/2+10),0)),0) -> 0 | S21: =IF(AND(R21>0,R22>0),IF(OR(R21>10,R21<0,R22>10,R22<0),"Fehler",IF(ABS(P21)-ABS(Q21)-(R21+R22)/2+10>0,IF(P21<0,-(ABS(P21)-ABS(Q21)-(R21+R22)/2+10),P21-ABS(Q21)-(R21+R22)/2+10),0)),0) -> 0 | W21: =IF(AND(V21>0,V22>0),IF(OR(V21>10,V21<0,V22>10,V22<0),"Fehler",IF(ABS(T21)-ABS(U21)-(V21+V22)/2+10>0,IF(T21<0,-(ABS(T21)-ABS(U21)-(V21+V22)/2+10),T21-ABS(U21)-(V21+V22)/2+10),0)),0) -> 0 | AA21: =IF(AND(Z21>0,Z22>0),IF(OR(Z21>10,Z21<0,Z22>10,Z22<0),"Fehler",IF(ABS(X21)-ABS(Y21)-(Z21+Z22)/2+10>0,IF(X21<0,-(ABS(X21)-ABS(Y21)-(Z21+Z22)/2+10),X21-ABS(Y21)-(Z21+Z22)/2+10),0)),0) -> 0 | AB21: =ABS(G21)+ABS(K21)+ABS(O21)+ABS(S21)+ABS(W21)+ABS(AA21) -> 0
B23: =IF(A23>0,B21,"") ->  | C23: =IF(A23<>"", VLOOKUP(A23,'Wertungszettel M10'!A$7:B$36,2),"") ->  | G23: =IF(AND(F23>0,F24>0),IF(OR(F23>10,F23<0,F24>10,F24<0),"Fehler",IF(ABS(D23)-ABS(E23)-(F23+F24)/2+10>0,IF(D23<0,-(ABS(D23)-ABS(E23)-(F23+F24)/2+10),D23-ABS(E23)-(F23+F24)/2+10),0)),0) -> 0 | K23: =IF(AND(J23>0,J24>0),IF(OR(J23>10,J23<0,J24>10,J24<0),"Fehler",IF(ABS(H23)-ABS(I23)-(J23+J24)/2+10>0,IF(H23<0,-(ABS(H23)-ABS(I23)-(J23+J24)/2+10),H23-ABS(I23)-(J23+J24)/2+10),0)),0) -> 0 | O23: =IF(AND(N23>0,N24>0),IF(OR(N23>10,N23<0,N24>10,N24<0),"Fehler",IF(ABS(L23)-ABS(M23)-(N23+N24)/2+10>0,IF(L23<0,-(ABS(L23)-ABS(M23)-(N23+N24)/2+10),L23-ABS(M23)-(N23+N24)/2+10),0)),0) -> 0 | S23: =IF(AND(R23>0,R24>0),IF(OR(R23>10,R23<0,R24>10,R24<0),"Fehler",IF(ABS(P23)-ABS(Q23)-(R23+R24)/2+10>0,IF(P23<0,-(ABS(P23)-ABS(Q23)-(R23+R24)/2+10),P23-ABS(Q23)-(R23+R24)/2+10),0)),0) -> 0 | W23: =IF(AND(V23>0,V24>0),IF(OR(V23>10,V23<0,V24>10,V24<0),"Fehler",IF(ABS(T23)-ABS(U23)-(V23+V24)/2+10>0,IF(T23<0,-(ABS(T23)-ABS(U23)-(V23+V24)/2+10),T23-ABS(U23)-(V23+V24)/2+10),0)),0) -> 0 | AA23: =IF(AND(Z23>0,Z24>0),IF(OR(Z23>10,Z23<0,Z24>10,Z24<0),"Fehler",IF(ABS(X23)-ABS(Y23)-(Z23+Z24)/2+10>0,IF(X23<0,-(ABS(X23)-ABS(Y23)-(Z23+Z24)/2+10),X23-ABS(Y23)-(Z23+Z24)/2+10),0)),0) -> 0 | AB23: =ABS(G23)+ABS(K23)+ABS(O23)+ABS(S23)+ABS(W23)+ABS(AA23) -> 0
B25: =IF(A25>0,B23,"") ->  | C25: =IF(A25<>"", VLOOKUP(A25,'Wertungszettel M10'!A$7:B$36,2),"") ->  | G25: =IF(AND(F25>0,F26>0),IF(OR(F25>10,F25<0,F26>10,F26<0),"Fehler",IF(ABS(D25)-ABS(E25)-(F25+F26)/2+10>0,IF(D25<0,-(ABS(D25)-ABS(E25)-(F25+F26)/2+10),D25-ABS(E25)-(F25+F26)/2+10),0)),0) -> 0 | K25: =IF(AND(J25>0,J26>0),IF(OR(J25>10,J25<0,J26>10,J26<0),"Fehler",IF(ABS(H25)-ABS(I25)-(J25+J26)/2+10>0,IF(H25<0,-(ABS(H25)-ABS(I25)-(J25+J26)/2+10),H25-ABS(I25)-(J25+J26)/2+10),0)),0) -> 0 | O25: =IF(AND(N25>0,N26>0),IF(OR(N25>10,N25<0,N26>10,N26<0),"Fehler",IF(ABS(L25)-ABS(M25)-(N25+N26)/2+10>0,IF(L25<0,-(ABS(L25)-ABS(M25)-(N25+N26)/2+10),L25-ABS(M25)-(N25+N26)/2+10),0)),0) -> 0 | S25: =IF(AND(R25>0,R26>0),IF(OR(R25>10,R25<0,R26>10,R26<0),"Fehler",IF(ABS(P25)-ABS(Q25)-(R25+R26)/2+10>0,IF(P25<0,-(ABS(P25)-ABS(Q25)-(R25+R26)/2+10),P25-ABS(Q25)-(R25+R26)/2+10),0)),0) -> 0 | W25: =IF(AND(V25>0,V26>0),IF(OR(V25>10,V25<0,V26>10,V26<0),"Fehler",IF(ABS(T25)-ABS(U25)-(V25+V26)/2+10>0,IF(T25<0,-(ABS(T25)-ABS(U25)-(V25+V26)/2+10),T25-ABS(U25)-(V25+V26)/2+10),0)),0) -> 0 | AA25: =IF(AND(Z25>0,Z26>0),IF(OR(Z25>10,Z25<0,Z26>10,Z26<0),"Fehler",IF(ABS(X25)-ABS(Y25)-(Z25+Z26)/2+10>0,IF(X25<0,-(ABS(X25)-ABS(Y25)-(Z25+Z26)/2+10),X25-ABS(Y25)-(Z25+Z26)/2+10),0)),0) -> 0 | AB25: =ABS(G25)+ABS(K25)+ABS(O25)+ABS(S25)+ABS(W25)+ABS(AA25) -> 0
B27: =IF(A27>0,B25,"") ->  | C27: =IF(A27<>"", VLOOKUP(A27,'Wertungszettel M10'!A$7:B$36,2),"") ->  | G27: =IF(AND(F27>0,F28>0),IF(OR(F27>10,F27<0,F28>10,F28<0),"Fehler",IF(ABS(D27)-ABS(E27)-(F27+F28)/2+10>0,IF(D27<0,-(ABS(D27)-ABS(E27)-(F27+F28)/2+10),D27-ABS(E27)-(F27+F28)/2+10),0)),0) -> 0 | K27: =IF(AND(J27>0,J28>0),IF(OR(J27>10,J27<0,J28>10,J28<0),"Fehler",IF(ABS(H27)-ABS(I27)-(J27+J28)/2+10>0,IF(H27<0,-(ABS(H27)-ABS(I27)-(J27+J28)/2+10),H27-ABS(I27)-(J27+J28)/2+10),0)),0) -> 0 | O27: =IF(AND(N27>0,N28>0),IF(OR(N27>10,N27<0,N28>10,N28<0),"Fehler",IF(ABS(L27)-ABS(M27)-(N27+N28)/2+10>0,IF(L27<0,-(ABS(L27)-ABS(M27)-(N27+N28)/2+10),L27-ABS(M27)-(N27+N28)/2+10),0)),0) -> 0 | S27: =IF(AND(R27>0,R28>0),IF(OR(R27>10,R27<0,R28>10,R28<0),"Fehler",IF(ABS(P27)-ABS(Q27)-(R27+R28)/2+10>0,IF(P27<0,-(ABS(P27)-ABS(Q27)-(R27+R28)/2+10),P27-ABS(Q27)-(R27+R28)/2+10),0)),0) -> 0 | W27: =IF(AND(V27>0,V28>0),IF(OR(V27>10,V27<0,V28>10,V28<0),"Fehler",IF(ABS(T27)-ABS(U27)-(V27+V28)/2+10>0,IF(T27<0,-(ABS(T27)-ABS(U27)-(V27+V28)/2+10),T27-ABS(U27)-(V27+V28)/2+10),0)),0) -> 0 | AA27: =IF(AND(Z27>0,Z28>0),IF(OR(Z27>10,Z27<0,Z28>10,Z28<0),"Fehler",IF(ABS(X27)-ABS(Y27)-(Z27+Z28)/2+10>0,IF(X27<0,-(ABS(X27)-ABS(Y27)-(Z27+Z28)/2+10),X27-ABS(Y27)-(Z27+Z28)/2+10),0)),0) -> 0 | AB27: =ABS(G27)+ABS(K27)+ABS(O27)+ABS(S27)+ABS(W27)+ABS(AA27) -> 0
G30: =SUM(LARGE(G9:G28,1),LARGE(G9:G28,2),LARGE(G9:G28,3)) -> 0 | K30: =SUM(LARGE(K9:K28,1),LARGE(K9:K28,2),LARGE(K9:K28,3)) -> 0 | O30: =SUM(LARGE(O9:O28,1),LARGE(O9:O28,2),LARGE(O9:O28,3)) -> 0 | S30: =SUM(LARGE(S9:S28,1),LARGE(S9:S28,2),LARGE(S9:S28,3)) -> 0 | W30: =SUM(LARGE(W9:W28,1),LARGE(W9:W28,2),LARGE(W9:W28,3)) -> 0 | AA30: =SUM(LARGE(AA9:AA28,1),LARGE(AA9:AA28,2),LARGE(AA9:AA28,3)) -> 0 | AB30: =SUM(G30,K30,O30,S30,W30,AA30) -> 0

Sheet Wertungszettel M1
A1: Wettkampfbogen | C1: Ort / Datum : | D1: ='INFO Blatt'!B11 -> Hehlen | F1: ='INFO Blatt'!B13 -> 2019-02-16
C2: Mannschaft: | D2: =Formeln!A5 -> MTV Boffzen e.V. von 1892 | F2: Wertungsvorschriften
C3: Liga: | D3: ='INFO Blatt'!B7 -> Einsteigerliga | F3: ='INFO Blatt'!B5 -> P und AK
A5: Name | B5: Jg | C5: Boden
C6: D-Note | D6: Abzug OK | E6: E- Abzug | F6: Note
A7: Tom Esau | B7: 11.03.2010
A9: Thorge Haak | B9: 21.01.2010
A11: Robin Meisner | B11: 12.07.2010
A13: Nick Bernhardt | B13: 29.05.2009
A15: Nico Schilcher | B15: 26.01.2009
A17: Benedikt Sievers | B17: 12.02.2010
A19: David Janzen | B19: 09.12.2008
A21: Simon Janzen | B21: 07.07.2011
A23: frei 9
A25: frei 10
A27: frei 11
A29: frei 12
A31: frei 13
A33: frei 14
A35: frei 15
A38: Name | B38: Jg | C38: Pauschenpferd
C39: D-Note | D39: Abzug OK | E39: E- Abzug | F39: Note
A40: =IF(A7>0,A7,"") -> Tom Esau | B40: =IF(B7>0,B7,"") -> 11.03.2010
A42: =IF(A9>0,A9,"") -> Thorge Haak | B42: 21.01.2010
A44: =IF(A11>0,A11,"") -> Robin Meisner | B44: 12.07.2010
A46: =IF(A13>0,A13,"") -> Nick Bernhardt | B46: 29.05.2009
A48: =IF(A15>0,A15,"") -> Nico Schilcher | B48: 26.01.2009
A50: =IF(A17>0,A17,"") -> Benedikt Sievers | B50: 12.02.2010
A52: =IF(A19>0,A19,"") -> David Janzen | B52: 09.12.2008
A54: =IF(A21>0,A21,"") -> Simon Janzen | B54: 07.07.2011
A56: =IF(A23>0,A23,"") -> frei 9
A58: =IF(A25>0,A25,"") -> frei 10
A60: =IF(A27>0,A27,"") -> frei 11
A62: =IF(A29>0,A29,"") -> frei 12
A64: =IF(A31>0,A31,"") -> frei 13
A66: =IF(A33>0,A33,"") -> frei 14
A68: =IF(A35>0,A35,"") -> frei 15
A71: Name | B71: Jg | C71: Ringe
C72: D-Note | D72: Abzug OK | E72: E- Abzug | F72: Note
A73: =IF(A40>0,A40,"") -> Tom Esau | B73: =IF(B40>0,B40,"") -> 11.03.2010
A75: =IF(A42>0,A42,"") -> Thorge Haak | B75: 21.01.2010
A77: =IF(A44>0,A44,"") -> Robin Meisner | B77: 12.07.2010
A79: =IF(A46>0,A46,"") -> Nick Bernhardt | B79: 29.05.2009
A81: =IF(A48>0,A48,"") -> Nico Schilcher | B81: 26.01.2009
A83: =IF(A50>0,A50,"") -> Benedikt Sievers | B83: 12.02.2010
A85: =IF(A52>0,A52,"") -> David Janzen | B85: 09.12.2008
A87: =IF(A54>0,A54,"") -> Simon Janzen | B87: 07.07.2011
A89: =IF(A56>0,A56,"") -> frei 9
A91: =IF(A58>0,A58,"") -> frei 10
A93: =IF(A60>0,A60,"") -> frei 11
A95: =IF(A62>0,A62,"") -> frei 12
A97: =IF(A64>0,A64,"") -> frei 13
A99: =IF(A66>0,A66,"") -> frei 14
A101: =IF(A68>0,A68,"") -> frei 15
A104: Name | B104: Jg | C104: Sprung
C105: D-Note | D105: Abzug OK | E105: E- Abzug | F105: Note
A106: =IF(A73>0,A73,"") -> Tom Esau | B106: =IF(B73>0,B73,"") -> 11.03.2010
A108: =IF(A75>0,A75,"") -> Thorge Haak | B108: 21.01.2010
A110: =IF(A77>0,A77,"") -> Robin Meisner | B110: 12.07.2010
A112: =IF(A79>0,A79,"") -> Nick Bernhardt | B112: 29.05.2009
A114: =IF(A81>0,A81,"") -> Nico Schilcher | B114: 26.01.2009
A116: =IF(A83>0,A83,"") -> Benedikt Sievers | B116: 12.02.2010
A118: =IF(A85>0,A85,"") -> David Janzen | B118: 09.12.2008
A120: =IF(A87>0,A87,"") -> Simon Janzen | B120: 07.07.2011
A122: =IF(A89>0,A89,"") -> frei 9
A124: =IF(A91>0,A91,"") -> frei 10
A126: =IF(A93>0,A93,"") -> frei 11
A128: =IF(A95>0,A95,"") -> frei 12
A130: =IF(A97>0,A97,"") -> frei 13
A132: =IF(A99>0,A99,"") -> frei 14
A134: =IF(A101>0,A101,"") -> frei 15
A137: Name | B137: Jg | C137: Barren
C138: D-Note | D138: Abzug OK | E138: E- Abzug | F138: Note
A139: =IF(A106>0,A106,"") -> Tom Esau | B139: =IF(B106>0,B106,"") -> 11.03.2010
A141: =IF(A108>0,A108,"") -> Thorge Haak | B141: 21.01.2010
A143: =IF(A110>0,A110,"") -> Robin Meisner | B143: 12.07.2010
A145: =IF(A112>0,A112,"") -> Nick Bernhardt | B145: 29.05.2009
A147: =IF(A114>0,A114,"") -> Nico Schilcher | B147: 26.01.2009
A149: =IF(A116>0,A116,"") -> Benedikt Sievers | B149: 12.02.2010
A151: =IF(A118>0,A118,"") -> David Janzen | B151: 09.12.2008
A153: =IF(A120>0,A120,"") -> Simon Janzen | B153: 07.07.2011
A155: =IF(A122>0,A122,"") -> frei 9
A157: =IF(A124>0,A124,"") -> frei 10
A159: =IF(A126>0,A126,"") -> frei 11
A161: =IF(A128>0,A128,"") -> frei 12
A163: =IF(A130>0,A130,"") -> frei 13
A165: =IF(A132>0,A132,"") -> frei 14
A167: =IF(A134>0,A134,"") -> frei 15
A170: Name | B170: Jg | C170: Reck
C171: D-Note | D171: Abzug OK | E171: E- Abzug | F171: Note
A172: =IF(A139>0,A139,"") -> Tom Esau | B172: =IF(B139>0,B139,"") -> 11.03.2010
A174: =IF(A141>0,A141,"") -> Thorge Haak | B174: 21.01.2010
A176: =IF(A143>0,A143,"") -> Robin Meisner | B176: 12.07.2010
A178: =IF(A145>0,A145,"") -> Nick Bernhardt | B178: 29.05.2009
A180: =IF(A147>0,A147,"") -> Nico Schilcher | B180: 26.01.2009
A182: =IF(A149>0,A149,"") -> Benedikt Sievers | B182: 12.02.2010
A184: =IF(A151>0,A151,"") -> David Janzen | B184: 09.12.2008
A186: =IF(A153>0,A153,"") -> Simon Janzen | B186: 07.07.2011
A188: =IF(A155>0,A155,"") -> frei 9
A190: =IF(A157>0,A157,"") -> frei 10
A192: =IF(A159>0,A159,"") -> frei 11
A194: =IF(A161>0,A161,"") -> frei 12
A196: =IF(A163>0,A163,"") -> frei 13
A198: =IF(A165>0,A165,"") -> frei 14
A200: =IF(A167>0,A167,"") -> frei 15

Sheet Wertungszettel M2
A1: Wettkampfbogen | C1: Ort / Datum : | D1: ='INFO Blatt'!B11 -> Hehlen | F1: ='INFO Blatt'!B13 -> 2019-02-16
C2: Mannschaft: | D2: =Formeln!A6 -> TG Oker/Salzgitter/Wenzen | F2: Wertungsvorschriften
C3: Liga: | D3: ='INFO Blatt'!B7 -> Einsteigerliga | F3: ='INFO Blatt'!B5 -> P und AK
A5: Name | B5: Jg | C5: Boden
C6: D-Note | D6: Abzug OK | E6: E- Abzug | F6: Note
A7: Ian Sureshkumar | B7: 2009
A9: Rayan Hijazi | B9: 2009
A11: Emmanuel König | B11: 2012
A13: Linus Ankert | B13: 2009
A15: Erik Pohler | B15: 2010
A17: Mattis Westermann | B17: 2010
A19: Felix Neuhoff | B19: 2011
A21: frei 8
A23: frei 9
A25: frei 10
A27: frei 11
A29: frei 12
A31: frei 13
A33: frei 14
A35: frei 15
A38: Name | B38: Jg | C38: Pauschenpferd
C39: D-Note | D39: Abzug OK | E39: E- Abzug | F39: Note
A40: =IF(A7>0,A7,"") -> Ian Sureshkumar | B40: =IF(B7>0,B7,"") -> 2009
A42: =IF(A9>0,A9,"") -> Rayan Hijazi | B42: =IF(B9>0,B9,"") -> 2009
A44: =IF(A11>0,A11,"") -> Emmanuel König | B44: =IF(B11>0,B11,"") -> 2012
A46: =IF(A13>0,A13,"") -> Linus Ankert | B46: =IF(B13>0,B13,"") -> 2009
A48: =IF(A15>0,A15,"") -> Erik Pohler | B48: =IF(B15>0,B15,"") -> 2010
A50: =IF(A17>0,A17,"") -> Mattis Westermann | B50: =IF(B17>0,B17,"") -> 2010
A52: =IF(A19>0,A19,"") -> Felix Neuhoff | B52: =IF(B19>0,B19,"") -> 2011
A54: =IF(A21>0,A21,"") -> frei 8 | B54: =IF(B21>0,B21,"") -> 
A56: =IF(A23>0,A23,"") -> frei 9 | B56: =IF(B23>0,B23,"") -> 
A58: =IF(A25>0,A25,"") -> frei 10 | B58: =IF(B25>0,B25,"") -> 
A60: =IF(A27>0,A27,"") -> frei 11 | B60: =IF(B27>0,B27,"") -> 
A62: =IF(A29>0,A29,"") -> frei 12 | B62: =IF(B29>0,B29,"") -> 
A64: =IF(A31>0,A31,"") -> frei 13 | B64: =IF(B31>0,B31,"") -> 
A66: =IF(A33>0,A33,"") -> frei 14
A68: =IF(A35>0,A35,"") -> frei 15
A71: Name | B71: Jg | C71: Ringe
C72: D-Note | D72: Abzug OK | E72: E- Abzug | F72: Note
A73: =IF(A40>0,A40,"") -> Ian Sureshkumar | B73: =IF(B40>0,B40,"") -> 2009
A75: =IF(A42>0,A42,"") -> Rayan Hijazi | B75: 2009
A77: =IF(A44>0,A44,"") -> Emmanuel König | B77: 2012
A79: =IF(A46>0,A46,"") -> Linus Ankert | B79: 2009
A81: =IF(A48>0,A48,"") -> Erik Pohler | B81: 2010
A83: =IF(A50>0,A50,"") -> Mattis Westermann | B83: 2010
A85: =IF(A52>0,A52,"") -> Felix Neuhoff | B85: 2011
A87: =IF(A54>0,A54,"") -> frei 8
A89: =IF(A56>0,A56,"") -> frei 9
A91: =IF(A58>0,A58,"") -> frei 10
A93: =IF(A60>0,A60,"") -> frei 11
A95: =IF(A62>0,A62,"") -> frei 12
A97: =IF(A64>0,A64,"") -> frei 13
A99: =IF(A66>0,A66,"") -> frei 14
A101: =IF(A68>0,A68,"") -> frei 15
A104: Name | B104: Jg | C104: Sprung
C105: D-Note | D105: Abzug OK | E105: E- Abzug | F105: Note
A106: =IF(A73>0,A73,"") -> Ian Sureshkumar | B106: =IF(B73>0,B73,"") -> 2009
A108: =IF(A75>0,A75,"") -> Rayan Hijazi | B108: 2009
A110: =IF(A77>0,A77,"") -> Emmanuel König | B110: 2012
A112: =IF(A79>0,A79,"") -> Linus Ankert | B112: 2009
A114: =IF(A81>0,A81,"") -> Erik Pohler | B114: 2010
A116: =IF(A83>0,A83,"") -> Mattis Westermann | B116: 2010
A118: =IF(A85>0,A85,"") -> Felix Neuhoff | B118: 2011
A120: =IF(A87>0,A87,"") -> frei 8
A122: =IF(A89>0,A89,"") -> frei 9
A124: =IF(A91>0,A91,"") -> frei 10
A126: =IF(A93>0,A93,"") -> frei 11
A128: =IF(A95>0,A95,"") -> frei 12
A130: =IF(A97>0,A97,"") -> frei 13
A132: =IF(A99>0,A99,"") -> frei 14
A134: =IF(A101>0,A101,"") -> frei 15
A137: Name | B137: Jg | C137: Barren
C138: D-Note | D138: Abzug OK | E138: E- Abzug | F138: Note
A139: =IF(A106>0,A106,"") -> Ian Sureshkumar | B139: =IF(B106>0,B106,"") -> 2009
A141: =IF(A108>0,A108,"") -> Rayan Hijazi | B141: 2009
A143: =IF(A110>0,A110,"") -> Emmanuel König | B143: 2012
A145: =IF(A112>0,A112,"") -> Linus Ankert | B145: 2009
A147: =IF(A114>0,A114,"") -> Erik Pohler | B147: 2010
A149: =IF(A116>0,A116,"") -> Mattis Westermann | B149: 2010
A151: =IF(A118>0,A118,"") -> Felix Neuhoff | B151: 2011
A153: =IF(A120>0,A120,"") -> frei 8
A155: =IF(A122>0,A122,"") -> frei 9
A157: =IF(A124>0,A124,"") -> frei 10
A159: =IF(A126>0,A126,"") -> frei 11
A161: =IF(A128>0,A128,"") -> frei 12
A163: =IF(A130>0,A130,"") -> frei 13
A165: =IF(A132>0,A132,"") -> frei 14
A167: =IF(A134>0,A134,"") -> frei 15
A170: Name | B170: Jg | C170: Reck
C171: D-Note | D171: Abzug OK | E171: E- Abzug | F171: Note
A172: =IF(A139>0,A139,"") -> Ian Sureshkumar | B172: =IF(B139>0,B139,"") -> 2009
A174: =IF(A141>0,A141,"") -> Rayan Hijazi | B174: 2009
A176: =IF(A143>0,A143,"") -> Emmanuel König | B176: 2012
A178: =IF(A145>0,A145,"") -> Linus Ankert | B178: 2009
A180: =IF(A147>0,A147,"") -> Erik Pohler | B180: 2010
A182: =IF(A149>0,A149,"") -> Mattis Westermann | B182: 2010
A184: =IF(A151>0,A151,"") -> Felix Neuhoff | B184: 2011
A186: =IF(A153>0,A153,"") -> frei 8
A188: =IF(A155>0,A155,"") -> frei 9
A190: =IF(A157>0,A157,"") -> frei 10
A192: =IF(A159>0,A159,"") -> frei 11
A194: =IF(A161>0,A161,"") -> frei 12
A196: =IF(A163>0,A163,"") -> frei 13
A198: =IF(A165>0,A165,"") -> frei 14
A200: =IF(A167>0,A167,"") -> frei 15

Sheet Wertungszettel M3
A1: Wettkampfbogen | C1: Ort / Datum : | D1: ='INFO Blatt'!B11 -> Hehlen | F1: ='INFO Blatt'!B13 -> 2019-02-16
C2: Mannschaft: | D2: =Formeln!A7 -> TG LaPeKa | F2: Wertungsvorschriften
C3: Liga: | D3: ='INFO Blatt'!B7 -> Einsteigerliga | F3: ='INFO Blatt'!B5 -> P und AK
A5: Name | B5: Jg | C5: Boden
C6: D-Note | D6: Abzug OK | E6: E- Abzug | F6: Note
A7: Lukas Sitzenstock
A9: Til Mittag
A11: Maxim Borgardt
A13: Maxim Nuss
A15: Bennett Hasenfuß
A17: Jaroslaw Schwentner
A19: frei 7
A21: frei 8
A23: frei 9
A25: frei 10
A27: frei 11
A29: frei 12
A31: frei 13
A33: frei 14
A35: frei 15
A38: Name | B38: Jg | C38: Pauschenpferd
C39: D-Note | D39: Abzug OK | E39: E- Abzug | F39: Note
A40: =IF(A7>0,A7,"") -> Lukas Sitzenstock | B40: =IF(B7>0,B7,"") -> 
A42: =IF(A9>0,A9,"") -> Til Mittag
A44: =IF(A11>0,A11,"") -> Maxim Borgardt
A46: =IF(A13>0,A13,"") -> Maxim Nuss
A48: =IF(A15>0,A15,"") -> Bennett Hasenfuß
A50: =IF(A17>0,A17,"") -> Jaroslaw Schwentner
A52: =IF(A19>0,A19,"") -> frei 7
A54: =IF(A21>0,A21,"") -> frei 8
A56: =IF(A23>0,A23,"") -> frei 9
A58: =IF(A25>0,A25,"") -> frei 10
A60: =IF(A27>0,A27,"") -> frei 11
A62: =IF(A29>0,A29,"") -> frei 12
A64: =IF(A31>0,A31,"") -> frei 13
A66: =IF(A33>0,A33,"") -> frei 14
A68: =IF(A35>0,A35,"") -> frei 15
A71: Name | B71: Jg | C71: Ringe
C72: D-Note | D72: Abzug OK | E72: E- Abzug | F72: Note
A73: =IF(A40>0,A40,"") -> Lukas Sitzenstock | B73: =IF(B40>0,B40,"") -> 
A75: =IF(A42>0,A42,"") -> Til Mittag
A77: =IF(A44>0,A44,"") -> Maxim Borgardt
A79: =IF(A46>0,A46,"") -> Maxim Nuss
A81: =IF(A48>0,A48,"") -> Bennett Hasenfuß
A83: =IF(A50>0,A50,"") -> Jaroslaw Schwentner
A85: =IF(A52>0,A52,"") -> frei 7
A87: =IF(A54>0,A54,"") -> frei 8
A89: =IF(A56>0,A56,"") -> frei 9
A91: =IF(A58>0,A58,"") -> frei 10
A93: =IF(A60>0,A60,"") -> frei 11
A95: =IF(A62>0,A62,"") -> frei 12
A97: =IF(A64>0,A64,"") -> frei 13
A99: =IF(A66>0,A66,"") -> frei 14
A101: =IF(A68>0,A68,"") -> frei 15
A104: Name | B104: Jg | C104: Sprung
C105: D-Note | D105: Abzug OK | E105: E- Abzug | F105: Note
A106: =IF(A73>0,A73,"") -> Lukas Sitzenstock | B106: =IF(B73>0,B73,"") -> 
A108: =IF(A75>0,A75,"") -> Til Mittag
A110: =IF(A77>0,A77,"") -> Maxim Borgardt
A112: =IF(A79>0,A79,"") -> Maxim Nuss
A114: =IF(A81>0,A81,"") -> Bennett Hasenfuß
A116: =IF(A83>0,A83,"") -> Jaroslaw Schwentner
A118: =IF(A85>0,A85,"") -> frei 7
A120: =IF(A87>0,A87,"") -> frei 8
A122: =IF(A89>0,A89,"") -> frei 9
A124: =IF(A91>0,A91,"") -> frei 10
A126: =IF(A93>0,A93,"") -> frei 11
A128: =IF(A95>0,A95,"") -> frei 12
A130: =IF(A97>0,A97,"") -> frei 13
A132: =IF(A99>0,A99,"") -> frei 14
A134: =IF(A101>0,A101,"") -> frei 15
A137: Name | B137: Jg | C137: Barren
C138: D-Note | D138: Abzug OK | E138: E- Abzug | F138: Note
A139: =IF(A106>0,A106,"") -> Lukas Sitzenstock | B139: =IF(B106>0,B106,"") -> 
A141: =IF(A108>0,A108,"") -> Til Mittag
A143: =IF(A110>0,A110,"") -> Maxim Borgardt
A145: =IF(A112>0,A112,"") -> Maxim Nuss
A147: =IF(A114>0,A114,"") -> Bennett Hasenfuß
A149: =IF(A116>0,A116,"") -> Jaroslaw Schwentner
A151: =IF(A118>0,A118,"") -> frei 7
A153: =IF(A120>0,A120,"") -> frei 8
A155: =IF(A122>0,A122,"") -> frei 9
A157: =IF(A124>0,A124,"") -> frei 10
A159: =IF(A126>0,A126,"") -> frei 11
A161: =IF(A128>0,A128,"") -> frei 12
A163: =IF(A130>0,A130,"") -> frei 13
A165: =IF(A132>0,A132,"") -> frei 14
A167: =IF(A134>0,A134,"") -> frei 15
A170: Name | B170: Jg | C170: Reck
C171: D-Note | D171: Abzug OK | E171: E- Abzug | F171: Note
A172: =IF(A139>0,A139,"") -> Lukas Sitzenstock | B172: =IF(B139>0,B139,"") -> 
A174: =IF(A141>0,A141,"") -> Til Mittag
A176: =IF(A143>0,A143,"") -> Maxim Borgardt
A178: =IF(A145>0,A145,"") -> Maxim Nuss
A180: =IF(A147>0,A147,"") -> Bennett Hasenfuß
A182: =IF(A149>0,A149,"") -> Jaroslaw Schwentner
A184: =IF(A151>0,A151,"") -> frei 7
A186: =IF(A153>0,A153,"") -> frei 8
A188: =IF(A155>0,A155,"") -> frei 9
A190: =IF(A157>0,A157,"") -> frei 10
A192: =IF(A159>0,A159,"") -> frei 11
A194: =IF(A161>0,A161,"") -> frei 12
A196: =IF(A163>0,A163,"") -> frei 13
A198: =IF(A165>0,A165,"") -> frei 14
A200: =IF(A167>0,A167,"") -> frei 15

Sheet Wertungszettel M4
A1: Wettkampfbogen | C1: Ort / Datum : | D1: ='INFO Blatt'!B11 -> Hehlen | F1: ='INFO Blatt'!B13 -> 2019-02-16
C2: Mannschaft: | D2: =Formeln!A8 -> TSV Dielmissen | F2: Wertungsvorschriften
C3: Liga: | D3: ='INFO Blatt'!B7 -> Einsteigerliga | F3: ='INFO Blatt'!B5 -> P und AK
A5: Name | B5: Jg | C5: Boden
C6: D-Note | D6: Abzug OK | E6: E- Abzug | F6: Note
A7: Sebastian Bocian | B7: 2009
A9: Yannick Schröder | B9: 2009
A11: Tristan Warmuth | B11: 2010
A13: Leon Nolte-Furchner | B13: 2011
A15: Joel Holzkamp | B15: 2011
A17: frei 6
A19: frei 7
A21: frei 8
A23: frei 9
A25: frei 10
A27: frei 11
A29: frei 12
A31: frei 13
A33: frei 14
A35: frei 15
A38: Name | B38: Jg | C38: Pauschenpferd
C39: D-Note | D39: Abzug OK | E39: E- Abzug | F39: Note
A40: =IF(A7>0,A7,"") -> Sebastian Bocian | B40: =IF(B7>0,B7,"") -> 2009
A42: =IF(A9>0,A9,"") -> Yannick Schröder | B42: 2009
A44: =IF(A11>0,A11,"") -> Tristan Warmuth | B44: 2010
A46: =IF(A13>0,A13,"") -> Leon Nolte-Furchner | B46: 2011
A48: =IF(A15>0,A15,"") -> Joel Holzkamp | B48: 2011
A50: =IF(A18>0,A18,"") ->  | B50: =IF(B17>0,B17,"") -> 
A52: =IF(A19>0,A19,"") -> frei 7
A54: =IF(A21>0,A21,"") -> frei 8
A56: =IF(A23>0,A23,"") -> frei 9
A58: =IF(A25>0,A25,"") -> frei 10
A60: =IF(A27>0,A27,"") -> frei 11
A62: =IF(A29>0,A29,"") -> frei 12
A64: =IF(A31>0,A31,"") -> frei 13
A66: =IF(A33>0,A33,"") -> frei 14
A68: =IF(A35>0,A35,"") -> frei 15
A71: Name | B71: Jg | C71: Ringe
C72: D-Note | D72: Abzug OK | E72: E- Abzug | F72: Note
A73: =IF(A40>0,A40,"") -> Sebastian Bocian | B73: =IF(B40>0,B40,"") -> 2009
A75: =IF(A42>0,A42,"") -> Yannick Schröder | B75: 2009
A77: =IF(A44>0,A44,"") -> Tristan Warmuth | B77: 2010
A79: =IF(A46>0,A46,"") -> Leon Nolte-Furchner | B79: 2011
A81: =IF(A48>0,A48,"") -> Joel Holzkamp | B81: 2011
A83: =IF(A50>0,A50,"") -> 
A85: =IF(A52>0,A52,"") -> frei 7
A87: =IF(A54>0,A54,"") -> frei 8
A89: =IF(A56>0,A56,"") -> frei 9
A91: =IF(A58>0,A58,"") -> frei 10
A93: =IF(A60>0,A60,"") -> frei 11
A95: =IF(A62>0,A62,"") -> frei 12
A97: =IF(A64>0,A64,"") -> frei 13
A99: =IF(A66>0,A66,"") -> frei 14
A101: =IF(A68>0,A68,"") -> frei 15
A104: Name | B104: Jg | C104: Sprung
C105: D-Note | D105: Abzug OK | E105: E- Abzug | F105: Note
A106: =IF(A73>0,A73,"") -> Sebastian Bocian | B106: =IF(B73>0,B73,"") -> 2009
A108: =IF(A75>0,A75,"") -> Yannick Schröder | B108: 2009
A110: =IF(A77>0,A77,"") -> Tristan Warmuth | B110: 2010
A112: =IF(A79>0,A79,"") -> Leon Nolte-Furchner | B112: 2011
A114: =IF(A81>0,A81,"") -> Joel Holzkamp | B114: 2011
A116: =IF(A83>0,A83,"") -> 
A118: =IF(A85>0,A85,"") -> frei 7
A120: =IF(A87>0,A87,"") -> frei 8
A122: =IF(A89>0,A89,"") -> frei 9
A124: =IF(A91>0,A91,"") -> frei 10
A126: =IF(A93>0,A93,"") -> frei 11
A128: =IF(A95>0,A95,"") -> frei 12
A130: =IF(A97>0,A97,"") -> frei 13
A132: =IF(A99>0,A99,"") -> frei 14
A134: =IF(A101>0,A101,"") -> frei 15
A137: Name | B137: Jg | C137: Barren
C138: D-Note | D138: Abzug OK | E138: E- Abzug | F138: Note
A139: =IF(A106>0,A106,"") -> Sebastian Bocian | B139: =IF(B106>0,B106,"") -> 2009
A141: =IF(A108>0,A108,"") -> Yannick Schröder | B141: 2009
A143: =IF(A110>0,A110,"") -> Tristan Warmuth | B143: 2010
A145: =IF(A112>0,A112,"") -> Leon Nolte-Furchner | B145: 2011
A147: =IF(A114>0,A114,"") -> Joel Holzkamp | B147: 2011
A149: =IF(A116>0,A116,"") -> 
A151: =IF(A118>0,A118,"") -> frei 7
A153: =IF(A120>0,A120,"") -> frei 8
A155: =IF(A122>0,A122,"") -> frei 9
A157: =IF(A124>0,A124,"") -> frei 10
A159: =IF(A126>0,A126,"") -> frei 11
A161: =IF(A128>0,A128,"") -> frei 12
A163: =IF(A130>0,A130,"") -> frei 13
A165: =IF(A132>0,A132,"") -> frei 14
A167: =IF(A134>0,A134,"") -> frei 15
A170: Name | B170: Jg | C170: Reck
C171: D-Note | D171: Abzug OK | E171: E- Abzug | F171: Note
A172: =IF(A139>0,A139,"") -> Sebastian Bocian | B172: =IF(B139>0,B139,"") -> 2009
A174: =IF(A141>0,A141,"") -> Yannick Schröder | B174: 2009
A176: =IF(A143>0,A143,"") -> Tristan Warmuth | B176: 2010
A178: =IF(A145>0,A145,"") -> Leon Nolte-Furchner | B178: 2011
A180: =IF(A147>0,A147,"") -> Joel Holzkamp | B180: 2011
A182: =IF(A149>0,A149,"") -> 
A184: =IF(A151>0,A151,"") -> frei 7
A186: =IF(A153>0,A153,"") -> frei 8
A188: =IF(A155>0,A155,"") -> frei 9
A190: =IF(A157>0,A157,"") -> frei 10
A192: =IF(A159>0,A159,"") -> frei 11
A194: =IF(A161>0,A161,"") -> frei 12
A196: =IF(A163>0,A163,"") -> frei 13
A198: =IF(A165>0,A165,"") -> frei 14
A200: =IF(A167>0,A167,"") -> frei 15

Sheet Wertungszettel M5
A1: Wettkampfbogen | C1: Ort / Datum : | D1: ='INFO Blatt'!B11 -> Hehlen | F1: ='INFO Blatt'!B13 -> 2019-02-16
C2: Mannschaft: | D2: =Formeln!A9 -> M5 | F2: Wertungsvorschriften
C3: Liga: | D3: ='INFO Blatt'!B7 -> Einsteigerliga | F3: ='INFO Blatt'!B5 -> P und AK
A5: Name | B5: Jg | C5: Boden
C6: D-Note | D6: Abzug OK | E6: E- Abzug | F6: Note
A7: frei 1
A9: frei 2
A11: frei 3
A13: frei 4
A15: frei 5
A17: frei 6
A19: frei 7
A21: frei 8
A23: frei 9
A25: frei 10
A27: frei 11
A29: frei 12
A31: frei 13
A33: frei 14
A35: frei 15
A38: Name | B38: Jg | C38: Pauschenpferd
C39: D-Note | D39: Abzug OK | E39: E- Abzug | F39: Note
A40: =IF(A7>0,A7,"") -> frei 1 | B40: =IF(B7>0,B7,"") -> 
A42: =IF(A9>0,A9,"") -> frei 2
A44: =IF(A11>0,A11,"") -> frei 3
A46: =IF(A13>0,A13,"") -> frei 4
A48: =IF(A15>0,A15,"") -> frei 5
A50: =IF(A17>0,A17,"") -> frei 6
A52: =IF(A19>0,A19,"") -> frei 7
A54: =IF(A21>0,A21,"") -> frei 8
A56: =IF(A23>0,A23,"") -> frei 9
A58: =IF(A25>0,A25,"") -> frei 10
A60: =IF(A27>0,A27,"") -> frei 11
A62: =IF(A29>0,A29,"") -> frei 12
A64: =IF(A31>0,A31,"") -> frei 13
A66: =IF(A33>0,A33,"") -> frei 14
A68: =IF(A35>0,A35,"") -> frei 15
A71: Name | B71: Jg | C71: Ringe
C72: D-Note | D72: Abzug OK | E72: E- Abzug | F72: Note
A73: =IF(A40>0,A40,"") -> frei 1 | B73: =IF(B40>0,B40,"") -> 
A75: =IF(A42>0,A42,"") -> frei 2
A77: =IF(A44>0,A44,"") -> frei 3
A79: =IF(A46>0,A46,"") -> frei 4
A81: =IF(A48>0,A48,"") -> frei 5
A83: =IF(A50>0,A50,"") -> frei 6
A85: =IF(A52>0,A52,"") -> frei 7
A87: =IF(A54>0,A54,"") -> frei 8
A89: =IF(A56>0,A56,"") -> frei 9
A91: =IF(A58>0,A58,"") -> frei 10
A93: =IF(A60>0,A60,"") -> frei 11
A95: =IF(A62>0,A62,"") -> frei 12
A97: =IF(A64>0,A64,"") -> frei 13
A99: =IF(A66>0,A66,"") -> frei 14
A101: =IF(A68>0,A68,"") -> frei 15
A104: Name | B104: Jg | C104: Sprung
C105: D-Note | D105: Abzug OK | E105: E- Abzug | F105: Note
A106: =IF(A73>0,A73,"") -> frei 1 | B106: =IF(B73>0,B73,"") -> 
A108: =IF(A75>0,A75,"") -> frei 2
A110: =IF(A77>0,A77,"") -> frei 3
A112: =IF(A79>0,A79,"") -> frei 4
A114: =IF(A81>0,A81,"") -> frei 5
A116: =IF(A83>0,A83,"") -> frei 6
A118: =IF(A85>0,A85,"") -> frei 7
A120: =IF(A87>0,A87,"") -> frei 8
A122: =IF(A89>0,A89,"") -> frei 9
A124: =IF(A91>0,A91,"") -> frei 10
A126: =IF(A93>0,A93,"") -> frei 11
A128: =IF(A95>0,A95,"") -> frei 12
A130: =IF(A97>0,A97,"") -> frei 13
A132: =IF(A99>0,A99,"") -> frei 14
A134: =IF(A101>0,A101,"") -> frei 15
A137: Name | B137: Jg | C137: Barren
C138: D-Note | D138: Abzug OK | E138: E- Abzug | F138: Note
A139: =IF(A106>0,A106,"") -> frei 1 | B139: =IF(B106>0,B106,"") -> 
A141: =IF(A108>0,A108,"") -> frei 2
A143: =IF(A110>0,A110,"") -> frei 3
A145: =IF(A112>0,A112,"") -> frei 4
A147: =IF(A114>0,A114,"") -> frei 5
A149: =IF(A116>0,A116,"") -> frei 6
A151: =IF(A118>0,A118,"") -> frei 7
A153: =IF(A120>0,A120,"") -> frei 8
A155: =IF(A122>0,A122,"") -> frei 9
A157: =IF(A124>0,A124,"") -> frei 10
A159: =IF(A126>0,A126,"") -> frei 11
A161: =IF(A128>0,A128,"") -> frei 12
A163: =IF(A130>0,A130,"") -> frei 13
A165: =IF(A132>0,A132,"") -> frei 14
A167: =IF(A134>0,A134,"") -> frei 15
A170: Name | B170: Jg | C170: Reck
C171: D-Note | D171: Abzug OK | E171: E- Abzug | F171: Note
A172: =IF(A139>0,A139,"") -> frei 1 | B172: =IF(B139>0,B139,"") -> 
A174: =IF(A141>0,A141,"") -> frei 2
A176: =IF(A143>0,A143,"") -> frei 3
A178: =IF(A145>0,A145,"") -> frei 4
A180: =IF(A147>0,A147,"") -> frei 5
A182: =IF(A149>0,A149,"") -> frei 6
A184: =IF(A151>0,A151,"") -> frei 7
A186: =IF(A153>0,A153,"") -> frei 8
A188: =IF(A155>0,A155,"") -> frei 9
A190: =IF(A157>0,A157,"") -> frei 10
A192: =IF(A159>0,A159,"") -> frei 11
A194: =IF(A161>0,A161,"") -> frei 12
A196: =IF(A163>0,A163,"") -> frei 13
A198: =IF(A165>0,A165,"") -> frei 14
A200: =IF(A167>0,A167,"") -> frei 15

Sheet Wertungszettel M6
A1: Wettkampfbogen | C1: Ort / Datum : | D1: ='INFO Blatt'!B11 -> Hehlen | F1: ='INFO Blatt'!B13 -> 2019-02-16
C2: Mannschaft: | D2: =Formeln!A10 -> M6 | F2: Wertungsvorschriften
C3: Liga: | D3: ='INFO Blatt'!B7 -> Einsteigerliga | F3: ='INFO Blatt'!B5 -> P und AK
A5: Name | B5: Jg | C5: Boden
C6: D-Note | D6: Abzug OK | E6: E- Abzug | F6: Note
A7: frei 1
A9: frei 2
A11: frei 3
A13: frei 4
A15: frei 5
A17: frei 6
A19: frei 7
A21: frei 8
A23: frei 9
A25: frei 10
A27: frei 11
A29: frei 12
A31: frei 13
A33: frei 14
A35: frei 15
A38: Name | B38: Jg | C38: Pauschenpferd
C39: D-Note | D39: Abzug OK | E39: E- Abzug | F39: Note
A40: =IF(A7>0,A7,"") -> frei 1 | B40: =IF(B7>0,B7,"") -> 
A42: =IF(A9>0,A9,"") -> frei 2
A44: =IF(A11>0,A11,"") -> frei 3
A46: =IF(A13>0,A13,"") -> frei 4
A48: =IF(A15>0,A15,"") -> frei 5
A50: =IF(A17>0,A17,"") -> frei 6
A52: =IF(A19>0,A19,"") -> frei 7
A54: =IF(A21>0,A21,"") -> frei 8
A56: =IF(A23>0,A23,"") -> frei 9
A58: =IF(A25>0,A25,"") -> frei 10
A60: =IF(A27>0,A27,"") -> frei 11
A62: =IF(A29>0,A29,"") -> frei 12
A64: =IF(A31>0,A31,"") -> frei 13
A66: =IF(A33>0,A33,"") -> frei 14
A68: =IF(A35>0,A35,"") -> frei 15
A71: Name | B71: Jg | C71: Ringe
C72: D-Note | D72: Abzug OK | E72: E- Abzug | F72: Note
A73: =IF(A40>0,A40,"") -> frei 1 | B73: =IF(B40>0,B40,"") -> 
A75: =IF(A42>0,A42,"") -> frei 2
A77: =IF(A44>0,A44,"") -> frei 3
A79: =IF(A46>0,A46,"") -> frei 4
A81: =IF(A48>0,A48,"") -> frei 5
A83: =IF(A50>0,A50,"") -> frei 6
A85: =IF(A52>0,A52,"") -> frei 7
A87: =IF(A54>0,A54,"") -> frei 8
A89: =IF(A56>0,A56,"") -> frei 9
A91: =IF(A58>0,A58,"") -> frei 10
A93: =IF(A60>0,A60,"") -> frei 11
A95: =IF(A62>0,A62,"") -> frei 12
A97: =IF(A64>0,A64,"") -> frei 13
A99: =IF(A66>0,A66,"") -> frei 14
A101: =IF(A68>0,A68,"") -> frei 15
A104: Name | B104: Jg | C104: Sprung
C105: D-Note | D105: Abzug OK | E105: E- Abzug | F105: Note
A106: =IF(A73>0,A73,"") -> frei 1 | B106: =IF(B73>0,B73,"") -> 
A108: =IF(A75>0,A75,"") -> frei 2
A110: =IF(A77>0,A77,"") -> frei 3
A112: =IF(A79>0,A79,"") -> frei 4
A114: =IF(A81>0,A81,"") -> frei 5
A116: =IF(A83>0,A83,"") -> frei 6
A118: =IF(A85>0,A85,"") -> frei 7
A120: =IF(A87>0,A87,"") -> frei 8
A122: =IF(A89>0,A89,"") -> frei 9
A124: =IF(A91>0,A91,"") -> frei 10
A126: =IF(A93>0,A93,"") -> frei 11
A128: =IF(A95>0,A95,"") -> frei 12
A130: =IF(A97>0,A97,"") -> frei 13
A132: =IF(A99>0,A99,"") -> frei 14
A134: =IF(A101>0,A101,"") -> frei 15
A137: Name | B137: Jg | C137: Barren
C138: D-Note | D138: Abzug OK | E138: E- Abzug | F138: Note
A139: =IF(A106>0,A106,"") -> frei 1 | B139: =IF(B106>0,B106,"") -> 
A141: =IF(A108>0,A108,"") -> frei 2
A143: =IF(A110>0,A110,"") -> frei 3
A145: =IF(A112>0,A112,"") -> frei 4
A147: =IF(A114>0,A114,"") -> frei 5
A149: =IF(A116>0,A116,"") -> frei 6
A151: =IF(A118>0,A118,"") -> frei 7
A153: =IF(A120>0,A120,"") -> frei 8
A155: =IF(A122>0,A122,"") -> frei 9
A157: =IF(A124>0,A124,"") -> frei 10
A159: =IF(A126>0,A126,"") -> frei 11
A161: =IF(A128>0,A128,"") -> frei 12
A163: =IF(A130>0,A130,"") -> frei 13
A165: =IF(A132>0,A132,"") -> frei 14
A167: =IF(A134>0,A134,"") -> frei 15
A170: Name | B170: Jg | C170: Reck
C171: D-Note | D171: Abzug OK | E171: E- Abzug | F171: Note
A172: =IF(A139>0,A139,"") -> frei 1 | B172: =IF(B139>0,B139,"") -> 
A174: =IF(A141>0,A141,"") -> frei 2
A176: =IF(A143>0,A143,"") -> frei 3
A178: =IF(A145>0,A145,"") -> frei 4
A180: =IF(A147>0,A147,"") -> frei 5
A182: =IF(A149>0,A149,"") -> frei 6
A184: =IF(A151>0,A151,"") -> frei 7
A186: =IF(A153>0,A153,"") -> frei 8
A188: =IF(A155>0,A155,"") -> frei 9
A190: =IF(A157>0,A157,"") -> frei 10
A192: =IF(A159>0,A159,"") -> frei 11
A194: =IF(A161>0,A161,"") -> frei 12
A196: =IF(A163>0,A163,"") -> frei 13
A198: =IF(A165>0,A165,"") -> frei 14
A200: =IF(A167>0,A167,"") -> frei 15

Sheet Wertungszettel M7
A1: Wettkampfbogen | C1: Ort / Datum : | D1: ='INFO Blatt'!B11 -> Hehlen | F1: ='INFO Blatt'!B13 -> 2019-02-16
C2: Mannschaft: | D2: =Formeln!A11 -> M7 | F2: Wertungsvorschriften
C3: Liga: | D3: ='INFO Blatt'!B7 -> Einsteigerliga | F3: ='INFO Blatt'!B5 -> P und AK
A5: Name | B5: Jg | C5: Boden
C6: D-Note | D6: Abzug OK | E6: E- Abzug | F6: Note
A7: 1 | B7: 1
A9: 2 | B9: 2
A11: 3 | B11: 3
A13: 4 | B13: 4
A15: 5 | B15: 5
A17: 6 | B17: 6
A19: 7 | B19: 7
A21: 8 | B21: 8
A23: 9 | B23: 9
A25: 10 | B25: 10
A27: 11 | B27: 11
A29: 12 | B29: 12
A31: 13 | B31: 13
A33: 14 | B33: 14
A35: 15 | B35: 15
A38: Name | B38: Jg | C38: Pauschenpferd
C39: D-Note | D39: Abzug OK | E39: E- Abzug | F39: Note
A40: =IF(A7>0,A7,"") -> 1 | B40: =IF(B7>0,B7,"") -> 1
A42: =IF(A9>0,A9,"") -> 2 | B42: 2
A44: =IF(A11>0,A11,"") -> 3 | B44: 3
A46: =IF(A13>0,A13,"") -> 4 | B46: 4
A48: =IF(A15>0,A15,"") -> 5 | B48: 5
A50: =IF(A17>0,A17,"") -> 6 | B50: 6
A52: =IF(A19>0,A19,"") -> 7 | B52: 7
A54: =IF(A21>0,A21,"") -> 8 | B54: 8
A56: =IF(A23>0,A23,"") -> 9 | B56: 9
A58: =IF(A25>0,A25,"") -> 10 | B58: 10
A60: =IF(A27>0,A27,"") -> 11 | B60: 11
A62: =IF(A29>0,A29,"") -> 12 | B62: 12
A64: =IF(A31>0,A31,"") -> 13 | B64: 13
A66: =IF(A33>0,A33,"") -> 14 | B66: 14
A68: =IF(A35>0,A35,"") -> 15 | B68: 15
A71: Name | B71: Jg | C71: Ringe
C72: D-Note | D72: Abzug OK | E72: E- Abzug | F72: Note
A73: =IF(A40>0,A40,"") -> 1 | B73: =IF(B40>0,B40,"") -> 1
A75: =IF(A42>0,A42,"") -> 2 | B75: 2
A77: =IF(A44>0,A44,"") -> 3 | B77: 3
A79: =IF(A46>0,A46,"") -> 4 | B79: 4
A81: =IF(A48>0,A48,"") -> 5 | B81: 5
A83: =IF(A50>0,A50,"") -> 6 | B83: 6
A85: =IF(A52>0,A52,"") -> 7 | B85: 7
A87: =IF(A54>0,A54,"") -> 8 | B87: 8
A89: =IF(A56>0,A56,"") -> 9 | B89: 9
A91: =IF(A58>0,A58,"") -> 10 | B91: 10
A93: =IF(A60>0,A60,"") -> 11 | B93: 11
A95: =IF(A62>0,A62,"") -> 12 | B95: 12
A97: =IF(A64>0,A64,"") -> 13 | B97: 13
A99: =IF(A66>0,A66,"") -> 14 | B99: 14
A101: =IF(A68>0,A68,"") -> 15 | B101: 15
A104: Name | B104: Jg | C104: Sprung
C105: D-Note | D105: Abzug OK | E105: E- Abzug | F105: Note
A106: =IF(A73>0,A73,"") -> 1 | B106: =IF(B73>0,B73,"") -> 1
A108: =IF(A75>0,A75,"") -> 2 | B108: 2
A110: =IF(A77>0,A77,"") -> 3 | B110: 3
A112: =IF(A79>0,A79,"") -> 4 | B112: 4
A114: =IF(A81>0,A81,"") -> 5 | B114: 5
A116: =IF(A83>0,A83,"") -> 6 | B116: 6
A118: =IF(A85>0,A85,"") -> 7 | B118: 7
A120: =IF(A87>0,A87,"") -> 8 | B120: 8
A122: =IF(A89>0,A89,"") -> 9 | B122: 9
A124: =IF(A91>0,A91,"") -> 10 | B124: 10
A126: =IF(A93>0,A93,"") -> 11 | B126: 11
A128: =IF(A95>0,A95,"") -> 12 | B128: 12
A130: =IF(A97>0,A97,"") -> 13 | B130: 13
A132: =IF(A99>0,A99,"") -> 14 | B132: 14
A134: =IF(A101>0,A101,"") -> 15 | B134: 15
A137: Name | B137: Jg | C137: Barren
C138: D-Note | D138: Abzug OK | E138: E- Abzug | F138: Note
A139: =IF(A106>0,A106,"") -> 1 | B139: =IF(B106>0,B106,"") -> 1
A141: =IF(A108>0,A108,"") -> 2 | B141: 2
A143: =IF(A110>0,A110,"") -> 3 | B143: 3
A145: =IF(A112>0,A112,"") -> 4 | B145: 4
A147: =IF(A114>0,A114,"") -> 5 | B147: 5
A149: =IF(A116>0,A116,"") -> 6 | B149: 6
A151: =IF(A118>0,A118,"") -> 7 | B151: 7
A153: =IF(A120>0,A120,"") -> 8 | B153: 8
A155: =IF(A122>0,A122,"") -> 9 | B155: 9
A157: =IF(A124>0,A124,"") -> 10 | B157: 10
A159: =IF(A126>0,A126,"") -> 11 | B159: 11
A161: =IF(A128>0,A128,"") -> 12 | B161: 12
A163: =IF(A130>0,A130,"") -> 13 | B163: 13
A165: =IF(A132>0,A132,"") -> 14 | B165: 14
A167: =IF(A134>0,A134,"") -> 15 | B167: 15
A170: Name | B170: Jg | C170: Reck
C171: D-Note | D171: Abzug OK | E171: E- Abzug | F171: Note
A172: =IF(A139>0,A139,"") -> 1 | B172: =IF(B139>0,B139,"") -> 1
A174: =IF(A141>0,A141,"") -> 2 | B174: 2
A176: =IF(A143>0,A143,"") -> 3 | B176: 3
A178: =IF(A145>0,A145,"") -> 4 | B178: 4
A180: =IF(A147>0,A147,"") -> 5 | B180: 5
A182: =IF(A149>0,A149,"") -> 6 | B182: 6
A184: =IF(A151>0,A151,"") -> 7 | B184: 7
A186: =IF(A153>0,A153,"") -> 8 | B186: 8
A188: =IF(A155>0,A155,"") -> 9 | B188: 9
A190: =IF(A157>0,A157,"") -> 10 | B190: 10
A192: =IF(A159>0,A159,"") -> 11 | B192: 11
A194: =IF(A161>0,A161,"") -> 12 | B194: 12
A196: =IF(A163>0,A163,"") -> 13 | B196: 13
A198: =IF(A165>0,A165,"") -> 14 | B198: 14
A200: =IF(A167>0,A167,"") -> 15 | B200: 15

Sheet Wertungszettel M8 (hidden)
A1: Wettkampfbogen | E1: Ort / Datum : | G1: ='INFO Blatt'!B11 -> Hehlen | J1: ='INFO Blatt'!B13 -> 2019-02-16
E2: Mannschaft: | G2: =Formeln!A12 -> M8 | M2: Wertungsvorschriften
E3: Liga: | G3: ='INFO Blatt'!B7 -> Einsteigerliga | M3: ='INFO Blatt'!B5 -> P und AK
A5: Name | B5: Jg | C5: Boden | G5: Ringe | K5: Barren
C6: D-Note | D6: Abzug OK | E6: E- Abzug | F6: Note | G6: D-Note | H6: Abzug OK | I6: E- Abzug | J6: Note | K6: D-Note | L6: Abzug OK | M6: E-Abzug | N6: Note
A7: 8
A38: Name | B38: Jg | C38: Pauschenpferd | G38: Sprung | K38: Reck
C39: D-Note | D39: Abzug OK | E39: E- Abzug | F39: Note | G39: D-Note | H39: Abzug OK | I39: E- Abzug | J39: Note | K39: D-Note | L39: Abzug OK | M39: E-Abzug | N39: Note
B42: =IF(B9>0,B9,"") -> 
B44: =IF(B11>0,B11,"") -> 
B46: =IF(B13>0,B13,"") -> 
B48: =IF(B15>0,B15,"") -> 
B50: =IF(B17>0,B17,"") -> 
B52: =IF(B19>0,B19,"") -> 
B54: =IF(B21>0,B21,"") -> 
B56: =IF(B23>0,B23,"") -> 
B58: =IF(B25>0,B25,"") -> 
B60: =IF(B27>0,B27,"") -> 
B62: =IF(B29>0,B29,"") -> 
B64: =IF(B31>0,B31,"") -> 
B66: =IF(B33>0,B33,"") -> 
A68: =IF(A35>0,A35,"") -> 

Sheet Wertungszettel M9 (hidden)
A1: Wettkampfbogen | E1: Ort / Datum : | G1: ='INFO Blatt'!B11 -> Hehlen | J1: ='INFO Blatt'!B13 -> 2019-02-16
E2: Mannschaft: | G2: =Formeln!A13 -> M9 | M2: Wertungsvorschriften
E3: Liga: | G3: ='INFO Blatt'!B7 -> Einsteigerliga | M3: ='INFO Blatt'!B5 -> P und AK
A5: Name | B5: Jg | C5: Boden | G5: Ringe | K5: Barren
C6: D-Note | D6: Abzug OK | E6: E- Abzug | F6: Note | G6: D-Note | H6: Abzug OK | I6: E- Abzug | J6: Note | K6: D-Note | L6: Abzug OK | M6: E-Abzug | N6: Note
A7: 9 | B7: =IF('M5'!C9>0,'M5'!C9,"") -> 
B9: =IF('M5'!C11>0,'M5'!C11,"") -> 
B11: =IF('M5'!C13>0,'M5'!C13,"") -> 
B13: =IF('M5'!C15>0,'M5'!C15,"") -> 
B15: =IF('M5'!C17>0,'M5'!C17,"") -> 
B17: =IF('M5'!C19>0,'M5'!C19,"") -> 
B19: =IF('M5'!C21>0,'M5'!C21,"") -> 
B21: =IF('M5'!C23>0,'M5'!C23,"") -> 
B23: =IF('M5'!C25>0,'M5'!C25,"") -> 
B25: =IF('M5'!C27>0,'M5'!C27,"") -> 
B33: =IF('M5'!C41>0,'M5'!C41,"") -> 
B35: =IF('M5'!C43>0,'M5'!C43,"") -> 
A38: Name | B38: Jg | C38: Pauschenpferd | G38: Sprung | K38: Reck
C39: D-Note | D39: Abzug OK | E39: E- Abzug | F39: Note | G39: D-Note | H39: Abzug OK | I39: E- Abzug | J39: Note | K39: D-Note | L39: Abzug OK | M39: E-Abzug | N39: Note
A40: =IF(A7>0,A7,"") -> 9 | B40: =IF(B7>0,B7,"") -> 
A42: =IF(A9>0,A9,"") -> 
A44: =IF(A11>0,A11,"") -> 
A46: =IF(A13>0,A13,"") -> 
A48: =IF(A15>0,A15,"") -> 
A50: =IF(A17>0,A17,"") -> 
A52: =IF(A19>0,A19,"") -> 
A54: =IF(A21>0,A21,"") -> 
A56: =IF(A23>0,A23,"") -> 
A58: =IF(A25>0,A25,"") -> 
A60: =IF(A27>0,A27,"") -> 
A62: =IF(A29>0,A29,"") -> 
A64: =IF(A31>0,A31,"") -> 
A66: =IF(A33>0,A33,"") -> 
A68: =IF(A35>0,A35,"") -> 

Sheet Wertungszettel M10 (hidden)
A1: Wettkampfbogen | E1: Ort / Datum : | G1: ='INFO Blatt'!B11 -> Hehlen | J1: ='INFO Blatt'!B13 -> 2019-02-16
E2: Mannschaft: | G2: =Formeln!A14 -> M10 | M2: Wertungsvorschriften
E3: Liga: | G3: ='INFO Blatt'!B7 -> Einsteigerliga | M3: ='INFO Blatt'!B5 -> P und AK
A5: Name | B5: Jg | C5: Boden | G5: Ringe | K5: Barren
C6: D-Note | D6: Abzug OK | E6: E- Abzug | F6: Note | G6: D-Note | H6: Abzug OK | I6: E- Abzug | J6: Note | K6: D-Note | L6: Abzug OK | M6: E-Abzug | N6: Note
A7: 10 | B7: =IF('M6'!C9>0,'M6'!C9,"") -> 
B9: =IF('M6'!C11>0,'M6'!C11,"") -> 
B11: =IF('M6'!C13>0,'M6'!C13,"") -> 
B13: =IF('M6'!C15>0,'M6'!C15,"") -> 
B15: =IF('M6'!C17>0,'M6'!C17,"") -> 
B17: =IF('M6'!C19>0,'M6'!C19,"") -> 
B19: =IF('M6'!C21>0,'M6'!C21,"") -> 
B21: =IF('M6'!C23>0,'M6'!C23,"") -> 
B23: =IF('M6'!C25>0,'M6'!C25,"") -> 
B25: =IF('M6'!C27>0,'M6'!C27,"") -> 
B31: =IF('M6'!C39>0,'M6'!C39,"") -> 
B33: =IF('M6'!C41>0,'M6'!C41,"") -> 
B35: =IF('M6'!C43>0,'M6'!C43,"") -> 
A38: Name | B38: Jg | C38: Pauschenpferd | G38: Sprung | K38: Reck
C39: D-Note | D39: Abzug OK | E39: E- Abzug | F39: Note | G39: D-Note | H39: Abzug OK | I39: E- Abzug | J39: Note | K39: D-Note | L39: Abzug OK | M39: E-Abzug | N39: Note
A40: =IF(A7>0,A7,"") -> 10 | B40: =IF(B7>0,B7,"") -> 
A42: =IF(A9>0,A9,"") -> 
A44: =IF(A11>0,A11,"") -> 
A46: =IF(A13>0,A13,"") -> 
A48: =IF(A15>0,A15,"") -> 
A50: =IF(A17>0,A17,"") -> 
A52: =IF(A19>0,A19,"") -> 
A54: =IF(A21>0,A21,"") -> 
A56: =IF(A23>0,A23,"") -> 
A58: =IF(A25>0,A25,"") -> 
A60: =IF(A27>0,A27,"") -> 
A62: =IF(A29>0,A29,"") -> 
A64: =IF(A31>0,A31,"") -> 
A66: =IF(A33>0,A33,"") -> 
A68: =IF(A35>0,A35,"") -> 
